{"text_format":"1","workbook":"xlsx","n_sheets":4,"sheets":["FORMATO","C5 x 50","Hoja1","COG"],"not_rendered":{"charts":0,"images":0,"macros":1,"external_links":0,"defined_names":5,"comments":1,"pivot_tables":0},"unopened":[],"bounds":{"document_bytes":16777216,"sheet_cells":100000,"rows_first":2000,"rows_last":500,"rows_between":2000,"halvings":0,"cell_chars":16384,"cell_head_chars":4096},"cells_cut":0,"cells_raw":0,"read":"whole","date_system":"1900"}

{"sheet":"FORMATO","index":0,"n_rows":191,"n_cols":105,"rows_kept":191,"cut":false,"hidden":false,"merged":[[2,1,2,103],[4,92,4,103],[6,24,6,46],[6,64,6,80],[6,92,6,103],[8,22,8,49],[8,78,8,103],[12,64,12,72],[12,73,12,80],[12,81,12,91],[11,81,11,91],[11,92,13,103],[13,4,13,13],[13,25,13,38],[13,39,13,46],[13,47,13,54],[13,55,13,63],[11,4,11,13],[11,14,11,80],[12,4,12,13],[12,14,13,24],[12,25,12,38],[12,39,12,46],[12,47,12,54],[12,55,12,63],[13,64,13,72],[13,73,13,80],[13,81,13,91],[15,39,21,46],[15,47,21,54],[15,55,18,63],[31,1,37,3],[31,4,37,13],[31,14,37,24],[31,25,37,38],[15,81,21,91],[31,55,34,63],[31,64,37,72],[31,73,32,80],[31,81,37,91],[23,1,29,3],[23,4,29,13],[23,14,29,24],[23,25,29,38],[23,39,29,46],[23,47,29,54],[15,1,21,3],[15,4,21,13],[18,73,19,80],[19,55,21,63],[20,73,20,80],[21,73,21,80],[23,92,29,103],[25,73,25,80],[26,73,27,80],[27,55,29,63],[28,73,28,80],[23,81,29,91],[15,64,21,72],[15,73,16,80],[23,55,26,63],[23,64,29,72],[23,73,24,80],[15,14,21,24],[15,25,21,38],[39,92,47,103],[41,73,41,80],[42,55,47,63],[42,73,43,80],[44,73,44,80],[46,73,46,80],[47,73,47,80],[35,55,37,63],[36,73,36,80],[37,73,37,80],[39,55,41,63],[39,64,47,72],[39,73,40,80],[39,81,47,91],[31,92,37,103],[39,39,47,46],[39,47,47,54],[33,73,33,80],[34,73,35,80],[31,47,37,54],[15,92,21,103],[17,73,17,80],[39,2,47,3],[39,4,47,13],[39,14,47,24],[39,25,47,38],[31,39,37,46],[49,81,55,91],[49,92,55,103],[51,73,51,80],[52,55,55,63],[52,73,53,80],[54,73,54,80],[55,73,55,80],[49,2,55,3],[49,4,55,13],[49,14,55,24],[49,25,55,38],[49,39,55,46],[49,47,55,54],[49,55,51,63],[49,64,55,72],[49,73,50,80],[57,1,63,3],[57,4,63,13],[57,14,63,24],[57,25,63,38],[57,39,63,46],[57,47,63,54],[57,55,59,63],[57,64,63,72],[57,73,58,80],[65,1,71,3],[65,4,71,13],[65,14,71,24],[65,25,71,38],[65,39,71,46],[65,47,71,54],[69,55,71,63],[70,73,70,80],[71,73,71,80],[57,81,63,91],[57,92,63,103],[59,73,59,80],[60,55,63,63],[73,73,74,80],[73,81,81,91],[73,92,81,103],[75,73,75,80],[76,55,81,63],[76,73,77,80],[78,73,78,80],[80,73,80,80],[81,73,81,80],[65,55,68,63],[65,64,71,72],[65,73,66,80],[65,81,71,91],[65,92,71,103],[67,73,67,80],[68,73,69,80],[60,73,61,80],[62,73,62,80],[63,73,63,80],[73,2,81,3],[73,4,81,13],[73,14,81,24],[73,25,81,38],[73,39,81,46],[73,47,81,54],[73,55,75,63],[91,55,93,63],[91,64,97,72],[83,55,85,63],[83,64,89,72],[73,64,81,72],[91,73,92,80],[91,81,97,91],[91,92,97,103],[93,73,93,80],[94,55,97,63],[91,1,97,3],[91,4,97,13],[91,14,97,24],[91,25,97,38],[91,39,97,46],[91,47,97,54],[94,73,95,80],[96,73,96,80],[97,73,97,80],[83,73,84,80],[83,81,89,91],[83,92,89,103],[85,73,85,80],[86,55,89,63],[86,73,87,80],[88,73,88,80],[89,73,89,80],[83,2,89,3],[83,4,89,13],[83,14,89,24],[83,25,89,38],[83,39,89,46],[83,47,89,54],[99,55,102,63],[99,64,105,72],[99,73,100,80],[99,81,105,91],[99,92,105,103],[101,73,101,80],[102,73,103,80],[99,1,105,3],[99,4,105,13],[99,14,105,24],[99,25,105,38],[99,39,105,46],[99,47,105,54],[103,55,105,63],[104,73,104,80],[105,73,105,80],[107,73,108,80],[107,81,115,91],[107,92,115,103],[109,73,109,80],[110,55,115,63],[110,73,111,80],[112,73,112,80],[114,73,114,80],[115,73,115,80],[107,2,115,3],[107,4,115,13],[107,14,115,24],[107,25,115,38],[107,39,115,46],[107,47,115,54],[107,55,109,63],[125,55,127,63],[125,64,131,72],[117,55,119,63],[117,64,123,72],[107,64,115,72],[125,73,126,80],[125,81,131,91],[125,92,131,103],[127,73,127,80],[128,55,131,63],[125,1,131,3],[125,4,131,13],[125,14,131,24],[125,25,131,38],[125,39,131,46],[125,47,131,54],[128,73,129,80],[130,73,130,80],[131,73,131,80],[117,73,118,80],[117,81,123,91],[117,92,123,103],[119,73,119,80],[120,55,123,63],[120,73,121,80],[122,73,122,80],[123,73,123,80],[117,2,123,3],[117,4,123,13],[117,14,123,24],[117,25,123,38],[117,39,123,46],[117,47,123,54],[133,55,136,63],[133,64,139,72],[133,73,134,80],[133,81,139,91],[133,92,139,103],[135,73,135,80],[136,73,137,80],[133,1,139,3],[133,4,139,13],[133,14,139,24],[133,25,139,38],[133,39,139,46],[133,47,139,54],[137,55,139,63],[138,73,138,80],[139,73,139,80],[141,73,142,80],[141,81,149,91],[141,92,149,103],[143,73,143,80],[144,55,149,63],[144,73,145,80],[146,73,146,80],[148,73,148,80],[149,73,149,80],[141,2,149,3],[141,4,149,13],[141,14,149,24],[141,25,149,38],[141,39,149,46],[141,47,149,54],[141,55,143,63],[159,55,161,63],[159,64,165,72],[151,55,153,63],[151,64,157,72],[141,64,149,72],[154,55,157,63],[159,81,165,91],[159,92,165,103],[161,73,161,80],[162,55,165,63],[159,1,165,3],[159,4,165,13],[159,14,165,24],[159,25,165,38],[159,39,165,46],[159,47,165,54],[162,73,163,80],[164,73,164,80],[165,73,165,80],[154,73,155,80],[156,73,156,80],[157,73,157,80],[151,2,157,3],[151,4,157,13],[151,14,157,24],[151,25,157,38],[151,39,157,46],[151,47,157,54],[167,55,170,63],[167,64,173,72],[167,73,168,80],[167,81,173,91],[167,92,173,103],[169,73,169,80],[170,73,171,80],[167,1,173,3],[167,4,173,13],[167,14,173,24],[167,25,173,38],[167,39,173,46],[167,47,173,54],[171,55,173,63],[172,73,172,80],[173,73,173,80],[175,2,183,3],[175,4,183,13],[175,14,183,24],[175,25,183,38],[175,39,183,46],[175,47,183,54],[175,55,177,63],[185,55,187,63],[185,64,191,72],[175,64,183,72],[178,55,183,63],[188,55,191,63],[188,73,189,80],[190,73,190,80],[191,73,191,80],[185,2,191,3],[185,4,191,13],[185,14,191,24],[185,25,191,38],[185,39,191,46],[185,47,191,54],[11,104,13,111],[31,104,37,111],[15,104,21,111],[23,104,29,111],[49,104,55,111],[57,104,63,111],[65,104,71,111],[185,73,186,80],[185,81,191,91],[185,92,191,103],[187,73,187,80],[175,73,176,80],[175,81,183,91],[175,92,183,103],[177,73,177,80],[178,73,179,80],[180,73,180,80],[182,73,182,80],[183,73,183,80],[151,73,152,80],[151,81,157,91],[151,92,157,103],[153,73,153,80],[159,73,160,80],[159,104,165,111],[167,104,173,111],[185,104,191,111],[175,104,183,111],[141,104,148,111],[107,104,114,111],[73,104,80,111],[39,104,46,111],[83,104,89,111],[91,104,97,111],[99,104,105,111],[117,104,123,111],[125,104,131,111],[133,104,139,111],[151,104,157,111]]}
["MIR1"]
[]
[null,"MUNICIPIO "]
[]
[null,null,null,null,"Nombre del Programa Presupuestario",null,null,null,null,null,null,null,null,null,null,null,null,null,null,null,null,null,null,null,null,null,null,null,null,null,null,null,null,null,null,null,null,null,null,null,null,null,null,null,null,null,null,null,null,null,null,null,null,null,null,null,null,null,null,null,null,null,null,null,null,null,null,null,null,null,null,null,null,null,null,null,null,null,null,null,null,null,null,null,null,null,null,null,null,null,null,"Fecha de elaboración","2023-10-01"]
[]
[null,null,null,null,"Clasificación Presupuestaria",null,null,null,null,null,null,null,null,null,null,null,null,null,null,null,null,null,null,null,null,null,null,null,null,null,null,null,null,null,null,null,null,null,null,null,null,null,null,null,null,null,null,null,null,"Presupuesto asignado",null,null,null,null,null,null,null,null,null,null,null,null,null,null,{"$f":"#REF!+#REF!","v":{"$error":"#REF!"}},null,null,null,null,null,null,null,null,null,null,null,null,null,null,null,null,null,null,null,null,null,null,null,null,null,null,"Ejercicio Fiscal",2024]
[]
[null,null,null,null,"Dependencia responsable",null,null,null,null,null,null,null,null,null,null,null,null,null,null,null,null,null,"SECRETARÍA DE SEGURIDAD PÚBLICA, TRÁNSITO Y VIALIDAD",null,null,null,null,null,null,null,null,null,null,null,null,null,null,null,null,null,null,null,null,null,null,null,null,null,null,null,null,null,null,null,null,null,null,null,null,null,null,null,null,null,null,null,null,null,null,null,null,null,null,null,null,null,"Eje del Programa de Gobierno Municipal",null,"DOLORES HIDALGO, PARTICIPATIVO Y SEGURO"]
[]
[]
[null,null,null,null,"RESUMEN",null,null,null,null,null,null,null,null,null,"INDICADORES PARA DESEMPEÑO",null,null,null,null,null,null,null,null,null,null,null,null,null,null,null,null,null,null,null,null,null,null,null,null,null,null,null,null,null,null,null,null,null,null,null,null,null,null,null,null,null,null,null,null,null,null,null,null,null,null,null,null,null,null,null,null,null,null,null,null,null,null,null,null,null,null,"MEDIOS",null,null,null,null,null,null,null,null,null,null,"SUPUESTOS",null,null,null,null,null,null,null,null,null,null,null,"PONDERACIÓN"]
[null,null,null,null,"NARRATIVO",null,null,null,null,null,null,null,null,null,"NOMBRE",null,null,null,null,null,null,null,null,null,null,"FÓRMULA",null,null,null,null,null,null,null,null,null,null,null,null,null,"UNIDAD DE",null,null,null,null,null,null,null,"FRECUENCIA",null,null,null,null,null,null,null,"LÍNEA BASE ",null,null,null,null,null,null,null,null,"META",null,null,null,null,null,null,null,null,"TIPO",null,null,null,null,null,null,null,"DE"]
[null,null,null,null,"OBJETIVOS",null,null,null,null,null,null,null,null,null,null,null,null,null,null,null,null,null,null,null,null,"(Forma de cálculo)",null,null,null,null,null,null,null,null,null,null,null,null,null,"MEDIDA",null,null,null,null,null,null,null,"DE MEDICIÓN",null,null,null,null,null,null,null,2022,null,null,null,null,null,null,null,null,2023,null,null,null,null,null,null,null,null,"DIMENSIÓN",null,null,null,null,null,null,null,"VERIFICACIÓN"]
[]
[null,"FIN",null,null,"Contribuir a mejorar las capacidades, atenciones y actuación de los elementos de la corporación que permitan generar un ambiente de seguridad en la sociedad",null,null,null,null,null,null,null,null,null,"Percepción de seguridad ciudadana",null,null,null,null,null,null,null,null,null,null,"((Porcentaje de percepción de seguridad en su colonia del 2024/porcentaje de percepción de seguridad en su colonia del año 2023)-1)*100",null,null,null,null,null,null,null,null,null,null,null,null,null,"Tasa",null,null,null,null,null,null,null,"Anual",null,null,null,null,null,null,null,2023,null,null,null,null,null,null,null,null,0.47,null,null,null,null,null,null,null,null,"Tipo",null,null,null,null,null,null,null,"Encuesta de percepción de seguridad aplicada por el Centro Estatal de Información (documento físico)",null,null,null,null,null,null,null,null,null,null,"La población siente seguridad en su colonia"]
[]
[null,null,null,null,null,null,null,null,null,null,null,null,null,null,null,null,null,null,null,null,null,null,null,null,null,null,null,null,null,null,null,null,null,null,null,null,null,null,null,null,null,null,null,null,null,null,null,null,null,null,null,null,null,null,null,null,null,null,null,null,null,null,null,null,null,null,null,null,null,null,null,null,null,"Estrategico"]
[null,null,null,null,null,null,null,null,null,null,null,null,null,null,null,null,null,null,null,null,null,null,null,null,null,null,null,null,null,null,null,null,null,null,null,null,null,null,null,null,null,null,null,null,null,null,null,null,null,null,null,null,null,null,null,null,null,null,null,null,null,null,null,null,null,null,null,null,null,null,null,null,null,"Dimensión"]
[null,null,null,null,null,null,null,null,null,null,null,null,null,null,null,null,null,null,null,null,null,null,null,null,null,null,null,null,null,null,null,null,null,null,null,null,null,null,null,null,null,null,null,null,null,null,null,null,null,null,null,null,null,null,null,0.43020000000000003]
[null,null,null,null,null,null,null,null,null,null,null,null,null,null,null,null,null,null,null,null,null,null,null,null,null,null,null,null,null,null,null,null,null,null,null,null,null,null,null,null,null,null,null,null,null,null,null,null,null,null,null,null,null,null,null,null,null,null,null,null,null,null,null,null,null,null,null,null,null,null,null,null,null,"Eficacia"]
[]
[]
[null,"PROPÓSITO",null,null,"La Secretaría de Seguridad Pública, Tránsito y Vialidad realiza acciones efectivas de prevención que inhiben conductas antisociales y delictivas",null,null,null,null,null,null,null,null,null,"Delitos patrimoniales",null,null,null,null,null,null,null,null,null,null,"((Total de delitos patrimoniales en el municipio de Dolores Hidalgo en el año 2024/total de delitos patrimoniales en el municipio de Dolores Hidalgo en el año 2023)-1)*100",null,null,null,null,null,null,null,null,null,null,null,null,null,"Tasa",null,null,null,null,null,null,null,"Trimestral",null,null,null,null,null,null,null,2023,null,null,null,null,null,null,null,null,-0.05,null,null,null,null,null,null,null,null,"Tipo",null,null,null,null,null,null,null,"https://drive.google.com/file/d/11P9vsoobzZ0dBPWc8IthK1rPKPE-WNSK/view",null,null,null,null,null,null,null,null,null,null,"La población adopta medidas de autocuidado"]
[]
[null,null,null,null,null,null,null,null,null,null,null,null,null,null,null,null,null,null,null,null,null,null,null,null,null,null,null,null,null,null,null,null,null,null,null,null,null,null,null,null,null,null,null,null,null,null,null,null,null,null,null,null,null,null,null,null,null,null,null,null,null,null,null,null,null,null,null,null,null,null,null,null,null,"Estrategico"]
[null,null,null,null,null,null,null,null,null,null,null,null,null,null,null,null,null,null,null,null,null,null,null,null,null,null,null,null,null,null,null,null,null,null,null,null,null,null,null,null,null,null,null,null,null,null,null,null,null,null,null,null,null,null,null,null,null,null,null,null,null,null,null,null,null,null,null,null,null,null,null,null,null,"Dimensión"]
[null,null,null,null,null,null,null,null,null,null,null,null,null,null,null,null,null,null,null,null,null,null,null,null,null,null,null,null,null,null,null,null,null,null,null,null,null,null,null,null,null,null,null,null,null,null,null,null,null,null,null,null,null,null,null,0.02]
[null,null,null,null,null,null,null,null,null,null,null,null,null,null,null,null,null,null,null,null,null,null,null,null,null,null,null,null,null,null,null,null,null,null,null,null,null,null,null,null,null,null,null,null,null,null,null,null,null,null,null,null,null,null,null,null,null,null,null,null,null,null,null,null,null,null,null,null,null,null,null,null,null,"Eficiencia"]
[]
[]
[null,"COMPONENTE (1)",null,null,"Realizar acciones preventivas mediante operaciones policiales que inhiban las conductas antisociales en la población juvenil del municipio de Dolores Hidalgo, aplicadas",null,null,null,null,null,null,null,null,null,"Inhibir conductas antisociales",null,null,null,null,null,null,null,null,null,null,"((Total de detenidos en edad joven por infracción en el año 2024/ total de detenidos en edad jóven por infracción en el año 2023)-1*100",null,null,null,null,null,null,null,null,null,null,null,null,null,"Tasa",null,null,null,null,null,null,null,"Trimestral ",null,null,null,null,null,null,null,2023,null,null,null,null,null,null,null,null,-0.05,null,null,null,null,null,null,null,null,"Tipo",null,null,null,null,null,null,null,"Informe de detenidos de la plataforma RND",null,null,null,null,null,null,null,null,null,null,"Los jóvenes realizan acciones consideradas infracciones",null,null,null,null,null,null,null,null,null,null,null,0.3]
[]
[null,null,null,null,null,null,null,null,null,null,null,null,null,null,null,null,null,null,null,null,null,null,null,null,null,null,null,null,null,null,null,null,null,null,null,null,null,null,null,null,null,null,null,null,null,null,null,null,null,null,null,null,null,null,null,null,null,null,null,null,null,null,null,null,null,null,null,null,null,null,null,null,null,"Estrategico"]
[null,null,null,null,null,null,null,null,null,null,null,null,null,null,null,null,null,null,null,null,null,null,null,null,null,null,null,null,null,null,null,null,null,null,null,null,null,null,null,null,null,null,null,null,null,null,null,null,null,null,null,null,null,null,null,null,null,null,null,null,null,null,null,null,null,null,null,null,null,null,null,null,null,"Dimensión"]
[null,null,null,null,null,null,null,null,null,null,null,null,null,null,null,null,null,null,null,null,null,null,null,null,null,null,null,null,null,null,null,null,null,null,null,null,null,null,null,null,null,null,null,null,null,null,null,null,null,null,null,null,null,null,null,3.9699999999999999E-2]
[null,null,null,null,null,null,null,null,null,null,null,null,null,null,null,null,null,null,null,null,null,null,null,null,null,null,null,null,null,null,null,null,null,null,null,null,null,null,null,null,null,null,null,null,null,null,null,null,null,null,null,null,null,null,null,null,null,null,null,null,null,null,null,null,null,null,null,null,null,null,null,null,null,"Eficiecia"]
[]
[]
[null,null,"ACTIVIDAD (1.1)",null,"Coordinación con autoridades de los diferentes ordenes de gobierno para aplicar Operacines policiales conjuntas",null,null,null,null,null,null,null,null,null,"Coordinación Operativa",null,null,null,null,null,null,null,null,null,null,"(Total de operativos coordinados realizados / total de operativos coordinados programados)*100",null,null,null,null,null,null,null,null,null,null,null,null,null,"Porcentaje",null,null,null,null,null,null,null,"Mensual ",null,null,null,null,null,null,null,2024,null,null,null,null,null,null,null,null,1,null,null,null,null,null,null,null,null,"Tipo",null,null,null,null,null,null,null,"Informes de resultados emitidos a FSPEhttps://seguridad.guanajuato.gob.mx/compromisos-municipales/",null,null,null,null,null,null,null,null,null,null,"Las corporaciones realizan una coordinación efectiva de acciones de seguridad"]
[]
[null,null,null,null,null,null,null,null,null,null,null,null,null,null,null,null,null,null,null,null,null,null,null,null,null,null,null,null,null,null,null,null,null,null,null,null,null,null,null,null,null,null,null,null,null,null,null,null,null,null,null,null,null,null,null,null,null,null,null,null,null,null,null,null,null,null,null,null,null,null,null,null,null,"Gestion "]
[null,null,null,null,null,null,null,null,null,null,null,null,null,null,null,null,null,null,null,null,null,null,null,null,null,null,null,null,null,null,null,null,null,null,null,null,null,null,null,null,null,null,null,null,null,null,null,null,null,null,null,null,null,null,null,100,null,null,null,null,null,null,null,null,null,null,null,null,null,null,null,null,null,"Dimensión"]
[]
[null,null,null,null,null,null,null,null,null,null,null,null,null,null,null,null,null,null,null,null,null,null,null,null,null,null,null,null,null,null,null,null,null,null,null,null,null,null,null,null,null,null,null,null,null,null,null,null,null,null,null,null,null,null,null,null,null,null,null,null,null,null,null,null,null,null,null,null,null,null,null,null,null,"Eficacia "]
[]
[]
[]
[]
[null,null,"ACTIVIDAD (1.2)",null,"Aplicación de operaciones policiales de manera específica ante las actividades delincuenciales cosnideradas prioritarias para su atención",null,null,null,null,null,null,null,null,null,"operativos de alto impacto efectivos ",null,null,null,null,null,null,null,null,null,null,"(Total de operativos de alto impacto realizados / total de operativos de alto impacto programados)*100",null,null,null,null,null,null,null,null,null,null,null,null,null,"Porcentaje",null,null,null,null,null,null,null,"Mensual ",null,null,null,null,null,null,null,2024,null,null,null,null,null,null,null,null,1,null,null,null,null,null,null,null,null,"Tipo",null,null,null,null,null,null,null,"Informe de resultados remitidos a FSPE\nhttps://seguridad.guanajuato.gob.mx/compromisos-municipales/",null,null,null,null,null,null,null,null,null,null,"Existen condiciones para realizar los operativos"]
[]
[null,null,null,null,null,null,null,null,null,null,null,null,null,null,null,null,null,null,null,null,null,null,null,null,null,null,null,null,null,null,null,null,null,null,null,null,null,null,null,null,null,null,null,null,null,null,null,null,null,null,null,null,null,null,null,null,null,null,null,null,null,null,null,null,null,null,null,null,null,null,null,null,null,"Estrategico"]
[null,null,null,null,null,null,null,null,null,null,null,null,null,null,null,null,null,null,null,null,null,null,null,null,null,null,null,null,null,null,null,null,null,null,null,null,null,null,null,null,null,null,null,null,null,null,null,null,null,null,null,null,null,null,null,100,null,null,null,null,null,null,null,null,null,null,null,null,null,null,null,null,null,"Dimensión"]
[]
[null,null,null,null,null,null,null,null,null,null,null,null,null,null,null,null,null,null,null,null,null,null,null,null,null,null,null,null,null,null,null,null,null,null,null,null,null,null,null,null,null,null,null,null,null,null,null,null,null,null,null,null,null,null,null,null,null,null,null,null,null,null,null,null,null,null,null,null,null,null,null,null,null,"Eficiencia"]
[]
[]
[null,"ACTIVIDAD (1.3)",null,null,"Participación en dispositivos de aceurdo a las actividades de los diferentes sectores ",null,null,null,null,null,null,null,null,null,"Dispositivos sectorizados",null,null,null,null,null,null,null,null,null,null,"(Total de dispositivos por sector social, económico o realizados / total de dispositivos por sector social, económico o programados)*100",null,null,null,null,null,null,null,null,null,null,null,null,null,"Porcentaje",null,null,null,null,null,null,null,"Mensual ",null,null,null,null,null,null,null,2024,null,null,null,null,null,null,null,null,1,null,null,null,null,null,null,null,null,"Tipo",null,null,null,null,null,null,null,"Bitacora de resultados",null,null,null,null,null,null,null,null,null,null,"los diferentes sectores tienen actividades "]
[]
[null,null,null,null,null,null,null,null,null,null,null,null,null,null,null,null,null,null,null,null,null,null,null,null,null,null,null,null,null,null,null,null,null,null,null,null,null,null,null,null,null,null,null,null,null,null,null,null,null,null,null,null,null,null,null,null,null,null,null,null,null,null,null,null,null,null,null,null,null,null,null,null,null,"Estrategico"]
[null,null,null,null,null,null,null,null,null,null,null,null,null,null,null,null,null,null,null,null,null,null,null,null,null,null,null,null,null,null,null,null,null,null,null,null,null,null,null,null,null,null,null,null,null,null,null,null,null,null,null,null,null,null,null,100,null,null,null,null,null,null,null,null,null,null,null,null,null,null,null,null,null,"Dimensión"]
[]
[null,null,null,null,null,null,null,null,null,null,null,null,null,null,null,null,null,null,null,null,null,null,null,null,null,null,null,null,null,null,null,null,null,null,null,null,null,null,null,null,null,null,null,null,null,null,null,null,null,null,null,null,null,null,null,null,null,null,null,null,null,null,null,null,null,null,null,null,null,null,null,null,null,"Eficiencia"]
[]
[]
[null,"COMPONENTE (2)",null,null,"Actividades informativas, ludicas, deportivas y de cualquier indole que contribuyan a la participación ciudadana en materia de seguridad pública realizadas",null,null,null,null,null,null,null,null,null,"Cobertura en prevención",null,null,null,null,null,null,null,null,null,null,"(Total de población registrada en los programas de prevención/ total de la población en el municipio)*100",null,null,null,null,null,null,null,null,null,null,null,null,null,"Porcentaje",null,null,null,null,null,null,null,"Mensual ",null,null,null,null,null,null,null,2024,null,null,null,null,null,null,null,null,1,null,null,null,null,null,null,null,null,"Tipo",null,null,null,null,null,null,null,"Bitacora de resultados",null,null,null,null,null,null,null,null,null,null,"La población tiene interes en participar en los programas",null,null,null,null,null,null,null,null,null,null,null,0.3]
[]
[null,null,null,null,null,null,null,null,null,null,null,null,null,null,null,null,null,null,null,null,null,null,null,null,null,null,null,null,null,null,null,null,null,null,null,null,null,null,null,null,null,null,null,null,null,null,null,null,null,null,null,null,null,null,null,null,null,null,null,null,null,null,null,null,null,null,null,null,null,null,null,null,null,"Gestion "]
[null,null,null,null,null,null,null,null,null,null,null,null,null,null,null,null,null,null,null,null,null,null,null,null,null,null,null,null,null,null,null,null,null,null,null,null,null,null,null,null,null,null,null,null,null,null,null,null,null,null,null,null,null,null,null,null,null,null,null,null,null,null,null,null,null,null,null,null,null,null,null,null,null,"Dimensión"]
[null,null,null,null,null,null,null,null,null,null,null,null,null,null,null,null,null,null,null,null,null,null,null,null,null,null,null,null,null,null,null,null,null,null,null,null,null,null,null,null,null,null,null,null,null,null,null,null,null,null,null,null,null,null,null,1]
[null,null,null,null,null,null,null,null,null,null,null,null,null,null,null,null,null,null,null,null,null,null,null,null,null,null,null,null,null,null,null,null,null,null,null,null,null,null,null,null,null,null,null,null,null,null,null,null,null,null,null,null,null,null,null,null,null,null,null,null,null,null,null,null,null,null,null,null,null,null,null,null,null,"Eficacia "]
[]
[]
[null,null,"ACTIVIDAD (2.1)",null,"Transmisión de información preventiva y de autocuidado por diferentes medios físicos y tecnológicos.",null,null,null,null,null,null,null,null,null,"Campañas preventivas",null,null,null,null,null,null,null,null,null,null,"(Total de campañas los diferentes sectores sociales diferentes medios físicos y tecnológicos./ total campañas programadasde los diferentes sectores sociales diferentes medios físicos y tecnológicos.)*100",null,null,null,null,null,null,null,null,null,null,null,null,null,"Porcentaje",null,null,null,null,null,null,null,"Mensual ",null,null,null,null,null,null,null,2024,null,null,null,null,null,null,null,null,1,null,null,null,null,null,null,null,null,"Tipo",null,null,null,null,null,null,null,"Bitacora de resultados",null,null,null,null,null,null,null,null,null,null,"Las instituciones promueven las medidas preventivas"]
[]
[null,null,null,null,null,null,null,null,null,null,null,null,null,null,null,null,null,null,null,null,null,null,null,null,null,null,null,null,null,null,null,null,null,null,null,null,null,null,null,null,null,null,null,null,null,null,null,null,null,null,null,null,null,null,null,null,null,null,null,null,null,null,null,null,null,null,null,null,null,null,null,null,null,"Estrategico"]
[null,null,null,null,null,null,null,null,null,null,null,null,null,null,null,null,null,null,null,null,null,null,null,null,null,null,null,null,null,null,null,null,null,null,null,null,null,null,null,null,null,null,null,null,null,null,null,null,null,null,null,null,null,null,null,100,null,null,null,null,null,null,null,null,null,null,null,null,null,null,null,null,null,"Dimensión"]
[]
[null,null,null,null,null,null,null,null,null,null,null,null,null,null,null,null,null,null,null,null,null,null,null,null,null,null,null,null,null,null,null,null,null,null,null,null,null,null,null,null,null,null,null,null,null,null,null,null,null,null,null,null,null,null,null,null,null,null,null,null,null,null,null,null,null,null,null,null,null,null,null,null,null,"Eficiencia"]
[]
[]
[]
[]
[null,null,"ACTIVIDAD (2.2)",null,"Aplicación de jornadas de capacitación en temas preventivos y de autocuidado a la población en general del municipio de Dolores Hidalgo",null,null,null,null,null,null,null,null,null,"Charlas informativas",null,null,null,null,null,null,null,null,null,null,"(Total de charlas aplicadas en los diferentes sectores sociales del municipio de Dolores Hidalgo/ total charlas programadasen los diferentes sectores sociales del municipio de Dolores Hidalgo)*100",null,null,null,null,null,null,null,null,null,null,null,null,null,"Porcentaje",null,null,null,null,null,null,null,"Mensual ",null,null,null,null,null,null,null,2024,null,null,null,null,null,null,null,null,1,null,null,null,null,null,null,null,null,"Tipo",null,null,null,null,null,null,null,"Bitacora de resultados",null,null,null,null,null,null,null,null,null,null,"La población tiene el interes para participar"]
[]
[null,null,null,null,null,null,null,null,null,null,null,null,null,null,null,null,null,null,null,null,null,null,null,null,null,null,null,null,null,null,null,null,null,null,null,null,null,null,null,null,null,null,null,null,null,null,null,null,null,null,null,null,null,null,null,null,null,null,null,null,null,null,null,null,null,null,null,null,null,null,null,null,null,"Estrategico"]
[null,null,null,null,null,null,null,null,null,null,null,null,null,null,null,null,null,null,null,null,null,null,null,null,null,null,null,null,null,null,null,null,null,null,null,null,null,null,null,null,null,null,null,null,null,null,null,null,null,null,null,null,null,null,null,100,null,null,null,null,null,null,null,null,null,null,null,null,null,null,null,null,null,"Dimensión"]
[]
[null,null,null,null,null,null,null,null,null,null,null,null,null,null,null,null,null,null,null,null,null,null,null,null,null,null,null,null,null,null,null,null,null,null,null,null,null,null,null,null,null,null,null,null,null,null,null,null,null,null,null,null,null,null,null,null,null,null,null,null,null,null,null,null,null,null,null,null,null,null,null,null,null,"Eficiencia"]
[]
[]
[null,"ACTIVIDAD (2.3)",null,null,"Promoción de actividades conjuntas para el fortalecimiento de la organización social en beneficio de la seguridad colectiva.",null,null,null,null,null,null,null,null,null,"Comités ciudadanos",null,null,null,null,null,null,null,null,null,null,"(Total de actividades realizadas con los comités de seguridad / total de actividades programadas con los comités de seguridad)*100",null,null,null,null,null,null,null,null,null,null,null,null,null,"Porcentaje ",null,null,null,null,null,null,null,"Mensual ",null,null,null,null,null,null,null,2024,null,null,null,null,null,null,null,null,1,null,null,null,null,null,null,null,null,"Tipo",null,null,null,null,null,null,null,"Bitacora de resultados",null,null,null,null,null,null,null,null,null,null,"los ciudadanos estan dispuestos aconformar los comités"]
[]
[null,null,null,null,null,null,null,null,null,null,null,null,null,null,null,null,null,null,null,null,null,null,null,null,null,null,null,null,null,null,null,null,null,null,null,null,null,null,null,null,null,null,null,null,null,null,null,null,null,null,null,null,null,null,null,null,null,null,null,null,null,null,null,null,null,null,null,null,null,null,null,null,null,"Estrategico"]
[null,null,null,null,null,null,null,null,null,null,null,null,null,null,null,null,null,null,null,null,null,null,null,null,null,null,null,null,null,null,null,null,null,null,null,null,null,null,null,null,null,null,null,null,null,null,null,null,null,null,null,null,null,null,null,100,null,null,null,null,null,null,null,null,null,null,null,null,null,null,null,null,null,"Dimensión"]
[]
[null,null,null,null,null,null,null,null,null,null,null,null,null,null,null,null,null,null,null,null,null,null,null,null,null,null,null,null,null,null,null,null,null,null,null,null,null,null,null,null,null,null,null,null,null,null,null,null,null,null,null,null,null,null,null,null,null,null,null,null,null,null,null,null,null,null,null,null,null,null,null,null,null,"Eficiencia"]
[]
[]
[null,"COMPONENTE (3)",null,null,"Información importante para la aplicación de acciones de seguridad encaminada a la disminución de actos que vulneran la seguridad en el municipio de Dolores ",null,null,null,null,null,null,null,null,null,"Productos de inteligencia",null,null,null,null,null,null,null,null,null,null,"(Total de productos de inteligencia elaborados/ total de productos de inteligencia programados)*100",null,null,null,null,null,null,null,null,null,null,null,null,null,"Porcentaje",null,null,null,null,null,null,null,"Mensual ",null,null,null,null,null,null,null,2024,null,null,null,null,null,null,null,null,1,null,null,null,null,null,null,null,null,"Tipo",null,null,null,null,null,null,null,"Documento elaborado y resentado por la Unidad de Análisis",null,null,null,null,null,null,null,null,null,null,"Las personas proporcionana la información ",null,null,null,null,null,null,null,null,null,null,null,0.2]
[]
[null,null,null,null,null,null,null,null,null,null,null,null,null,null,null,null,null,null,null,null,null,null,null,null,null,null,null,null,null,null,null,null,null,null,null,null,null,null,null,null,null,null,null,null,null,null,null,null,null,null,null,null,null,null,null,null,null,null,null,null,null,null,null,null,null,null,null,null,null,null,null,null,null,"Estrategico"]
[null,null,null,null,null,null,null,null,null,null,null,null,null,null,null,null,null,null,null,null,null,null,null,null,null,null,null,null,null,null,null,null,null,null,null,null,null,null,null,null,null,null,null,null,null,null,null,null,null,null,null,null,null,null,null,null,null,null,null,null,null,null,null,null,null,null,null,null,null,null,null,null,null,"Dimensión"]
[null,null,null,null,null,null,null,null,null,null,null,null,null,null,null,null,null,null,null,null,null,null,null,null,null,null,null,null,null,null,null,null,null,null,null,null,null,null,null,null,null,null,null,null,null,null,null,null,null,null,null,null,null,null,null,1]
[null,null,null,null,null,null,null,null,null,null,null,null,null,null,null,null,null,null,null,null,null,null,null,null,null,null,null,null,null,null,null,null,null,null,null,null,null,null,null,null,null,null,null,null,null,null,null,null,null,null,null,null,null,null,null,null,null,null,null,null,null,null,null,null,null,null,null,null,null,null,null,null,null,"Eficiencia"]
[]
[]
[null,null,"ACTIVIDAD (3.1)",null,"Atención de las llamadas de emergencia al sistema 9-1-1",null,null,null,null,null,null,null,null,null,"Atención en llamadas de emergencia",null,null,null,null,null,null,null,null,null,null,"(Total de porcentaje de cumplimiento en la atención de llamadas de emergencia/ total de porcentaje establecido por el Estado para la atenciónd e llamadas de emergencia)*100",null,null,null,null,null,null,null,null,null,null,null,null,null,"Porcentaje",null,null,null,null,null,null,null,"Mensual ",null,null,null,null,null,null,null,2024,null,null,null,null,null,null,null,null,0.9,null,null,null,null,null,null,null,null,"Tipo",null,null,null,null,null,null,null,"Informe de avance en procentaje de atención del C5i\nhttps://seguridad.guanajuato.gob.mx/compromisos-municipales/",null,null,null,null,null,null,null,null,null,null,"En la central de mergencias existe la capacidad de atención"]
[]
[null,null,null,null,null,null,null,null,null,null,null,null,null,null,null,null,null,null,null,null,null,null,null,null,null,null,null,null,null,null,null,null,null,null,null,null,null,null,null,null,null,null,null,null,null,null,null,null,null,null,null,null,null,null,null,null,null,null,null,null,null,null,null,null,null,null,null,null,null,null,null,null,null,"Estrategico"]
[null,null,null,null,null,null,null,null,null,null,null,null,null,null,null,null,null,null,null,null,null,null,null,null,null,null,null,null,null,null,null,null,null,null,null,null,null,null,null,null,null,null,null,null,null,null,null,null,null,null,null,null,null,null,null,1,null,null,null,null,null,null,null,null,null,null,null,null,null,null,null,null,null,"Dimensión"]
[]
[null,null,null,null,null,null,null,null,null,null,null,null,null,null,null,null,null,null,null,null,null,null,null,null,null,null,null,null,null,null,null,null,null,null,null,null,null,null,null,null,null,null,null,null,null,null,null,null,null,null,null,null,null,null,null,null,null,null,null,null,null,null,null,null,null,null,null,null,null,null,null,null,null,"Eficiencia"]
[]
[]
[]
[]
[null,null,"ACTIVIDAD (3.2)",null,"Presentación al personal involucrado en la toma de desiciones para la aplicación de estrategias policiales de la información procesada",null,null,null,null,null,null,null,null,null,"presentación de datos",null,null,null,null,null,null,null,null,null,null,"(Total de presentaciones realizadas de datos estratégicos/total de presentaciones prohgramadas)*100",null,null,null,null,null,null,null,null,null,null,null,null,null,"Porcentaje",null,null,null,null,null,null,null,"Mensual ",null,null,null,null,null,null,null,2024,null,null,null,null,null,null,null,null,1,null,null,null,null,null,null,null,null,"Tipo",null,null,null,null,null,null,null,"minuta de trabajo",null,null,null,null,null,null,null,null,null,null,"Se programa sesión para presentación"]
[]
[null,null,null,null,null,null,null,null,null,null,null,null,null,null,null,null,null,null,null,null,null,null,null,null,null,null,null,null,null,null,null,null,null,null,null,null,null,null,null,null,null,null,null,null,null,null,null,null,null,null,null,null,null,null,null,null,null,null,null,null,null,null,null,null,null,null,null,null,null,null,null,null,null,"Estrategico"]
[null,null,null,null,null,null,null,null,null,null,null,null,null,null,null,null,null,null,null,null,null,null,null,null,null,null,null,null,null,null,null,null,null,null,null,null,null,null,null,null,null,null,null,null,null,null,null,null,null,null,null,null,null,null,null,100,null,null,null,null,null,null,null,null,null,null,null,null,null,null,null,null,null,"Dimensión"]
[]
[null,null,null,null,null,null,null,null,null,null,null,null,null,null,null,null,null,null,null,null,null,null,null,null,null,null,null,null,null,null,null,null,null,null,null,null,null,null,null,null,null,null,null,null,null,null,null,null,null,null,null,null,null,null,null,null,null,null,null,null,null,null,null,null,null,null,null,null,null,null,null,null,null,"Eficacia"]
[]
[]
[null,"ACTIVIDAD (3.3)",null,null,"Generación de documentos con estrategias  policiales diseñadas por tipo de evento  ",null,null,null,null,null,null,null,null,null,"planes operativos",null,null,null,null,null,null,null,null,null,null,"(Total de Planes Sistemáticos de Operación realizados / total de Planes Sistemáticos de Operación programados)*100",null,null,null,null,null,null,null,null,null,null,null,null,null,"Porcentaje",null,null,null,null,null,null,null,"Mensual ",null,null,null,null,null,null,null,2024,null,null,null,null,null,null,null,null,1,null,null,null,null,null,null,null,null,"Tipo",null,null,null,null,null,null,null,"Planes Sistematicos aprobados y aplicados",null,null,null,null,null,null,null,null,null,null,"la población y autoridades organizan los eventos"]
[]
[null,null,null,null,null,null,null,null,null,null,null,null,null,null,null,null,null,null,null,null,null,null,null,null,null,null,null,null,null,null,null,null,null,null,null,null,null,null,null,null,null,null,null,null,null,null,null,null,null,null,null,null,null,null,null,null,null,null,null,null,null,null,null,null,null,null,null,null,null,null,null,null,null,"Estrategico"]
[null,null,null,null,null,null,null,null,null,null,null,null,null,null,null,null,null,null,null,null,null,null,null,null,null,null,null,null,null,null,null,null,null,null,null,null,null,null,null,null,null,null,null,null,null,null,null,null,null,null,null,null,null,null,null,100,null,null,null,null,null,null,null,null,null,null,null,null,null,null,null,null,null,"Dimensión"]
[]
[null,null,null,null,null,null,null,null,null,null,null,null,null,null,null,null,null,null,null,null,null,null,null,null,null,null,null,null,null,null,null,null,null,null,null,null,null,null,null,null,null,null,null,null,null,null,null,null,null,null,null,null,null,null,null,null,null,null,null,null,null,null,null,null,null,null,null,null,null,null,null,null,null,"Eficiencia"]
[]
[]
[null,"COMPONENTE (4)",null,null,"Gasto de recursos de manera responsable aplicados",null,null,null,null,null,null,null,null,null,"Programa Financiero",null,null,null,null,null,null,null,null,null,null,"(Total del gasto realizado / total del gasto programado)*100",null,null,null,null,null,null,null,null,null,null,null,null,null,"Porcentaje",null,null,null,null,null,null,null,"Mensual ",null,null,null,null,null,null,null,2024,null,null,null,null,null,null,null,null,0.95,null,null,null,null,null,null,null,null,"Tipo",null,null,null,null,null,null,null,"Informe de avance del programa Financiero de Tesoreria Municipal",null,null,null,null,null,null,null,null,null,null,"Disponibilidad de los recursos",null,null,null,null,null,null,null,null,null,null,null,0.1]
[]
[null,null,null,null,null,null,null,null,null,null,null,null,null,null,null,null,null,null,null,null,null,null,null,null,null,null,null,null,null,null,null,null,null,null,null,null,null,null,null,null,null,null,null,null,null,null,null,null,null,null,null,null,null,null,null,null,null,null,null,null,null,null,null,null,null,null,null,null,null,null,null,null,null,"Gestion"]
[null,null,null,null,null,null,null,null,null,null,null,null,null,null,null,null,null,null,null,null,null,null,null,null,null,null,null,null,null,null,null,null,null,null,null,null,null,null,null,null,null,null,null,null,null,null,null,null,null,null,null,null,null,null,null,null,null,null,null,null,null,null,null,null,null,null,null,null,null,null,null,null,null,"Dimensión"]
[null,null,null,null,null,null,null,null,null,null,null,null,null,null,null,null,null,null,null,null,null,null,null,null,null,null,null,null,null,null,null,null,null,null,null,null,null,null,null,null,null,null,null,null,null,null,null,null,null,null,null,null,null,null,null,1]
[null,null,null,null,null,null,null,null,null,null,null,null,null,null,null,null,null,null,null,null,null,null,null,null,null,null,null,null,null,null,null,null,null,null,null,null,null,null,null,null,null,null,null,null,null,null,null,null,null,null,null,null,null,null,null,null,null,null,null,null,null,null,null,null,null,null,null,null,null,null,null,null,null,"Economia"]
[]
[]
[null,null,"ACTIVIDAD (4.1)",null,"Aquisición de equipo policial programado en los diferentes programas financieros",null,null,null,null,null,null,null,null,null,"Adquisición de equipo policial",null,null,null,null,null,null,null,null,null,null,"(Total de adquisición de equipo realizados / total de adquisición de equipo programados)*100",null,null,null,null,null,null,null,null,null,null,null,null,null,"Porcentaje",null,null,null,null,null,null,null,"Mensual ",null,null,null,null,null,null,null,2024,null,null,null,null,null,null,null,null,0.9,null,null,null,null,null,null,null,null,"Tipo",null,null,null,null,null,null,null,"Contratos y convenios",null,null,null,null,null,null,null,null,null,null,"El equipo cumple con las caracteristicas para su adquisición"]
[]
[null,null,null,null,null,null,null,null,null,null,null,null,null,null,null,null,null,null,null,null,null,null,null,null,null,null,null,null,null,null,null,null,null,null,null,null,null,null,null,null,null,null,null,null,null,null,null,null,null,null,null,null,null,null,null,null,null,null,null,null,null,null,null,null,null,null,null,null,null,null,null,null,null,"Gestion"]
[null,null,null,null,null,null,null,null,null,null,null,null,null,null,null,null,null,null,null,null,null,null,null,null,null,null,null,null,null,null,null,null,null,null,null,null,null,null,null,null,null,null,null,null,null,null,null,null,null,null,null,null,null,null,null,1,null,null,null,null,null,null,null,null,null,null,null,null,null,null,null,null,null,"Dimensión"]
[]
[null,null,null,null,null,null,null,null,null,null,null,null,null,null,null,null,null,null,null,null,null,null,null,null,null,null,null,null,null,null,null,null,null,null,null,null,null,null,null,null,null,null,null,null,null,null,null,null,null,null,null,null,null,null,null,null,null,null,null,null,null,null,null,null,null,null,null,null,null,null,null,null,null,"Economia"]
[]
[]
[]
[]
[null,null,"ACTIVIDAD (4.2)",null,"Gestión y aplicación de cursos ",null,null,null,null,null,null,null,null,null,"Cursos aplicados",null,null,null,null,null,null,null,null,null,null,"(Total de elementos capacitados / total de elementos programados para capacitación)*100",null,null,null,null,null,null,null,null,null,null,null,null,null,"Porcentaje",null,null,null,null,null,null,null,"Mensual ",null,null,null,null,null,null,null,2024,null,null,null,null,null,null,null,null,1,null,null,null,null,null,null,null,null,"Tipo",null,null,null,null,null,null,null,"Constancias de participación",null,null,null,null,null,null,null,null,null,null,"Las autoridades municipales gestionan los cursos de capacitación"]
[]
[null,null,null,null,null,null,null,null,null,null,null,null,null,null,null,null,null,null,null,null,null,null,null,null,null,null,null,null,null,null,null,null,null,null,null,null,null,null,null,null,null,null,null,null,null,null,null,null,null,null,null,null,null,null,null,null,null,null,null,null,null,null,null,null,null,null,null,null,null,null,null,null,null,"Gestion"]
[null,null,null,null,null,null,null,null,null,null,null,null,null,null,null,null,null,null,null,null,null,null,null,null,null,null,null,null,null,null,null,null,null,null,null,null,null,null,null,null,null,null,null,null,null,null,null,null,null,null,null,null,null,null,null,1,null,null,null,null,null,null,null,null,null,null,null,null,null,null,null,null,null,"Dimensión"]
[]
[null,null,null,null,null,null,null,null,null,null,null,null,null,null,null,null,null,null,null,null,null,null,null,null,null,null,null,null,null,null,null,null,null,null,null,null,null,null,null,null,null,null,null,null,null,null,null,null,null,null,null,null,null,null,null,null,null,null,null,null,null,null,null,null,null,null,null,null,null,null,null,null,null,"Eficiencia"]
[]
[]
[null,"ACTIVIDAD (4.3)",null,null,"Aprobación de las evaluaciones de permanencia de los integrantes de los cuerpos de segruidad pública",null,null,null,null,null,null,null,null,null,"Elementos con Certificado Unico Policial",null,null,null,null,null,null,null,null,null,null,"(Total de elementos con Certificado Unico Polical/Total de elementos adscritos a la corporación)*100",null,null,null,null,null,null,null,null,null,null,null,null,null,"Porcentaje",null,null,null,null,null,null,null,"Mensual ",null,null,null,null,null,null,null,2024,null,null,null,null,null,null,null,null,1,null,null,null,null,null,null,null,null,"Tipo",null,null,null,null,null,null,null,"Certificado vigente",null,null,null,null,null,null,null,null,null,null,"Los elementos de Seguriudad Púlica aprueban los examnes de evaluación"]
[]
[null,null,null,null,null,null,null,null,null,null,null,null,null,null,null,null,null,null,null,null,null,null,null,null,null,null,null,null,null,null,null,null,null,null,null,null,null,null,null,null,null,null,null,null,null,null,null,null,null,null,null,null,null,null,null,null,null,null,null,null,null,null,null,null,null,null,null,null,null,null,null,null,null,"Gestion"]
[null,null,null,null,null,null,null,null,null,null,null,null,null,null,null,null,null,null,null,null,null,null,null,null,null,null,null,null,null,null,null,null,null,null,null,null,null,null,null,null,null,null,null,null,null,null,null,null,null,null,null,null,null,null,null,1,null,null,null,null,null,null,null,null,null,null,null,null,null,null,null,null,null,"Dimensión"]
[]
[null,null,null,null,null,null,null,null,null,null,null,null,null,null,null,null,null,null,null,null,null,null,null,null,null,null,null,null,null,null,null,null,null,null,null,null,null,null,null,null,null,null,null,null,null,null,null,null,null,null,null,null,null,null,null,null,null,null,null,null,null,null,null,null,null,null,null,null,null,null,null,null,null,"Eficiencia"]
[]
[]
[null,"COMPONENTE (5)",null,null,"Informe trimestral del estatus de la seguridad en el municipio presentado",null,null,null,null,null,null,null,null,null,"Informes trimenstrales ",null,null,null,null,null,null,null,null,null,null,"(Total de informes trimestrales presentados/ total de informes trimestrales programados)*100",null,null,null,null,null,null,null,null,null,null,null,null,null,"Porcentaje",null,null,null,null,null,null,null,"Mensual ",null,null,null,null,null,null,null,2024,null,null,null,null,null,null,null,null,1,null,null,null,null,null,null,null,null,"Tipo",null,null,null,null,null,null,null,"Informes remitidos y presentados al H. Ayuntamiento",null,null,null,null,null,null,null,null,null,null,"el H. ayuntamiento realiza sesión para analizar el Informe",null,null,null,null,null,null,null,null,null,null,null,0.1]
[]
[null,null,null,null,null,null,null,null,null,null,null,null,null,null,null,null,null,null,null,null,null,null,null,null,null,null,null,null,null,null,null,null,null,null,null,null,null,null,null,null,null,null,null,null,null,null,null,null,null,null,null,null,null,null,null,null,null,null,null,null,null,null,null,null,null,null,null,null,null,null,null,null,null,"Estrategico"]
[null,null,null,null,null,null,null,null,null,null,null,null,null,null,null,null,null,null,null,null,null,null,null,null,null,null,null,null,null,null,null,null,null,null,null,null,null,null,null,null,null,null,null,null,null,null,null,null,null,null,null,null,null,null,null,null,null,null,null,null,null,null,null,null,null,null,null,null,null,null,null,null,null,"Dimensión"]
[null,null,null,null,null,null,null,null,null,null,null,null,null,null,null,null,null,null,null,null,null,null,null,null,null,null,null,null,null,null,null,null,null,null,null,null,null,null,null,null,null,null,null,null,null,null,null,null,null,null,null,null,null,null,null,100]
[null,null,null,null,null,null,null,null,null,null,null,null,null,null,null,null,null,null,null,null,null,null,null,null,null,null,null,null,null,null,null,null,null,null,null,null,null,null,null,null,null,null,null,null,null,null,null,null,null,null,null,null,null,null,null,null,null,null,null,null,null,null,null,null,null,null,null,null,null,null,null,null,null,"Eficiacia"]
[]
[]
[null,null,"ACTIVIDAD (5.1)",null,"Supervisión de los resultados ante las actividades realizadas",null,null,null,null,null,null,null,null,null,"Reuniones de mandos",null,null,null,null,null,null,null,null,null,null,"(Total de reuniones de mandos realizados / total de reuniones de mandos programados)*100",null,null,null,null,null,null,null,null,null,null,null,null,null,"Porcentaje",null,null,null,null,null,null,null,"Mensual ",null,null,null,null,null,null,null,2024,null,null,null,null,null,null,null,null,1,null,null,null,null,null,null,null,null,"Tipo",null,null,null,null,null,null,null,"Minutas de trabajo",null,null,null,null,null,null,null,null,null,null,"Las autporidades policiales convcana las reuniones"]
[]
[null,null,null,null,null,null,null,null,null,null,null,null,null,null,null,null,null,null,null,null,null,null,null,null,null,null,null,null,null,null,null,null,null,null,null,null,null,null,null,null,null,null,null,null,null,null,null,null,null,null,null,null,null,null,null,null,null,null,null,null,null,null,null,null,null,null,null,null,null,null,null,null,null,"Estrategico"]
[null,null,null,null,null,null,null,null,null,null,null,null,null,null,null,null,null,null,null,null,null,null,null,null,null,null,null,null,null,null,null,null,null,null,null,null,null,null,null,null,null,null,null,null,null,null,null,null,null,null,null,null,null,null,null,100,null,null,null,null,null,null,null,null,null,null,null,null,null,null,null,null,null,"Dimensión"]
[]
[null,null,null,null,null,null,null,null,null,null,null,null,null,null,null,null,null,null,null,null,null,null,null,null,null,null,null,null,null,null,null,null,null,null,null,null,null,null,null,null,null,null,null,null,null,null,null,null,null,null,null,null,null,null,null,null,null,null,null,null,null,null,null,null,null,null,null,null,null,null,null,null,null,"Eficiencia"]
[]
[]
[]
[]
[null,null,"ACTIVIDAD (5.2)",null,"Asisietncia a las reuniones de Secretarios de Seguridad Pública o equivalente",null,null,null,null,null,null,null,null,null,"Asistencia a reuniones de seguridad",null,null,null,null,null,null,null,null,null,null,"(Total de reuniones de Secretarios de Seguridad Pública o equivalente asistidas/total de reuniones de Secretarios de Seguridad Pública o equivalentes programadas)*100",null,null,null,null,null,null,null,null,null,null,null,null,null,"Porcentaje",null,null,null,null,null,null,null,"Mensual ",null,null,null,null,null,null,null,2024,null,null,null,null,null,null,null,null,1,null,null,null,null,null,null,null,null,"Tipo",null,null,null,null,null,null,null,"https://seguridad.guanajuato.gob.mx/compromisos-municipales/",null,null,null,null,null,null,null,null,null,null,"las auoridades estatales envian invitación a las reuniones."]
[]
[null,null,null,null,null,null,null,null,null,null,null,null,null,null,null,null,null,null,null,null,null,null,null,null,null,null,null,null,null,null,null,null,null,null,null,null,null,null,null,null,null,null,null,null,null,null,null,null,null,null,null,null,null,null,null,null,null,null,null,null,null,null,null,null,null,null,null,null,null,null,null,null,null,"Estrategico"]
[null,null,null,null,null,null,null,null,null,null,null,null,null,null,null,null,null,null,null,null,null,null,null,null,null,null,null,null,null,null,null,null,null,null,null,null,null,null,null,null,null,null,null,null,null,null,null,null,null,null,null,null,null,null,null,100,null,null,null,null,null,null,null,null,null,null,null,null,null,null,null,null,null,"Dimensión"]
[]
[null,null,null,null,null,null,null,null,null,null,null,null,null,null,null,null,null,null,null,null,null,null,null,null,null,null,null,null,null,null,null,null,null,null,null,null,null,null,null,null,null,null,null,null,null,null,null,null,null,null,null,null,null,null,null,null,null,null,null,null,null,null,null,null,null,null,null,null,null,null,null,null,null,"Eficiencia"]

{"sheet":"C5 x 50","index":1,"n_rows":442,"n_cols":129,"rows_kept":442,"cut":false,"hidden":false,"merged":[[5,16,11,16],[2,1,2,21],[3,1,3,21],[4,1,4,7],[4,8,4,21],[5,1,6,1],[5,2,6,2],[5,3,6,7],[5,8,11,8],[5,9,11,9],[5,10,11,10],[5,11,11,11],[5,12,11,12],[5,13,11,13],[5,14,11,14],[5,15,11,15],[7,1,8,1],[7,2,8,2],[7,3,8,7],[9,1,11,1],[9,2,11,2],[9,3,11,6],[9,7,33,7],[12,1,33,1],[12,6,33,6],[5,17,11,17],[5,18,11,18],[5,19,11,19],[5,20,11,20],[5,21,11,21],[34,1,36,1],[34,2,36,2],[34,3,36,6],[34,7,59,7],[37,1,59,1],[37,6,59,6],[60,1,62,1],[60,2,62,2],[60,3,62,6],[60,7,91,7],[63,1,91,1],[63,6,91,6],[92,1,94,1],[92,2,94,2],[92,3,94,6],[92,7,123,7],[95,1,123,1],[95,6,123,6],[124,1,126,1],[124,2,126,2],[124,3,126,6],[124,7,155,7],[127,1,155,1],[127,6,155,6],[156,1,158,1],[156,2,158,2],[156,3,158,6],[156,7,208,7],[159,1,208,1],[159,6,208,6],[209,1,211,1],[209,2,211,2],[209,3,211,6],[209,7,261,7],[212,1,261,1],[212,6,261,6],[262,1,264,1],[262,2,264,2],[262,3,264,6],[262,7,314,7],[265,1,314,1],[265,6,314,6],[315,1,317,1],[315,2,317,2],[315,3,317,6],[315,7,367,7],[318,1,367,1],[318,6,367,6],[368,1,370,1],[368,2,370,2],[368,3,370,6],[368,7,420,7],[371,1,420,1],[371,6,420,6]]}
[null,null,null,null,null,null,null,null,null,null,null,null,null,null,null,null,null,null,null,null,null,null,null,null,null,null,null,null,null,null,null,null,null,null,null,null,null,null,null,null,null,null,null,null,null,null,null,null,null,null,null,null,null,null,null,null,null,null,null,null,null,null,null,null,null,null,null,null,null,null,null,null,null,null,null,null,null,null,null,null,null,null,null,null,null,null,null,null,null,null,null,null,null,null,null,null,null,null,null,null,null,null,null,null,null,null,null,null,null,null,null,null,null,null,null,null,null,null,null,null,null,null,null,null,null,null,null,1110,"Dietas"]
[null,null,null,null,null,null,null,null,null,null,null,null,null,null,null,null,null,null,null,null,null,null,null,null,null,null,null,null,null,null,null,null,null,null,null,null,null,null,null,null,null,null,null,null,null,null,null,null,null,null,null,null,null,null,null,null,null,null,null,null,null,null,null,null,null,null,null,null,null,null,null,null,null,null,null,null,null,null,null,null,null,null,null,null,null,null,null,null,null,null,null,null,null,null,null,null,null,null,null,null,null,null,null,null,null,null,null,null,null,null,null,null,null,null,null,null,null,null,null,null,null,null,null,null,null,null,null,1120,"Haberes"]
[null,"ANTEPROYECTO DE PRESUPUESTO 2024",null,null,null,null,null,null,null,null,null,null,null,null,null,null,null,null,null,null,null,null,null,null,null,null,null,null,null,null,null,null,null,null,null,null,null,null,null,null,null,null,null,null,null,null,null,null,null,null,null,null,null,null,null,null,null,null,null,null,null,null,null,null,null,null,null,null,null,null,null,null,null,null,null,null,null,null,null,null,null,null,null,null,null,null,null,null,null,null,null,null,null,null,null,null,null,null,null,null,null,null,null,null,null,null,null,null,null,null,null,null,null,null,null,null,null,null,null,null,null,null,null,null,null,null,null,1130,"Sueldo base al personal permanente"]
[null,null,null,null,null,null,null,null,null,null,null,null,null,null,null,null,null,null,null,null,null,null,null,null,null,null,null,null,null,null,null,null,null,null,null,null,null,null,null,null,null,null,null,null,null,null,null,null,null,null,null,null,null,null,null,null,null,null,null,null,null,null,null,null,null,null,null,null,null,null,null,null,null,null,null,null,null,null,null,null,null,null,null,null,null,null,null,null,null,null,null,null,null,null,null,null,null,null,null,null,null,null,null,null,null,null,null,null,null,null,null,null,null,null,null,null,null,null,null,null,null,null,null,null,null,null,null,1140,"Remuneraciones por adscripción laboral en el extranjero"]
[null,"PARTIDAS-MONTO",null,null,null,null,null,null,"GASTO POR MES ",null,null,null,null,null,null,null,null,null,null,null,null,null,null,null,null,null,null,null,null,null,null,null,null,null,null,null,null,null,null,null,null,null,null,null,null,null,null,null,null,null,null,null,null,null,null,null,null,null,null,null,null,null,null,null,null,null,null,null,null,null,null,null,null,null,null,null,null,null,null,null,null,null,null,null,null,null,null,null,null,null,null,null,null,null,null,null,null,null,null,null,null,null,null,null,null,null,null,null,null,null,null,null,null,null,null,null,null,null,null,null,null,null,null,null,null,null,null,1210,"Honorarios asimilables a salarios"]
[null,"FIN","Contribuir a mejorar las capacidades, atenciones y actuación de los elementos de la corporación que permitan generar un ambiente de seguridad en la sociedad",{"$f":"U424","v":14446250},null,null,null,null,"ENE","FEB","MAR","ABR","MAY","JUN","JUL","AGO","SEP","OCT","NOV","DIC","TOTAL","DIFERENCIA",null,null,null,null,null,null,null,null,null,null,null,null,null,null,null,null,null,null,null,null,null,null,null,null,null,null,null,null,null,null,null,null,null,null,null,null,null,null,null,null,null,null,null,null,null,null,null,null,null,null,null,null,null,null,null,null,null,null,null,null,null,null,null,null,null,null,null,null,null,null,null,null,null,null,null,null,null,null,null,null,null,null,null,null,null,null,null,null,null,null,null,null,null,null,null,null,null,null,null,null,null,null,null,null,null,1220,"Sueldos base al personal eventual"]
[null,null,null,null,null,null,null,null,null,null,null,null,null,null,null,null,null,null,null,null,null,null,null,null,null,null,null,null,null,null,null,null,null,null,null,null,null,null,null,null,null,null,null,null,null,null,null,null,null,null,null,null,null,null,null,null,null,null,null,null,null,null,null,null,null,null,null,null,null,null,null,null,null,null,null,null,null,null,null,null,null,null,null,null,null,null,null,null,null,null,null,null,null,null,null,null,null,null,null,null,null,null,null,null,null,null,null,null,null,null,null,null,null,null,null,null,null,null,null,null,null,null,null,null,null,null,null,1230,"Retribuciones por servicios de carácter social"]
[null,"PROPOSITO","La Secretaría de Seguridad Pública, Tránsito y Vialidad realiza acciones efectivas de prevención que inhiben conductas antisociales y delictivas",{"$f":"SUM(U424)","v":14446250},null,null,null,null,null,null,null,null,null,null,null,null,null,null,null,null,null,null,null,null,null,null,null,null,null,null,null,null,null,null,null,null,null,null,null,null,null,null,null,null,null,null,null,null,null,null,null,null,null,null,null,null,null,null,null,null,null,null,null,null,null,null,null,null,null,null,null,null,null,null,null,null,null,null,null,null,null,null,null,null,null,null,null,null,null,null,null,null,null,null,null,null,null,null,null,null,null,null,null,null,null,null,null,null,null,null,null,null,null,null,null,null,null,null,null,null,null,null,null,null,null,null,null,1240,"Retribución a los representantes de los trabajadores y de los patrones en la Junta de Conciliación y Arbitraje"]
[null,null,null,null,null,null,null,null,null,null,null,null,null,null,null,null,null,null,null,null,null,null,null,null,null,null,null,null,null,null,null,null,null,null,null,null,null,null,null,null,null,null,null,null,null,null,null,null,null,null,null,null,null,null,null,null,null,null,null,null,null,null,null,null,null,null,null,null,null,null,null,null,null,null,null,null,null,null,null,null,null,null,null,null,null,null,null,null,null,null,null,null,null,null,null,null,null,null,null,null,null,null,null,null,null,null,null,null,null,null,null,null,null,null,null,null,null,null,null,null,null,null,null,null,null,null,null,1310,"Primas por años de servicios efectivos prestados"]
[null,"COMPONENTE 1","Realizar acciones preventivas mediante operaciones policiales que inhiban las conductas antisociales en la población juvenil del municipio de Dolores Hidalgo, aplicadas",{"$f":"SUM(F13:F34)","v":4333875},null,null,null,{"$f":"SUM(G13)","v":4333875},null,null,null,null,null,null,null,null,null,null,null,null,null,null,null,null,null,null,null,null,null,null,null,null,null,null,null,null,null,null,null,null,null,null,null,null,null,null,null,null,null,null,null,null,null,null,null,null,null,null,null,null,null,null,null,null,null,null,null,null,null,null,null,null,null,null,null,null,null,null,null,null,null,null,null,null,null,null,null,null,null,null,null,null,null,null,null,null,null,null,null,null,null,null,null,null,null,null,null,null,null,null,null,null,null,null,null,null,null,null,null,null,null,null,null,null,null,null,null,1320,"Primas de vacaciones, dominical y gratificación de fin de año"]
[null,null,null,null,null,null,null,null,null,null,null,null,null,null,null,null,null,null,null,null,null,null,null,null,null,null,null,null,null,null,null,null,null,null,null,null,null,null,null,null,null,null,null,null,null,null,null,null,null,null,null,null,null,null,null,null,null,null,null,null,null,null,null,null,null,null,null,null,null,null,null,null,null,null,null,null,null,null,null,null,null,null,null,null,null,null,null,null,null,null,null,null,null,null,null,null,null,null,null,null,null,null,null,null,null,null,null,null,null,null,null,null,null,null,null,null,null,null,null,null,null,null,null,null,null,null,null,1330,"Horas extraordinarias"]
[null,null,null,null,null,null,null,null,null,null,null,null,null,null,null,null,null,null,null,null,null,null,null,null,null,null,null,null,null,null,null,null,null,null,null,null,null,null,null,null,null,null,null,null,null,null,null,null,null,null,null,null,null,null,null,null,null,null,null,null,null,null,null,null,null,null,null,null,null,null,null,null,null,null,null,null,null,null,null,null,null,null,null,null,null,null,null,null,null,null,null,null,null,null,null,null,null,null,null,null,null,null,null,null,null,null,null,null,null,null,null,null,null,null,null,null,null,null,null,null,null,null,null,null,null,null,null,1340,"Compensaciones"]
[null,"UR","31111M120070100 -  Secretaría de Seguridad Pública",2110,{"$f":"IF(D13>0,VLOOKUP(D13,$DX$1:$DY$227,2),\" \")","v":"Materiales, útiles y equipos menores de oficina"},{"$f":"+Hoja1!E4","v":21000},{"$f":"SUM(F13:F34)","v":4333875},null,{"$f":"$F13/12","v":1750},{"$f":"$F13/12","v":1750},1750,1750,1750,1750,1750,1750,1750,1750,1750,1750,{"$f":"SUM(I13:T13)","v":21000},{"$f":"F13-U13","v":0},null,null,null,null,null,null,null,null,null,null,null,null,null,null,null,null,null,null,null,null,null,null,null,null,null,null,null,null,null,null,null,null,null,null,null,null,null,null,null,null,null,null,null,null,null,null,null,null,null,null,null,null,null,null,null,null,null,null,null,null,null,null,null,null,null,null,null,null,null,null,null,null,null,null,null,null,null,null,null,null,null,null,null,null,null,null,null,null,null,null,null,null,null,null,null,null,null,null,null,null,null,null,null,null,null,1350,"Sobrehaberes"]
[null,null,null,2120,"Materiales y útiles de impresión y reproducción",{"$f":"+Hoja1!E5","v":22500},null,null,{"$f":"$F14/12","v":1875},1875,1875,1875,1875,1875,1875,1875,1875,1875,1875,1875,22500,{"$f":"F14-U14","v":0},null,null,null,null,null,null,null,null,null,null,null,null,null,null,null,null,null,null,null,null,null,null,null,null,null,null,null,null,null,null,null,null,null,null,null,null,null,null,null,null,null,null,null,null,null,null,null,null,null,null,null,null,null,null,null,null,null,null,null,null,null,null,null,null,null,null,null,null,null,null,null,null,null,null,null,null,null,null,null,null,null,null,null,null,null,null,null,null,null,null,null,null,null,null,null,null,null,null,null,null,null,null,null,null,null,1360,"Asignaciones de técnico, de mando, por comisión, de vuelo y de técnico especial"]
[null,null,null,2150,"Materiales y útiles de impresión y reproducción",{"$f":"+Hoja1!E6","v":15000},null,null,1250,1250,1250,1250,1250,1250,1250,1250,1250,1250,1250,1250,15000,0,null,null,null,null,null,null,null,null,null,null,null,null,null,null,null,null,null,null,null,null,null,null,null,null,null,null,null,null,null,null,null,null,null,null,null,null,null,null,null,null,null,null,null,null,null,null,null,null,null,null,null,null,null,null,null,null,null,null,null,null,null,null,null,null,null,null,null,null,null,null,null,null,null,null,null,null,null,null,null,null,null,null,null,null,null,null,null,null,null,null,null,null,null,null,null,null,null,null,null,null,null,null,null,null,null,1370,"Honorarios especiales"]
[null,null,null,2611,"Combustibles, lubricantes y aditivos",{"$f":"+Hoja1!E7","v":2340000},null,null,195000,195000,195000,195000,195000,195000,195000,195000,195000,195000,195000,195000,2340000,0,null,null,null,null,null,null,null,null,null,null,null,null,null,null,null,null,null,null,null,null,null,null,null,null,null,null,null,null,null,null,null,null,null,null,null,null,null,null,null,null,null,null,null,null,null,null,null,null,null,null,null,null,null,null,null,null,null,null,null,null,null,null,null,null,null,null,null,null,null,null,null,null,null,null,null,null,null,null,null,null,null,null,null,null,null,null,null,null,null,null,null,null,null,null,null,null,null,null,null,null,null,null,null,null,null,1380,"Participaciones por vigilancia en el cumplimiento de las leyes y custodia de valores"]
[null,null,null,2710,"Vestuario y uniformes",{"$f":"+Hoja1!E8","v":315000},null,null,26250,26250,26250,26250,26250,26250,26250,26250,26250,26250,26250,26250,315000,0,null,null,null,null,null,null,null,null,null,null,null,null,null,null,null,null,null,null,null,null,null,null,null,null,null,null,null,null,null,null,null,null,null,null,null,null,null,null,null,null,null,null,null,null,null,null,null,null,null,null,null,null,null,null,null,null,null,null,null,null,null,null,null,null,null,null,null,null,null,null,null,null,null,null,null,null,null,null,null,null,null,null,null,null,null,null,null,null,null,null,null,null,null,null,null,null,null,null,null,null,null,null,null,null,null,1410,"Aportaciones de seguridad social"]
[null,null,null,2930,"Refacciones y accesorios menores de mobiliario y equipo de administración, educacional y recreativo",{"$f":"+Hoja1!E9","v":6000},null,null,500,500,500,500,500,500,500,500,500,500,500,500,6000,0,null,null,null,null,null,null,null,null,null,null,null,null,null,null,null,null,null,null,null,null,null,null,null,null,null,null,null,null,null,null,null,null,null,null,null,null,null,null,null,null,null,null,null,null,null,null,null,null,null,null,null,null,null,null,null,null,null,null,null,null,null,null,null,null,null,null,null,null,null,null,null,null,null,null,null,null,null,null,null,null,null,null,null,null,null,null,null,null,null,null,null,null,null,null,null,null,null,null,null,null,null,null,null,null,null,1420,"Aportaciones a fondos de vivienda"]
[null,null,null,2940,"Refacciones y accesorios menores de equipo de cómputo y tecnologías de la información",{"$f":"+Hoja1!E10","v":1500},null,null,125,125,125,125,125,125,125,125,125,125,125,125,1500,0,null,null,null,null,null,null,null,null,null,null,null,null,null,null,null,null,null,null,null,null,null,null,null,null,null,null,null,null,null,null,null,null,null,null,null,null,null,null,null,null,null,null,null,null,null,null,null,null,null,null,null,null,null,null,null,null,null,null,null,null,null,null,null,null,null,null,null,null,null,null,null,null,null,null,null,null,null,null,null,null,null,null,null,null,null,null,null,null,null,null,null,null,null,null,null,null,null,null,null,null,null,null,null,null,null,1430,"Aportaciones al sistema para el retiro"]
[null,null,null,2960,"Refacciones y accesorios menores de equipo de transporte",{"$f":"+Hoja1!E11","v":675000},null,null,56250,56250,56250,56250,56250,56250,56250,56250,56250,56250,56250,56250,675000,0,null,null,null,null,null,null,null,null,null,null,null,null,null,null,null,null,null,null,null,null,null,null,null,null,null,null,null,null,null,null,null,null,null,null,null,null,null,null,null,null,null,null,null,null,null,null,null,null,null,null,null,null,null,null,null,null,null,null,null,null,null,null,null,null,null,null,null,null,null,null,null,null,null,null,null,null,null,null,null,null,null,null,null,null,null,null,null,null,null,null,null,null,null,null,null,null,null,null,null,null,null,null,null,null,null,1440,"Aportaciones para seguros"]
[null,null,null,3110,"Refacciones y accesorios menores otros bienes muebles",{"$f":"+Hoja1!E12","v":104400},null,null,8700,8700,8700,8700,8700,8700,8700,8700,8700,8700,8700,8700,104400,0,null,null,null,null,null,null,null,null,null,null,null,null,null,null,null,null,null,null,null,null,null,null,null,null,null,null,null,null,null,null,null,null,null,null,null,null,null,null,null,null,null,null,null,null,null,null,null,null,null,null,null,null,null,null,null,null,null,null,null,null,null,null,null,null,null,null,null,null,null,null,null,null,null,null,null,null,null,null,null,null,null,null,null,null,null,null,null,null,null,null,null,null,null,null,null,null,null,null,null,null,null,null,null,null,null,1510,"Cuotas para el fondo de ahorro y fondo de trabajo"]
[null,null,null,3140,"Refacciones y accesorios menores otros bienes muebles",{"$f":"+Hoja1!E13","v":20475},null,null,1706.25,1706.25,1706.25,1706.25,1706.25,1706.25,1706.25,1706.25,1706.25,1706.25,1706.25,1706.25,20475,0,null,null,null,null,null,null,null,null,null,null,null,null,null,null,null,null,null,null,null,null,null,null,null,null,null,null,null,null,null,null,null,null,null,null,null,null,null,null,null,null,null,null,null,null,null,null,null,null,null,null,null,null,null,null,null,null,null,null,null,null,null,null,null,null,null,null,null,null,null,null,null,null,null,null,null,null,null,null,null,null,null,null,null,null,null,null,null,null,null,null,null,null,null,null,null,null,null,null,null,null,null,null,null,null,null,1520,"Indemnizaciones"]
[null,null,null,3230,"Refacciones y accesorios menores otros bienes muebles",{"$f":"+Hoja1!E14","v":10500},null,null,875,875,875,875,875,875,875,875,875,875,875,875,10500,0,null,null,null,null,null,null,null,null,null,null,null,null,null,null,null,null,null,null,null,null,null,null,null,null,null,null,null,null,null,null,null,null,null,null,null,null,null,null,null,null,null,null,null,null,null,null,null,null,null,null,null,null,null,null,null,null,null,null,null,null,null,null,null,null,null,null,null,null,null,null,null,null,null,null,null,null,null,null,null,null,null,null,null,null,null,null,null,null,null,null,null,null,null,null,null,null,null,null,null,null,null,null,null,null,null,1530,"Prestaciones y haberes de retiro"]
[null,null,null,3350,"Refacciones y accesorios menores otros bienes muebles",{"$f":"+Hoja1!E15","v":120000},null,null,10000,10000,10000,10000,10000,10000,10000,10000,10000,10000,10000,10000,120000,0,null,null,null,null,null,null,null,null,null,null,null,null,null,null,null,null,null,null,null,null,null,null,null,null,null,null,null,null,null,null,null,null,null,null,null,null,null,null,null,null,null,null,null,null,null,null,null,null,null,null,null,null,null,null,null,null,null,null,null,null,null,null,null,null,null,null,null,null,null,null,null,null,null,null,null,null,null,null,null,null,null,null,null,null,null,null,null,null,null,null,null,null,null,null,null,null,null,null,null,null,null,null,null,null,null,1540,"Prestaciones contractuales"]
[null,null,null,3450,"Seguro de bienes patrimoniales",{"$f":"+Hoja1!E16","v":195900},null,null,16325,16325,16325,16325,16325,16325,16325,16325,16325,16325,16325,16325,195900,0,null,null,null,null,null,null,null,null,null,null,null,null,null,null,null,null,null,null,null,null,null,null,null,null,null,null,null,null,null,null,null,null,null,null,null,null,null,null,null,null,null,null,null,null,null,null,null,null,null,null,null,null,null,null,null,null,null,null,null,null,null,null,null,null,null,null,null,null,null,null,null,null,null,null,null,null,null,null,null,null,null,null,null,null,null,null,null,null,null,null,null,null,null,null,null,null,null,null,null,null,null,null,null,null,null,1550,"Apoyos a la capacitación de los servidores públicos"]
[null,null,null,3510,"Conservación y mantenimiento menor de inmuebles",{"$f":"+Hoja1!E17","v":9000},null,null,750,750,750,750,750,750,750,750,750,750,750,750,9000,0,null,null,null,null,null,null,null,null,null,null,null,null,null,null,null,null,null,null,null,null,null,null,null,null,null,null,null,null,null,null,null,null,null,null,null,null,null,null,null,null,null,null,null,null,null,null,null,null,null,null,null,null,null,null,null,null,null,null,null,null,null,null,null,null,null,null,null,null,null,null,null,null,null,null,null,null,null,null,null,null,null,null,null,null,null,null,null,null,null,null,null,null,null,null,null,null,null,null,null,null,null,null,null,null,null,1560,"Otras prestaciones sociales y económicas"]
[null,null,null,3530,"Instalación, reparación y mantenimiento de equipo de cómputo y tecnología de la información",{"$f":"+Hoja1!E18","v":4500},null,null,375,375,375,375,375,375,375,375,375,375,375,375,4500,0,null,null,null,null,null,null,null,null,null,null,null,null,null,null,null,null,null,null,null,null,null,null,null,null,null,null,null,null,null,null,null,null,null,null,null,null,null,null,null,null,null,null,null,null,null,null,null,null,null,null,null,null,null,null,null,null,null,null,null,null,null,null,null,null,null,null,null,null,null,null,null,null,null,null,null,null,null,null,null,null,null,null,null,null,null,null,null,null,null,null,null,null,null,null,null,null,null,null,null,null,null,null,null,null,null,1610,"Previsiones de carácter laboral, económica y de seguridad social"]
[null,null,null,3550,"Reparación y mantenimiento de equipo de transporte",{"$f":"+Hoja1!E19","v":390000},null,null,32500,32500,32500,32500,32500,32500,32500,32500,32500,32500,32500,32500,390000,0,null,null,null,null,null,null,null,null,null,null,null,null,null,null,null,null,null,null,null,null,null,null,null,null,null,null,null,null,null,null,null,null,null,null,null,null,null,null,null,null,null,null,null,null,null,null,null,null,null,null,null,null,null,null,null,null,null,null,null,null,null,null,null,null,null,null,null,null,null,null,null,null,null,null,null,null,null,null,null,null,null,null,null,null,null,null,null,null,null,null,null,null,null,null,null,null,null,null,null,null,null,null,null,null,null,1710,"Estímulos"]
[null,null,null,3560,"Reparación y mantenimiento de equipo de defensa y seguridad",{"$f":"+Hoja1!E20","v":6000},null,null,500,500,500,500,500,500,500,500,500,500,500,500,6000,0,null,null,null,null,null,null,null,null,null,null,null,null,null,null,null,null,null,null,null,null,null,null,null,null,null,null,null,null,null,null,null,null,null,null,null,null,null,null,null,null,null,null,null,null,null,null,null,null,null,null,null,null,null,null,null,null,null,null,null,null,null,null,null,null,null,null,null,null,null,null,null,null,null,null,null,null,null,null,null,null,null,null,null,null,null,null,null,null,null,null,null,null,null,null,null,null,null,null,null,null,null,null,null,null,null,1720,"Recompensas"]
[null,null,null,3750,"Viáticos en el país",{"$f":"+Hoja1!E21","v":2100},null,null,175,175,175,175,175,175,175,175,175,175,175,175,2100,0,null,null,null,null,null,null,null,null,null,null,null,null,null,null,null,null,null,null,null,null,null,null,null,null,null,null,null,null,null,null,null,null,null,null,null,null,null,null,null,null,null,null,null,null,null,null,null,null,null,null,null,null,null,null,null,null,null,null,null,null,null,null,null,null,null,null,null,null,null,null,null,null,null,null,null,null,null,null,null,null,null,null,null,null,null,null,null,null,null,null,null,null,null,null,null,null,null,null,null,null,null,null,null,null,null,1810,"Impuesto sobre nóminas"]
[null,null,null,3820,"Viáticos en el extranjero",{"$f":"+Hoja1!E22","v":36000},null,null,3000,3000,3000,3000,3000,3000,3000,3000,3000,3000,3000,3000,36000,0,null,null,null,null,null,null,null,null,null,null,null,null,null,null,null,null,null,null,null,null,null,null,null,null,null,null,null,null,null,null,null,null,null,null,null,null,null,null,null,null,null,null,null,null,null,null,null,null,null,null,null,null,null,null,null,null,null,null,null,null,null,null,null,null,null,null,null,null,null,null,null,null,null,null,null,null,null,null,null,null,null,null,null,null,null,null,null,null,null,null,null,null,null,null,null,null,null,null,null,null,null,null,null,null,null,1820,"Otros impuestos derivados de una relación laboral"]
[null,null,null,3851,"Viáticos en el extranjero",{"$f":"+Hoja1!E23","v":3000},null,null,250,250,250,250,250,250,250,250,250,250,250,250,3000,0,null,null,null,null,null,null,null,null,null,null,null,null,null,null,null,null,null,null,null,null,null,null,null,null,null,null,null,null,null,null,null,null,null,null,null,null,null,null,null,null,null,null,null,null,null,null,null,null,null,null,null,null,null,null,null,null,null,null,null,null,null,null,null,null,null,null,null,null,null,null,null,null,null,null,null,null,null,null,null,null,null,null,null,null,null,null,null,null,null,null,null,null,null,null,null,null,null,null,null,null,null,null,null,null,null,2110,"Materiales, útiles y equipos menores de oficina"]
[null,null,null,3852,"Viáticos en el extranjero",{"$f":"+Hoja1!E24","v":36000},null,null,3000,3000,3000,3000,3000,3000,3000,3000,3000,3000,3000,3000,{"$f":"SUM(I33:T33)","v":36000},0,null,null,null,null,null,null,null,null,null,null,null,null,null,null,null,null,null,null,null,null,null,null,null,null,null,null,null,null,null,null,null,null,null,null,null,null,null,null,null,null,null,null,null,null,null,null,null,null,null,null,null,null,null,null,null,null,null,null,null,null,null,null,null,null,null,null,null,null,null,null,null,null,null,null,null,null,null,null,null,null,null,null,null,null,null,null,null,null,null,null,null,null,null,null,null,null,null,null,null,null,null,null,null,null,null,2120,"Materiales y útiles de impresión y reproducción"]
[null,null,null,null," ",null,null,null,null,null,null,null,null,null,null,null,null,null,null,null,{"$f":"SUM(I34:T34)","v":0},0,null,null,null,null,null,null,null,null,null,null,null,null,null,null,null,null,null,null,null,null,null,null,null,null,null,null,null,null,null,null,null,null,null,null,null,null,null,null,null,null,null,null,null,null,null,null,null,null,null,null,null,null,null,null,null,null,null,null,null,null,null,null,null,null,null,null,null,null,null,null,null,null,null,null,null,null,null,null,null,null,null,null,null,null,null,null,null,null,null,null,null,null,null,null,null,null,null,null,null,null,null,null,null,null,null,2520,"Fertilizantes, pesticidas y otros agroquímicos"]
[null,"COMPONENTE 2","Actividades informativas, ludicas, deportivas y de cualquier indole que contribuyan a la participación ciudadana en materia de seguridad pública realizadas",{"$f":"SUM(F38:F60)","v":4333875},null,null,null,{"$f":"SUM(G38)","v":4333875},null,null,null,null,null,null,null,null,null,null,null,null,{"$f":"SUM(U13:U34)","v":4333875},{"$f":"G13-U35","v":0},null,null,null,null,null,null,null,null,null,null,null,null,null,null,null,null,null,null,null,null,null,null,null,null,null,null,null,null,null,null,null,null,null,null,null,null,null,null,null,null,null,null,null,null,null,null,null,null,null,null,null,null,null,null,null,null,null,null,null,null,null,null,null,null,null,null,null,null,null,null,null,null,null,null,null,null,null,null,null,null,null,null,null,null,null,null,null,null,null,null,null,null,null,null,null,null,null,null,null,null,null,null,null,null,null,2530,"Medicinas y productos farmacéuticos"]
[null,null,null,null,null,null,null,null,null,null,null,null,null,null,null,null,null,null,null,null,null,null,null,null,null,null,null,null,null,null,null,null,null,null,null,null,null,null,null,null,null,null,null,null,null,null,null,null,null,null,null,null,null,null,null,null,null,null,null,null,null,null,null,null,null,null,null,null,null,null,null,null,null,null,null,null,null,null,null,null,null,null,null,null,null,null,null,null,null,null,null,null,null,null,null,null,null,null,null,null,null,null,null,null,null,null,null,null,null,null,null,null,null,null,null,null,null,null,null,null,null,null,null,null,null,null,null,2540,"Materiales, accesorios y suministros médicos"]
[null,null,null,null,null,null,null,null,null,null,null,null,null,null,null,null,null,null,null,null,null,null,null,null,null,null,null,null,null,null,null,null,null,null,null,null,null,null,null,null,null,null,null,null,null,null,null,null,null,null,null,null,null,null,null,null,null,null,null,null,null,null,null,null,null,null,null,null,null,null,null,null,null,null,null,null,null,null,null,null,null,null,null,null,null,null,null,null,null,null,null,null,null,null,null,null,null,null,null,null,null,null,null,null,null,null,null,null,null,null,null,null,null,null,null,null,null,null,null,null,null,null,null,null,null,null,null,2550,"Materiales, accesorios y suministros de laboratorio"]
[null,"UR","31111M120070100 -  Secretaría de Seguridad Pública",2110,{"$f":"IF(D38>0,VLOOKUP(D38,$DX$1:$DY$227,2),\" \")","v":"Materiales, útiles y equipos menores de oficina"},{"$f":"+Hoja1!E31","v":21000},{"$f":"SUM(F38:F60)","v":4333875},null,{"$f":"$F38/12","v":1750},1750,1750,1750,1750,1750,1750,1750,1750,1750,{"$f":"$F38/12","v":1750},1750,{"$f":"SUM(I38:T38)","v":21000},{"$f":"F38-U38","v":0},null,null,null,null,null,null,null,null,null,null,null,null,null,null,null,null,null,null,null,null,null,null,null,null,null,null,null,null,null,null,null,null,null,null,null,null,null,null,null,null,null,null,null,null,null,null,null,null,null,null,null,null,null,null,null,null,null,null,null,null,null,null,null,null,null,null,null,null,null,null,null,null,null,null,null,null,null,null,null,null,null,null,null,null,null,null,null,null,null,null,null,null,null,null,null,null,null,null,null,null,null,null,null,null,null,2560,"Fibras sintéticas, hules, plásticos y derivados"]
[null,null,null,2120,"Materiales y útiles de impresión y reproducción",{"$f":"+Hoja1!E32","v":22500},null,null,1875,1875,1875,1875,1875,1875,1875,1875,1875,1875,1875,1875,22500,{"$f":"F39-U39","v":0},null,null,null,null,null,null,null,null,null,null,null,null,null,null,null,null,null,null,null,null,null,null,null,null,null,null,null,null,null,null,null,null,null,null,null,null,null,null,null,null,null,null,null,null,null,null,null,null,null,null,null,null,null,null,null,null,null,null,null,null,null,null,null,null,null,null,null,null,null,null,null,null,null,null,null,null,null,null,null,null,null,null,null,null,null,null,null,null,null,null,null,null,null,null,null,null,null,null,null,null,null,null,null,null,null,2590,"Otros productos químicos"]
[null,null,null,2150,"Materiales y útiles de impresión y reproducción",{"$f":"+Hoja1!E33","v":15000},null,null,1250,1250,1250,1250,1250,1250,1250,1250,1250,1250,1250,1250,15000,0,null,null,null,null,null,null,null,null,null,null,null,null,null,null,null,null,null,null,null,null,null,null,null,null,null,null,null,null,null,null,null,null,null,null,null,null,null,null,null,null,null,null,null,null,null,null,null,null,null,null,null,null,null,null,null,null,null,null,null,null,null,null,null,null,null,null,null,null,null,null,null,null,null,null,null,null,null,null,null,null,null,null,null,null,null,null,null,null,null,null,null,null,null,null,null,null,null,null,null,null,null,null,null,null,null,2610,"Combustibles, lubricantes y aditivos"]
[null,null,null,2611,"Combustibles, lubricantes y aditivos",{"$f":"+Hoja1!E34","v":2340000},null,null,195000,195000,195000,195000,195000,195000,195000,195000,195000,195000,195000,195000,2340000,0,null,null,null,null,null,null,null,null,null,null,null,null,null,null,null,null,null,null,null,null,null,null,null,null,null,null,null,null,null,null,null,null,null,null,null,null,null,null,null,null,null,null,null,null,null,null,null,null,null,null,null,null,null,null,null,null,null,null,null,null,null,null,null,null,null,null,null,null,null,null,null,null,null,null,null,null,null,null,null,null,null,null,null,null,null,null,null,null,null,null,null,null,null,null,null,null,null,null,null,null,null,null,null,null,null,2620,"Carbón y sus derivados"]
[null,null,null,2710,"Vestuario y uniformes",{"$f":"+Hoja1!E35","v":315000},null,null,26250,26250,26250,26250,26250,26250,26250,26250,26250,26250,26250,26250,315000,0,null,null,null,null,null,null,null,null,null,null,null,null,null,null,null,null,null,null,null,null,null,null,null,null,null,null,null,null,null,null,null,null,null,null,null,null,null,null,null,null,null,null,null,null,null,null,null,null,null,null,null,null,null,null,null,null,null,null,null,null,null,null,null,null,null,null,null,null,null,null,null,null,null,null,null,null,null,null,null,null,null,null,null,null,null,null,null,null,null,null,null,null,null,null,null,null,null,null,null,null,null,null,null,null,null,2710,"Vestuario y uniformes"]
[null,null,null,2930,"Refacciones y accesorios menores de mobiliario y equipo de administración, educacional y recreativo",{"$f":"+Hoja1!E36","v":6000},null,null,500,500,500,500,500,500,500,500,500,500,500,500,6000,0,null,null,null,null,null,null,null,null,null,null,null,null,null,null,null,null,null,null,null,null,null,null,null,null,null,null,null,null,null,null,null,null,null,null,null,null,null,null,null,null,null,null,null,null,null,null,null,null,null,null,null,null,null,null,null,null,null,null,null,null,null,null,null,null,null,null,null,null,null,null,null,null,null,null,null,null,null,null,null,null,null,null,null,null,null,null,null,null,null,null,null,null,null,null,null,null,null,null,null,null,null,null,null,null,null,2720,"Prendas de seguridad y protección personal"]
[null,null,null,2940,"Refacciones y accesorios menores de equipo de cómputo y tecnologías de la información",{"$f":"+Hoja1!E37","v":1500},null,null,125,125,125,125,125,125,125,125,125,125,125,125,1500,0,null,null,null,null,null,null,null,null,null,null,null,null,null,null,null,null,null,null,null,null,null,null,null,null,null,null,null,null,null,null,null,null,null,null,null,null,null,null,null,null,null,null,null,null,null,null,null,null,null,null,null,null,null,null,null,null,null,null,null,null,null,null,null,null,null,null,null,null,null,null,null,null,null,null,null,null,null,null,null,null,null,null,null,null,null,null,null,null,null,null,null,null,null,null,null,null,null,null,null,null,null,null,null,null,null,2730,"Artículos deportivos"]
[null,null,null,2960,"Refacciones y accesorios menores de equipo de transporte",{"$f":"+Hoja1!E38","v":675000},null,null,56250,56250,56250,56250,56250,56250,56250,56250,56250,56250,56250,56250,675000,0,null,null,null,null,null,null,null,null,null,null,null,null,null,null,null,null,null,null,null,null,null,null,null,null,null,null,null,null,null,null,null,null,null,null,null,null,null,null,null,null,null,null,null,null,null,null,null,null,null,null,null,null,null,null,null,null,null,null,null,null,null,null,null,null,null,null,null,null,null,null,null,null,null,null,null,null,null,null,null,null,null,null,null,null,null,null,null,null,null,null,null,null,null,null,null,null,null,null,null,null,null,null,null,null,null,2740,"Productos textiles"]
[null,null,null,3110,"Refacciones y accesorios menores otros bienes muebles",{"$f":"+Hoja1!E39","v":104400},null,null,8700,8700,8700,8700,8700,8700,8700,8700,8700,8700,8700,8700,104400,0,null,null,null,null,null,null,null,null,null,null,null,null,null,null,null,null,null,null,null,null,null,null,null,null,null,null,null,null,null,null,null,null,null,null,null,null,null,null,null,null,null,null,null,null,null,null,null,null,null,null,null,null,null,null,null,null,null,null,null,null,null,null,null,null,null,null,null,null,null,null,null,null,null,null,null,null,null,null,null,null,null,null,null,null,null,null,null,null,null,null,null,null,null,null,null,null,null,null,null,null,null,null,null,null,null,2750,"Blancos y otros productos textiles, excepto prendas de vestir"]
[null,null,null,3140,"Refacciones y accesorios menores otros bienes muebles",{"$f":"+Hoja1!E40","v":20475},null,null,1706.25,1706.25,1706.25,1706.25,1706.25,1706.25,1706.25,1706.25,1706.25,1706.25,1706.25,1706.25,20475,0,null,null,null,null,null,null,null,null,null,null,null,null,null,null,null,null,null,null,null,null,null,null,null,null,null,null,null,null,null,null,null,null,null,null,null,null,null,null,null,null,null,null,null,null,null,null,null,null,null,null,null,null,null,null,null,null,null,null,null,null,null,null,null,null,null,null,null,null,null,null,null,null,null,null,null,null,null,null,null,null,null,null,null,null,null,null,null,null,null,null,null,null,null,null,null,null,null,null,null,null,null,null,null,null,null,2810,"Sustancias y materiales explosivos"]
[null,null,null,3230,"Refacciones y accesorios menores otros bienes muebles",{"$f":"+Hoja1!E41","v":10500},null,null,875,875,875,875,875,875,875,875,875,875,875,875,10500,0,null,null,null,null,null,null,null,null,null,null,null,null,null,null,null,null,null,null,null,null,null,null,null,null,null,null,null,null,null,null,null,null,null,null,null,null,null,null,null,null,null,null,null,null,null,null,null,null,null,null,null,null,null,null,null,null,null,null,null,null,null,null,null,null,null,null,null,null,null,null,null,null,null,null,null,null,null,null,null,null,null,null,null,null,null,null,null,null,null,null,null,null,null,null,null,null,null,null,null,null,null,null,null,null,null,2820,"Materiales de seguridad pública"]
[null,null,null,3350,"Refacciones y accesorios menores otros bienes muebles",{"$f":"+Hoja1!E42","v":120000},null,null,10000,10000,10000,10000,10000,10000,10000,10000,10000,10000,10000,10000,120000,0,null,null,null,null,null,null,null,null,null,null,null,null,null,null,null,null,null,null,null,null,null,null,null,null,null,null,null,null,null,null,null,null,null,null,null,null,null,null,null,null,null,null,null,null,null,null,null,null,null,null,null,null,null,null,null,null,null,null,null,null,null,null,null,null,null,null,null,null,null,null,null,null,null,null,null,null,null,null,null,null,null,null,null,null,null,null,null,null,null,null,null,null,null,null,null,null,null,null,null,null,null,null,null,null,null,2830,"Prendas de protección para seguridad pública y nacional"]
[null,null,null,3450,"Seguro de bienes patrimoniales",{"$f":"+Hoja1!E43","v":195900},null,null,16325,16325,16325,16325,16325,16325,16325,16325,16325,16325,16325,16325,195900,0,null,null,null,null,null,null,null,null,null,null,null,null,null,null,null,null,null,null,null,null,null,null,null,null,null,null,null,null,null,null,null,null,null,null,null,null,null,null,null,null,null,null,null,null,null,null,null,null,null,null,null,null,null,null,null,null,null,null,null,null,null,null,null,null,null,null,null,null,null,null,null,null,null,null,null,null,null,null,null,null,null,null,null,null,null,null,null,null,null,null,null,null,null,null,null,null,null,null,null,null,null,null,null,null,null,2910,"Herramientas menores"]
[null,null,null,3510,"Conservación y mantenimiento menor de inmuebles",{"$f":"+Hoja1!E44","v":9000},null,null,750,750,750,750,750,750,750,750,750,750,750,750,9000,0,null,null,null,null,null,null,null,null,null,null,null,null,null,null,null,null,null,null,null,null,null,null,null,null,null,null,null,null,null,null,null,null,null,null,null,null,null,null,null,null,null,null,null,null,null,null,null,null,null,null,null,null,null,null,null,null,null,null,null,null,null,null,null,null,null,null,null,null,null,null,null,null,null,null,null,null,null,null,null,null,null,null,null,null,null,null,null,null,null,null,null,null,null,null,null,null,null,null,null,null,null,null,null,null,null,2920,"Refacciones y accesorios menores de edificios"]
[null,null,null,3530,"Instalación, reparación y mantenimiento de equipo de cómputo y tecnología de la información",{"$f":"+Hoja1!E45","v":4500},null,null,375,375,375,375,375,375,375,375,375,375,375,375,4500,0,null,null,null,null,null,null,null,null,null,null,null,null,null,null,null,null,null,null,null,null,null,null,null,null,null,null,null,null,null,null,null,null,null,null,null,null,null,null,null,null,null,null,null,null,null,null,null,null,null,null,null,null,null,null,null,null,null,null,null,null,null,null,null,null,null,null,null,null,null,null,null,null,null,null,null,null,null,null,null,null,null,null,null,null,null,null,null,null,null,null,null,null,null,null,null,null,null,null,null,null,null,null,null,null,null,2930,"Refacciones y accesorios menores de mobiliario y equipo de administración, educacional y recreativo"]
[null,null,null,3550,"Reparación y mantenimiento de equipo de transporte",{"$f":"+Hoja1!E46","v":390000},null,null,32500,32500,32500,32500,32500,32500,32500,32500,32500,32500,32500,32500,390000,0,null,null,null,null,null,null,null,null,null,null,null,null,null,null,null,null,null,null,null,null,null,null,null,null,null,null,null,null,null,null,null,null,null,null,null,null,null,null,null,null,null,null,null,null,null,null,null,null,null,null,null,null,null,null,null,null,null,null,null,null,null,null,null,null,null,null,null,null,null,null,null,null,null,null,null,null,null,null,null,null,null,null,null,null,null,null,null,null,null,null,null,null,null,null,null,null,null,null,null,null,null,null,null,null,null,2940,"Refacciones y accesorios menores de equipo de cómputo y tecnologías de la información"]
[null,null,null,3560,"Reparación y mantenimiento de equipo de defensa y seguridad",{"$f":"+Hoja1!E47","v":6000},null,null,500,500,500,500,500,500,500,500,500,500,500,500,6000,0,null,null,null,null,null,null,null,null,null,null,null,null,null,null,null,null,null,null,null,null,null,null,null,null,null,null,null,null,null,null,null,null,null,null,null,null,null,null,null,null,null,null,null,null,null,null,null,null,null,null,null,null,null,null,null,null,null,null,null,null,null,null,null,null,null,null,null,null,null,null,null,null,null,null,null,null,null,null,null,null,null,null,null,null,null,null,null,null,null,null,null,null,null,null,null,null,null,null,null,null,null,null,null,null,null,2950,"Refacciones y accesorios menores de equipo e instrumental médico y de laboratorio"]
[null,null,null,3750,"Viáticos en el país",{"$f":"+Hoja1!E48","v":2100},null,null,175,175,175,175,175,175,175,175,175,175,175,175,2100,0,null,null,null,null,null,null,null,null,null,null,null,null,null,null,null,null,null,null,null,null,null,null,null,null,null,null,null,null,null,null,null,null,null,null,null,null,null,null,null,null,null,null,null,null,null,null,null,null,null,null,null,null,null,null,null,null,null,null,null,null,null,null,null,null,null,null,null,null,null,null,null,null,null,null,null,null,null,null,null,null,null,null,null,null,null,null,null,null,null,null,null,null,null,null,null,null,null,null,null,null,null,null,null,null,null,2960,"Refacciones y accesorios menores de equipo de transporte"]
[null,null,null,3820,"Viáticos en el extranjero",{"$f":"+Hoja1!E49","v":36000},null,null,3000,3000,3000,3000,3000,3000,3000,3000,3000,3000,3000,3000,36000,0,null,null,null,null,null,null,null,null,null,null,null,null,null,null,null,null,null,null,null,null,null,null,null,null,null,null,null,null,null,null,null,null,null,null,null,null,null,null,null,null,null,null,null,null,null,null,null,null,null,null,null,null,null,null,null,null,null,null,null,null,null,null,null,null,null,null,null,null,null,null,null,null,null,null,null,null,null,null,null,null,null,null,null,null,null,null,null,null,null,null,null,null,null,null,null,null,null,null,null,null,null,null,null,null,null,2970,"Refacciones y accesorios menores de equipo de defensa y seguridad"]
[null,null,null,3851,"Viáticos en el extranjero",{"$f":"+Hoja1!E50","v":3000},null,null,250,250,250,250,250,250,250,250,250,250,250,250,3000,0,null,null,null,null,null,null,null,null,null,null,null,null,null,null,null,null,null,null,null,null,null,null,null,null,null,null,null,null,null,null,null,null,null,null,null,null,null,null,null,null,null,null,null,null,null,null,null,null,null,null,null,null,null,null,null,null,null,null,null,null,null,null,null,null,null,null,null,null,null,null,null,null,null,null,null,null,null,null,null,null,null,null,null,null,null,null,null,null,null,null,null,null,null,null,null,null,null,null,null,null,null,null,null,null,null,2980,"Refacciones y accesorios menores de maquinaria y otros equipos"]
[null,null,null,3852,"Viáticos en el extranjero",{"$f":"+Hoja1!E51","v":36000},null,null,3000,3000,3000,3000,3000,3000,3000,3000,3000,3000,3000,3000,{"$f":"SUM(I58:T58)","v":36000},0,null,null,null,null,null,null,null,null,null,null,null,null,null,null,null,null,null,null,null,null,null,null,null,null,null,null,null,null,null,null,null,null,null,null,null,null,null,null,null,null,null,null,null,null,null,null,null,null,null,null,null,null,null,null,null,null,null,null,null,null,null,null,null,null,null,null,null,null,null,null,null,null,null,null,null,null,null,null,null,null,null,null,null,null,null,null,null,null,null,null,null,null,null,null,null,null,null,null,null,null,null,null,null,null,null,2990,"Refacciones y accesorios menores otros bienes muebles"]
[null,null,null,null," ",null,null,null,null,null,null,null,null,null,null,null,null,null,null,null,{"$f":"SUM(I59:T59)","v":0},0,null,null,null,null,null,null,null,null,null,null,null,null,null,null,null,null,null,null,null,null,null,null,null,null,null,null,null,null,null,null,null,null,null,null,null,null,null,null,null,null,null,null,null,null,null,null,null,null,null,null,null,null,null,null,null,null,null,null,null,null,null,null,null,null,null,null,null,null,null,null,null,null,null,null,null,null,null,null,null,null,null,null,null,null,null,null,null,null,null,null,null,null,null,null,null,null,null,null,null,null,null,null,null,null,null,3410,"Servicios financieros y bancarios"]
[null,null,null,null," ",null,null,null,null,null,null,null,null,null,null,null,null,null,null,null,0,0,null,null,null,null,null,null,null,null,null,null,null,null,null,null,null,null,null,null,null,null,null,null,null,null,null,null,null,null,null,null,null,null,null,null,null,null,null,null,null,null,null,null,null,null,null,null,null,null,null,null,null,null,null,null,null,null,null,null,null,null,null,null,null,null,null,null,null,null,null,null,null,null,null,null,null,null,null,null,null,null,null,null,null,null,null,null,null,null,null,null,null,null,null,null,null,null,null,null,null,null,null,null,null,null,null,3420,"Servicios de cobranza, investigación crediticia y similar"]
[null,"COMPONENTE 3","Información importante para la aplicación de acciones de seguridad encaminada a la disminución de actos que vulneran la seguridad en el municipio de Dolores ",{"$f":"SUM(F64:F92)","v":2889250},null,null,null,{"$f":"SUM(G64)","v":2889250},null,null,null,null,null,null,null,null,null,null,null,null,{"$f":"SUM(U38:U60)","v":4333875},{"$f":"G38-U61","v":0},null,null,null,null,null,null,null,null,null,null,null,null,null,null,null,null,null,null,null,null,null,null,null,null,null,null,null,null,null,null,null,null,null,null,null,null,null,null,null,null,null,null,null,null,null,null,null,null,null,null,null,null,null,null,null,null,null,null,null,null,null,null,null,null,null,null,null,null,null,null,null,null,null,null,null,null,null,null,null,null,null,null,null,null,null,null,null,null,null,null,null,null,null,null,null,null,null,null,null,null,null,null,null,null,null,3430,"Servicios de recaudación, traslado y custodia de valores"]
[null,null,null,null,null,null,null,null,null,null,null,null,null,null,null,null,null,null,null,null,null,null,null,null,null,null,null,null,null,null,null,null,null,null,null,null,null,null,null,null,null,null,null,null,null,null,null,null,null,null,null,null,null,null,null,null,null,null,null,null,null,null,null,null,null,null,null,null,null,null,null,null,null,null,null,null,null,null,null,null,null,null,null,null,null,null,null,null,null,null,null,null,null,null,null,null,null,null,null,null,null,null,null,null,null,null,null,null,null,null,null,null,null,null,null,null,null,null,null,null,null,null,null,null,null,null,null,3440,"Seguros de responsabilidad patrimonial y fianzas"]
[null,null,null,null,null,null,null,null,null,null,null,null,null,null,null,null,null,null,null,null,null,null,null,null,null,null,null,null,null,null,null,null,null,null,null,null,null,null,null,null,null,null,null,null,null,null,null,null,null,null,null,null,null,null,null,null,null,null,null,null,null,null,null,null,null,null,null,null,null,null,null,null,null,null,null,null,null,null,null,null,null,null,null,null,null,null,null,null,null,null,null,null,null,null,null,null,null,null,null,null,null,null,null,null,null,null,null,null,null,null,null,null,null,null,null,null,null,null,null,null,null,null,null,null,null,null,null,3450,"Seguro de bienes patrimoniales"]
[null,"UR","31111M120070100 -  Secretaría de Seguridad Pública",2110,{"$f":"IF(D64>0,VLOOKUP(D64,$DX$1:$DY$227,2),\" \")","v":"Materiales, útiles y equipos menores de oficina"},{"$f":"+Hoja1!E58","v":14000},{"$f":"SUM(F64:F92)","v":2889250},null,{"$f":"$F64/12","v":1166.6666666666667},1166.6666666666667,1166.6666666666667,1166.6666666666667,1166.6666666666667,1166.6666666666667,1166.6666666666667,1166.6666666666667,1166.6666666666667,1166.6666666666667,1166.6666666666667,1166.6666666666667,{"$f":"SUM(I64:T64)","v":13999.999999999998},{"$f":"F64-U64","v":0},null,null,null,null,null,null,null,null,null,null,null,null,null,null,null,null,null,null,null,null,null,null,null,null,null,null,null,null,null,null,null,null,null,null,null,null,null,null,null,null,null,null,null,null,null,null,null,null,null,null,null,null,null,null,null,null,null,null,null,null,null,null,null,null,null,null,null,null,null,null,null,null,null,null,null,null,null,null,null,null,null,null,null,null,null,null,null,null,null,null,null,null,null,null,null,null,null,null,null,null,null,null,null,null,null,3460,"Almacenaje, envase y embalaje"]
[null,null,null,2120,"Materiales y útiles de impresión y reproducción",{"$f":"+Hoja1!E59","v":15000},null,null,1250,1250,1250,1250,1250,1250,1250,1250,1250,1250,1250,1250,15000,{"$f":"F65-U65","v":0},null,null,null,null,null,null,null,null,null,null,null,null,null,null,null,null,null,null,null,null,null,null,null,null,null,null,null,null,null,null,null,null,null,null,null,null,null,null,null,null,null,null,null,null,null,null,null,null,null,null,null,null,null,null,null,null,null,null,null,null,null,null,null,null,null,null,null,null,null,null,null,null,null,null,null,null,null,null,null,null,null,null,null,null,null,null,null,null,null,null,null,null,null,null,null,null,null,null,null,null,null,null,null,null,null,3470,"Fletes y maniobras"]
[null,null,null,2150,"Materiales y útiles de impresión y reproducción",{"$f":"+Hoja1!E60","v":10000},null,null,833.33333333333337,833.33333333333337,833.33333333333337,833.33333333333337,833.33333333333337,833.33333333333337,833.33333333333337,833.33333333333337,833.33333333333337,833.33333333333337,833.33333333333337,833.33333333333337,10000,0,null,null,null,null,null,null,null,null,null,null,null,null,null,null,null,null,null,null,null,null,null,null,null,null,null,null,null,null,null,null,null,null,null,null,null,null,null,null,null,null,null,null,null,null,null,null,null,null,null,null,null,null,null,null,null,null,null,null,null,null,null,null,null,null,null,null,null,null,null,null,null,null,null,null,null,null,null,null,null,null,null,null,null,null,null,null,null,null,null,null,null,null,null,null,null,null,null,null,null,null,null,null,null,null,null,3480,"Comisiones por ventas"]
[null,null,null,2611,"Combustibles, lubricantes y aditivos",{"$f":"+Hoja1!E61","v":1560000},null,null,130000,130000,130000,130000,130000,130000,130000,130000,130000,130000,130000,130000,1560000,0,null,null,null,null,null,null,null,null,null,null,null,null,null,null,null,null,null,null,null,null,null,null,null,null,null,null,null,null,null,null,null,null,null,null,null,null,null,null,null,null,null,null,null,null,null,null,null,null,null,null,null,null,null,null,null,null,null,null,null,null,null,null,null,null,null,null,null,null,null,null,null,null,null,null,null,null,null,null,null,null,null,null,null,null,null,null,null,null,null,null,null,null,null,null,null,null,null,null,null,null,null,null,null,null,null,3490,"Servicios financieros, bancarios y comerciales integrales"]
[null,null,null,2710,"Vestuario y uniformes",{"$f":"+Hoja1!E62","v":210000},null,null,17500,17500,17500,17500,17500,17500,17500,17500,17500,17500,17500,17500,210000,0,null,null,null,null,null,null,null,null,null,null,null,null,null,null,null,null,null,null,null,null,null,null,null,null,null,null,null,null,null,null,null,null,null,null,null,null,null,null,null,null,null,null,null,null,null,null,null,null,null,null,null,null,null,null,null,null,null,null,null,null,null,null,null,null,null,null,null,null,null,null,null,null,null,null,null,null,null,null,null,null,null,null,null,null,null,null,null,null,null,null,null,null,null,null,null,null,null,null,null,null,null,null,null,null,null,3510,"Conservación y mantenimiento menor de inmuebles"]
[null,null,null,2930,"Refacciones y accesorios menores de mobiliario y equipo de administración, educacional y recreativo",{"$f":"+Hoja1!E63","v":4000},null,null,333.33333333333331,333.33333333333331,333.33333333333331,333.33333333333331,333.33333333333331,333.33333333333331,333.33333333333331,333.33333333333331,333.33333333333331,333.33333333333331,333.33333333333331,333.33333333333331,4000.0000000000005,0,null,null,null,null,null,null,null,null,null,null,null,null,null,null,null,null,null,null,null,null,null,null,null,null,null,null,null,null,null,null,null,null,null,null,null,null,null,null,null,null,null,null,null,null,null,null,null,null,null,null,null,null,null,null,null,null,null,null,null,null,null,null,null,null,null,null,null,null,null,null,null,null,null,null,null,null,null,null,null,null,null,null,null,null,null,null,null,null,null,null,null,null,null,null,null,null,null,null,null,null,null,null,null,null,null,3520,"Instalación, reparación y mantenimiento de mobiliario y equipo de administración, educacional y recreativo"]
[null,null,null,2940,"Refacciones y accesorios menores de equipo de cómputo y tecnologías de la información",{"$f":"+Hoja1!E64","v":1000},null,null,83.333333333333329,83.333333333333329,83.333333333333329,83.333333333333329,83.333333333333329,83.333333333333329,83.333333333333329,83.333333333333329,83.333333333333329,83.333333333333329,83.333333333333329,83.333333333333329,1000.0000000000001,0,null,null,null,null,null,null,null,null,null,null,null,null,null,null,null,null,null,null,null,null,null,null,null,null,null,null,null,null,null,null,null,null,null,null,null,null,null,null,null,null,null,null,null,null,null,null,null,null,null,null,null,null,null,null,null,null,null,null,null,null,null,null,null,null,null,null,null,null,null,null,null,null,null,null,null,null,null,null,null,null,null,null,null,null,null,null,null,null,null,null,null,null,null,null,null,null,null,null,null,null,null,null,null,null,null,3530,"Instalación, reparación y mantenimiento de equipo de cómputo y tecnología de la información"]
[null,null,null,2960,"Refacciones y accesorios menores de equipo de transporte",{"$f":"+Hoja1!E65","v":450000},null,null,37500,37500,37500,37500,37500,37500,37500,37500,37500,37500,37500,37500,450000,0,null,null,null,null,null,null,null,null,null,null,null,null,null,null,null,null,null,null,null,null,null,null,null,null,null,null,null,null,null,null,null,null,null,null,null,null,null,null,null,null,null,null,null,null,null,null,null,null,null,null,null,null,null,null,null,null,null,null,null,null,null,null,null,null,null,null,null,null,null,null,null,null,null,null,null,null,null,null,null,null,null,null,null,null,null,null,null,null,null,null,null,null,null,null,null,null,null,null,null,null,null,null,null,null,null,3540,"Instalación, reparación y mantenimiento de equipo e instrumental médico y de laboratorio"]
[null,null,null,3110,"Refacciones y accesorios menores otros bienes muebles",{"$f":"+Hoja1!E66","v":69600},null,null,5800,5800,5800,5800,5800,5800,5800,5800,5800,5800,5800,5800,69600,0,null,null,null,null,null,null,null,null,null,null,null,null,null,null,null,null,null,null,null,null,null,null,null,null,null,null,null,null,null,null,null,null,null,null,null,null,null,null,null,null,null,null,null,null,null,null,null,null,null,null,null,null,null,null,null,null,null,null,null,null,null,null,null,null,null,null,null,null,null,null,null,null,null,null,null,null,null,null,null,null,null,null,null,null,null,null,null,null,null,null,null,null,null,null,null,null,null,null,null,null,null,null,null,null,null,3550,"Reparación y mantenimiento de equipo de transporte"]
[null,null,null,3140,"Refacciones y accesorios menores otros bienes muebles",{"$f":"+Hoja1!E67","v":13650},null,null,1137.5,1137.5,1137.5,1137.5,1137.5,1137.5,1137.5,1137.5,1137.5,1137.5,1137.5,1137.5,13650,0,null,null,null,null,null,null,null,null,null,null,null,null,null,null,null,null,null,null,null,null,null,null,null,null,null,null,null,null,null,null,null,null,null,null,null,null,null,null,null,null,null,null,null,null,null,null,null,null,null,null,null,null,null,null,null,null,null,null,null,null,null,null,null,null,null,null,null,null,null,null,null,null,null,null,null,null,null,null,null,null,null,null,null,null,null,null,null,null,null,null,null,null,null,null,null,null,null,null,null,null,null,null,null,null,null,3560,"Reparación y mantenimiento de equipo de defensa y seguridad"]
[null,null,null,3230,"Refacciones y accesorios menores otros bienes muebles",{"$f":"+Hoja1!E68","v":7000},null,null,583.33333333333337,583.33333333333337,583.33333333333337,583.33333333333337,583.33333333333337,583.33333333333337,583.33333333333337,583.33333333333337,583.33333333333337,583.33333333333337,583.33333333333337,583.33333333333337,6999.9999999999991,0,null,null,null,null,null,null,null,null,null,null,null,null,null,null,null,null,null,null,null,null,null,null,null,null,null,null,null,null,null,null,null,null,null,null,null,null,null,null,null,null,null,null,null,null,null,null,null,null,null,null,null,null,null,null,null,null,null,null,null,null,null,null,null,null,null,null,null,null,null,null,null,null,null,null,null,null,null,null,null,null,null,null,null,null,null,null,null,null,null,null,null,null,null,null,null,null,null,null,null,null,null,null,null,null,null,3570,"Instalación, reparación y mantenimiento de maquinaria, otros equipos y herramienta"]
[null,null,null,3350,"Refacciones y accesorios menores otros bienes muebles",{"$f":"+Hoja1!E69","v":80000},null,null,6666.666666666667,6666.666666666667,6666.666666666667,6666.666666666667,6666.666666666667,6666.666666666667,6666.666666666667,6666.666666666667,6666.666666666667,6666.666666666667,6666.666666666667,6666.666666666667,80000,0,null,null,null,null,null,null,null,null,null,null,null,null,null,null,null,null,null,null,null,null,null,null,null,null,null,null,null,null,null,null,null,null,null,null,null,null,null,null,null,null,null,null,null,null,null,null,null,null,null,null,null,null,null,null,null,null,null,null,null,null,null,null,null,null,null,null,null,null,null,null,null,null,null,null,null,null,null,null,null,null,null,null,null,null,null,null,null,null,null,null,null,null,null,null,null,null,null,null,null,null,null,null,null,null,null,3580,"Servicios de limpieza y manejo de desechos"]
[null,null,null,3450,"Seguro de bienes patrimoniales",{"$f":"+Hoja1!E70","v":130600},null,null,10883.333333333334,10883.333333333334,10883.333333333334,10883.333333333334,10883.333333333334,10883.333333333334,10883.333333333334,10883.333333333334,10883.333333333334,10883.333333333334,10883.333333333334,10883.333333333334,130599.99999999999,0,null,null,null,null,null,null,null,null,null,null,null,null,null,null,null,null,null,null,null,null,null,null,null,null,null,null,null,null,null,null,null,null,null,null,null,null,null,null,null,null,null,null,null,null,null,null,null,null,null,null,null,null,null,null,null,null,null,null,null,null,null,null,null,null,null,null,null,null,null,null,null,null,null,null,null,null,null,null,null,null,null,null,null,null,null,null,null,null,null,null,null,null,null,null,null,null,null,null,null,null,null,null,null,null,null,3590,"Servicios de jardinería y fumigación"]
[null,null,null,3510,"Conservación y mantenimiento menor de inmuebles",{"$f":"+Hoja1!E71","v":6000},null,null,500,500,500,500,500,500,500,500,500,500,500,500,6000,0,null,null,null,null,null,null,null,null,null,null,null,null,null,null,null,null,null,null,null,null,null,null,null,null,null,null,null,null,null,null,null,null,null,null,null,null,null,null,null,null,null,null,null,null,null,null,null,null,null,null,null,null,null,null,null,null,null,null,null,null,null,null,null,null,null,null,null,null,null,null,null,null,null,null,null,null,null,null,null,null,null,null,null,null,null,null,null,null,null,null,null,null,null,null,null,null,null,null,null,null,null,null,null,null,null,3610,"Difusión por radio, televisión y otros medios de mensajes sobre programas y actividades gubernamentales"]
[null,null,null,3530,"Instalación, reparación y mantenimiento de equipo de cómputo y tecnología de la información",{"$f":"+Hoja1!E72","v":3000},null,null,250,250,250,250,250,250,250,250,250,250,250,250,3000,0,null,null,null,null,null,null,null,null,null,null,null,null,null,null,null,null,null,null,null,null,null,null,null,null,null,null,null,null,null,null,null,null,null,null,null,null,null,null,null,null,null,null,null,null,null,null,null,null,null,null,null,null,null,null,null,null,null,null,null,null,null,null,null,null,null,null,null,null,null,null,null,null,null,null,null,null,null,null,null,null,null,null,null,null,null,null,null,null,null,null,null,null,null,null,null,null,null,null,null,null,null,null,null,null,null,3620,"Difusión por radio, televisión y otros medios de mensajes comerciales para promover la venta de bienes o servicios"]
[null,null,null,3550,"Reparación y mantenimiento de equipo de transporte",{"$f":"+Hoja1!E73","v":260000},null,null,21666.666666666668,21666.666666666668,21666.666666666668,21666.666666666668,21666.666666666668,21666.666666666668,21666.666666666668,21666.666666666668,21666.666666666668,21666.666666666668,21666.666666666668,21666.666666666668,259999.99999999997,0,null,null,null,null,null,null,null,null,null,null,null,null,null,null,null,null,null,null,null,null,null,null,null,null,null,null,null,null,null,null,null,null,null,null,null,null,null,null,null,null,null,null,null,null,null,null,null,null,null,null,null,null,null,null,null,null,null,null,null,null,null,null,null,null,null,null,null,null,null,null,null,null,null,null,null,null,null,null,null,null,null,null,null,null,null,null,null,null,null,null,null,null,null,null,null,null,null,null,null,null,null,null,null,null,null,3630,"Servicios de creatividad, preproducción y producción de publicidad, excepto Internet"]
[null,null,null,3560,"Reparación y mantenimiento de equipo de defensa y seguridad",{"$f":"+Hoja1!E74","v":4000},null,null,333.33333333333331,333.33333333333331,333.33333333333331,333.33333333333331,333.33333333333331,333.33333333333331,333.33333333333331,333.33333333333331,333.33333333333331,333.33333333333331,333.33333333333331,333.33333333333331,4000.0000000000005,0,null,null,null,null,null,null,null,null,null,null,null,null,null,null,null,null,null,null,null,null,null,null,null,null,null,null,null,null,null,null,null,null,null,null,null,null,null,null,null,null,null,null,null,null,null,null,null,null,null,null,null,null,null,null,null,null,null,null,null,null,null,null,null,null,null,null,null,null,null,null,null,null,null,null,null,null,null,null,null,null,null,null,null,null,null,null,null,null,null,null,null,null,null,null,null,null,null,null,null,null,null,null,null,null,null,3640,"Servicios de revelado de fotografías"]
[null,null,null,3750,"Viáticos en el país",{"$f":"+Hoja1!E75","v":1400},null,null,116.66666666666667,116.66666666666667,116.66666666666667,116.66666666666667,116.66666666666667,116.66666666666667,116.66666666666667,116.66666666666667,116.66666666666667,116.66666666666667,116.66666666666667,116.66666666666667,1400.0000000000002,0,null,null,null,null,null,null,null,null,null,null,null,null,null,null,null,null,null,null,null,null,null,null,null,null,null,null,null,null,null,null,null,null,null,null,null,null,null,null,null,null,null,null,null,null,null,null,null,null,null,null,null,null,null,null,null,null,null,null,null,null,null,null,null,null,null,null,null,null,null,null,null,null,null,null,null,null,null,null,null,null,null,null,null,null,null,null,null,null,null,null,null,null,null,null,null,null,null,null,null,null,null,null,null,null,null,3650,"Servicios de la industria fílmica, del sonido y del video"]
[null,null,null,3820,"Viáticos en el extranjero",{"$f":"+Hoja1!E76","v":24000},null,null,2000,2000,2000,2000,2000,2000,2000,2000,2000,2000,2000,2000,24000,0,null,null,null,null,null,null,null,null,null,null,null,null,null,null,null,null,null,null,null,null,null,null,null,null,null,null,null,null,null,null,null,null,null,null,null,null,null,null,null,null,null,null,null,null,null,null,null,null,null,null,null,null,null,null,null,null,null,null,null,null,null,null,null,null,null,null,null,null,null,null,null,null,null,null,null,null,null,null,null,null,null,null,null,null,null,null,null,null,null,null,null,null,null,null,null,null,null,null,null,null,null,null,null,null,null,3660,"Servicio de creación y difusión de contenido exclusivamente a través de Internet"]
[null,null,null,3851,"Viáticos en el extranjero",{"$f":"+Hoja1!E77","v":2000},null,null,166.66666666666666,166.66666666666666,166.66666666666666,166.66666666666666,166.66666666666666,166.66666666666666,166.66666666666666,166.66666666666666,166.66666666666666,166.66666666666666,166.66666666666666,166.66666666666666,2000.0000000000002,0,null,null,null,null,null,null,null,null,null,null,null,null,null,null,null,null,null,null,null,null,null,null,null,null,null,null,null,null,null,null,null,null,null,null,null,null,null,null,null,null,null,null,null,null,null,null,null,null,null,null,null,null,null,null,null,null,null,null,null,null,null,null,null,null,null,null,null,null,null,null,null,null,null,null,null,null,null,null,null,null,null,null,null,null,null,null,null,null,null,null,null,null,null,null,null,null,null,null,null,null,null,null,null,null,null,3690,"Otros servicios de información"]
[null,null,null,3852,"Viáticos en el extranjero",{"$f":"+Hoja1!E78","v":24000},null,null,2000,2000,2000,2000,2000,2000,2000,2000,2000,2000,{"$f":"$F84/12","v":2000},2000,{"$f":"SUM(I84:T84)","v":24000},0,null,null,null,null,null,null,null,null,null,null,null,null,null,null,null,null,null,null,null,null,null,null,null,null,null,null,null,null,null,null,null,null,null,null,null,null,null,null,null,null,null,null,null,null,null,null,null,null,null,null,null,null,null,null,null,null,null,null,null,null,null,null,null,null,null,null,null,null,null,null,null,null,null,null,null,null,null,null,null,null,null,null,null,null,null,null,null,null,null,null,null,null,null,null,null,null,null,null,null,null,null,null,null,null,null,3710,"Pasajes aéreos"]
[null,null,null,null," ",{"$f":"+Hoja1!E79","v":0},null,null,0,0,0,0,0,0,0,0,0,0,0,0,{"$f":"SUM(I85:T85)","v":0},0,null,null,null,null,null,null,null,null,null,null,null,null,null,null,null,null,null,null,null,null,null,null,null,null,null,null,null,null,null,null,null,null,null,null,null,null,null,null,null,null,null,null,null,null,null,null,null,null,null,null,null,null,null,null,null,null,null,null,null,null,null,null,null,null,null,null,null,null,null,null,null,null,null,null,null,null,null,null,null,null,null,null,null,null,null,null,null,null,null,null,null,null,null,null,null,null,null,null,null,null,null,null,null,null,null,3720,"Pasajes terrestres"]
[null,null,null,null," ",{"$f":"+Hoja1!E80","v":0},null,null,0,0,0,0,0,0,0,0,0,0,0,0,0,0,null,null,null,null,null,null,null,null,null,null,null,null,null,null,null,null,null,null,null,null,null,null,null,null,null,null,null,null,null,null,null,null,null,null,null,null,null,null,null,null,null,null,null,null,null,null,null,null,null,null,null,null,null,null,null,null,null,null,null,null,null,null,null,null,null,null,null,null,null,null,null,null,null,null,null,null,null,null,null,null,null,null,null,null,null,null,null,null,null,null,null,null,null,null,null,null,null,null,null,null,null,null,null,null,null,3730,"Pasajes marítimos, lacustres y fluviales"]
[null,null,null,null," ",{"$f":"+Hoja1!E81","v":0},null,null,0,0,0,0,0,0,0,0,0,0,0,0,0,0,null,null,null,null,null,null,null,null,null,null,null,null,null,null,null,null,null,null,null,null,null,null,null,null,null,null,null,null,null,null,null,null,null,null,null,null,null,null,null,null,null,null,null,null,null,null,null,null,null,null,null,null,null,null,null,null,null,null,null,null,null,null,null,null,null,null,null,null,null,null,null,null,null,null,null,null,null,null,null,null,null,null,null,null,null,null,null,null,null,null,null,null,null,null,null,null,null,null,null,null,null,null,null,null,null,3740,"Autotransporte"]
[null,null,null,null," ",{"$f":"+Hoja1!E82","v":0},null,null,0,0,0,0,0,0,0,0,0,0,0,0,0,0,null,null,null,null,null,null,null,null,null,null,null,null,null,null,null,null,null,null,null,null,null,null,null,null,null,null,null,null,null,null,null,null,null,null,null,null,null,null,null,null,null,null,null,null,null,null,null,null,null,null,null,null,null,null,null,null,null,null,null,null,null,null,null,null,null,null,null,null,null,null,null,null,null,null,null,null,null,null,null,null,null,null,null,null,null,null,null,null,null,null,null,null,null,null,null,null,null,null,null,null,null,null,null,null,null,3750,"Viáticos en el país"]
[null,null,null,null," ",{"$f":"+Hoja1!E83","v":0},null,null,0,0,0,0,0,0,0,0,0,0,0,0,0,0,null,null,null,null,null,null,null,null,null,null,null,null,null,null,null,null,null,null,null,null,null,null,null,null,null,null,null,null,null,null,null,null,null,null,null,null,null,null,null,null,null,null,null,null,null,null,null,null,null,null,null,null,null,null,null,null,null,null,null,null,null,null,null,null,null,null,null,null,null,null,null,null,null,null,null,null,null,null,null,null,null,null,null,null,null,null,null,null,null,null,null,null,null,null,null,null,null,null,null,null,null,null,null,null,null,3760,"Viáticos en el extranjero"]
[null,null,null,null," ",null,null,null,null,null,null,null,null,null,null,null,null,null,null,null,{"$f":"SUM(I90:T90)","v":0},0,null,null,null,null,null,null,null,null,null,null,null,null,null,null,null,null,null,null,null,null,null,null,null,null,null,null,null,null,null,null,null,null,null,null,null,null,null,null,null,null,null,null,null,null,null,null,null,null,null,null,null,null,null,null,null,null,null,null,null,null,null,null,null,null,null,null,null,null,null,null,null,null,null,null,null,null,null,null,null,null,null,null,null,null,null,null,null,null,null,null,null,null,null,null,null,null,null,null,null,null,null,null,null,null,null,4170,"Transferencias internas otorgadas a fideicomisos públicos empresariales y no financieros"]
[null,null,null,null," ",null,null,null,null,null,null,null,null,null,null,null,null,null,null,null,0,0,null,null,null,null,null,null,null,null,null,null,null,null,null,null,null,null,null,null,null,null,null,null,null,null,null,null,null,null,null,null,null,null,null,null,null,null,null,null,null,null,null,null,null,null,null,null,null,null,null,null,null,null,null,null,null,null,null,null,null,null,null,null,null,null,null,null,null,null,null,null,null,null,null,null,null,null,null,null,null,null,null,null,null,null,null,null,null,null,null,null,null,null,null,null,null,null,null,null,null,null,null,null,null,null,null,4180,"Transferencias internas otorgadas a instituciones paraestatales públicas financieras"]
[null,null,null,null," ",null,null,null,null,null,null,null,null,null,null,null,null,null,null,null,0,0,null,null,null,null,null,null,null,null,null,null,null,null,null,null,null,null,null,null,null,null,null,null,null,null,null,null,null,null,null,null,null,null,null,null,null,null,null,null,null,null,null,null,null,null,null,null,null,null,null,null,null,null,null,null,null,null,null,null,null,null,null,null,null,null,null,null,null,null,null,null,null,null,null,null,null,null,null,null,null,null,null,null,null,null,null,null,null,null,null,null,null,null,null,null,null,null,null,null,null,null,null,null,null,null,null,4190,"Transferencias internas otorgadas a fideicomisos públicos financieros"]
[null,"COMPONENTE 4","Gasto de recursos de manera responsable aplicados",{"$f":"SUM(F96:F124)","v":1444625},null,null,null,{"$f":"SUM(G96)","v":1444625},null,null,null,null,null,null,null,null,null,null,null,null,{"$f":"SUM(U64:U92)","v":2889250},{"$f":"G64-U93","v":0},null,null,null,null,null,null,null,null,null,null,null,null,null,null,null,null,null,null,null,null,null,null,null,null,null,null,null,null,null,null,null,null,null,null,null,null,null,null,null,null,null,null,null,null,null,null,null,null,null,null,null,null,null,null,null,null,null,null,null,null,null,null,null,null,null,null,null,null,null,null,null,null,null,null,null,null,null,null,null,null,null,null,null,null,null,null,null,null,null,null,null,null,null,null,null,null,null,null,null,null,null,null,null,null,null,4210,"Transferencias otorgadas a entidades paraestatales no empresariales y no financieras"]
[null,null,null,null,null,null,null,null,null,null,null,null,null,null,null,null,null,null,null,null,null,null,null,null,null,null,null,null,null,null,null,null,null,null,null,null,null,null,null,null,null,null,null,null,null,null,null,null,null,null,null,null,null,null,null,null,null,null,null,null,null,null,null,null,null,null,null,null,null,null,null,null,null,null,null,null,null,null,null,null,null,null,null,null,null,null,null,null,null,null,null,null,null,null,null,null,null,null,null,null,null,null,null,null,null,null,null,null,null,null,null,null,null,null,null,null,null,null,null,null,null,null,null,null,null,null,null,4220,"Transferencias otorgadas para entidades paraestatales empresariales y no financieras"]
[null,null,null,null,null,null,null,null,null,null,null,null,null,null,null,null,null,null,null,null,null,null,null,null,null,null,null,null,null,null,null,null,null,null,null,null,null,null,null,null,null,null,null,null,null,null,null,null,null,null,null,null,null,null,null,null,null,null,null,null,null,null,null,null,null,null,null,null,null,null,null,null,null,null,null,null,null,null,null,null,null,null,null,null,null,null,null,null,null,null,null,null,null,null,null,null,null,null,null,null,null,null,null,null,null,null,null,null,null,null,null,null,null,null,null,null,null,null,null,null,null,null,null,null,null,null,null,4230,"Transferencias otorgadas para instituciones paraestatales públicas financieras"]
[null,"UR","31111M120070100 -  Secretaría de Seguridad Pública",2110,{"$f":"IF(D96>0,VLOOKUP(D96,$DX$1:$DY$227,2),\" \")","v":"Materiales, útiles y equipos menores de oficina"},{"$f":"+Hoja1!E85","v":7000},{"$f":"SUM(F96:F124)","v":1444625},null,{"$f":"$F96/12","v":583.33333333333337},583.33333333333337,583.33333333333337,583.33333333333337,583.33333333333337,583.33333333333337,583.33333333333337,583.33333333333337,583.33333333333337,583.33333333333337,583.33333333333337,583.33333333333337,{"$f":"SUM(I96:T96)","v":6999.9999999999991},{"$f":"F96-U96","v":0},null,null,null,null,null,null,null,null,null,null,null,null,null,null,null,null,null,null,null,null,null,null,null,null,null,null,null,null,null,null,null,null,null,null,null,null,null,null,null,null,null,null,null,null,null,null,null,null,null,null,null,null,null,null,null,null,null,null,null,null,null,null,null,null,null,null,null,null,null,null,null,null,null,null,null,null,null,null,null,null,null,null,null,null,null,null,null,null,null,null,null,null,null,null,null,null,null,null,null,null,null,null,null,null,null,4240,"Transferencias otorgadas a entidades federativas y municipios"]
[null,null,null,2120,"Materiales y útiles de impresión y reproducción",{"$f":"+Hoja1!E86","v":7500},null,null,625,625,625,625,625,625,625,625,625,625,625,625,7500,{"$f":"F97-U97","v":0},null,null,null,null,null,null,null,null,null,null,null,null,null,null,null,null,null,null,null,null,null,null,null,null,null,null,null,null,null,null,null,null,null,null,null,null,null,null,null,null,null,null,null,null,null,null,null,null,null,null,null,null,null,null,null,null,null,null,null,null,null,null,null,null,null,null,null,null,null,null,null,null,null,null,null,null,null,null,null,null,null,null,null,null,null,null,null,null,null,null,null,null,null,null,null,null,null,null,null,null,null,null,null,null,null,4250,"Transferencias a fideicomisos de entidades federativas y municipios"]
[null,null,null,2150,"Materiales y útiles de impresión y reproducción",{"$f":"+Hoja1!E87","v":5000},null,null,416.66666666666669,416.66666666666669,416.66666666666669,416.66666666666669,416.66666666666669,416.66666666666669,416.66666666666669,416.66666666666669,416.66666666666669,416.66666666666669,416.66666666666669,416.66666666666669,5000,0,null,null,null,null,null,null,null,null,null,null,null,null,null,null,null,null,null,null,null,null,null,null,null,null,null,null,null,null,null,null,null,null,null,null,null,null,null,null,null,null,null,null,null,null,null,null,null,null,null,null,null,null,null,null,null,null,null,null,null,null,null,null,null,null,null,null,null,null,null,null,null,null,null,null,null,null,null,null,null,null,null,null,null,null,null,null,null,null,null,null,null,null,null,null,null,null,null,null,null,null,null,null,null,null,null,4310,"Subsidios a la producción"]
[null,null,null,2611,"Combustibles, lubricantes y aditivos",{"$f":"+Hoja1!E88","v":780000},null,null,65000,65000,65000,65000,65000,65000,65000,65000,65000,65000,65000,65000,780000,0,null,null,null,null,null,null,null,null,null,null,null,null,null,null,null,null,null,null,null,null,null,null,null,null,null,null,null,null,null,null,null,null,null,null,null,null,null,null,null,null,null,null,null,null,null,null,null,null,null,null,null,null,null,null,null,null,null,null,null,null,null,null,null,null,null,null,null,null,null,null,null,null,null,null,null,null,null,null,null,null,null,null,null,null,null,null,null,null,null,null,null,null,null,null,null,null,null,null,null,null,null,null,null,null,null,4320,"Subsidios a la distribución"]
[null,null,null,2710,"Vestuario y uniformes",{"$f":"+Hoja1!E89","v":105000},null,null,8750,8750,8750,8750,8750,8750,8750,8750,8750,8750,8750,8750,105000,0,null,null,null,null,null,null,null,null,null,null,null,null,null,null,null,null,null,null,null,null,null,null,null,null,null,null,null,null,null,null,null,null,null,null,null,null,null,null,null,null,null,null,null,null,null,null,null,null,null,null,null,null,null,null,null,null,null,null,null,null,null,null,null,null,null,null,null,null,null,null,null,null,null,null,null,null,null,null,null,null,null,null,null,null,null,null,null,null,null,null,null,null,null,null,null,null,null,null,null,null,null,null,null,null,null,4330,"Subsidios a la inversión"]
[null,null,null,2930,"Refacciones y accesorios menores de mobiliario y equipo de administración, educacional y recreativo",{"$f":"+Hoja1!E90","v":2000},null,null,166.66666666666666,166.66666666666666,166.66666666666666,166.66666666666666,166.66666666666666,166.66666666666666,166.66666666666666,166.66666666666666,166.66666666666666,166.66666666666666,166.66666666666666,166.66666666666666,2000.0000000000002,0,null,null,null,null,null,null,null,null,null,null,null,null,null,null,null,null,null,null,null,null,null,null,null,null,null,null,null,null,null,null,null,null,null,null,null,null,null,null,null,null,null,null,null,null,null,null,null,null,null,null,null,null,null,null,null,null,null,null,null,null,null,null,null,null,null,null,null,null,null,null,null,null,null,null,null,null,null,null,null,null,null,null,null,null,null,null,null,null,null,null,null,null,null,null,null,null,null,null,null,null,null,null,null,null,null,4340,"Subsidios a la prestación de servicios públicos"]
[null,null,null,2940,"Refacciones y accesorios menores de equipo de cómputo y tecnologías de la información",{"$f":"+Hoja1!E91","v":500},null,null,41.666666666666664,41.666666666666664,41.666666666666664,41.666666666666664,41.666666666666664,41.666666666666664,41.666666666666664,41.666666666666664,41.666666666666664,41.666666666666664,41.666666666666664,41.666666666666664,500.00000000000006,0,null,null,null,null,null,null,null,null,null,null,null,null,null,null,null,null,null,null,null,null,null,null,null,null,null,null,null,null,null,null,null,null,null,null,null,null,null,null,null,null,null,null,null,null,null,null,null,null,null,null,null,null,null,null,null,null,null,null,null,null,null,null,null,null,null,null,null,null,null,null,null,null,null,null,null,null,null,null,null,null,null,null,null,null,null,null,null,null,null,null,null,null,null,null,null,null,null,null,null,null,null,null,null,null,null,4350,"Subsidios para cubrir diferenciales de tasas de interés"]
[null,null,null,2960,"Refacciones y accesorios menores de equipo de transporte",{"$f":"+Hoja1!E92","v":225000},null,null,18750,18750,18750,18750,18750,18750,18750,18750,18750,18750,18750,18750,225000,0,null,null,null,null,null,null,null,null,null,null,null,null,null,null,null,null,null,null,null,null,null,null,null,null,null,null,null,null,null,null,null,null,null,null,null,null,null,null,null,null,null,null,null,null,null,null,null,null,null,null,null,null,null,null,null,null,null,null,null,null,null,null,null,null,null,null,null,null,null,null,null,null,null,null,null,null,null,null,null,null,null,null,null,null,null,null,null,null,null,null,null,null,null,null,null,null,null,null,null,null,null,null,null,null,null,4360,"Subsidios a la vivienda"]
[null,null,null,3110,"Refacciones y accesorios menores otros bienes muebles",{"$f":"+Hoja1!E93","v":34800},null,null,2900,2900,2900,2900,2900,2900,2900,2900,2900,2900,2900,2900,34800,0,null,null,null,null,null,null,null,null,null,null,null,null,null,null,null,null,null,null,null,null,null,null,null,null,null,null,null,null,null,null,null,null,null,null,null,null,null,null,null,null,null,null,null,null,null,null,null,null,null,null,null,null,null,null,null,null,null,null,null,null,null,null,null,null,null,null,null,null,null,null,null,null,null,null,null,null,null,null,null,null,null,null,null,null,null,null,null,null,null,null,null,null,null,null,null,null,null,null,null,null,null,null,null,null,null,4370,"Subvenciones al consumo"]
[null,null,null,3140,"Refacciones y accesorios menores otros bienes muebles",{"$f":"+Hoja1!E94","v":6825},null,null,568.75,568.75,568.75,568.75,568.75,568.75,568.75,568.75,568.75,568.75,568.75,568.75,6825,0,null,null,null,null,null,null,null,null,null,null,null,null,null,null,null,null,null,null,null,null,null,null,null,null,null,null,null,null,null,null,null,null,null,null,null,null,null,null,null,null,null,null,null,null,null,null,null,null,null,null,null,null,null,null,null,null,null,null,null,null,null,null,null,null,null,null,null,null,null,null,null,null,null,null,null,null,null,null,null,null,null,null,null,null,null,null,null,null,null,null,null,null,null,null,null,null,null,null,null,null,null,null,null,null,null,4410,"Ayudas sociales a personas"]
[null,null,null,3230,"Refacciones y accesorios menores otros bienes muebles",{"$f":"+Hoja1!E95","v":3500},null,null,291.66666666666669,291.66666666666669,291.66666666666669,291.66666666666669,291.66666666666669,291.66666666666669,291.66666666666669,291.66666666666669,291.66666666666669,291.66666666666669,291.66666666666669,291.66666666666669,3499.9999999999995,0,null,null,null,null,null,null,null,null,null,null,null,null,null,null,null,null,null,null,null,null,null,null,null,null,null,null,null,null,null,null,null,null,null,null,null,null,null,null,null,null,null,null,null,null,null,null,null,null,null,null,null,null,null,null,null,null,null,null,null,null,null,null,null,null,null,null,null,null,null,null,null,null,null,null,null,null,null,null,null,null,null,null,null,null,null,null,null,null,null,null,null,null,null,null,null,null,null,null,null,null,null,null,null,null,null,4420,"Becas y otras ayudas para programas de capacitación"]
[null,null,null,3350,"Refacciones y accesorios menores otros bienes muebles",{"$f":"+Hoja1!E96","v":40000},null,null,3333.3333333333335,3333.3333333333335,3333.3333333333335,3333.3333333333335,3333.3333333333335,3333.3333333333335,3333.3333333333335,3333.3333333333335,3333.3333333333335,3333.3333333333335,3333.3333333333335,3333.3333333333335,40000,0,null,null,null,null,null,null,null,null,null,null,null,null,null,null,null,null,null,null,null,null,null,null,null,null,null,null,null,null,null,null,null,null,null,null,null,null,null,null,null,null,null,null,null,null,null,null,null,null,null,null,null,null,null,null,null,null,null,null,null,null,null,null,null,null,null,null,null,null,null,null,null,null,null,null,null,null,null,null,null,null,null,null,null,null,null,null,null,null,null,null,null,null,null,null,null,null,null,null,null,null,null,null,null,null,null,4430,"Ayudas sociales a instituciones de enseñanza"]
[null,null,null,3450,"Seguro de bienes patrimoniales",{"$f":"+Hoja1!E97","v":65300},null,null,5441.666666666667,5441.666666666667,5441.666666666667,5441.666666666667,5441.666666666667,5441.666666666667,5441.666666666667,5441.666666666667,5441.666666666667,5441.666666666667,5441.666666666667,5441.666666666667,65299.999999999993,0,null,null,null,null,null,null,null,null,null,null,null,null,null,null,null,null,null,null,null,null,null,null,null,null,null,null,null,null,null,null,null,null,null,null,null,null,null,null,null,null,null,null,null,null,null,null,null,null,null,null,null,null,null,null,null,null,null,null,null,null,null,null,null,null,null,null,null,null,null,null,null,null,null,null,null,null,null,null,null,null,null,null,null,null,null,null,null,null,null,null,null,null,null,null,null,null,null,null,null,null,null,null,null,null,null,4440,"Ayudas sociales a actividades científicas o académicas"]
[null,null,null,3510,"Conservación y mantenimiento menor de inmuebles",{"$f":"+Hoja1!E98","v":3000},null,null,250,250,250,250,250,250,250,250,250,250,250,250,3000,0,null,null,null,null,null,null,null,null,null,null,null,null,null,null,null,null,null,null,null,null,null,null,null,null,null,null,null,null,null,null,null,null,null,null,null,null,null,null,null,null,null,null,null,null,null,null,null,null,null,null,null,null,null,null,null,null,null,null,null,null,null,null,null,null,null,null,null,null,null,null,null,null,null,null,null,null,null,null,null,null,null,null,null,null,null,null,null,null,null,null,null,null,null,null,null,null,null,null,null,null,null,null,null,null,null,4450,"Ayudas sociales a instituciones sin fines de lucro"]
[null,null,null,3530,"Instalación, reparación y mantenimiento de equipo de cómputo y tecnología de la información",{"$f":"+Hoja1!E99","v":1500},null,null,125,125,125,125,125,125,125,125,125,125,125,125,1500,0,null,null,null,null,null,null,null,null,null,null,null,null,null,null,null,null,null,null,null,null,null,null,null,null,null,null,null,null,null,null,null,null,null,null,null,null,null,null,null,null,null,null,null,null,null,null,null,null,null,null,null,null,null,null,null,null,null,null,null,null,null,null,null,null,null,null,null,null,null,null,null,null,null,null,null,null,null,null,null,null,null,null,null,null,null,null,null,null,null,null,null,null,null,null,null,null,null,null,null,null,null,null,null,null,null,4460,"Ayudas sociales a cooperativas"]
[null,null,null,3550,"Reparación y mantenimiento de equipo de transporte",{"$f":"+Hoja1!E100","v":130000},null,null,10833.333333333334,10833.333333333334,10833.333333333334,10833.333333333334,10833.333333333334,10833.333333333334,10833.333333333334,10833.333333333334,10833.333333333334,10833.333333333334,10833.333333333334,10833.333333333334,129999.99999999999,0,null,null,null,null,null,null,null,null,null,null,null,null,null,null,null,null,null,null,null,null,null,null,null,null,null,null,null,null,null,null,null,null,null,null,null,null,null,null,null,null,null,null,null,null,null,null,null,null,null,null,null,null,null,null,null,null,null,null,null,null,null,null,null,null,null,null,null,null,null,null,null,null,null,null,null,null,null,null,null,null,null,null,null,null,null,null,null,null,null,null,null,null,null,null,null,null,null,null,null,null,null,null,null,null,null,4470,"Ayudas sociales a entidades de interés público"]
[null,null,null,3560,"Reparación y mantenimiento de equipo de defensa y seguridad",{"$f":"+Hoja1!E101","v":2000},null,null,166.66666666666666,166.66666666666666,166.66666666666666,166.66666666666666,166.66666666666666,166.66666666666666,166.66666666666666,166.66666666666666,166.66666666666666,166.66666666666666,166.66666666666666,166.66666666666666,2000.0000000000002,0,null,null,null,null,null,null,null,null,null,null,null,null,null,null,null,null,null,null,null,null,null,null,null,null,null,null,null,null,null,null,null,null,null,null,null,null,null,null,null,null,null,null,null,null,null,null,null,null,null,null,null,null,null,null,null,null,null,null,null,null,null,null,null,null,null,null,null,null,null,null,null,null,null,null,null,null,null,null,null,null,null,null,null,null,null,null,null,null,null,null,null,null,null,null,null,null,null,null,null,null,null,null,null,null,null,4480,"Ayudas por desastres naturales y otros siniestros"]
[null,null,null,3750,"Viáticos en el país",{"$f":"+Hoja1!E102","v":700},null,null,58.333333333333336,58.333333333333336,58.333333333333336,58.333333333333336,58.333333333333336,58.333333333333336,58.333333333333336,58.333333333333336,58.333333333333336,58.333333333333336,58.333333333333336,58.333333333333336,700.00000000000011,0,null,null,null,null,null,null,null,null,null,null,null,null,null,null,null,null,null,null,null,null,null,null,null,null,null,null,null,null,null,null,null,null,null,null,null,null,null,null,null,null,null,null,null,null,null,null,null,null,null,null,null,null,null,null,null,null,null,null,null,null,null,null,null,null,null,null,null,null,null,null,null,null,null,null,null,null,null,null,null,null,null,null,null,null,null,null,null,null,null,null,null,null,null,null,null,null,null,null,null,null,null,null,null,null,null,4510,"Pensiones"]
[null,null,null,3820,"Viáticos en el extranjero",{"$f":"+Hoja1!E103","v":12000},null,null,1000,1000,1000,1000,1000,1000,1000,1000,1000,1000,1000,1000,12000,0,null,null,null,null,null,null,null,null,null,null,null,null,null,null,null,null,null,null,null,null,null,null,null,null,null,null,null,null,null,null,null,null,null,null,null,null,null,null,null,null,null,null,null,null,null,null,null,null,null,null,null,null,null,null,null,null,null,null,null,null,null,null,null,null,null,null,null,null,null,null,null,null,null,null,null,null,null,null,null,null,null,null,null,null,null,null,null,null,null,null,null,null,null,null,null,null,null,null,null,null,null,null,null,null,null,4520,"Jubilaciones"]
[null,null,null,3851,"Viáticos en el extranjero",{"$f":"+Hoja1!E104","v":1000},null,null,83.333333333333329,83.333333333333329,83.333333333333329,83.333333333333329,83.333333333333329,83.333333333333329,83.333333333333329,83.333333333333329,83.333333333333329,83.333333333333329,83.333333333333329,83.333333333333329,1000.0000000000001,0,null,null,null,null,null,null,null,null,null,null,null,null,null,null,null,null,null,null,null,null,null,null,null,null,null,null,null,null,null,null,null,null,null,null,null,null,null,null,null,null,null,null,null,null,null,null,null,null,null,null,null,null,null,null,null,null,null,null,null,null,null,null,null,null,null,null,null,null,null,null,null,null,null,null,null,null,null,null,null,null,null,null,null,null,null,null,null,null,null,null,null,null,null,null,null,null,null,null,null,null,null,null,null,null,null,4610,"Transferencias a fideicomisos del Poder Ejecutivo"]
[null,null,null,3852,"Viáticos en el extranjero",{"$f":"+Hoja1!E105","v":12000},null,null,1000,1000,1000,1000,1000,1000,1000,1000,1000,1000,{"$f":"$F116/12","v":1000},1000,{"$f":"SUM(I116:T116)","v":12000},0,null,null,null,null,null,null,null,null,null,null,null,null,null,null,null,null,null,null,null,null,null,null,null,null,null,null,null,null,null,null,null,null,null,null,null,null,null,null,null,null,null,null,null,null,null,null,null,null,null,null,null,null,null,null,null,null,null,null,null,null,null,null,null,null,null,null,null,null,null,null,null,null,null,null,null,null,null,null,null,null,null,null,null,null,null,null,null,null,null,null,null,null,null,null,null,null,null,null,null,null,null,null,null,null,null,4620,"Transferencias a fideicomisos del Poder Legislativo"]
[null,null,null,null," ",{"$f":"+Hoja1!E106","v":0},null,null,0,0,0,0,0,0,0,0,0,0,0,0,{"$f":"SUM(I117:T117)","v":0},0,null,null,null,null,null,null,null,null,null,null,null,null,null,null,null,null,null,null,null,null,null,null,null,null,null,null,null,null,null,null,null,null,null,null,null,null,null,null,null,null,null,null,null,null,null,null,null,null,null,null,null,null,null,null,null,null,null,null,null,null,null,null,null,null,null,null,null,null,null,null,null,null,null,null,null,null,null,null,null,null,null,null,null,null,null,null,null,null,null,null,null,null,null,null,null,null,null,null,null,null,null,null,null,null,null,4630,"Transferencias a fideicomisos del Poder Judicial"]
[null,null,null,null," ",{"$f":"+Hoja1!E107","v":0},null,null,0,0,0,0,0,0,0,0,0,0,0,0,0,0,null,null,null,null,null,null,null,null,null,null,null,null,null,null,null,null,null,null,null,null,null,null,null,null,null,null,null,null,null,null,null,null,null,null,null,null,null,null,null,null,null,null,null,null,null,null,null,null,null,null,null,null,null,null,null,null,null,null,null,null,null,null,null,null,null,null,null,null,null,null,null,null,null,null,null,null,null,null,null,null,null,null,null,null,null,null,null,null,null,null,null,null,null,null,null,null,null,null,null,null,null,null,null,null,null,4640,"Transferencias a fideicomisos públicos de entidades paraestatales no empresariales y no financieras"]
[null,null,null,null," ",{"$f":"+Hoja1!E108","v":0},null,null,0,0,0,0,0,0,0,0,0,0,0,0,0,0,null,null,null,null,null,null,null,null,null,null,null,null,null,null,null,null,null,null,null,null,null,null,null,null,null,null,null,null,null,null,null,null,null,null,null,null,null,null,null,null,null,null,null,null,null,null,null,null,null,null,null,null,null,null,null,null,null,null,null,null,null,null,null,null,null,null,null,null,null,null,null,null,null,null,null,null,null,null,null,null,null,null,null,null,null,null,null,null,null,null,null,null,null,null,null,null,null,null,null,null,null,null,null,null,null,4650,"Transferencias a fideicomisos públicos de entidades paraestatales empresariales y no financieras"]
[null,null,null,null," ",{"$f":"+Hoja1!E109","v":0},null,null,0,0,0,0,0,0,0,0,0,0,0,0,0,0,null,null,null,null,null,null,null,null,null,null,null,null,null,null,null,null,null,null,null,null,null,null,null,null,null,null,null,null,null,null,null,null,null,null,null,null,null,null,null,null,null,null,null,null,null,null,null,null,null,null,null,null,null,null,null,null,null,null,null,null,null,null,null,null,null,null,null,null,null,null,null,null,null,null,null,null,null,null,null,null,null,null,null,null,null,null,null,null,null,null,null,null,null,null,null,null,null,null,null,null,null,null,null,null,null,4660,"Transferencias a fideicomisos de instituciones públicas financieras"]
[null,null,null,null," ",{"$f":"+Hoja1!E110","v":0},null,null,0,0,0,0,0,0,0,0,0,0,0,0,0,0,null,null,null,null,null,null,null,null,null,null,null,null,null,null,null,null,null,null,null,null,null,null,null,null,null,null,null,null,null,null,null,null,null,null,null,null,null,null,null,null,null,null,null,null,null,null,null,null,null,null,null,null,null,null,null,null,null,null,null,null,null,null,null,null,null,null,null,null,null,null,null,null,null,null,null,null,null,null,null,null,null,null,null,null,null,null,null,null,null,null,null,null,null,null,null,null,null,null,null,null,null,null,null,null,null,4910,"Transferencias para gobiernos extranjeros"]
[null,null,null,null," ",null,null,null,null,null,null,null,null,null,null,null,null,null,null,null,{"$f":"SUM(I122:T122)","v":0},0,null,null,null,null,null,null,null,null,null,null,null,null,null,null,null,null,null,null,null,null,null,null,null,null,null,null,null,null,null,null,null,null,null,null,null,null,null,null,null,null,null,null,null,null,null,null,null,null,null,null,null,null,null,null,null,null,null,null,null,null,null,null,null,null,null,null,null,null,null,null,null,null,null,null,null,null,null,null,null,null,null,null,null,null,null,null,null,null,null,null,null,null,null,null,null,null,null,null,null,null,null,null,null,null,null,5610,"Maquinaria y equipo agropecuario"]
[null,null,null,null," ",null,null,null,null,null,null,null,null,null,null,null,null,null,null,null,0,0,null,null,null,null,null,null,null,null,null,null,null,null,null,null,null,null,null,null,null,null,null,null,null,null,null,null,null,null,null,null,null,null,null,null,null,null,null,null,null,null,null,null,null,null,null,null,null,null,null,null,null,null,null,null,null,null,null,null,null,null,null,null,null,null,null,null,null,null,null,null,null,null,null,null,null,null,null,null,null,null,null,null,null,null,null,null,null,null,null,null,null,null,null,null,null,null,null,null,null,null,null,null,null,null,null,5620,"Maquinaria y equipo industrial"]
[null,null,null,null," ",null,null,null,null,null,null,null,null,null,null,null,null,null,null,null,0,0,null,null,null,null,null,null,null,null,null,null,null,null,null,null,null,null,null,null,null,null,null,null,null,null,null,null,null,null,null,null,null,null,null,null,null,null,null,null,null,null,null,null,null,null,null,null,null,null,null,null,null,null,null,null,null,null,null,null,null,null,null,null,null,null,null,null,null,null,null,null,null,null,null,null,null,null,null,null,null,null,null,null,null,null,null,null,null,null,null,null,null,null,null,null,null,null,null,null,null,null,null,null,null,null,null,5630,"Maquinaria y equipo de construcción"]
[null,"COMPONENTE 5","Informe trimestral del estatus de la seguridad en el municipio presentado",{"$f":"SUM(F128:F156)","v":1444625},null,null,null,{"$f":"SUM(G128)","v":1444625},null,null,null,null,null,null,null,null,null,null,null,null,{"$f":"SUM(U96:U124)","v":1444625},{"$f":"G96-U125","v":0},null,null,null,null,null,null,null,null,null,null,null,null,null,null,null,null,null,null,null,null,null,null,null,null,null,null,null,null,null,null,null,null,null,null,null,null,null,null,null,null,null,null,null,null,null,null,null,null,null,null,null,null,null,null,null,null,null,null,null,null,null,null,null,null,null,null,null,null,null,null,null,null,null,null,null,null,null,null,null,null,null,null,null,null,null,null,null,null,null,null,null,null,null,null,null,null,null,null,null,null,null,null,null,null,null,5640,"Sistemas de aire acondicionado, calefacción y de refrigeración industrial y comercial"]
[null,null,null,null,null,null,null,null,null,null,null,null,null,null,null,null,null,null,null,null,null,null,null,null,null,null,null,null,null,null,null,null,null,null,null,null,null,null,null,null,null,null,null,null,null,null,null,null,null,null,null,null,null,null,null,null,null,null,null,null,null,null,null,null,null,null,null,null,null,null,null,null,null,null,null,null,null,null,null,null,null,null,null,null,null,null,null,null,null,null,null,null,null,null,null,null,null,null,null,null,null,null,null,null,null,null,null,null,null,null,null,null,null,null,null,null,null,null,null,null,null,null,null,null,null,null,null,5650,"Equipo de comunicación y telecomunicación"]
[null,null,null,null,null,null,null,null,null,null,null,null,null,null,null,null,null,null,null,null,null,null,null,null,null,null,null,null,null,null,null,null,null,null,null,null,null,null,null,null,null,null,null,null,null,null,null,null,null,null,null,null,null,null,null,null,null,null,null,null,null,null,null,null,null,null,null,null,null,null,null,null,null,null,null,null,null,null,null,null,null,null,null,null,null,null,null,null,null,null,null,null,null,null,null,null,null,null,null,null,null,null,null,null,null,null,null,null,null,null,null,null,null,null,null,null,null,null,null,null,null,null,null,null,null,null,null,5660,"Equipos de generación eléctrica, aparatos y accesorios eléctricos"]
[null,"UR","31111M120070100 -  Secretaría de Seguridad Pública",2110,{"$f":"IF(D128>0,VLOOKUP(D128,$DX$1:$DY$227,2),\" \")","v":"Materiales, útiles y equipos menores de oficina"},{"$f":"+Hoja1!E112","v":7000},{"$f":"SUM(F128:F156)","v":1444625},null,{"$f":"$F128/12","v":583.33333333333337},583.33333333333337,583.33333333333337,583.33333333333337,583.33333333333337,583.33333333333337,583.33333333333337,583.33333333333337,583.33333333333337,583.33333333333337,583.33333333333337,583.33333333333337,{"$f":"SUM(I128:T128)","v":6999.9999999999991},{"$f":"F128-U128","v":0},null,null,null,null,null,null,null,null,null,null,null,null,null,null,null,null,null,null,null,null,null,null,null,null,null,null,null,null,null,null,null,null,null,null,null,null,null,null,null,null,null,null,null,null,null,null,null,null,null,null,null,null,null,null,null,null,null,null,null,null,null,null,null,null,null,null,null,null,null,null,null,null,null,null,null,null,null,null,null,null,null,null,null,null,null,null,null,null,null,null,null,null,null,null,null,null,null,null,null,null,null,null,null,null,null,5670,"Herramientas y máquinas‐herramienta"]
[null,null,null,2120,"Materiales y útiles de impresión y reproducción",{"$f":"+Hoja1!E113","v":7500},null,null,625,625,625,625,625,625,625,625,625,625,625,625,7500,{"$f":"F129-U129","v":0},null,null,null,null,null,null,null,null,null,null,null,null,null,null,null,null,null,null,null,null,null,null,null,null,null,null,null,null,null,null,null,null,null,null,null,null,null,null,null,null,null,null,null,null,null,null,null,null,null,null,null,null,null,null,null,null,null,null,null,null,null,null,null,null,null,null,null,null,null,null,null,null,null,null,null,null,null,null,null,null,null,null,null,null,null,null,null,null,null,null,null,null,null,null,null,null,null,null,null,null,null,null,null,null,null,5690,"Otros equipos"]
[null,null,null,2150,"Materiales y útiles de impresión y reproducción",{"$f":"+Hoja1!E114","v":5000},null,null,416.66666666666669,416.66666666666669,416.66666666666669,416.66666666666669,416.66666666666669,416.66666666666669,416.66666666666669,416.66666666666669,416.66666666666669,416.66666666666669,416.66666666666669,416.66666666666669,5000,0,null,null,null,null,null,null,null,null,null,null,null,null,null,null,null,null,null,null,null,null,null,null,null,null,null,null,null,null,null,null,null,null,null,null,null,null,null,null,null,null,null,null,null,null,null,null,null,null,null,null,null,null,null,null,null,null,null,null,null,null,null,null,null,null,null,null,null,null,null,null,null,null,null,null,null,null,null,null,null,null,null,null,null,null,null,null,null,null,null,null,null,null,null,null,null,null,null,null,null,null,null,null,null,null,null,5710,"Bovinos"]
[null,null,null,2611,"Combustibles, lubricantes y aditivos",{"$f":"+Hoja1!E115","v":780000},null,null,65000,65000,65000,65000,65000,65000,65000,65000,65000,65000,65000,65000,780000,0,null,null,null,null,null,null,null,null,null,null,null,null,null,null,null,null,null,null,null,null,null,null,null,null,null,null,null,null,null,null,null,null,null,null,null,null,null,null,null,null,null,null,null,null,null,null,null,null,null,null,null,null,null,null,null,null,null,null,null,null,null,null,null,null,null,null,null,null,null,null,null,null,null,null,null,null,null,null,null,null,null,null,null,null,null,null,null,null,null,null,null,null,null,null,null,null,null,null,null,null,null,null,null,null,null,5720,"Porcinos"]
[null,null,null,2710,"Vestuario y uniformes",{"$f":"+Hoja1!E116","v":105000},null,null,8750,8750,8750,8750,8750,8750,8750,8750,8750,8750,8750,8750,105000,0,null,null,null,null,null,null,null,null,null,null,null,null,null,null,null,null,null,null,null,null,null,null,null,null,null,null,null,null,null,null,null,null,null,null,null,null,null,null,null,null,null,null,null,null,null,null,null,null,null,null,null,null,null,null,null,null,null,null,null,null,null,null,null,null,null,null,null,null,null,null,null,null,null,null,null,null,null,null,null,null,null,null,null,null,null,null,null,null,null,null,null,null,null,null,null,null,null,null,null,null,null,null,null,null,null,5730,"Aves"]
[null,null,null,2930,"Refacciones y accesorios menores de mobiliario y equipo de administración, educacional y recreativo",{"$f":"+Hoja1!E117","v":2000},null,null,166.66666666666666,166.66666666666666,166.66666666666666,166.66666666666666,166.66666666666666,166.66666666666666,166.66666666666666,166.66666666666666,166.66666666666666,166.66666666666666,166.66666666666666,166.66666666666666,2000.0000000000002,0,null,null,null,null,null,null,null,null,null,null,null,null,null,null,null,null,null,null,null,null,null,null,null,null,null,null,null,null,null,null,null,null,null,null,null,null,null,null,null,null,null,null,null,null,null,null,null,null,null,null,null,null,null,null,null,null,null,null,null,null,null,null,null,null,null,null,null,null,null,null,null,null,null,null,null,null,null,null,null,null,null,null,null,null,null,null,null,null,null,null,null,null,null,null,null,null,null,null,null,null,null,null,null,null,null,5740,"Ovinos y caprinos"]
[null,null,null,2940,"Refacciones y accesorios menores de equipo de cómputo y tecnologías de la información",{"$f":"+Hoja1!E118","v":500},null,null,41.666666666666664,41.666666666666664,41.666666666666664,41.666666666666664,41.666666666666664,41.666666666666664,41.666666666666664,41.666666666666664,41.666666666666664,41.666666666666664,41.666666666666664,41.666666666666664,500.00000000000006,0,null,null,null,null,null,null,null,null,null,null,null,null,null,null,null,null,null,null,null,null,null,null,null,null,null,null,null,null,null,null,null,null,null,null,null,null,null,null,null,null,null,null,null,null,null,null,null,null,null,null,null,null,null,null,null,null,null,null,null,null,null,null,null,null,null,null,null,null,null,null,null,null,null,null,null,null,null,null,null,null,null,null,null,null,null,null,null,null,null,null,null,null,null,null,null,null,null,null,null,null,null,null,null,null,null,5750,"Peces y acuicultura"]
[null,null,null,2960,"Refacciones y accesorios menores de equipo de transporte",{"$f":"+Hoja1!E119","v":225000},null,null,18750,18750,18750,18750,18750,18750,18750,18750,18750,18750,18750,18750,225000,0,null,null,null,null,null,null,null,null,null,null,null,null,null,null,null,null,null,null,null,null,null,null,null,null,null,null,null,null,null,null,null,null,null,null,null,null,null,null,null,null,null,null,null,null,null,null,null,null,null,null,null,null,null,null,null,null,null,null,null,null,null,null,null,null,null,null,null,null,null,null,null,null,null,null,null,null,null,null,null,null,null,null,null,null,null,null,null,null,null,null,null,null,null,null,null,null,null,null,null,null,null,null,null,null,null,5760,"Equinos"]
[null,null,null,3110,"Refacciones y accesorios menores otros bienes muebles",{"$f":"+Hoja1!E120","v":34800},null,null,2900,2900,2900,2900,2900,2900,2900,2900,2900,2900,2900,2900,34800,0,null,null,null,null,null,null,null,null,null,null,null,null,null,null,null,null,null,null,null,null,null,null,null,null,null,null,null,null,null,null,null,null,null,null,null,null,null,null,null,null,null,null,null,null,null,null,null,null,null,null,null,null,null,null,null,null,null,null,null,null,null,null,null,null,null,null,null,null,null,null,null,null,null,null,null,null,null,null,null,null,null,null,null,null,null,null,null,null,null,null,null,null,null,null,null,null,null,null,null,null,null,null,null,null,null,5770,"Especies menores y de zoológico"]
[null,null,null,3140,"Refacciones y accesorios menores otros bienes muebles",{"$f":"+Hoja1!E121","v":6825},null,null,568.75,568.75,568.75,568.75,568.75,568.75,568.75,568.75,568.75,568.75,568.75,568.75,6825,0,null,null,null,null,null,null,null,null,null,null,null,null,null,null,null,null,null,null,null,null,null,null,null,null,null,null,null,null,null,null,null,null,null,null,null,null,null,null,null,null,null,null,null,null,null,null,null,null,null,null,null,null,null,null,null,null,null,null,null,null,null,null,null,null,null,null,null,null,null,null,null,null,null,null,null,null,null,null,null,null,null,null,null,null,null,null,null,null,null,null,null,null,null,null,null,null,null,null,null,null,null,null,null,null,null,5780,"Árboles y plantas"]
[null,null,null,3230,"Refacciones y accesorios menores otros bienes muebles",{"$f":"+Hoja1!E122","v":3500},null,null,291.66666666666669,291.66666666666669,291.66666666666669,291.66666666666669,291.66666666666669,291.66666666666669,291.66666666666669,291.66666666666669,291.66666666666669,291.66666666666669,291.66666666666669,291.66666666666669,3499.9999999999995,0,null,null,null,null,null,null,null,null,null,null,null,null,null,null,null,null,null,null,null,null,null,null,null,null,null,null,null,null,null,null,null,null,null,null,null,null,null,null,null,null,null,null,null,null,null,null,null,null,null,null,null,null,null,null,null,null,null,null,null,null,null,null,null,null,null,null,null,null,null,null,null,null,null,null,null,null,null,null,null,null,null,null,null,null,null,null,null,null,null,null,null,null,null,null,null,null,null,null,null,null,null,null,null,null,null,5790,"Otros activos biológicos"]
[null,null,null,3350,"Refacciones y accesorios menores otros bienes muebles",{"$f":"+Hoja1!E123","v":40000},null,null,3333.3333333333335,3333.3333333333335,3333.3333333333335,3333.3333333333335,3333.3333333333335,3333.3333333333335,3333.3333333333335,3333.3333333333335,3333.3333333333335,3333.3333333333335,3333.3333333333335,3333.3333333333335,40000,0,null,null,null,null,null,null,null,null,null,null,null,null,null,null,null,null,null,null,null,null,null,null,null,null,null,null,null,null,null,null,null,null,null,null,null,null,null,null,null,null,null,null,null,null,null,null,null,null,null,null,null,null,null,null,null,null,null,null,null,null,null,null,null,null,null,null,null,null,null,null,null,null,null,null,null,null,null,null,null,null,null,null,null,null,null,null,null,null,null,null,null,null,null,null,null,null,null,null,null,null,null,null,null,null,null,5810,"Terrenos"]
[null,null,null,3450,"Seguro de bienes patrimoniales",{"$f":"+Hoja1!E124","v":65300},null,null,5441.666666666667,5441.666666666667,5441.666666666667,5441.666666666667,5441.666666666667,5441.666666666667,5441.666666666667,5441.666666666667,5441.666666666667,5441.666666666667,5441.666666666667,5441.666666666667,65299.999999999993,0,null,null,null,null,null,null,null,null,null,null,null,null,null,null,null,null,null,null,null,null,null,null,null,null,null,null,null,null,null,null,null,null,null,null,null,null,null,null,null,null,null,null,null,null,null,null,null,null,null,null,null,null,null,null,null,null,null,null,null,null,null,null,null,null,null,null,null,null,null,null,null,null,null,null,null,null,null,null,null,null,null,null,null,null,null,null,null,null,null,null,null,null,null,null,null,null,null,null,null,null,null,null,null,null,null,5820,"Viviendas"]
[null,null,null,3510,"Conservación y mantenimiento menor de inmuebles",{"$f":"+Hoja1!E125","v":3000},null,null,250,250,250,250,250,250,250,250,250,250,250,250,3000,0,null,null,null,null,null,null,null,null,null,null,null,null,null,null,null,null,null,null,null,null,null,null,null,null,null,null,null,null,null,null,null,null,null,null,null,null,null,null,null,null,null,null,null,null,null,null,null,null,null,null,null,null,null,null,null,null,null,null,null,null,null,null,null,null,null,null,null,null,null,null,null,null,null,null,null,null,null,null,null,null,null,null,null,null,null,null,null,null,null,null,null,null,null,null,null,null,null,null,null,null,null,null,null,null,null,5830,"Edificios no residenciales"]
[null,null,null,3530,"Instalación, reparación y mantenimiento de equipo de cómputo y tecnología de la información",{"$f":"+Hoja1!E126","v":1500},null,null,125,125,125,125,125,125,125,125,125,125,125,125,1500,0,null,null,null,null,null,null,null,null,null,null,null,null,null,null,null,null,null,null,null,null,null,null,null,null,null,null,null,null,null,null,null,null,null,null,null,null,null,null,null,null,null,null,null,null,null,null,null,null,null,null,null,null,null,null,null,null,null,null,null,null,null,null,null,null,null,null,null,null,null,null,null,null,null,null,null,null,null,null,null,null,null,null,null,null,null,null,null,null,null,null,null,null,null,null,null,null,null,null,null,null,null,null,null,null,null,5890,"Otros bienes inmuebles"]
[null,null,null,3550,"Reparación y mantenimiento de equipo de transporte",{"$f":"+Hoja1!E127","v":130000},null,null,10833.333333333334,10833.333333333334,10833.333333333334,10833.333333333334,10833.333333333334,10833.333333333334,10833.333333333334,10833.333333333334,10833.333333333334,10833.333333333334,10833.333333333334,10833.333333333334,129999.99999999999,0,null,null,null,null,null,null,null,null,null,null,null,null,null,null,null,null,null,null,null,null,null,null,null,null,null,null,null,null,null,null,null,null,null,null,null,null,null,null,null,null,null,null,null,null,null,null,null,null,null,null,null,null,null,null,null,null,null,null,null,null,null,null,null,null,null,null,null,null,null,null,null,null,null,null,null,null,null,null,null,null,null,null,null,null,null,null,null,null,null,null,null,null,null,null,null,null,null,null,null,null,null,null,null,null,null,5910,"Software"]
[null,null,null,3560,"Reparación y mantenimiento de equipo de defensa y seguridad",{"$f":"+Hoja1!E128","v":2000},null,null,166.66666666666666,166.66666666666666,166.66666666666666,166.66666666666666,166.66666666666666,166.66666666666666,166.66666666666666,166.66666666666666,166.66666666666666,166.66666666666666,166.66666666666666,166.66666666666666,2000.0000000000002,0,null,null,null,null,null,null,null,null,null,null,null,null,null,null,null,null,null,null,null,null,null,null,null,null,null,null,null,null,null,null,null,null,null,null,null,null,null,null,null,null,null,null,null,null,null,null,null,null,null,null,null,null,null,null,null,null,null,null,null,null,null,null,null,null,null,null,null,null,null,null,null,null,null,null,null,null,null,null,null,null,null,null,null,null,null,null,null,null,null,null,null,null,null,null,null,null,null,null,null,null,null,null,null,null,null,5920,"Patentes"]
[null,null,null,3750,"Viáticos en el país",{"$f":"+Hoja1!E129","v":700},null,null,58.333333333333336,58.333333333333336,58.333333333333336,58.333333333333336,58.333333333333336,58.333333333333336,58.333333333333336,58.333333333333336,58.333333333333336,58.333333333333336,58.333333333333336,58.333333333333336,700.00000000000011,0,null,null,null,null,null,null,null,null,null,null,null,null,null,null,null,null,null,null,null,null,null,null,null,null,null,null,null,null,null,null,null,null,null,null,null,null,null,null,null,null,null,null,null,null,null,null,null,null,null,null,null,null,null,null,null,null,null,null,null,null,null,null,null,null,null,null,null,null,null,null,null,null,null,null,null,null,null,null,null,null,null,null,null,null,null,null,null,null,null,null,null,null,null,null,null,null,null,null,null,null,null,null,null,null,null,5930,"Marcas"]
[null,null,null,3820,"Viáticos en el extranjero",{"$f":"+Hoja1!E130","v":12000},null,null,1000,1000,1000,1000,1000,1000,1000,1000,1000,1000,1000,1000,12000,0,null,null,null,null,null,null,null,null,null,null,null,null,null,null,null,null,null,null,null,null,null,null,null,null,null,null,null,null,null,null,null,null,null,null,null,null,null,null,null,null,null,null,null,null,null,null,null,null,null,null,null,null,null,null,null,null,null,null,null,null,null,null,null,null,null,null,null,null,null,null,null,null,null,null,null,null,null,null,null,null,null,null,null,null,null,null,null,null,null,null,null,null,null,null,null,null,null,null,null,null,null,null,null,null,null,5940,"Derechos"]
[null,null,null,3851,"Viáticos en el extranjero",{"$f":"+Hoja1!E131","v":1000},null,null,83.333333333333329,83.333333333333329,83.333333333333329,83.333333333333329,83.333333333333329,83.333333333333329,83.333333333333329,83.333333333333329,83.333333333333329,83.333333333333329,83.333333333333329,83.333333333333329,1000.0000000000001,0,null,null,null,null,null,null,null,null,null,null,null,null,null,null,null,null,null,null,null,null,null,null,null,null,null,null,null,null,null,null,null,null,null,null,null,null,null,null,null,null,null,null,null,null,null,null,null,null,null,null,null,null,null,null,null,null,null,null,null,null,null,null,null,null,null,null,null,null,null,null,null,null,null,null,null,null,null,null,null,null,null,null,null,null,null,null,null,null,null,null,null,null,null,null,null,null,null,null,null,null,null,null,null,null,null,5950,"Concesiones"]
[null,null,null,3852,"Viáticos en el extranjero",{"$f":"+Hoja1!E132","v":12000},null,null,1000,1000,1000,1000,1000,1000,1000,1000,1000,1000,{"$f":"$F148/12","v":1000},1000,{"$f":"SUM(I148:T148)","v":12000},0,null,null,null,null,null,null,null,null,null,null,null,null,null,null,null,null,null,null,null,null,null,null,null,null,null,null,null,null,null,null,null,null,null,null,null,null,null,null,null,null,null,null,null,null,null,null,null,null,null,null,null,null,null,null,null,null,null,null,null,null,null,null,null,null,null,null,null,null,null,null,null,null,null,null,null,null,null,null,null,null,null,null,null,null,null,null,null,null,null,null,null,null,null,null,null,null,null,null,null,null,null,null,null,null,null,5960,"Franquicias"]
[null,null,null,null," ",{"$f":"+Hoja1!E133","v":0},null,null,0,0,0,0,0,0,0,0,0,0,0,0,{"$f":"SUM(I149:T149)","v":0},0,null,null,null,null,null,null,null,null,null,null,null,null,null,null,null,null,null,null,null,null,null,null,null,null,null,null,null,null,null,null,null,null,null,null,null,null,null,null,null,null,null,null,null,null,null,null,null,null,null,null,null,null,null,null,null,null,null,null,null,null,null,null,null,null,null,null,null,null,null,null,null,null,null,null,null,null,null,null,null,null,null,null,null,null,null,null,null,null,null,null,null,null,null,null,null,null,null,null,null,null,null,null,null,null,null,5970,"Licencias informaticas e intelectuales"]
[null,null,null,null," ",{"$f":"+Hoja1!E134","v":0},null,null,0,0,0,0,0,0,0,0,0,0,0,0,0,0,null,null,null,null,null,null,null,null,null,null,null,null,null,null,null,null,null,null,null,null,null,null,null,null,null,null,null,null,null,null,null,null,null,null,null,null,null,null,null,null,null,null,null,null,null,null,null,null,null,null,null,null,null,null,null,null,null,null,null,null,null,null,null,null,null,null,null,null,null,null,null,null,null,null,null,null,null,null,null,null,null,null,null,null,null,null,null,null,null,null,null,null,null,null,null,null,null,null,null,null,null,null,null,null,null,5980,"Licencias industriales, comerciales y otras"]
[null,null,null,null," ",{"$f":"+Hoja1!E135","v":0},null,null,0,0,0,0,0,0,0,0,0,0,0,0,0,0,null,null,null,null,null,null,null,null,null,null,null,null,null,null,null,null,null,null,null,null,null,null,null,null,null,null,null,null,null,null,null,null,null,null,null,null,null,null,null,null,null,null,null,null,null,null,null,null,null,null,null,null,null,null,null,null,null,null,null,null,null,null,null,null,null,null,null,null,null,null,null,null,null,null,null,null,null,null,null,null,null,null,null,null,null,null,null,null,null,null,null,null,null,null,null,null,null,null,null,null,null,null,null,null,null,5990,"Otros activos intangibles"]
[null,null,null,null," ",{"$f":"+Hoja1!E136","v":0},null,null,0,0,0,0,0,0,0,0,0,0,0,0,0,0,null,null,null,null,null,null,null,null,null,null,null,null,null,null,null,null,null,null,null,null,null,null,null,null,null,null,null,null,null,null,null,null,null,null,null,null,null,null,null,null,null,null,null,null,null,null,null,null,null,null,null,null,null,null,null,null,null,null,null,null,null,null,null,null,null,null,null,null,null,null,null,null,null,null,null,null,null,null,null,null,null,null,null,null,null,null,null,null,null,null,null,null,null,null,null,null,null,null,null,null,null,null,null,null,null,6110,"Edificación habitacional"]
[null,null,null,null," ",{"$f":"+Hoja1!E137","v":0},null,null,0,0,0,0,0,0,0,0,0,0,0,0,0,0,null,null,null,null,null,null,null,null,null,null,null,null,null,null,null,null,null,null,null,null,null,null,null,null,null,null,null,null,null,null,null,null,null,null,null,null,null,null,null,null,null,null,null,null,null,null,null,null,null,null,null,null,null,null,null,null,null,null,null,null,null,null,null,null,null,null,null,null,null,null,null,null,null,null,null,null,null,null,null,null,null,null,null,null,null,null,null,null,null,null,null,null,null,null,null,null,null,null,null,null,null,null,null,null,null,6120,"Edificación no habitacional"]
[null,null,null,null," ",null,null,null,null,null,null,null,null,null,null,null,null,null,null,null,{"$f":"SUM(I154:T154)","v":0},0,null,null,null,null,null,null,null,null,null,null,null,null,null,null,null,null,null,null,null,null,null,null,null,null,null,null,null,null,null,null,null,null,null,null,null,null,null,null,null,null,null,null,null,null,null,null,null,null,null,null,null,null,null,null,null,null,null,null,null,null,null,null,null,null,null,null,null,null,null,null,null,null,null,null,null,null,null,null,null,null,null,null,null,null,null,null,null,null,null,null,null,null,null,null,null,null,null,null,null,null,null,null,null,null,null,7240,"Acciones y participaciones de capital en el sector privado con fines de política económica"]
[null,null,null,null," ",null,null,null,null,null,null,null,null,null,null,null,null,null,null,null,0,0,null,null,null,null,null,null,null,null,null,null,null,null,null,null,null,null,null,null,null,null,null,null,null,null,null,null,null,null,null,null,null,null,null,null,null,null,null,null,null,null,null,null,null,null,null,null,null,null,null,null,null,null,null,null,null,null,null,null,null,null,null,null,null,null,null,null,null,null,null,null,null,null,null,null,null,null,null,null,null,null,null,null,null,null,null,null,null,null,null,null,null,null,null,null,null,null,null,null,null,null,null,null,null,null,null,7250,"Acciones y participaciones de capital en organismos internacionales con fines de política económica"]
[null,null,null,null," ",null,null,null,null,null,null,null,null,null,null,null,null,null,null,null,0,0,null,null,null,null,null,null,null,null,null,null,null,null,null,null,null,null,null,null,null,null,null,null,null,null,null,null,null,null,null,null,null,null,null,null,null,null,null,null,null,null,null,null,null,null,null,null,null,null,null,null,null,null,null,null,null,null,null,null,null,null,null,null,null,null,null,null,null,null,null,null,null,null,null,null,null,null,null,null,null,null,null,null,null,null,null,null,null,null,null,null,null,null,null,null,null,null,null,null,null,null,null,null,null,null,null,7260,"Acciones y participaciones de capital en el sector externo con fines de política económica"]
[null,null,null,null,null,null,null,null,null,null,null,null,null,null,null,null,null,null,null,null,{"$f":"SUM(U128:U156)","v":1444625},{"$f":"G128-U157","v":0},null,null,null,null,null,null,null,null,null,null,null,null,null,null,null,null,null,null,null,null,null,null,null,null,null,null,null,null,null,null,null,null,null,null,null,null,null,null,null,null,null,null,null,null,null,null,null,null,null,null,null,null,null,null,null,null,null,null,null,null,null,null,null,null,null,null,null,null,null,null,null,null,null,null,null,null,null,null,null,null,null,null,null,null,null,null,null,null,null,null,null,null,null,null,null,null,null,null,null,null,null,null,null,null,null,7270,"Acciones y participaciones de capital en el sector público con fines de gestión de liquidez"]
[null,null,null,null,null,null,null,null,null,null,null,null,null,null,null,null,null,null,null,null,null,null,null,null,null,null,null,null,null,null,null,null,null,null,null,null,null,null,null,null,null,null,null,null,null,null,null,null,null,null,null,null,null,null,null,null,null,null,null,null,null,null,null,null,null,null,null,null,null,null,null,null,null,null,null,null,null,null,null,null,null,null,null,null,null,null,null,null,null,null,null,null,null,null,null,null,null,null,null,null,null,null,null,null,null,null,null,null,null,null,null,null,null,null,null,null,null,null,null,null,null,null,null,null,null,null,null,7280,"Acciones y participaciones de capital en el sector privado con fines de gestión de liquidez"]
[null,null,null,null,null,null,null,null,null,null,null,null,null,null,null,null,null,null,null,null,null,null,null,null,null,null,null,null,null,null,null,null,null,null,null,null,null,null,null,null,null,null,null,null,null,null,null,null,null,null,null,null,null,null,null,null,null,null,null,null,null,null,null,null,null,null,null,null,null,null,null,null,null,null,null,null,null,null,null,null,null,null,null,null,null,null,null,null,null,null,null,null,null,null,null,null,null,null,null,null,null,null,null,null,null,null,null,null,null,null,null,null,null,null,null,null,null,null,null,null,null,null,null,null,null,null,null,7290,"Acciones y participaciones de capital en el sector externo con fines de gestión de liquidez"]
[null,null,null,null,null,null,null,null,null,null,null,null,null,null,null,null,null,null,null,null,{"$f":"SUM(I160:T160)","v":0},{"$f":"F160-U160","v":0},null,null,null,null,null,null,null,null,null,null,null,null,null,null,null,null,null,null,null,null,null,null,null,null,null,null,null,null,null,null,null,null,null,null,null,null,null,null,null,null,null,null,null,null,null,null,null,null,null,null,null,null,null,null,null,null,null,null,null,null,null,null,null,null,null,null,null,null,null,null,null,null,null,null,null,null,null,null,null,null,null,null,null,null,null,null,null,null,null,null,null,null,null,null,null,null,null,null,null,null,null,null,null,null,null,7310,"Bonos"]
[null,null,null,null,null,null,null,null,null,null,null,null,null,null,null,null,null,null,null,null,0,{"$f":"F161-U161","v":0},null,null,null,null,null,null,null,null,null,null,null,null,null,null,null,null,null,null,null,null,null,null,null,null,null,null,null,null,null,null,null,null,null,null,null,null,null,null,null,null,null,null,null,null,null,null,null,null,null,null,null,null,null,null,null,null,null,null,null,null,null,null,null,null,null,null,null,null,null,null,null,null,null,null,null,null,null,null,null,null,null,null,null,null,null,null,null,null,null,null,null,null,null,null,null,null,null,null,null,null,null,null,null,null,null,7320,"Valores representativos de deuda adquiridos con fines de política económica"]
[null,null,null,null,null,null,null,null,null,null,null,null,null,null,null,null,null,null,null,null,0,0,null,null,null,null,null,null,null,null,null,null,null,null,null,null,null,null,null,null,null,null,null,null,null,null,null,null,null,null,null,null,null,null,null,null,null,null,null,null,null,null,null,null,null,null,null,null,null,null,null,null,null,null,null,null,null,null,null,null,null,null,null,null,null,null,null,null,null,null,null,null,null,null,null,null,null,null,null,null,null,null,null,null,null,null,null,null,null,null,null,null,null,null,null,null,null,null,null,null,null,null,null,null,null,null,null,7330,"Valores representativos de deuda adquiridos con fines de gestión de liquidez"]
[null,null,null,null,null,null,null,null,null,null,null,null,null,null,null,null,null,null,null,null,0,0,null,null,null,null,null,null,null,null,null,null,null,null,null,null,null,null,null,null,null,null,null,null,null,null,null,null,null,null,null,null,null,null,null,null,null,null,null,null,null,null,null,null,null,null,null,null,null,null,null,null,null,null,null,null,null,null,null,null,null,null,null,null,null,null,null,null,null,null,null,null,null,null,null,null,null,null,null,null,null,null,null,null,null,null,null,null,null,null,null,null,null,null,null,null,null,null,null,null,null,null,null,null,null,null,null,7340,"Obligaciones negociables adquiridas con fines de política económica"]
[null,null,null,null,null,null,null,null,null,null,null,null,null,null,null,null,null,null,null,null,0,0,null,null,null,null,null,null,null,null,null,null,null,null,null,null,null,null,null,null,null,null,null,null,null,null,null,null,null,null,null,null,null,null,null,null,null,null,null,null,null,null,null,null,null,null,null,null,null,null,null,null,null,null,null,null,null,null,null,null,null,null,null,null,null,null,null,null,null,null,null,null,null,null,null,null,null,null,null,null,null,null,null,null,null,null,null,null,null,null,null,null,null,null,null,null,null,null,null,null,null,null,null,null,null,null,null,7350,"Obligaciones negociables adquiridas con fines de gestión de liquidez"]
[null,null,null,null,null,null,null,null,null,null,null,null,null,null,null,null,null,null,null,null,0,0,null,null,null,null,null,null,null,null,null,null,null,null,null,null,null,null,null,null,null,null,null,null,null,null,null,null,null,null,null,null,null,null,null,null,null,null,null,null,null,null,null,null,null,null,null,null,null,null,null,null,null,null,null,null,null,null,null,null,null,null,null,null,null,null,null,null,null,null,null,null,null,null,null,null,null,null,null,null,null,null,null,null,null,null,null,null,null,null,null,null,null,null,null,null,null,null,null,null,null,null,null,null,null,null,null,7390,"Otros valores"]
[null,null,null,null,null,null,null,null,null,null,null,null,null,null,null,null,null,null,null,null,0,0,null,null,null,null,null,null,null,null,null,null,null,null,null,null,null,null,null,null,null,null,null,null,null,null,null,null,null,null,null,null,null,null,null,null,null,null,null,null,null,null,null,null,null,null,null,null,null,null,null,null,null,null,null,null,null,null,null,null,null,null,null,null,null,null,null,null,null,null,null,null,null,null,null,null,null,null,null,null,null,null,null,null,null,null,null,null,null,null,null,null,null,null,null,null,null,null,null,null,null,null,null,null,null,null,null,7410,"Concesión de préstamos a entidades paraestatales no empresariales y no financieras con fines de política económica"]
[null,null,null,null,null,null,null,null,null,null,null,null,null,null,null,null,null,null,null,null,0,0,null,null,null,null,null,null,null,null,null,null,null,null,null,null,null,null,null,null,null,null,null,null,null,null,null,null,null,null,null,null,null,null,null,null,null,null,null,null,null,null,null,null,null,null,null,null,null,null,null,null,null,null,null,null,null,null,null,null,null,null,null,null,null,null,null,null,null,null,null,null,null,null,null,null,null,null,null,null,null,null,null,null,null,null,null,null,null,null,null,null,null,null,null,null,null,null,null,null,null,null,null,null,null,null,null,7420,"Concesión de préstamos a entidades paraestatales empresariales y no financieras con fines de política económica"]
[null,null,null,null,null,null,null,null,null,null,null,null,null,null,null,null,null,null,null,null,0,0,null,null,null,null,null,null,null,null,null,null,null,null,null,null,null,null,null,null,null,null,null,null,null,null,null,null,null,null,null,null,null,null,null,null,null,null,null,null,null,null,null,null,null,null,null,null,null,null,null,null,null,null,null,null,null,null,null,null,null,null,null,null,null,null,null,null,null,null,null,null,null,null,null,null,null,null,null,null,null,null,null,null,null,null,null,null,null,null,null,null,null,null,null,null,null,null,null,null,null,null,null,null,null,null,null,7430,"Concesión de préstamos a instituciones paraestatales públicas financieras con fines de política económica"]
[null,null,null,null,null,null,null,null,null,null,null,null,null,null,null,null,null,null,null,null,0,0,null,null,null,null,null,null,null,null,null,null,null,null,null,null,null,null,null,null,null,null,null,null,null,null,null,null,null,null,null,null,null,null,null,null,null,null,null,null,null,null,null,null,null,null,null,null,null,null,null,null,null,null,null,null,null,null,null,null,null,null,null,null,null,null,null,null,null,null,null,null,null,null,null,null,null,null,null,null,null,null,null,null,null,null,null,null,null,null,null,null,null,null,null,null,null,null,null,null,null,null,null,null,null,null,null,7440,"Concesión de préstamos a entidades federativas y municipios con fines de política económica"]
[null,null,null,null,null,null,null,null,null,null,null,null,null,null,null,null,null,null,null,null,0,0,null,null,null,null,null,null,null,null,null,null,null,null,null,null,null,null,null,null,null,null,null,null,null,null,null,null,null,null,null,null,null,null,null,null,null,null,null,null,null,null,null,null,null,null,null,null,null,null,null,null,null,null,null,null,null,null,null,null,null,null,null,null,null,null,null,null,null,null,null,null,null,null,null,null,null,null,null,null,null,null,null,null,null,null,null,null,null,null,null,null,null,null,null,null,null,null,null,null,null,null,null,null,null,null,null,7450,"Concesión de préstamos al sector privado con fines de política económica"]
[null,null,null,null,null,null,null,null,null,null,null,null,null,null,null,null,null,null,null,null,0,0,null,null,null,null,null,null,null,null,null,null,null,null,null,null,null,null,null,null,null,null,null,null,null,null,null,null,null,null,null,null,null,null,null,null,null,null,null,null,null,null,null,null,null,null,null,null,null,null,null,null,null,null,null,null,null,null,null,null,null,null,null,null,null,null,null,null,null,null,null,null,null,null,null,null,null,null,null,null,null,null,null,null,null,null,null,null,null,null,null,null,null,null,null,null,null,null,null,null,null,null,null,null,null,null,null,7460,"Concesión de préstamos al sector externo con fines de política económica"]
[null,null,null,null,null,null,null,null,null,null,null,null,null,null,null,null,null,null,null,null,0,0,null,null,null,null,null,null,null,null,null,null,null,null,null,null,null,null,null,null,null,null,null,null,null,null,null,null,null,null,null,null,null,null,null,null,null,null,null,null,null,null,null,null,null,null,null,null,null,null,null,null,null,null,null,null,null,null,null,null,null,null,null,null,null,null,null,null,null,null,null,null,null,null,null,null,null,null,null,null,null,null,null,null,null,null,null,null,null,null,null,null,null,null,null,null,null,null,null,null,null,null,null,null,null,null,null,7470,"Concesión de préstamos al sector público con fines de gestión de liquidez"]
[null,null,null,null,null,null,null,null,null,null,null,null,null,null,null,null,null,null,null,null,0,0,null,null,null,null,null,null,null,null,null,null,null,null,null,null,null,null,null,null,null,null,null,null,null,null,null,null,null,null,null,null,null,null,null,null,null,null,null,null,null,null,null,null,null,null,null,null,null,null,null,null,null,null,null,null,null,null,null,null,null,null,null,null,null,null,null,null,null,null,null,null,null,null,null,null,null,null,null,null,null,null,null,null,null,null,null,null,null,null,null,null,null,null,null,null,null,null,null,null,null,null,null,null,null,null,null,7480,"Concesión de préstamos al sector privado con fines de gestión de liquidez"]
[null,null,null,null,null,null,null,null,null,null,null,null,null,null,null,null,null,null,null,null,0,0,null,null,null,null,null,null,null,null,null,null,null,null,null,null,null,null,null,null,null,null,null,null,null,null,null,null,null,null,null,null,null,null,null,null,null,null,null,null,null,null,null,null,null,null,null,null,null,null,null,null,null,null,null,null,null,null,null,null,null,null,null,null,null,null,null,null,null,null,null,null,null,null,null,null,null,null,null,null,null,null,null,null,null,null,null,null,null,null,null,null,null,null,null,null,null,null,null,null,null,null,null,null,null,null,null,7490,"Concesión de préstamos al sector externo con fines de gestión de liquidez"]
[null,null,null,null,null,null,null,null,null,null,null,null,null,null,null,null,null,null,null,null,0,0,null,null,null,null,null,null,null,null,null,null,null,null,null,null,null,null,null,null,null,null,null,null,null,null,null,null,null,null,null,null,null,null,null,null,null,null,null,null,null,null,null,null,null,null,null,null,null,null,null,null,null,null,null,null,null,null,null,null,null,null,null,null,null,null,null,null,null,null,null,null,null,null,null,null,null,null,null,null,null,null,null,null,null,null,null,null,null,null,null,null,null,null,null,null,null,null,null,null,null,null,null,null,null,null,null,7510,"Inversiones en fideicomisos del Poder Ejecutivo"]
[null,null,null,null,null,null,null,null,null,null,null,null,null,null,null,null,null,null,null,null,0,0,null,null,null,null,null,null,null,null,null,null,null,null,null,null,null,null,null,null,null,null,null,null,null,null,null,null,null,null,null,null,null,null,null,null,null,null,null,null,null,null,null,null,null,null,null,null,null,null,null,null,null,null,null,null,null,null,null,null,null,null,null,null,null,null,null,null,null,null,null,null,null,null,null,null,null,null,null,null,null,null,null,null,null,null,null,null,null,null,null,null,null,null,null,null,null,null,null,null,null,null,null,null,null,null,null,7520,"Inversiones en fideicomisos del Poder Legislativo"]
[null,null,null,null,null,null,null,null,null,null,null,null,null,null,null,null,null,null,null,null,0,0,null,null,null,null,null,null,null,null,null,null,null,null,null,null,null,null,null,null,null,null,null,null,null,null,null,null,null,null,null,null,null,null,null,null,null,null,null,null,null,null,null,null,null,null,null,null,null,null,null,null,null,null,null,null,null,null,null,null,null,null,null,null,null,null,null,null,null,null,null,null,null,null,null,null,null,null,null,null,null,null,null,null,null,null,null,null,null,null,null,null,null,null,null,null,null,null,null,null,null,null,null,null,null,null,null,7530,"Inversiones en fideicomisos del Poder Judicial"]
[null,null,null,null,null,null,null,null,null,null,null,null,null,null,null,null,null,null,null,null,0,0,null,null,null,null,null,null,null,null,null,null,null,null,null,null,null,null,null,null,null,null,null,null,null,null,null,null,null,null,null,null,null,null,null,null,null,null,null,null,null,null,null,null,null,null,null,null,null,null,null,null,null,null,null,null,null,null,null,null,null,null,null,null,null,null,null,null,null,null,null,null,null,null,null,null,null,null,null,null,null,null,null,null,null,null,null,null,null,null,null,null,null,null,null,null,null,null,null,null,null,null,null,null,null,null,null,7540,"Inversiones en fideicomisos públicos no empresariales y no financieros"]
[null,null,null,null,null,null,null,null,null,null,null,null,null,null,null,null,null,null,null,null,0,0,null,null,null,null,null,null,null,null,null,null,null,null,null,null,null,null,null,null,null,null,null,null,null,null,null,null,null,null,null,null,null,null,null,null,null,null,null,null,null,null,null,null,null,null,null,null,null,null,null,null,null,null,null,null,null,null,null,null,null,null,null,null,null,null,null,null,null,null,null,null,null,null,null,null,null,null,null,null,null,null,null,null,null,null,null,null,null,null,null,null,null,null,null,null,null,null,null,null,null,null,null,null,null,null,null,7550,"Inversiones en fideicomisos públicos empresariales y no financieros"]
[null,null,null,null,null,null,null,null,null,null,null,null,null,null,null,null,null,null,null,null,{"$f":"SUM(I180:T180)","v":0},0,null,null,null,null,null,null,null,null,null,null,null,null,null,null,null,null,null,null,null,null,null,null,null,null,null,null,null,null,null,null,null,null,null,null,null,null,null,null,null,null,null,null,null,null,null,null,null,null,null,null,null,null,null,null,null,null,null,null,null,null,null,null,null,null,null,null,null,null,null,null,null,null,null,null,null,null,null,null,null,null,null,null,null,null,null,null,null,null,null,null,null,null,null,null,null,null,null,null,null,null,null,null,null,null,null,7560,"Inversiones en fideicomisos públicos financieros"]
[null,null,null,null,null,null,null,null,null,null,null,null,null,null,null,null,null,null,null,null,{"$f":"SUM(I181:T181)","v":0},0,null,null,null,null,null,null,null,null,null,null,null,null,null,null,null,null,null,null,null,null,null,null,null,null,null,null,null,null,null,null,null,null,null,null,null,null,null,null,null,null,null,null,null,null,null,null,null,null,null,null,null,null,null,null,null,null,null,null,null,null,null,null,null,null,null,null,null,null,null,null,null,null,null,null,null,null,null,null,null,null,null,null,null,null,null,null,null,null,null,null,null,null,null,null,null,null,null,null,null,null,null,null,null,null,null,7570,"Inversiones en fideicomisos de entidades federativas"]
[null,null,null,null,null,null,null,null,null,null,null,null,null,null,null,null,null,null,null,null,0,0,null,null,null,null,null,null,null,null,null,null,null,null,null,null,null,null,null,null,null,null,null,null,null,null,null,null,null,null,null,null,null,null,null,null,null,null,null,null,null,null,null,null,null,null,null,null,null,null,null,null,null,null,null,null,null,null,null,null,null,null,null,null,null,null,null,null,null,null,null,null,null,null,null,null,null,null,null,null,null,null,null,null,null,null,null,null,null,null,null,null,null,null,null,null,null,null,null,null,null,null,null,null,null,null,null,7580,"Inversiones en fideicomisos de municipios"]
[null,null,null,null,null,null,null,null,null,null,null,null,null,null,null,null,null,null,null,null,0,0,null,null,null,null,null,null,null,null,null,null,null,null,null,null,null,null,null,null,null,null,null,null,null,null,null,null,null,null,null,null,null,null,null,null,null,null,null,null,null,null,null,null,null,null,null,null,null,null,null,null,null,null,null,null,null,null,null,null,null,null,null,null,null,null,null,null,null,null,null,null,null,null,null,null,null,null,null,null,null,null,null,null,null,null,null,null,null,null,null,null,null,null,null,null,null,null,null,null,null,null,null,null,null,null,null,7590,"Fideicomisos de empresas privadas y particulares"]
[null,null,null,null,null,null,null,null,null,null,null,null,null,null,null,null,null,null,null,null,0,0,null,null,null,null,null,null,null,null,null,null,null,null,null,null,null,null,null,null,null,null,null,null,null,null,null,null,null,null,null,null,null,null,null,null,null,null,null,null,null,null,null,null,null,null,null,null,null,null,null,null,null,null,null,null,null,null,null,null,null,null,null,null,null,null,null,null,null,null,null,null,null,null,null,null,null,null,null,null,null,null,null,null,null,null,null,null,null,null,null,null,null,null,null,null,null,null,null,null,null,null,null,null,null,null,null,7610,"Depósitos a largo plazo en moneda nacional"]
[null,null,null,null,null,null,null,null,null,null,null,null,null,null,null,null,null,null,null,null,0,0,null,null,null,null,null,null,null,null,null,null,null,null,null,null,null,null,null,null,null,null,null,null,null,null,null,null,null,null,null,null,null,null,null,null,null,null,null,null,null,null,null,null,null,null,null,null,null,null,null,null,null,null,null,null,null,null,null,null,null,null,null,null,null,null,null,null,null,null,null,null,null,null,null,null,null,null,null,null,null,null,null,null,null,null,null,null,null,null,null,null,null,null,null,null,null,null,null,null,null,null,null,null,null,null,null,7620,"Depósitos a largo plazo en moneda extranjera"]
[null,null,null,null,null,null,null,null,null,null,null,null,null,null,null,null,null,null,null,null,0,0,null,null,null,null,null,null,null,null,null,null,null,null,null,null,null,null,null,null,null,null,null,null,null,null,null,null,null,null,null,null,null,null,null,null,null,null,null,null,null,null,null,null,null,null,null,null,null,null,null,null,null,null,null,null,null,null,null,null,null,null,null,null,null,null,null,null,null,null,null,null,null,null,null,null,null,null,null,null,null,null,null,null,null,null,null,null,null,null,null,null,null,null,null,null,null,null,null,null,null,null,null,null,null,null,null,7910,"Contingencias por fenómenos naturales"]
[null,null,null,null,null,null,null,null,null,null,null,null,null,null,null,null,null,null,null,null,0,0,null,null,null,null,null,null,null,null,null,null,null,null,null,null,null,null,null,null,null,null,null,null,null,null,null,null,null,null,null,null,null,null,null,null,null,null,null,null,null,null,null,null,null,null,null,null,null,null,null,null,null,null,null,null,null,null,null,null,null,null,null,null,null,null,null,null,null,null,null,null,null,null,null,null,null,null,null,null,null,null,null,null,null,null,null,null,null,null,null,null,null,null,null,null,null,null,null,null,null,null,null,null,null,null,null,7920,"Contingencias socioeconómicas"]
[null,null,null,null,null,null,null,null,null,null,null,null,null,null,null,null,null,null,null,null,0,0,null,null,null,null,null,null,null,null,null,null,null,null,null,null,null,null,null,null,null,null,null,null,null,null,null,null,null,null,null,null,null,null,null,null,null,null,null,null,null,null,null,null,null,null,null,null,null,null,null,null,null,null,null,null,null,null,null,null,null,null,null,null,null,null,null,null,null,null,null,null,null,null,null,null,null,null,null,null,null,null,null,null,null,null,null,null,null,null,null,null,null,null,null,null,null,null,null,null,null,null,null,null,null,null,null,7990,"Otras erogaciones especiales"]
[null,null,null,null,null,null,null,null,null,null,null,null,null,null,null,null,null,null,null,null,0,0,null,null,null,null,null,null,null,null,null,null,null,null,null,null,null,null,null,null,null,null,null,null,null,null,null,null,null,null,null,null,null,null,null,null,null,null,null,null,null,null,null,null,null,null,null,null,null,null,null,null,null,null,null,null,null,null,null,null,null,null,null,null,null,null,null,null,null,null,null,null,null,null,null,null,null,null,null,null,null,null,null,null,null,null,null,null,null,null,null,null,null,null,null,null,null,null,null,null,null,null,null,null,null,null,null,8110,"Fondo general de participaciones"]
[null,null,null,null,null,null,null,null,null,null,null,null,null,null,null,null,null,null,null,null,0,0,null,null,null,null,null,null,null,null,null,null,null,null,null,null,null,null,null,null,null,null,null,null,null,null,null,null,null,null,null,null,null,null,null,null,null,null,null,null,null,null,null,null,null,null,null,null,null,null,null,null,null,null,null,null,null,null,null,null,null,null,null,null,null,null,null,null,null,null,null,null,null,null,null,null,null,null,null,null,null,null,null,null,null,null,null,null,null,null,null,null,null,null,null,null,null,null,null,null,null,null,null,null,null,null,null,8120,"Fondo de fomento municipal"]
[null,null,null,null,null,null,null,null,null,null,null,null,null,null,null,null,null,null,null,null,0,0,null,null,null,null,null,null,null,null,null,null,null,null,null,null,null,null,null,null,null,null,null,null,null,null,null,null,null,null,null,null,null,null,null,null,null,null,null,null,null,null,null,null,null,null,null,null,null,null,null,null,null,null,null,null,null,null,null,null,null,null,null,null,null,null,null,null,null,null,null,null,null,null,null,null,null,null,null,null,null,null,null,null,null,null,null,null,null,null,null,null,null,null,null,null,null,null,null,null,null,null,null,null,null,null,null,8130,"Participaciones de las entidades federativas a los municipios"]
[null,null,null,null,null,null,null,null,null,null,null,null,null,null,null,null,null,null,null,null,0,0,null,null,null,null,null,null,null,null,null,null,null,null,null,null,null,null,null,null,null,null,null,null,null,null,null,null,null,null,null,null,null,null,null,null,null,null,null,null,null,null,null,null,null,null,null,null,null,null,null,null,null,null,null,null,null,null,null,null,null,null,null,null,null,null,null,null,null,null,null,null,null,null,null,null,null,null,null,null,null,null,null,null,null,null,null,null,null,null,null,null,null,null,null,null,null,null,null,null,null,null,null,null,null,null,null,8140,"Otros conceptos participables de la Federación a entidades federativas"]
[null,null,null,null,null,null,null,null,null,null,null,null,null,null,null,null,null,null,null,null,0,0,null,null,null,null,null,null,null,null,null,null,null,null,null,null,null,null,null,null,null,null,null,null,null,null,null,null,null,null,null,null,null,null,null,null,null,null,null,null,null,null,null,null,null,null,null,null,null,null,null,null,null,null,null,null,null,null,null,null,null,null,null,null,null,null,null,null,null,null,null,null,null,null,null,null,null,null,null,null,null,null,null,null,null,null,null,null,null,null,null,null,null,null,null,null,null,null,null,null,null,null,null,null,null,null,null,8150,"Otros conceptos participables de la Federación a municipios"]
[null,null,null,null,null,null,null,null,null,null,null,null,null,null,null,null,null,null,null,null,0,0,null,null,null,null,null,null,null,null,null,null,null,null,null,null,null,null,null,null,null,null,null,null,null,null,null,null,null,null,null,null,null,null,null,null,null,null,null,null,null,null,null,null,null,null,null,null,null,null,null,null,null,null,null,null,null,null,null,null,null,null,null,null,null,null,null,null,null,null,null,null,null,null,null,null,null,null,null,null,null,null,null,null,null,null,null,null,null,null,null,null,null,null,null,null,null,null,null,null,null,null,null,null,null,null,null,8160,"Convenios de colaboración administrativa"]
[null,null,null,null,null,null,null,null,null,null,null,null,null,null,null,null,null,null,null,null,0,0,null,null,null,null,null,null,null,null,null,null,null,null,null,null,null,null,null,null,null,null,null,null,null,null,null,null,null,null,null,null,null,null,null,null,null,null,null,null,null,null,null,null,null,null,null,null,null,null,null,null,null,null,null,null,null,null,null,null,null,null,null,null,null,null,null,null,null,null,null,null,null,null,null,null,null,null,null,null,null,null,null,null,null,null,null,null,null,null,null,null,null,null,null,null,null,null,null,null,null,null,null,null,null,null,null,8310,"Aportaciones de la Federación a las entidades federativas"]
[null,null,null,null,null,null,null,null,null,null,null,null,null,null,null,null,null,null,null,null,0,0,null,null,null,null,null,null,null,null,null,null,null,null,null,null,null,null,null,null,null,null,null,null,null,null,null,null,null,null,null,null,null,null,null,null,null,null,null,null,null,null,null,null,null,null,null,null,null,null,null,null,null,null,null,null,null,null,null,null,null,null,null,null,null,null,null,null,null,null,null,null,null,null,null,null,null,null,null,null,null,null,null,null,null,null,null,null,null,null,null,null,null,null,null,null,null,null,null,null,null,null,null,null,null,null,null,8320,"Aportaciones de la Federación a municipios"]
[null,null,null,null,null,null,null,null,null,null,null,null,null,null,null,null,null,null,null,null,0,0,null,null,null,null,null,null,null,null,null,null,null,null,null,null,null,null,null,null,null,null,null,null,null,null,null,null,null,null,null,null,null,null,null,null,null,null,null,null,null,null,null,null,null,null,null,null,null,null,null,null,null,null,null,null,null,null,null,null,null,null,null,null,null,null,null,null,null,null,null,null,null,null,null,null,null,null,null,null,null,null,null,null,null,null,null,null,null,null,null,null,null,null,null,null,null,null,null,null,null,null,null,null,null,null,null,8330,"Aportaciones de las entidades federativas a los municipios"]
[null,null,null,null,null,null,null,null,null,null,null,null,null,null,null,null,null,null,null,null,0,0,null,null,null,null,null,null,null,null,null,null,null,null,null,null,null,null,null,null,null,null,null,null,null,null,null,null,null,null,null,null,null,null,null,null,null,null,null,null,null,null,null,null,null,null,null,null,null,null,null,null,null,null,null,null,null,null,null,null,null,null,null,null,null,null,null,null,null,null,null,null,null,null,null,null,null,null,null,null,null,null,null,null,null,null,null,null,null,null,null,null,null,null,null,null,null,null,null,null,null,null,null,null,null,null,null,8340,"Aportaciones previstas en leyes y decretos al sistema de protección social"]
[null,null,null,null,null,null,null,null,null,null,null,null,null,null,null,null,null,null,null,null,{"$f":"SUM(I199:T199)","v":0},0,null,null,null,null,null,null,null,null,null,null,null,null,null,null,null,null,null,null,null,null,null,null,null,null,null,null,null,null,null,null,null,null,null,null,null,null,null,null,null,null,null,null,null,null,null,null,null,null,null,null,null,null,null,null,null,null,null,null,null,null,null,null,null,null,null,null,null,null,null,null,null,null,null,null,null,null,null,null,null,null,null,null,null,null,null,null,null,null,null,null,null,null,null,null,null,null,null,null,null,null,null,null,null,null,null,8350,"Aportaciones previstas en leyes y decretos compensatorias a entidades federativas y municipios"]
[null,null,null,null,null,null,null,null,null,null,null,null,null,null,null,null,null,null,null,null,{"$f":"SUM(I200:T200)","v":0},0,null,null,null,null,null,null,null,null,null,null,null,null,null,null,null,null,null,null,null,null,null,null,null,null,null,null,null,null,null,null,null,null,null,null,null,null,null,null,null,null,null,null,null,null,null,null,null,null,null,null,null,null,null,null,null,null,null,null,null,null,null,null,null,null,null,null,null,null,null,null,null,null,null,null,null,null,null,null,null,null,null,null,null,null,null,null,null,null,null,null,null,null,null,null,null,null,null,null,null,null,null,null,null,null,null,8510,"Convenios de reasignación"]
[null,null,null,null,null,null,null,null,null,null,null,null,null,null,null,null,null,null,null,null,0,0,null,null,null,null,null,null,null,null,null,null,null,null,null,null,null,null,null,null,null,null,null,null,null,null,null,null,null,null,null,null,null,null,null,null,null,null,null,null,null,null,null,null,null,null,null,null,null,null,null,null,null,null,null,null,null,null,null,null,null,null,null,null,null,null,null,null,null,null,null,null,null,null,null,null,null,null,null,null,null,null,null,null,null,null,null,null,null,null,null,null,null,null,null,null,null,null,null,null,null,null,null,null,null,null,null,8520,"Convenios de descentralización"]
[null,null,null,null,null,null,null,null,null,null,null,null,null,null,null,null,null,null,null,null,0,0,null,null,null,null,null,null,null,null,null,null,null,null,null,null,null,null,null,null,null,null,null,null,null,null,null,null,null,null,null,null,null,null,null,null,null,null,null,null,null,null,null,null,null,null,null,null,null,null,null,null,null,null,null,null,null,null,null,null,null,null,null,null,null,null,null,null,null,null,null,null,null,null,null,null,null,null,null,null,null,null,null,null,null,null,null,null,null,null,null,null,null,null,null,null,null,null,null,null,null,null,null,null,null,null,null,8530,"Otros convenios"]
[null,null,null,null,null,null,null,null,null,null,null,null,null,null,null,null,null,null,null,null,0,0,null,null,null,null,null,null,null,null,null,null,null,null,null,null,null,null,null,null,null,null,null,null,null,null,null,null,null,null,null,null,null,null,null,null,null,null,null,null,null,null,null,null,null,null,null,null,null,null,null,null,null,null,null,null,null,null,null,null,null,null,null,null,null,null,null,null,null,null,null,null,null,null,null,null,null,null,null,null,null,null,null,null,null,null,null,null,null,null,null,null,null,null,null,null,null,null,null,null,null,null,null,null,null,null,null,9110,"Amortización de la deuda interna con instituciones de crédito"]
[null,null,null,null,null,null,null,null,null,null,null,null,null,null,null,null,null,null,null,null,0,0,null,null,null,null,null,null,null,null,null,null,null,null,null,null,null,null,null,null,null,null,null,null,null,null,null,null,null,null,null,null,null,null,null,null,null,null,null,null,null,null,null,null,null,null,null,null,null,null,null,null,null,null,null,null,null,null,null,null,null,null,null,null,null,null,null,null,null,null,null,null,null,null,null,null,null,null,null,null,null,null,null,null,null,null,null,null,null,null,null,null,null,null,null,null,null,null,null,null,null,null,null,null,null,null,null,9120,"Amortización de la deuda interna por emisión de títulos y valores"]
[null,null,null,null,null,null,null,null,null,null,null,null,null,null,null,null,null,null,null,null,0,0,null,null,null,null,null,null,null,null,null,null,null,null,null,null,null,null,null,null,null,null,null,null,null,null,null,null,null,null,null,null,null,null,null,null,null,null,null,null,null,null,null,null,null,null,null,null,null,null,null,null,null,null,null,null,null,null,null,null,null,null,null,null,null,null,null,null,null,null,null,null,null,null,null,null,null,null,null,null,null,null,null,null,null,null,null,null,null,null,null,null,null,null,null,null,null,null,null,null,null,null,null,null,null,null,null,9130,"Amortización de arrendamientos financieros nacionales"]
[null,null,null,null,null,null,null,null,null,null,null,null,null,null,null,null,null,null,null,null,0,0,null,null,null,null,null,null,null,null,null,null,null,null,null,null,null,null,null,null,null,null,null,null,null,null,null,null,null,null,null,null,null,null,null,null,null,null,null,null,null,null,null,null,null,null,null,null,null,null,null,null,null,null,null,null,null,null,null,null,null,null,null,null,null,null,null,null,null,null,null,null,null,null,null,null,null,null,null,null,null,null,null,null,null,null,null,null,null,null,null,null,null,null,null,null,null,null,null,null,null,null,null,null,null,null,null,9140,"Amortización de la deuda externa con instituciones de crédito"]
[null,null,null,null,null,null,null,null,null,null,null,null,null,null,null,null,null,null,null,null,0,0,null,null,null,null,null,null,null,null,null,null,null,null,null,null,null,null,null,null,null,null,null,null,null,null,null,null,null,null,null,null,null,null,null,null,null,null,null,null,null,null,null,null,null,null,null,null,null,null,null,null,null,null,null,null,null,null,null,null,null,null,null,null,null,null,null,null,null,null,null,null,null,null,null,null,null,null,null,null,null,null,null,null,null,null,null,null,null,null,null,null,null,null,null,null,null,null,null,null,null,null,null,null,null,null,null,9150,"Amortización de deuda externa con organismos financieros internacionales"]
[null,null,null,null,null,null,null,null,null,null,null,null,null,null,null,null,null,null,null,null,0,0,null,null,null,null,null,null,null,null,null,null,null,null,null,null,null,null,null,null,null,null,null,null,null,null,null,null,null,null,null,null,null,null,null,null,null,null,null,null,null,null,null,null,null,null,null,null,null,null,null,null,null,null,null,null,null,null,null,null,null,null,null,null,null,null,null,null,null,null,null,null,null,null,null,null,null,null,null,null,null,null,null,null,null,null,null,null,null,null,null,null,null,null,null,null,null,null,null,null,null,null,null,null,null,null,null,9160,"Amortización de la deuda bilateral"]
[null,null,null,null,null,null,null,null,null,null,null,null,null,null,null,null,null,null,null,null,0,0,null,null,null,null,null,null,null,null,null,null,null,null,null,null,null,null,null,null,null,null,null,null,null,null,null,null,null,null,null,null,null,null,null,null,null,null,null,null,null,null,null,null,null,null,null,null,null,null,null,null,null,null,null,null,null,null,null,null,null,null,null,null,null,null,null,null,null,null,null,null,null,null,null,null,null,null,null,null,null,null,null,null,null,null,null,null,null,null,null,null,null,null,null,null,null,null,null,null,null,null,null,null,null,null,null,9170,"Amortización de la deuda externa por emisión de títulos y valores"]
[null,"COMPONENTE 7","UR",{"$f":"SUM(F213:F262)","v":0},null,null,null,{"$f":"SUM(G213)","v":0},null,null,null,null,null,null,null,null,null,null,null,null,{"$f":"SUM(U160:U209)","v":0},0,null,null,null,null,null,null,null,null,null,null,null,null,null,null,null,null,null,null,null,null,null,null,null,null,null,null,null,null,null,null,null,null,null,null,null,null,null,null,null,null,null,null,null,null,null,null,null,null,null,null,null,null,null,null,null,null,null,null,null,null,null,null,null,null,null,null,null,null,null,null,null,null,null,null,null,null,null,null,null,null,null,null,null,null,null,null,null,null,null,null,null,null,null,null,null,null,null,null,null,null,null,null,null,null,null,9180,"Amortización de arrendamientos financieros internacionales"]
[null,null,null,null,null,null,null,null,null,null,null,null,null,null,null,null,null,null,null,null,null,null,null,null,null,null,null,null,null,null,null,null,null,null,null,null,null,null,null,null,null,null,null,null,null,null,null,null,null,null,null,null,null,null,null,null,null,null,null,null,null,null,null,null,null,null,null,null,null,null,null,null,null,null,null,null,null,null,null,null,null,null,null,null,null,null,null,null,null,null,null,null,null,null,null,null,null,null,null,null,null,null,null,null,null,null,null,null,null,null,null,null,null,null,null,null,null,null,null,null,null,null,null,null,null,null,null,9210,"Intereses de la deuda interna con instituciones de crédito"]
[null,null,null,null,null,null,null,null,null,null,null,null,null,null,null,null,null,null,null,null,null,null,null,null,null,null,null,null,null,null,null,null,null,null,null,null,null,null,null,null,null,null,null,null,null,null,null,null,null,null,null,null,null,null,null,null,null,null,null,null,null,null,null,null,null,null,null,null,null,null,null,null,null,null,null,null,null,null,null,null,null,null,null,null,null,null,null,null,null,null,null,null,null,null,null,null,null,null,null,null,null,null,null,null,null,null,null,null,null,null,null,null,null,null,null,null,null,null,null,null,null,null,null,null,null,null,null,9220,"Intereses derivados de la colocación de títulos y valores"]
[null,"UR",null,null,{"$f":"IF(D213>0,VLOOKUP(D213,$DX$1:$DY$227,2),\" \")","v":" "},null,{"$f":"SUM(F213:F262)","v":0},null,null,null,null,null,null,null,null,null,null,null,null,null,{"$f":"SUM(I213:T213)","v":0},{"$f":"F213-U213","v":0},null,null,null,null,null,null,null,null,null,null,null,null,null,null,null,null,null,null,null,null,null,null,null,null,null,null,null,null,null,null,null,null,null,null,null,null,null,null,null,null,null,null,null,null,null,null,null,null,null,null,null,null,null,null,null,null,null,null,null,null,null,null,null,null,null,null,null,null,null,null,null,null,null,null,null,null,null,null,null,null,null,null,null,null,null,null,null,null,null,null,null,null,null,null,null,null,null,null,null,null,null,null,null,null,null,9230,"Intereses por arrendamientos financieros nacionales"]
[null,null,null,null," ",null,null,null,null,null,null,null,null,null,null,null,null,null,null,null,0,{"$f":"F214-U214","v":0},null,null,null,null,null,null,null,null,null,null,null,null,null,null,null,null,null,null,null,null,null,null,null,null,null,null,null,null,null,null,null,null,null,null,null,null,null,null,null,null,null,null,null,null,null,null,null,null,null,null,null,null,null,null,null,null,null,null,null,null,null,null,null,null,null,null,null,null,null,null,null,null,null,null,null,null,null,null,null,null,null,null,null,null,null,null,null,null,null,null,null,null,null,null,null,null,null,null,null,null,null,null,null,null,null,9240,"Intereses de la deuda externa con instituciones de crédito"]
[null,null,null,null," ",null,null,null,null,null,null,null,null,null,null,null,null,null,null,null,0,0,null,null,null,null,null,null,null,null,null,null,null,null,null,null,null,null,null,null,null,null,null,null,null,null,null,null,null,null,null,null,null,null,null,null,null,null,null,null,null,null,null,null,null,null,null,null,null,null,null,null,null,null,null,null,null,null,null,null,null,null,null,null,null,null,null,null,null,null,null,null,null,null,null,null,null,null,null,null,null,null,null,null,null,null,null,null,null,null,null,null,null,null,null,null,null,null,null,null,null,null,null,null,null,null,null,9250,"Intereses de la deuda con organismos financieros Internacionales"]
[null,null,null,null," ",null,null,null,null,null,null,null,null,null,null,null,null,null,null,null,0,0,null,null,null,null,null,null,null,null,null,null,null,null,null,null,null,null,null,null,null,null,null,null,null,null,null,null,null,null,null,null,null,null,null,null,null,null,null,null,null,null,null,null,null,null,null,null,null,null,null,null,null,null,null,null,null,null,null,null,null,null,null,null,null,null,null,null,null,null,null,null,null,null,null,null,null,null,null,null,null,null,null,null,null,null,null,null,null,null,null,null,null,null,null,null,null,null,null,null,null,null,null,null,null,null,null,9260,"Intereses de la deuda bilateral"]
[null,null,null,null," ",null,null,null,null,null,null,null,null,null,null,null,null,null,null,null,0,0,null,null,null,null,null,null,null,null,null,null,null,null,null,null,null,null,null,null,null,null,null,null,null,null,null,null,null,null,null,null,null,null,null,null,null,null,null,null,null,null,null,null,null,null,null,null,null,null,null,null,null,null,null,null,null,null,null,null,null,null,null,null,null,null,null,null,null,null,null,null,null,null,null,null,null,null,null,null,null,null,null,null,null,null,null,null,null,null,null,null,null,null,null,null,null,null,null,null,null,null,null,null,null,null,null,9270,"Intereses derivados de la colocación de títulos y valores en el exterior"]
[null,null,null,null," ",null,null,null,null,null,null,null,null,null,null,null,null,null,null,null,0,0,null,null,null,null,null,null,null,null,null,null,null,null,null,null,null,null,null,null,null,null,null,null,null,null,null,null,null,null,null,null,null,null,null,null,null,null,null,null,null,null,null,null,null,null,null,null,null,null,null,null,null,null,null,null,null,null,null,null,null,null,null,null,null,null,null,null,null,null,null,null,null,null,null,null,null,null,null,null,null,null,null,null,null,null,null,null,null,null,null,null,null,null,null,null,null,null,null,null,null,null,null,null,null,null,null,9280,"Intereses por arrendamientos financieros internacionales"]
[null,null,null,null," ",null,null,null,null,null,null,null,null,null,null,null,null,null,null,null,0,0,null,null,null,null,null,null,null,null,null,null,null,null,null,null,null,null,null,null,null,null,null,null,null,null,null,null,null,null,null,null,null,null,null,null,null,null,null,null,null,null,null,null,null,null,null,null,null,null,null,null,null,null,null,null,null,null,null,null,null,null,null,null,null,null,null,null,null,null,null,null,null,null,null,null,null,null,null,null,null,null,null,null,null,null,null,null,null,null,null,null,null,null,null,null,null,null,null,null,null,null,null,null,null,null,null,9310,"Comisiones de la deuda pública interna"]
[null,null,null,null," ",null,null,null,null,null,null,null,null,null,null,null,null,null,null,null,0,0,null,null,null,null,null,null,null,null,null,null,null,null,null,null,null,null,null,null,null,null,null,null,null,null,null,null,null,null,null,null,null,null,null,null,null,null,null,null,null,null,null,null,null,null,null,null,null,null,null,null,null,null,null,null,null,null,null,null,null,null,null,null,null,null,null,null,null,null,null,null,null,null,null,null,null,null,null,null,null,null,null,null,null,null,null,null,null,null,null,null,null,null,null,null,null,null,null,null,null,null,null,null,null,null,null,9320,"Comisiones de la deuda pública externa"]
[null,null,null,null," ",null,null,null,null,null,null,null,null,null,null,null,null,null,null,null,0,0,null,null,null,null,null,null,null,null,null,null,null,null,null,null,null,null,null,null,null,null,null,null,null,null,null,null,null,null,null,null,null,null,null,null,null,null,null,null,null,null,null,null,null,null,null,null,null,null,null,null,null,null,null,null,null,null,null,null,null,null,null,null,null,null,null,null,null,null,null,null,null,null,null,null,null,null,null,null,null,null,null,null,null,null,null,null,null,null,null,null,null,null,null,null,null,null,null,null,null,null,null,null,null,null,null,9410,"Gastos de la deuda pública interna"]
[null,null,null,null," ",null,null,null,null,null,null,null,null,null,null,null,null,null,null,null,0,0,null,null,null,null,null,null,null,null,null,null,null,null,null,null,null,null,null,null,null,null,null,null,null,null,null,null,null,null,null,null,null,null,null,null,null,null,null,null,null,null,null,null,null,null,null,null,null,null,null,null,null,null,null,null,null,null,null,null,null,null,null,null,null,null,null,null,null,null,null,null,null,null,null,null,null,null,null,null,null,null,null,null,null,null,null,null,null,null,null,null,null,null,null,null,null,null,null,null,null,null,null,null,null,null,null,9420,"Gastos de la deuda pública externa"]
[null,null,null,null," ",null,null,null,null,null,null,null,null,null,null,null,null,null,null,null,0,0,null,null,null,null,null,null,null,null,null,null,null,null,null,null,null,null,null,null,null,null,null,null,null,null,null,null,null,null,null,null,null,null,null,null,null,null,null,null,null,null,null,null,null,null,null,null,null,null,null,null,null,null,null,null,null,null,null,null,null,null,null,null,null,null,null,null,null,null,null,null,null,null,null,null,null,null,null,null,null,null,null,null,null,null,null,null,null,null,null,null,null,null,null,null,null,null,null,null,null,null,null,null,null,null,null,9510,"Costos por cobertura de la deuda pública interna"]
[null,null,null,null," ",null,null,null,null,null,null,null,null,null,null,null,null,null,null,null,0,0,null,null,null,null,null,null,null,null,null,null,null,null,null,null,null,null,null,null,null,null,null,null,null,null,null,null,null,null,null,null,null,null,null,null,null,null,null,null,null,null,null,null,null,null,null,null,null,null,null,null,null,null,null,null,null,null,null,null,null,null,null,null,null,null,null,null,null,null,null,null,null,null,null,null,null,null,null,null,null,null,null,null,null,null,null,null,null,null,null,null,null,null,null,null,null,null,null,null,null,null,null,null,null,null,null,9520,"Costos por cobertura de la deuda pública externa"]
[null,null,null,null," ",null,null,null,null,null,null,null,null,null,null,null,null,null,null,null,0,0,null,null,null,null,null,null,null,null,null,null,null,null,null,null,null,null,null,null,null,null,null,null,null,null,null,null,null,null,null,null,null,null,null,null,null,null,null,null,null,null,null,null,null,null,null,null,null,null,null,null,null,null,null,null,null,null,null,null,null,null,null,null,null,null,null,null,null,null,null,null,null,null,null,null,null,null,null,null,null,null,null,null,null,null,null,null,null,null,null,null,null,null,null,null,null,null,null,null,null,null,null,null,null,null,null,9610,"Apoyos a intermediarios financieros"]
[null,null,null,null," ",null,null,null,null,null,null,null,null,null,null,null,null,null,null,null,0,0,null,null,null,null,null,null,null,null,null,null,null,null,null,null,null,null,null,null,null,null,null,null,null,null,null,null,null,null,null,null,null,null,null,null,null,null,null,null,null,null,null,null,null,null,null,null,null,null,null,null,null,null,null,null,null,null,null,null,null,null,null,null,null,null,null,null,null,null,null,null,null,null,null,null,null,null,null,null,null,null,null,null,null,null,null,null,null,null,null,null,null,null,null,null,null,null,null,null,null,null,null,null,null,null,null,9620,"Apoyos a ahorradores y deudores del Sistema Financiero Nacional"]
[null,null,null,null," ",null,null,null,null,null,null,null,null,null,null,null,null,null,null,null,0,0,null,null,null,null,null,null,null,null,null,null,null,null,null,null,null,null,null,null,null,null,null,null,null,null,null,null,null,null,null,null,null,null,null,null,null,null,null,null,null,null,null,null,null,null,null,null,null,null,null,null,null,null,null,null,null,null,null,null,null,null,null,null,null,null,null,null,null,null,null,null,null,null,null,null,null,null,null,null,null,null,null,null,null,null,null,null,null,null,null,null,null,null,null,null,null,null,null,null,null,null,null,null,null,null,null,9910,"ADEFAS"]
[null,null,null,null," ",null,null,null,null,null,null,null,null,null,null,null,null,null,null,null,0,0]
[null,null,null,null," ",null,null,null,null,null,null,null,null,null,null,null,null,null,null,null,0,0]
[null,null,null,null," ",null,null,null,null,null,null,null,null,null,null,null,null,null,null,null,0,0]
[null,null,null,null," ",null,null,null,null,null,null,null,null,null,null,null,null,null,null,null,0,0]
[null,null,null,null," ",null,null,null,null,null,null,null,null,null,null,null,null,null,null,null,0,0]
[null,null,null,null," ",null,null,null,null,null,null,null,null,null,null,null,null,null,null,null,{"$f":"SUM(I233:T233)","v":0},0]
[null,null,null,null," ",null,null,null,null,null,null,null,null,null,null,null,null,null,null,null,{"$f":"SUM(I234:T234)","v":0},0]
[null,null,null,null," ",null,null,null,null,null,null,null,null,null,null,null,null,null,null,null,0,0]
[null,null,null,null," ",null,null,null,null,null,null,null,null,null,null,null,null,null,null,null,0,0]
[null,null,null,null," ",null,null,null,null,null,null,null,null,null,null,null,null,null,null,null,0,0]
[null,null,null,null," ",null,null,null,null,null,null,null,null,null,null,null,null,null,null,null,0,0]
[null,null,null,null," ",null,null,null,null,null,null,null,null,null,null,null,null,null,null,null,0,0]
[null,null,null,null," ",null,null,null,null,null,null,null,null,null,null,null,null,null,null,null,0,0]
[null,null,null,null," ",null,null,null,null,null,null,null,null,null,null,null,null,null,null,null,0,0]
[null,null,null,null," ",null,null,null,null,null,null,null,null,null,null,null,null,null,null,null,0,0]
[null,null,null,null," ",null,null,null,null,null,null,null,null,null,null,null,null,null,null,null,0,0]
[null,null,null,null," ",null,null,null,null,null,null,null,null,null,null,null,null,null,null,null,0,0]
[null,null,null,null,{"$f":"IF(D245>0,VLOOKUP(D245,$DX$1:$DY$227,2),\" \")","v":" "},null,null,null,null,null,null,null,null,null,null,null,null,null,null,null,0,0]
[null,null,null,null," ",null,null,null,null,null,null,null,null,null,null,null,null,null,null,null,0,0]
[null,null,null,null," ",null,null,null,null,null,null,null,null,null,null,null,null,null,null,null,0,0]
[null,null,null,null," ",null,null,null,null,null,null,null,null,null,null,null,null,null,null,null,0,0]
[null,null,null,null," ",null,null,null,null,null,null,null,null,null,null,null,null,null,null,null,0,0]
[null,null,null,null," ",null,null,null,null,null,null,null,null,null,null,null,null,null,null,null,0,0]
[null,null,null,null," ",null,null,null,null,null,null,null,null,null,null,null,null,null,null,null,0,0]
[null,null,null,null," ",null,null,null,null,null,null,null,null,null,null,null,null,null,null,null,{"$f":"SUM(I252:T252)","v":0},0]
[null,null,null,null," ",null,null,null,null,null,null,null,null,null,null,null,null,null,null,null,{"$f":"SUM(I253:T253)","v":0},0]
[null,null,null,null," ",null,null,null,null,null,null,null,null,null,null,null,null,null,null,null,0,0]
[null,null,null,null," ",null,null,null,null,null,null,null,null,null,null,null,null,null,null,null,0,0]
[null,null,null,null," ",null,null,null,null,null,null,null,null,null,null,null,null,null,null,null,0,0]
[null,null,null,null," ",null,null,null,null,null,null,null,null,null,null,null,null,null,null,null,0,0]
[null,null,null,null," ",null,null,null,null,null,null,null,null,null,null,null,null,null,null,null,0,0]
[null,null,null,null," ",null,null,null,null,null,null,null,null,null,null,null,null,null,null,null,0,0]
[null,null,null,null," ",null,null,null,null,null,null,null,null,null,null,null,null,null,null,null,0,0]
[null,null,null,null," ",null,null,null,null,null,null,null,null,null,null,null,null,null,null,null,0,0]
[null,null,null,null," ",null,null,null,null,null,null,null,null,null,null,null,null,null,null,null,0,0]
[null,"COMPONENTE 8","UR",{"$f":"SUM(F266:F315)","v":0},null,null,null,{"$f":"SUM(G266)","v":0},null,null,null,null,null,null,null,null,null,null,null,null,{"$f":"SUM(U213:U262)","v":0},0]
[]
[]
[null,"UR",null,null,{"$f":"IF(D266>0,VLOOKUP(D266,$DX$1:$DY$227,2),\" \")","v":" "},null,{"$f":"SUM(F266:F315)","v":0},null,null,null,null,null,null,null,null,null,null,null,null,null,{"$f":"SUM(I266:T266)","v":0},{"$f":"F266-U266","v":0}]
[null,null,null,null," ",null,null,null,null,null,null,null,null,null,null,null,null,null,null,null,0,{"$f":"F267-U267","v":0}]
[null,null,null,null," ",null,null,null,null,null,null,null,null,null,null,null,null,null,null,null,0,0]
[null,null,null,null," ",null,null,null,null,null,null,null,null,null,null,null,null,null,null,null,0,0]
[null,null,null,null," ",null,null,null,null,null,null,null,null,null,null,null,null,null,null,null,0,0]
[null,null,null,null," ",null,null,null,null,null,null,null,null,null,null,null,null,null,null,null,0,0]
[null,null,null,null," ",null,null,null,null,null,null,null,null,null,null,null,null,null,null,null,0,0]
[null,null,null,null," ",null,null,null,null,null,null,null,null,null,null,null,null,null,null,null,0,0]
[null,null,null,null," ",null,null,null,null,null,null,null,null,null,null,null,null,null,null,null,0,0]
[null,null,null,null," ",null,null,null,null,null,null,null,null,null,null,null,null,null,null,null,0,0]
[null,null,null,null," ",null,null,null,null,null,null,null,null,null,null,null,null,null,null,null,0,0]
[null,null,null,null," ",null,null,null,null,null,null,null,null,null,null,null,null,null,null,null,0,0]
[null,null,null,null," ",null,null,null,null,null,null,null,null,null,null,null,null,null,null,null,0,0]
[null,null,null,null," ",null,null,null,null,null,null,null,null,null,null,null,null,null,null,null,0,0]
[null,null,null,null," ",null,null,null,null,null,null,null,null,null,null,null,null,null,null,null,0,0]
[null,null,null,null," ",null,null,null,null,null,null,null,null,null,null,null,null,null,null,null,0,0]
[null,null,null,null," ",null,null,null,null,null,null,null,null,null,null,null,null,null,null,null,0,0]
[null,null,null,null," ",null,null,null,null,null,null,null,null,null,null,null,null,null,null,null,0,0]
[null,null,null,null," ",null,null,null,null,null,null,null,null,null,null,null,null,null,null,null,0,0]
[null,null,null,null," ",null,null,null,null,null,null,null,null,null,null,null,null,null,null,null,0,0]
[null,null,null,null," ",null,null,null,null,null,null,null,null,null,null,null,null,null,null,null,{"$f":"SUM(I286:T286)","v":0},0]
[null,null,null,null," ",null,null,null,null,null,null,null,null,null,null,null,null,null,null,null,{"$f":"SUM(I287:T287)","v":0},0]
[null,null,null,null," ",null,null,null,null,null,null,null,null,null,null,null,null,null,null,null,0,0]
[null,null,null,null," ",null,null,null,null,null,null,null,null,null,null,null,null,null,null,null,0,0]
[null,null,null,null," ",null,null,null,null,null,null,null,null,null,null,null,null,null,null,null,0,0]
[null,null,null,null," ",null,null,null,null,null,null,null,null,null,null,null,null,null,null,null,0,0]
[null,null,null,null," ",null,null,null,null,null,null,null,null,null,null,null,null,null,null,null,0,0]
[null,null,null,null," ",null,null,null,null,null,null,null,null,null,null,null,null,null,null,null,0,0]
[null,null,null,null," ",null,null,null,null,null,null,null,null,null,null,null,null,null,null,null,0,0]
[null,null,null,null," ",null,null,null,null,null,null,null,null,null,null,null,null,null,null,null,0,0]
[null,null,null,null," ",null,null,null,null,null,null,null,null,null,null,null,null,null,null,null,0,0]
[null,null,null,null," ",null,null,null,null,null,null,null,null,null,null,null,null,null,null,null,0,0]
[null,null,null,null,{"$f":"IF(D298>0,VLOOKUP(D298,$DX$1:$DY$227,2),\" \")","v":" "},null,null,null,null,null,null,null,null,null,null,null,null,null,null,null,0,0]
[null,null,null,null," ",null,null,null,null,null,null,null,null,null,null,null,null,null,null,null,0,0]
[null,null,null,null," ",null,null,null,null,null,null,null,null,null,null,null,null,null,null,null,0,0]
[null,null,null,null," ",null,null,null,null,null,null,null,null,null,null,null,null,null,null,null,0,0]
[null,null,null,null," ",null,null,null,null,null,null,null,null,null,null,null,null,null,null,null,0,0]
[null,null,null,null," ",null,null,null,null,null,null,null,null,null,null,null,null,null,null,null,0,0]
[null,null,null,null," ",null,null,null,null,null,null,null,null,null,null,null,null,null,null,null,0,0]
[null,null,null,null," ",null,null,null,null,null,null,null,null,null,null,null,null,null,null,null,{"$f":"SUM(I305:T305)","v":0},0]
[null,null,null,null," ",null,null,null,null,null,null,null,null,null,null,null,null,null,null,null,{"$f":"SUM(I306:T306)","v":0},0]
[null,null,null,null," ",null,null,null,null,null,null,null,null,null,null,null,null,null,null,null,0,0]
[null,null,null,null," ",null,null,null,null,null,null,null,null,null,null,null,null,null,null,null,0,0]
[null,null,null,null," ",null,null,null,null,null,null,null,null,null,null,null,null,null,null,null,0,0]
[null,null,null,null," ",null,null,null,null,null,null,null,null,null,null,null,null,null,null,null,0,0]
[null,null,null,null," ",null,null,null,null,null,null,null,null,null,null,null,null,null,null,null,0,0]
[null,null,null,null," ",null,null,null,null,null,null,null,null,null,null,null,null,null,null,null,0,0]
[null,null,null,null," ",null,null,null,null,null,null,null,null,null,null,null,null,null,null,null,0,0]
[null,null,null,null," ",null,null,null,null,null,null,null,null,null,null,null,null,null,null,null,0,0]
[null,null,null,null," ",null,null,null,null,null,null,null,null,null,null,null,null,null,null,null,0,0]
[null,"COMPONENTE 9","UR",{"$f":"SUM(F319:F368)","v":0},null,null,null,{"$f":"SUM(G319)","v":0},null,null,null,null,null,null,null,null,null,null,null,null,{"$f":"SUM(U266:U315)","v":0},0]
[]
[]
[null,"UR",null,null,{"$f":"IF(D319>0,VLOOKUP(D319,$DX$1:$DY$227,2),\" \")","v":" "},null,{"$f":"SUM(F319:F368)","v":0},null,null,null,null,null,null,null,null,null,null,null,null,null,{"$f":"SUM(I319:T319)","v":0},{"$f":"F319-U319","v":0}]
[null,null,null,null," ",null,null,null,null,null,null,null,null,null,null,null,null,null,null,null,0,{"$f":"F320-U320","v":0}]
[null,null,null,null," ",null,null,null,null,null,null,null,null,null,null,null,null,null,null,null,0,0]
[null,null,null,null," ",null,null,null,null,null,null,null,null,null,null,null,null,null,null,null,0,0]
[null,null,null,null," ",null,null,null,null,null,null,null,null,null,null,null,null,null,null,null,0,0]
[null,null,null,null," ",null,null,null,null,null,null,null,null,null,null,null,null,null,null,null,0,0]
[null,null,null,null," ",null,null,null,null,null,null,null,null,null,null,null,null,null,null,null,0,0]
[null,null,null,null," ",null,null,null,null,null,null,null,null,null,null,null,null,null,null,null,0,0]
[null,null,null,null," ",null,null,null,null,null,null,null,null,null,null,null,null,null,null,null,0,0]
[null,null,null,null," ",null,null,null,null,null,null,null,null,null,null,null,null,null,null,null,0,0]
[null,null,null,null," ",null,null,null,null,null,null,null,null,null,null,null,null,null,null,null,0,0]
[null,null,null,null," ",null,null,null,null,null,null,null,null,null,null,null,null,null,null,null,0,0]
[null,null,null,null," ",null,null,null,null,null,null,null,null,null,null,null,null,null,null,null,0,0]
[null,null,null,null," ",null,null,null,null,null,null,null,null,null,null,null,null,null,null,null,0,0]
[null,null,null,null," ",null,null,null,null,null,null,null,null,null,null,null,null,null,null,null,0,0]
[null,null,null,null," ",null,null,null,null,null,null,null,null,null,null,null,null,null,null,null,0,0]
[null,null,null,null," ",null,null,null,null,null,null,null,null,null,null,null,null,null,null,null,0,0]
[null,null,null,null," ",null,null,null,null,null,null,null,null,null,null,null,null,null,null,null,0,0]
[null,null,null,null," ",null,null,null,null,null,null,null,null,null,null,null,null,null,null,null,0,0]
[null,null,null,null," ",null,null,null,null,null,null,null,null,null,null,null,null,null,null,null,0,0]
[null,null,null,null," ",null,null,null,null,null,null,null,null,null,null,null,null,null,null,null,{"$f":"SUM(I339:T339)","v":0},0]
[null,null,null,null," ",null,null,null,null,null,null,null,null,null,null,null,null,null,null,null,{"$f":"SUM(I340:T340)","v":0},0]
[null,null,null,null," ",null,null,null,null,null,null,null,null,null,null,null,null,null,null,null,0,0]
[null,null,null,null," ",null,null,null,null,null,null,null,null,null,null,null,null,null,null,null,0,0]
[null,null,null,null," ",null,null,null,null,null,null,null,null,null,null,null,null,null,null,null,0,0]
[null,null,null,null," ",null,null,null,null,null,null,null,null,null,null,null,null,null,null,null,0,0]
[null,null,null,null," ",null,null,null,null,null,null,null,null,null,null,null,null,null,null,null,0,0]
[null,null,null,null," ",null,null,null,null,null,null,null,null,null,null,null,null,null,null,null,0,0]
[null,null,null,null," ",null,null,null,null,null,null,null,null,null,null,null,null,null,null,null,0,0]
[null,null,null,null," ",null,null,null,null,null,null,null,null,null,null,null,null,null,null,null,0,0]
[null,null,null,null," ",null,null,null,null,null,null,null,null,null,null,null,null,null,null,null,0,0]
[null,null,null,null," ",null,null,null,null,null,null,null,null,null,null,null,null,null,null,null,0,0]
[null,null,null,null,{"$f":"IF(D351>0,VLOOKUP(D351,$DX$1:$DY$227,2),\" \")","v":" "},null,null,null,null,null,null,null,null,null,null,null,null,null,null,null,0,0]
[null,null,null,null," ",null,null,null,null,null,null,null,null,null,null,null,null,null,null,null,0,0]
[null,null,null,null," ",null,null,null,null,null,null,null,null,null,null,null,null,null,null,null,0,0]
[null,null,null,null," ",null,null,null,null,null,null,null,null,null,null,null,null,null,null,null,0,0]
[null,null,null,null," ",null,null,null,null,null,null,null,null,null,null,null,null,null,null,null,0,0]
[null,null,null,null," ",null,null,null,null,null,null,null,null,null,null,null,null,null,null,null,0,0]
[null,null,null,null," ",null,null,null,null,null,null,null,null,null,null,null,null,null,null,null,0,0]
[null,null,null,null," ",null,null,null,null,null,null,null,null,null,null,null,null,null,null,null,{"$f":"SUM(I358:T358)","v":0},0]
[null,null,null,null," ",null,null,null,null,null,null,null,null,null,null,null,null,null,null,null,{"$f":"SUM(I359:T359)","v":0},0]
[null,null,null,null," ",null,null,null,null,null,null,null,null,null,null,null,null,null,null,null,0,0]
[null,null,null,null," ",null,null,null,null,null,null,null,null,null,null,null,null,null,null,null,0,0]
[null,null,null,null," ",null,null,null,null,null,null,null,null,null,null,null,null,null,null,null,0,0]
[null,null,null,null," ",null,null,null,null,null,null,null,null,null,null,null,null,null,null,null,0,0]
[null,null,null,null," ",null,null,null,null,null,null,null,null,null,null,null,null,null,null,null,0,0]
[null,null,null,null," ",null,null,null,null,null,null,null,null,null,null,null,null,null,null,null,0,0]
[null,null,null,null," ",null,null,null,null,null,null,null,null,null,null,null,null,null,null,null,0,0]
[null,null,null,null," ",null,null,null,null,null,null,null,null,null,null,null,null,null,null,null,0,0]
[null,null,null,null," ",null,null,null,null,null,null,null,null,null,null,null,null,null,null,null,0,0]
[null,"COMPONENTE 10","UR",{"$f":"SUM(F372:F421)","v":0},null,null,null,{"$f":"SUM(G372)","v":0},null,null,null,null,null,null,null,null,null,null,null,null,{"$f":"SUM(U319:U368)","v":0},{"$f":"F369-U369","v":0}]
[]
[]
[null,"UR",null,null,{"$f":"IF(D372>0,VLOOKUP(D372,$DX$1:$DY$227,2),\" \")","v":" "},null,{"$f":"SUM(F372:F421)","v":0},null,null,null,null,null,null,null,null,null,null,null,null,null,{"$f":"SUM(I372:T372)","v":0},{"$f":"F372-U372","v":0}]
[null,null,null,null," ",null,null,null,null,null,null,null,null,null,null,null,null,null,null,null,0,{"$f":"F373-U373","v":0}]
[null,null,null,null," ",null,null,null,null,null,null,null,null,null,null,null,null,null,null,null,0,0]
[null,null,null,null," ",null,null,null,null,null,null,null,null,null,null,null,null,null,null,null,0,0]
[null,null,null,null," ",null,null,null,null,null,null,null,null,null,null,null,null,null,null,null,0,0]
[null,null,null,null," ",null,null,null,null,null,null,null,null,null,null,null,null,null,null,null,0,0]
[null,null,null,null," ",null,null,null,null,null,null,null,null,null,null,null,null,null,null,null,0,0]
[null,null,null,null," ",null,null,null,null,null,null,null,null,null,null,null,null,null,null,null,0,0]
[null,null,null,null," ",null,null,null,null,null,null,null,null,null,null,null,null,null,null,null,0,0]
[null,null,null,null," ",null,null,null,null,null,null,null,null,null,null,null,null,null,null,null,0,0]
[null,null,null,null," ",null,null,null,null,null,null,null,null,null,null,null,null,null,null,null,0,0]
[null,null,null,null," ",null,null,null,null,null,null,null,null,null,null,null,null,null,null,null,0,0]
[null,null,null,null," ",null,null,null,null,null,null,null,null,null,null,null,null,null,null,null,0,0]
[null,null,null,null," ",null,null,null,null,null,null,null,null,null,null,null,null,null,null,null,0,0]
[null,null,null,null," ",null,null,null,null,null,null,null,null,null,null,null,null,null,null,null,0,0]
[null,null,null,null," ",null,null,null,null,null,null,null,null,null,null,null,null,null,null,null,0,0]
[null,null,null,null," ",null,null,null,null,null,null,null,null,null,null,null,null,null,null,null,0,0]
[null,null,null,null," ",null,null,null,null,null,null,null,null,null,null,null,null,null,null,null,0,0]
[null,null,null,null," ",null,null,null,null,null,null,null,null,null,null,null,null,null,null,null,0,0]
[null,null,null,null," ",null,null,null,null,null,null,null,null,null,null,null,null,null,null,null,0,0]
[null,null,null,null," ",null,null,null,null,null,null,null,null,null,null,null,null,null,null,null,{"$f":"SUM(I392:T392)","v":0},0]
[null,null,null,null," ",null,null,null,null,null,null,null,null,null,null,null,null,null,null,null,{"$f":"SUM(I393:T393)","v":0},0]
[null,null,null,null," ",null,null,null,null,null,null,null,null,null,null,null,null,null,null,null,0,0]
[null,null,null,null," ",null,null,null,null,null,null,null,null,null,null,null,null,null,null,null,0,0]
[null,null,null,null," ",null,null,null,null,null,null,null,null,null,null,null,null,null,null,null,0,0]
[null,null,null,null," ",null,null,null,null,null,null,null,null,null,null,null,null,null,null,null,0,0]
[null,null,null,null," ",null,null,null,null,null,null,null,null,null,null,null,null,null,null,null,0,0]
[null,null,null,null," ",null,null,null,null,null,null,null,null,null,null,null,null,null,null,null,0,0]
[null,null,null,null," ",null,null,null,null,null,null,null,null,null,null,null,null,null,null,null,0,0]
[null,null,null,null," ",null,null,null,null,null,null,null,null,null,null,null,null,null,null,null,0,0]
[null,null,null,null," ",null,null,null,null,null,null,null,null,null,null,null,null,null,null,null,0,0]
[null,null,null,null," ",null,null,null,null,null,null,null,null,null,null,null,null,null,null,null,0,0]
[null,null,null,null,{"$f":"IF(D404>0,VLOOKUP(D404,$DX$1:$DY$227,2),\" \")","v":" "},null,null,null,null,null,null,null,null,null,null,null,null,null,null,null,0,0]
[null,null,null,null," ",null,null,null,null,null,null,null,null,null,null,null,null,null,null,null,0,0]
[null,null,null,null," ",null,null,null,null,null,null,null,null,null,null,null,null,null,null,null,0,0]
[null,null,null,null," ",null,null,null,null,null,null,null,null,null,null,null,null,null,null,null,0,0]
[null,null,null,null," ",null,null,null,null,null,null,null,null,null,null,null,null,null,null,null,0,0]
[null,null,null,null," ",null,null,null,null,null,null,null,null,null,null,null,null,null,null,null,0,0]
[null,null,null,null," ",null,null,null,null,null,null,null,null,null,null,null,null,null,null,null,0,0]
[null,null,null,null," ",null,null,null,null,null,null,null,null,null,null,null,null,null,null,null,{"$f":"SUM(I411:T411)","v":0},0]
[null,null,null,null," ",null,null,null,null,null,null,null,null,null,null,null,null,null,null,null,{"$f":"SUM(I412:T412)","v":0},0]
[null,null,null,null," ",null,null,null,null,null,null,null,null,null,null,null,null,null,null,null,0,0]
[null,null,null,null," ",null,null,null,null,null,null,null,null,null,null,null,null,null,null,null,0,0]
[null,null,null,null," ",null,null,null,null,null,null,null,null,null,null,null,null,null,null,null,0,0]
[null,null,null,null," ",null,null,null,null,null,null,null,null,null,null,null,null,null,null,null,0,0]
[null,null,null,null," ",null,null,null,null,null,null,null,null,null,null,null,null,null,null,null,0,0]
[null,null,null,null," ",null,null,null,null,null,null,null,null,null,null,null,null,null,null,null,0,0]
[null,null,null,null," ",null,null,null,null,null,null,null,null,null,null,null,null,null,null,null,0,0]
[null,null,null,null," ",null,null,null,null,null,null,null,null,null,null,null,null,null,null,null,0,0]
[null,null,null,null," ",null,null,null,null,null,null,null,null,null,null,null,null,null,null,null,0,0]
[null,null,null,null,null,null,null,{"$f":"SUM(H10:H421)","v":14446250},null,null,null,null,null,null,null,null,null,null,null,null,{"$f":"SUM(U372:U421)","v":0},{"$f":"F422-U422","v":0},null,null,null,null,null,null,null,null,null,null,null,null,null,null,null,null,null,null,null,null,null,null,null,null,null,null,null,null,null,null,null,null,null,null,null,null,null,null,null,null,null,null,null,null,null,null,null,null,null,null,null,null,null,null,null,null,null,null,null,null,null,null,null,null,null,null,null,null,null,null,null,null,null,null,null,null,null,null,null,null,null,null,null,null,null,null,null,null,null,null,null,null,null,null,null,null,null,null,null,null,null,null,null,null,null,2110,"Materiales, útiles y equipos menores de oficina"]
[null,null,null,null,null,null,null,null,null,null,null,null,null,null,null,null,null,null,null,null,null,null,null,null,null,null,null,null,null,null,null,null,null,null,null,null,null,null,null,null,null,null,null,null,null,null,null,null,null,null,null,null,null,null,null,null,null,null,null,null,null,null,null,null,null,null,null,null,null,null,null,null,null,null,null,null,null,null,null,null,null,null,null,null,null,null,null,null,null,null,null,null,null,null,null,null,null,null,null,null,null,null,null,null,null,null,null,null,null,null,null,null,null,null,null,null,null,null,null,null,null,null,null,null,null,null,null,2120,"Materiales y utiles de impresion y reproduccion"]
[null,null,null,null,null,null,null,null,null,null,null,null,null,null,null,null,null,null,null,null,{"$f":"SUM(U422,U369,U316,U263,U210,U157,U125,U93,U61,U35)","v":14446250},{"$f":"H422-U424","v":0},null,null,null,null,null,null,null,null,null,null,null,null,null,null,null,null,null,null,null,null,null,null,null,null,null,null,null,null,null,null,null,null,null,null,null,null,null,null,null,null,null,null,null,null,null,null,null,null,null,null,null,null,null,null,null,null,null,null,null,null,null,null,null,null,null,null,null,null,null,null,null,null,null,null,null,null,null,null,null,null,null,null,null,null,null,null,null,null,null,null,null,null,null,null,null,null,null,null,null,null,null,null,null,null,null,2150,"Material impreso e informacion digital"]
[null,null,null,null,null,null,null,null,null,null,null,null,null,null,null,null,null,null,null,null,null,null,null,null,null,null,null,null,null,null,null,null,null,null,null,null,null,null,null,null,null,null,null,null,null,null,null,null,null,null,null,null,null,null,null,null,null,null,null,null,null,null,null,null,null,null,null,null,null,null,null,null,null,null,null,null,null,null,null,null,null,null,null,null,null,null,null,null,null,null,null,null,null,null,null,null,null,null,null,null,null,null,null,null,null,null,null,null,null,null,null,null,null,null,null,null,null,null,null,null,null,null,null,null,null,null,null,2611,"Combus lub y aditivos vehiculos seg pub"]
[null,null,null,null,null,null,null,null,null,null,null,null,null,null,null,null,null,null,null,null,null,null,null,null,null,null,null,null,null,null,null,null,null,null,null,null,null,null,null,null,null,null,null,null,null,null,null,null,null,null,null,null,null,null,null,null,null,null,null,null,null,null,null,null,null,null,null,null,null,null,null,null,null,null,null,null,null,null,null,null,null,null,null,null,null,null,null,null,null,null,null,null,null,null,null,null,null,null,null,null,null,null,null,null,null,null,null,null,null,null,null,null,null,null,null,null,null,null,null,null,null,null,null,null,null,null,null,2710,"Vestuario y uniformes"]
[null,null,null,null,null,null,null,null,null,null,null,null,null,null,null,null,null,null,null,null,null,null,null,null,null,null,null,null,null,null,null,null,null,null,null,null,null,null,null,null,null,null,null,null,null,null,null,null,null,null,null,null,null,null,null,null,null,null,null,null,null,null,null,null,null,null,null,null,null,null,null,null,null,null,null,null,null,null,null,null,null,null,null,null,null,null,null,null,null,null,null,null,null,null,null,null,null,null,null,null,null,null,null,null,null,null,null,null,null,null,null,null,null,null,null,null,null,null,null,null,null,null,null,null,null,null,null,2930,"Ref y acc menores de mob y eq de admon educ y recr"]
[null,null,null,null,null,null,null,null,null,null,null,null,null,null,null,null,null,null,null,null,null,null,null,null,null,null,null,null,null,null,null,null,null,null,null,null,null,null,null,null,null,null,null,null,null,null,null,null,null,null,null,null,null,null,null,null,null,null,null,null,null,null,null,null,null,null,null,null,null,null,null,null,null,null,null,null,null,null,null,null,null,null,null,null,null,null,null,null,null,null,null,null,null,null,null,null,null,null,null,null,null,null,null,null,null,null,null,null,null,null,null,null,null,null,null,null,null,null,null,null,null,null,null,null,null,null,null,2940,"Ref y acc menrs de mob y eq de com y tec de la inf"]
[null,null,null,null,null,null,null,null,null,null,null,null,null,null,null,null,null,null,null,null,null,null,null,null,null,null,null,null,null,null,null,null,null,null,null,null,null,null,null,null,null,null,null,null,null,null,null,null,null,null,null,null,null,null,null,null,null,null,null,null,null,null,null,null,null,null,null,null,null,null,null,null,null,null,null,null,null,null,null,null,null,null,null,null,null,null,null,null,null,null,null,null,null,null,null,null,null,null,null,null,null,null,null,null,null,null,null,null,null,null,null,null,null,null,null,null,null,null,null,null,null,null,null,null,null,null,null,2960,"Ref y accesorios menores de equipo de transporte"]
[null,null,null,null,null,null,null,null,null,null,null,null,null,null,null,null,null,null,null,null,null,null,null,null,null,null,null,null,null,null,null,null,null,null,null,null,null,null,null,null,null,null,null,null,null,null,null,null,null,null,null,null,null,null,null,null,null,null,null,null,null,null,null,null,null,null,null,null,null,null,null,null,null,null,null,null,null,null,null,null,null,null,null,null,null,null,null,null,null,null,null,null,null,null,null,null,null,null,null,null,null,null,null,null,null,null,null,null,null,null,null,null,null,null,null,null,null,null,null,null,null,null,null,null,null,null,null,3110,"Energia electrica"]
[null,null,null,null,null,null,null,null,null,null,null,null,null,null,null,null,null,null,null,null,null,null,null,null,null,null,null,null,null,null,null,null,null,null,null,null,null,null,null,null,null,null,null,null,null,null,null,null,null,null,null,null,null,null,null,null,null,null,null,null,null,null,null,null,null,null,null,null,null,null,null,null,null,null,null,null,null,null,null,null,null,null,null,null,null,null,null,null,null,null,null,null,null,null,null,null,null,null,null,null,null,null,null,null,null,null,null,null,null,null,null,null,null,null,null,null,null,null,null,null,null,null,null,null,null,null,null,3140,"Telefonia tradicional"]
[null,null,null,null,null,null,null,null,null,null,null,null,null,null,null,null,null,null,null,null,null,null,null,null,null,null,null,null,null,null,null,null,null,null,null,null,null,null,null,null,null,null,null,null,null,null,null,null,null,null,null,null,null,null,null,null,null,null,null,null,null,null,null,null,null,null,null,null,null,null,null,null,null,null,null,null,null,null,null,null,null,null,null,null,null,null,null,null,null,null,null,null,null,null,null,null,null,null,null,null,null,null,null,null,null,null,null,null,null,null,null,null,null,null,null,null,null,null,null,null,null,null,null,null,null,null,null,3230,"Arrend de mob y eq de admon, educacional y recreat"]
[null,null,null,null,null,null,null,null,null,null,null,null,null,null,null,null,null,null,null,null,null,null,null,null,null,null,null,null,null,null,null,null,null,null,null,null,null,null,null,null,null,null,null,null,null,null,null,null,null,null,null,null,null,null,null,null,null,null,null,null,null,null,null,null,null,null,null,null,null,null,null,null,null,null,null,null,null,null,null,null,null,null,null,null,null,null,null,null,null,null,null,null,null,null,null,null,null,null,null,null,null,null,null,null,null,null,null,null,null,null,null,null,null,null,null,null,null,null,null,null,null,null,null,null,null,null,null,3350,"Servicios de investigacion cientifica y desarrollo"]
[null,null,null,null,null,null,null,null,null,null,null,null,null,null,null,null,null,null,null,null,null,null,null,null,null,null,null,null,null,null,null,null,null,null,null,null,null,null,null,null,null,null,null,null,null,null,null,null,null,null,null,null,null,null,null,null,null,null,null,null,null,null,null,null,null,null,null,null,null,null,null,null,null,null,null,null,null,null,null,null,null,null,null,null,null,null,null,null,null,null,null,null,null,null,null,null,null,null,null,null,null,null,null,null,null,null,null,null,null,null,null,null,null,null,null,null,null,null,null,null,null,null,null,null,null,null,null,3450,"Seguro de bienes patrimoniales"]
[null,null,null,null,null,null,null,null,null,null,null,null,null,null,null,null,null,null,null,null,null,null,null,null,null,null,null,null,null,null,null,null,null,null,null,null,null,null,null,null,null,null,null,null,null,null,null,null,null,null,null,null,null,null,null,null,null,null,null,null,null,null,null,null,null,null,null,null,null,null,null,null,null,null,null,null,null,null,null,null,null,null,null,null,null,null,null,null,null,null,null,null,null,null,null,null,null,null,null,null,null,null,null,null,null,null,null,null,null,null,null,null,null,null,null,null,null,null,null,null,null,null,null,null,null,null,null,3510,"Conservacion y mantenimiento menor de inmuebles"]
[null,null,null,null,null,null,null,null,null,null,null,null,null,null,null,null,null,null,null,null,null,null,null,null,null,null,null,null,null,null,null,null,null,null,null,null,null,null,null,null,null,null,null,null,null,null,null,null,null,null,null,null,null,null,null,null,null,null,null,null,null,null,null,null,null,null,null,null,null,null,null,null,null,null,null,null,null,null,null,null,null,null,null,null,null,null,null,null,null,null,null,null,null,null,null,null,null,null,null,null,null,null,null,null,null,null,null,null,null,null,null,null,null,null,null,null,null,null,null,null,null,null,null,null,null,null,null,3530,"Inst repar y mant de mob y eq de com y tec de la i"]
[null,null,null,null,null,null,null,null,null,null,null,null,null,null,null,null,null,null,null,null,null,null,null,null,null,null,null,null,null,null,null,null,null,null,null,null,null,null,null,null,null,null,null,null,null,null,null,null,null,null,null,null,null,null,null,null,null,null,null,null,null,null,null,null,null,null,null,null,null,null,null,null,null,null,null,null,null,null,null,null,null,null,null,null,null,null,null,null,null,null,null,null,null,null,null,null,null,null,null,null,null,null,null,null,null,null,null,null,null,null,null,null,null,null,null,null,null,null,null,null,null,null,null,null,null,null,null,3550,"Reparacion y mantenimiento de equipo de transporte"]
[null,null,null,null,null,null,null,null,null,null,null,null,null,null,null,null,null,null,null,null,null,null,null,null,null,null,null,null,null,null,null,null,null,null,null,null,null,null,null,null,null,null,null,null,null,null,null,null,null,null,null,null,null,null,null,null,null,null,null,null,null,null,null,null,null,null,null,null,null,null,null,null,null,null,null,null,null,null,null,null,null,null,null,null,null,null,null,null,null,null,null,null,null,null,null,null,null,null,null,null,null,null,null,null,null,null,null,null,null,null,null,null,null,null,null,null,null,null,null,null,null,null,null,null,null,null,null,3560,"Reparacion y mant de equipo de defensa y seguridad"]
[null,null,null,null,null,null,null,null,null,null,null,null,null,null,null,null,null,null,null,null,null,null,null,null,null,null,null,null,null,null,null,null,null,null,null,null,null,null,null,null,null,null,null,null,null,null,null,null,null,null,null,null,null,null,null,null,null,null,null,null,null,null,null,null,null,null,null,null,null,null,null,null,null,null,null,null,null,null,null,null,null,null,null,null,null,null,null,null,null,null,null,null,null,null,null,null,null,null,null,null,null,null,null,null,null,null,null,null,null,null,null,null,null,null,null,null,null,null,null,null,null,null,null,null,null,null,null,3750,"Viaticos en el pais"]
[null,null,null,null,null,null,null,null,null,null,null,null,null,null,null,null,null,null,null,null,null,null,null,null,null,null,null,null,null,null,null,null,null,null,null,null,null,null,null,null,null,null,null,null,null,null,null,null,null,null,null,null,null,null,null,null,null,null,null,null,null,null,null,null,null,null,null,null,null,null,null,null,null,null,null,null,null,null,null,null,null,null,null,null,null,null,null,null,null,null,null,null,null,null,null,null,null,null,null,null,null,null,null,null,null,null,null,null,null,null,null,null,null,null,null,null,null,null,null,null,null,null,null,null,null,null,null,3820,"Gastos de orden social y cultural"]
[null,null,null,null,null,null,null,null,null,null,null,null,null,null,null,null,null,null,null,null,null,null,null,null,null,null,null,null,null,null,null,null,null,null,null,null,null,null,null,null,null,null,null,null,null,null,null,null,null,null,null,null,null,null,null,null,null,null,null,null,null,null,null,null,null,null,null,null,null,null,null,null,null,null,null,null,null,null,null,null,null,null,null,null,null,null,null,null,null,null,null,null,null,null,null,null,null,null,null,null,null,null,null,null,null,null,null,null,null,null,null,null,null,null,null,null,null,null,null,null,null,null,null,null,null,null,null,3851,"Gastos ofic serv pub superiores y mandos medios"]
[null,null,null,null,null,null,null,null,null,null,null,null,null,null,null,null,null,null,null,null,null,null,null,null,null,null,null,null,null,null,null,null,null,null,null,null,null,null,null,null,null,null,null,null,null,null,null,null,null,null,null,null,null,null,null,null,null,null,null,null,null,null,null,null,null,null,null,null,null,null,null,null,null,null,null,null,null,null,null,null,null,null,null,null,null,null,null,null,null,null,null,null,null,null,null,null,null,null,null,null,null,null,null,null,null,null,null,null,null,null,null,null,null,null,null,null,null,null,null,null,null,null,null,null,null,null,null,3852,"Gtos de repr de seguridad publica"]

{"sheet":"Hoja1","index":2,"n_rows":137,"n_cols":5,"rows_kept":137,"cut":false,"hidden":true,"merged":[]}
[]
[]
["Total",{"$f":"SUM(B4:B29)","v":14446250},null,"Componente 1",{"$f":"+FORMATO!DA32","v":0.3}]
[2110,70000,null,"2110",{"$f":"$E$3*B4","v":21000}]
[2120,75000,null,"2120",{"$f":"$E$3*B5","v":22500}]
[2150,50000,null,"2150",15000]
[2611,7800000,null,"2611",2340000]
[2710,1050000,null,"2710",315000]
[2930,20000,null,"2820",6000]
[2940,5000,null,"2940",1500]
[2960,2250000,null,"2960",675000]
[3110,348000,null,"3110",104400]
[3140,68250,null,"3140",20475]
[3230,35000,null,"3230",10500]
[3350,400000,null,"3312",120000]
[3450,653000,null,"3350",195900]
[3510,30000,null,"3450",9000]
[3530,15000,null,"3510",4500]
[3550,1300000,null,"3530",390000]
[3560,20000,null,"3550",6000]
[3750,7000,null,"3560",2100]
[3820,120000,null,"3750",36000]
[3851,10000,null,"3820",3000]
[3852,120000,null,"3851",36000]
[null,null,null,"3852",0]
[null,null,null,"5150",0]
[null,null,null,"5190",0]
[null,null,null,"5210",{"$f":"$E$3*B28","v":0}]
[null,null,null,"5230",0]
[null,null,null,"Componente 2",{"$f":"+FORMATO!DA66","v":0.3}]
[null,null,null,"2110",{"$f":"$E$30*B4","v":21000}]
[null,null,null,"2120",{"$f":"$E$30*B5","v":22500}]
[null,null,null,"2150",15000]
[null,null,null,"2611",2340000]
[null,null,null,"2710",315000]
[null,null,null,"2820",6000]
[null,null,null,"2940",1500]
[null,null,null,"2960",675000]
[null,null,null,"3110",104400]
[null,null,null,"3140",20475]
[null,null,null,"3230",10500]
[null,null,null,"3312",120000]
[null,null,null,"3350",195900]
[null,null,null,"3450",9000]
[null,null,null,"3510",4500]
[null,null,null,"3530",390000]
[null,null,null,"3550",6000]
[null,null,null,"3560",2100]
[null,null,null,"3750",36000]
[null,null,null,"3820",3000]
[null,null,null,"3851",36000]
[null,null,null,"3852",0]
[null,null,null,"5150",0]
[null,null,null,"5190",0]
[null,null,null,"5210",0]
[null,null,null,"5230",0]
[null,null,null,"Componente 3",{"$f":"+FORMATO!DA100","v":0.2}]
[null,null,null,"2110",{"$f":"$E$57*B4","v":14000}]
[null,null,null,"2120",{"$f":"$E$57*B5","v":15000}]
[null,null,null,"2150",10000]
[null,null,null,"2611",1560000]
[null,null,null,"2710",210000]
[null,null,null,"2820",4000]
[null,null,null,"2940",1000]
[null,null,null,"2960",450000]
[null,null,null,"3110",69600]
[null,null,null,"3140",13650]
[null,null,null,"3230",7000]
[null,null,null,"3312",80000]
[null,null,null,"3350",130600]
[null,null,null,"3450",6000]
[null,null,null,"3510",3000]
[null,null,null,"3530",260000]
[null,null,null,"3550",4000]
[null,null,null,"3560",1400]
[null,null,null,"3750",24000]
[null,null,null,"3820",2000]
[null,null,null,"3851",24000]
[null,null,null,"3852",0]
[null,null,null,"5150",{"$f":"$E$57*B26","v":0}]
[null,null,null,"5190",0]
[null,null,null,"5210",0]
[null,null,null,"5230",0]
[null,null,null,"Componente 4",{"$f":"+FORMATO!DA134","v":0.1}]
[null,null,null,"2110",{"$f":"$E$84*B4","v":7000}]
[null,null,null,"2120",{"$f":"$E$84*B5","v":7500}]
[null,null,null,"2150",5000]
[null,null,null,"2611",780000]
[null,null,null,"2710",105000]
[null,null,null,"2820",2000]
[null,null,null,"2940",500]
[null,null,null,"2960",225000]
[null,null,null,"3110",34800]
[null,null,null,"3140",6825]
[null,null,null,"3230",3500]
[null,null,null,"3312",40000]
[null,null,null,"3350",65300]
[null,null,null,"3450",3000]
[null,null,null,"3510",1500]
[null,null,null,"3530",130000]
[null,null,null,"3550",2000]
[null,null,null,"3560",700]
[null,null,null,"3750",12000]
[null,null,null,"3820",1000]
[null,null,null,"3851",12000]
[null,null,null,"3852",0]
[null,null,null,"5150",0]
[null,null,null,"5190",0]
[null,null,null,"5210",0]
[null,null,null,"5230",0]
[null,null,null,"Componente 5",{"$f":"+FORMATO!DA168","v":0.1}]
[null,null,null,"2110",{"$f":"$E$111*B4","v":7000}]
[null,null,null,"2120",{"$f":"$E$111*B5","v":7500}]
[null,null,null,"2150",5000]
[null,null,null,"2611",780000]
[null,null,null,"2710",105000]
[null,null,null,"2820",2000]
[null,null,null,"2940",500]
[null,null,null,"2960",225000]
[null,null,null,"3110",34800]
[null,null,null,"3140",6825]
[null,null,null,"3230",3500]
[null,null,null,"3312",40000]
[null,null,null,"3350",65300]
[null,null,null,"3450",3000]
[null,null,null,"3510",1500]
[null,null,null,"3530",130000]
[null,null,null,"3550",2000]
[null,null,null,"3560",700]
[null,null,null,"3750",12000]
[null,null,null,"3820",1000]
[null,null,null,"3851",12000]
[null,null,null,"3852",0]
[null,null,null,"5150",0]
[null,null,null,"5190",0]
[null,null,null,"5210",0]
[null,null,null,"5230",0]

{"sheet":"COG","index":3,"n_rows":803,"n_cols":9,"rows_kept":803,"cut":false,"hidden":true,"merged":[[6,1,6,8],[9,3,9,4],[0,0,0,8],[1,1,1,8],[2,1,2,8],[3,1,3,8],[4,1,4,8],[5,1,5,8]]}
["Propuesta de COG Municipal 2015"]
[null,"Fuente: COG D.O.F. 10.06.2010"]
[null,"Capítulo.- Es el mayor nivel de agregación que identifica el conjunto homogéneo y ordenado de los bienes y servicios requeridos por los entes públicos."]
[null,"Concepto.- Son subconjuntos homogéneos y ordenados en forma específica, producto de la desagregación de los bienes y servicios, incluidos en cada capítulo."]
[null,"La partida, que es el nivel de agregación más específico, en el cual se describen las expresiones concretas y detalladas de los bienes y servicios que se adquieren."]
[null,"                    a) Genérica, se refiere al tercer digito, el cual logrará la armonización a todos los niveles"]
[null,"                    b) Específica, corresponde al cuarto digito, se genera la apertura con base en las necesidades del ente público"]
[null,null,null,null,null,"LIGA",null,null,"https://www.conac.gob.mx/work/models/CONAC/normatividad/NOR_01_02_006.pdf"]
[]
[null,"Capítulo","Concepto","Partida",null,"Denominación",null,null,"Definición"]
["no",null,null,"Genérica\n","Específica\n"]
[1,1000,null,null,null,"SERVICIOS PERSONALES",1000,"1000 SERVICIOS PERSONALES","Agrupa las remuneraciones del personal al servicio de los entes públicos, tales como: sueldos, salarios, dietas, honorarios asimilables al salario, prestaciones y gastos de seguridad social, obligaciones laborales y otras prestaciones derivadas de una relación laboral; pudiendo ser de carácter permanente o transitorio."]
[2,null,1100,null,null,"Remuneraciones al personal de carácter permanente",1100,"1100 REMUNERACIONES AL PERSONAL DE CARACTER PERMANENTE","Asignaciones destinadas a cubrir las percepciones correspondientes al personal de carácter permanente."]
[3,null,null,1110,null,"Dietas",1110,"111 Dietas","Asignaciones para remuneraciones a los Diputados, Senadores, Asambleístas, Regidores y Síndicos."]
[4,null,null,null,1111,"Dietas"]
[5,null,null,1120,null,"Haberes",1120,"112 Haberes","Asignaciones para remuneraciones al personal que desempeña sus servicios en el ejército, fuerza aérea y armada nacionales."]
[6,null,null,null,1121,"Haberes"]
[7,null,null,1130,null,"Sueldo base al personal permanente",1130,"113 Sueldos base al personal permanente","Asignaciones para remuneraciones al personal civil, de base o de confianza, de carácter permanente que preste sus servicios en los entes públicos. Los montos que importen estas remuneraciones serán fijados de acuerdo con los catálogos institucionales de puestos de los entes públicos."]
[8,null,null,null,1131,"Sueldos Base"]
[9,null,null,1140,null,"Remuneraciones por adscripción laboral en el extranjero",1140,"114 Remuneraciones por adscripción laboral en el extranjero","Asignaciones destinadas a cubrir las remuneraciones del personal al Servicio Exterior Mexicano y de Servicios Especiales en el Extranjero, así como representaciones estatales y municipales en el extranjero. Incluye las variaciones del factor de ajuste: importancia relativa de la oficina de adscripción; costo de la vida en el lugar de adscripción y condiciones de dificultad de la vida en cada adscripción. Dichas remuneraciones son cubiertas exclusivamente al personal que labore en esas representaciones en el exterior."]
[10,null,null,null,1141,"Remuneraciones en el extranjero"]
[11,null,1200,null,null,"Remuneraciones al personal de carácter transitorio",1200,"1200 REMUNERACIONES AL PERSONAL DE CARACTER TRANSITORIO","Asignaciones destinadas a cubrir las percepciones correspondientes al personal de carácter eventual."]
[12,null,null,1210,null,"Honorarios asimilables a salarios",1210,"121 Honorarios asimilables a salarios","Asignaciones destinadas a cubrir el pago por la prestación de servicios contratados con personas físicas, como profesionistas, técnicos, expertos y peritos, entre otros, por estudios, obras o trabajos determinados que correspondan a su especialidad. El pago de honorarios deberá sujetarse a las disposiciones aplicables. Esta partida excluye los servicios profesionales contratados con personas físicas o morales previstos en el Capítulo 3000 Servicios Generales."]
[13,null,null,null,1211,"Honorarios"]
[14,null,null,null,1212,"Honorarios asimilados"]
[15,null,null,1220,null,"Sueldos base al personal eventual",1220,"122 Sueldos base al personal eventual","Asignaciones destinadas a cubrir las remuneraciones para el pago al personal de carácter transitorio que preste sus servicios en los entes públicos."]
[16,null,null,null,1221,"Remuneraciones para eventuales"]
[17,null,null,1230,null,"Retribuciones por servicios de carácter social",1230,"123 Retribuciones por servicios de carácter social","Asignaciones destinadas a cubrir las remuneraciones a profesionistas de las diversas carreras o especialidades técnicas que presten su servicio social en los entes públicos."]
[18,null,null,null,1231,"Servicio social"]
[19,null,null,1240,null,"Retribución a los representantes de los trabajadores y de los patrones en la Junta de Conciliación y Arbitraje",1240,"124 Retribución a los representantes de los trabajadores y de los patrones en la Junta de Conciliación y Arbitraje","Asignaciones destinadas a cubrir las retribuciones de los representantes de los trabajadores y de los patrones en la Junta de Conciliación y Arbitraje, durante el tiempo por el cual fueron elegidos por la convención correspondiente, conforme a lo dispuesto por la Ley Federal del Trabajo. Esta partida no estará sujeta al pago de las cuotas y aportaciones por concepto de seguridad social."]
[20,null,null,null,1241,"Junta de Conciliación y Arbitraje"]
[21,null,1300,null,null,"Remuneraciones adicionales y especiales",1300,"1300 REMUNERACIONES ADICIONALES Y ESPECIALES","Asignaciones destinadas a cubrir percepciones adicionales y especiales, así como las gratificaciones que se otorgan tanto al personal de carácter permanente como transitorio."]
[22,null,null,1310,null,"Primas por años de servicios efectivos prestados",1310,"131 Primas por años de servicios efectivos prestados","Asignaciones adicionales como complemento al sueldo del personal al servicio de los entes públicos, por años de servicios efectivos prestados, de acuerdo con la legislación aplicable."]
[23,null,null,null,1311,"Prima quinquenal "]
[24,null,null,null,1312,"Antigüedad"]
[25,null,null,1320,null,"Primas de vacaciones, dominical y gratificación de fin de año",1320,"132 Primas de vacaciones, dominical y gratificación de fin de año","Asignaciones al personal que tenga derecho a vacaciones o preste sus servicios en domingo; aguinaldo o gratificación de fin de año al personal civil y militar al servicio de los entes públicos."]
[26,null,null,null,1321,"Prima Vacacional"]
[27,null,null,null,1322,"Prima Dominical"]
[28,null,null,null,1323,"Gratificación de fin de año"]
[29,null,null,1330,null,"Horas extraordinarias",1330,"133 Horas extraordinarias","Asignaciones por remuneraciones a que tenga derecho el personal de los entes públicos por servicios prestados en horas que se realizan excediendo la duración máxima de la jornada de trabajo, guardias o turnos opcionales."]
[30,null,null,null,1331,"Remuneraciones por horas extraordinarias"]
[31,null,null,1340,null,"Compensaciones",1340,"134 Compensaciones","Asignaciones destinadas a cubrir las percepciones que se otorgan a los servidores públicos bajo el esquema de compensaciones que determinen las disposiciones aplicables."]
[32,null,null,null,1341,"Compensaciones por servicios eventuales"]
[33,null,null,null,1342,"Compensaciones por servicios"]
[34,null,null,1350,null,"Sobrehaberes",1350,"135 Sobrehaberes","Remuneraciones adicionales que se cubre al personal militar en activo en atención al incremento en el costo de la vida o insalubridad del lugar donde preste sus servicios."]
[35,null,null,null,1351,"Sobrehaberes"]
[36,null,null,1360,null,"Asignaciones de técnico, de mando, por comisión, de vuelo y de técnico especial",1360,"136 Asignaciones de técnico, de mando, por comisión, de vuelo y de técnico especial","Remuneraciones a los miembros del Ejército, Fuerza Aérea y Armada Nacionales, titulados en profesiones de los distintos servicios militares, por el desempeño de comisiones dentro del Ramo y que pertenezcan a la milicia permanente; remuneraciones a generales, jefes y oficiales investidos conforme a las leyes y ordenanzas del mando militar, de una corporación del ejército o de una unidad de la armada. Su cuota no podrá variar durante el ejercicio fiscal respectivo. Remuneraciones a los miembros del ejército y la armada por el desempeño de una comisión que no sea la propia de su cargo, como en los Estados Mayores de los Secretarios y Subsecretarios, Ayudantía del Oficial Mayor y Jefes de Sección de los diversos Departamentos de la Secretaría de la Defensa Nacional y ayudantía de los funcionarios superiores de la Secretaría de Marina; remuneraciones a los miembros del ejército y la armada, que habitualmente desempeñan servicios en unidades aéreas de las Fuerzas Armadas Mexicanas remuneraciones complementarias a los haberes de los generales del ejército y fuerza aérea, así como de los almirantes de la armada que sean autorizadas por el titular del Ramo y las que éste mismo autorice en casos especiales para los jefes y oficiales del ejército y fuerza aérea, capitanes y oficiales de la armada."]
[37,null,null,null,1361,"Técnico especial"]
[38,null,null,1370,null,"Honorarios especiales",1370,"137 Honorarios especiales","Asignaciones destinadas a cubrir los honorarios que correspondan a los representantes de la Hacienda Pública por su intervención en los juicios sucesorios, siempre y cuando el impuesto se hubiere determinado con base en la liquidación formulada por los mismos; a los notificadores especiales en el cobro de impuestos, derechos, multas y arrendamientos, así como a los agentes y subagentes fiscales y postales. Comprende las remuneraciones y gastos del personal designado para realizar inspecciones o intervenciones especiales, así como los programas de presencia fiscal. Estas asignaciones se cubrirán por compromisos devengados durante el año y no se aceptarán los compromisos de ejercicios anteriores."]
[39,null,null,null,1371,"Honorarios especiales"]
[40,null,null,1380,null,"Participaciones por vigilancia en el cumplimiento de las leyes y custodia de valores",1380,"138 Participaciones por vigilancia en el cumplimiento de las leyes y custodia de valores","Incluye retribución a los empleados de los entes públicos por su participación en la vigilancia del cumplimiento de las leyes y custodia de valores."]
[41,null,null,null,1381,"Participaciones por vigilancia"]
[42,null,1400,null,null,"Seguridad Social",1400,"1400 SEGURIDAD SOCIAL","Asignaciones destinadas a cubrir la parte que corresponde a los entes públicos por concepto de prestaciones de seguridad social y primas de seguros, en beneficio del personal a su servicio, tanto de carácter permanente como transitorio."]
[43,null,null,1410,null,"Aportaciones de seguridad social",1410,"141 Aportaciones de seguridad social","Asignaciones destinadas a cubrir la aportación de los entes públicos, por concepto de seguridad social, en los términos de la legislación vigente."]
[44,null,null,null,1411,"Aportaciones al ISSEG"]
[45,null,null,null,1412,"Cuotas al ISSSTE"]
[46,null,null,null,1413,"Aportaciones IMSS"]
[47,null,null,1420,null,"Aportaciones a fondos de vivienda",1420,"142 Aportaciones a fondos de vivienda","Asignaciones destinadas a cubrir las aportaciones que corresponden a los entes públicos para proporcionar vivienda a su personal, de acuerdo con las disposiciones legales vigentes."]
[48,null,null,null,1421,"Aportaciones INFONAVIT"]
[49,null,null,1430,null,"Aportaciones al sistema para el retiro",1430,"143 Aportaciones al sistema para el retiro","Asignaciones destinadas a cubrir los montos de las aportaciones de los entes públicos a favor del Sistema para el Retiro, correspondientes a los trabajadores al servicio de los mismos."]
[50,null,null,null,1431,"Ahorro para el retiro"]
[51,null,null,1440,null,"Aportaciones para seguros",1440,"144 Aportaciones para seguros ","Asignaciones destinadas a cubrir las primas que corresponden a los entes públicos por concepto de seguro de vida, seguro de gastos médicos del personal a su servicio; así como, los seguros de responsabilidad civil y asistencia legal, en los términos de la legislación vigente. Incluye las primas que corresponden al Gobierno Federal por concepto de seguro de vida del personal militar."]
[52,null,null,null,1441,"Seguros"]
[53,null,1500,null,null,"Otras prestaciones sociales y económicas",1500,"1500 OTRAS PRESTACIONES SOCIALES Y ECONOMICAS","Asignaciones destinadas a cubrir otras prestaciones sociales y económicas, a favor del personal, de acuerdo con las disposiciones legales vigentes y/o acuerdos contractuales respectivos."]
[54,null,null,1510,null,"Cuotas para el fondo de ahorro y fondo de trabajo",1510,"151 Cuotas para el fondo de ahorro y fondo de trabajo","Asignaciones destinadas a cubrir las cuotas que corresponden a los entes públicos para la constitución del fondo de ahorro del personal civil, según acuerdos contractuales establecidos. Incluye cuotas para la constitución del fondo de ahorro, y cuotas para el fondo de trabajo del personal del Ejército, Fuerza Aérea y Armada Mexicanos que corresponden al Gobierno Federal para la constitución de este fondo, en los términos de la Ley del ISSFAM."]
[55,null,null,null,1511,"Cuotas para el fondo de ahorro"]
[56,null,null,null,1512,"Cuotas para fondo de trabajo"]
[57,null,null,1520,null,"Indemnizaciones",1520,"152 Indemnizaciones","Asignaciones destinadas a cubrir indemnizaciones al personal conforme a la legislación aplicable; tales como: por accidente de trabajo, por despido, entre otros."]
[58,null,null,null,1521,"Indemnizaciones por accidentes en el trabajo"]
[59,null,null,null,1522,"Liquidaciones por indemnizaciones y por sueldos y salarios caídos"]
[60,null,null,null,1523,"Pago por riesgo"]
[61,null,null,1530,null,"Prestaciones y haberes de retiro",1530,"153 Prestaciones y haberes de retiro","Erogaciones que los entes públicos realizan en beneficio de sus empleados por jubilaciones, haberes de retiro, pensiones, retiro voluntario entre otros, cuando estas prestaciones no sean cubiertas por las instituciones de seguridad social. Incluye las asignaciones por concepto de aguinaldo a favor de pensionistas, cuyo pago se realice con cargo al erario. Incluye compensaciones de retiro a favor del personal del Servicio Exterior Mexicano, en los términos de la ley de la materia."]
[62,null,null,null,1531,"Prestaciones de retiro"]
[63,null,null,null,1532,"Haberes de retiro"]
[64,null,null,1540,null,"Prestaciones contractuales",1540,"154 Prestaciones contractuales","Asignaciones destinadas a cubrir el costo de las prestaciones que los entes públicos otorgan en beneficio de sus empleados, de conformidad con las condiciones generales de trabajo o los contratos colectivos de trabajo."]
[65,null,null,null,1541,"Prestaciones establecidas por condiciones generales de trabajo "]
[66,null,null,1550,null,"Apoyos a la capacitación de los servidores públicos",1550,"155 Apoyos a la capacitación de los servidores públicos","Erogaciones destinadas a apoyar la capacitación orientada al desarrollo personal o profesional de los servidores públicos que determinen los entes públicos o que en forma individual se soliciten, de conformidad con las disposiciones que se emitan para su otorgamiento. Excluye las erogaciones por capacitación comprendidas en el capítulo 3000 Servicios Generales."]
[67,null,null,null,1551,"Capacitación de los servidores públicos"]
[68,null,null,1560,null,"Otras prestaciones sociales y económicas",1590,"159 Otras prestaciones sociales y económicas","Asignaciones destinadas a cubrir el costo de otras prestaciones que los entes públicos otorgan en beneficio de sus empleados, siempre que no correspondan a las prestaciones a que se refiere la partida 154 Prestaciones contractuales."]
[69,null,null,null,1561,"Asignaciones adicionales al sueldo"]
[70,null,null,null,1562,"Otras prestaciones"]
[71,null,1600,null,null,"Previsiones",1600,"1600 PREVISIONES","Asignaciones destinadas a cubrir las medidas de incremento en percepciones, prestaciones económicas, creación de plazas y, en su caso, otras medidas salariales y económicas que se aprueben en el Presupuesto de Egresos. Las partidas de este concepto no se ejercerán en forma directa, sino a través de las partidas que correspondan a los demás conceptos del capítulo 1000 Servicios Personales, que sean objeto de traspaso de estos recursos."]
[72,null,null,1610,null,"Previsiones de carácter laboral, económica y de seguridad social",1610,"161 Previsiones de carácter laboral, económica y de seguridad social","Asignaciones destinadas a cubrir las medidas de incremento en percepciones, creación de plazas, aportaciones en términos de seguridad social u otras medidas de carácter laboral o económico de los servidores públicos que se aprueben en el Presupuesto de Egresos. Esta partida no se ejercerá en forma directa, sino a través de las partidas que correspondan a los demás conceptos del capítulo 1000 Servicios Personales, que sean objeto de traspaso de estos recursos. Estas se considerarán como transitorias en tanto se distribuye su monto entre las partidas específicas necesarias para los programas, por lo que su asignación se afectará una vez ubicada en las partidas correspondientes, según la naturaleza de las erogaciones y previa aprobación, de acuerdo con lineamientos específicos."]
[73,null,null,null,1611,"Previsiones de carácter laboral"]
[74,null,null,null,1612,"Previsiones de carácter económico"]
[75,null,null,null,1613,"Previsiones de carácter de seguridad social"]
[76,null,1700,null,null,"Pago de estímulos a servidores públicos",1700,"1700 PAGO DE ESTIMULOS A SERVIDORES PUBLICOS","Asignaciones destinadas a cubrir estímulos económicos a los servidores públicos de mando, enlace y operativos de los entes públicos, que establezcan las disposiciones aplicables, derivado del desempeño de sus funciones."]
[77,null,null,1710,null,"Estímulos",1710,"171 Estímulos","Asignaciones destinadas a cubrir los estímulos al personal de los entes públicos por productividad, desempeño, calidad, acreditación por titulación de licenciatura, años de servicio, puntualidad y asistencia, entre otros; de acuerdo con la normatividad aplicable."]
[78,null,null,null,1711,"Estímulos por productividad y eficiencia "]
[79,null,null,null,1712,"Estímulos al personal operativo "]
[80,null,null,1720,null,"Recompensas",1720,"172 Recompensas","Asignaciones destinadas a premiar el heroísmo, capacidad profesional, servicios a la Patria o demás hechos meritorios; así como a la distinguida actuación del personal militar o civil, que redunde en beneficio de la Armada de México, se otorgarán de acuerdo con la legislación vigente."]
[81,null,null,null,1721,"Recompensas"]
[82,null,1800,null,null,"Impuesto sobre nóminas y otros que se deriven de una relación laboral",1800,"1800 IMPUESTO SOBRE NOMINAS Y OTROS QUE SE DERIVEN DE UNA RELACION LABORAL","Asignaciones destinadas a cubrir los pagos del impuesto sobre nóminas y otros que se deriven de una relación laboral a cargo de los entes públicos en los términos de las leyes correspondientes."]
[83,null,null,1810,null,"Impuesto sobre nóminas",1810,"181 Impuesto sobre nóminas","Asignaciones destinadas al pago del impuesto sobre nóminas a cargo de los entes públicos, de conformidad con el Código Financiero del Distrito Federal y, en su caso, las disposiciones equivalentes en las demás entidades federativas."]
[84,null,null,null,1811,"Impuesto sobre nóminas"]
[85,null,null,1820,null,"Otros impuestos derivados de una relación laboral",1820,"182 Otros impuestos derivados de una relación laboral","Asignaciones destinadas al pago de otros impuestos derivados de la relación laboral."]
[86,null,null,null,1821,"Otros impuestos"]
[87,2000,null,null,null,"MATERIALES Y SUMINISTROS",2000,"2000 MATERIALES Y SUMINISTROS","Agrupa las asignaciones destinadas a la adquisición de toda clase de insumos y suministros requeridos para la prestación de bienes y servicios y para el desempeño de las actividades administrativas."]
[88,null,2100,null,null,"Materiales de administración, emisión de documentos y artículos oficiales",2100,"2100 MATERIALES DE ADMINISTRACION, EMISION DE DOCUMENTOS Y ARTICULOS OFICIALES","Asignaciones destinadas a la adquisición de materiales y útiles de oficina, limpieza, impresión y reproducción, para el procesamiento en equipos y bienes informáticos; materiales estadísticos, geográficos, de apoyo informativo y didáctico para centros de enseñanza e investigación; materiales requeridos para el registro e identificación en trámites oficiales y servicios a la población."]
[89,null,null,2110,null,"Materiales, útiles y equipos menores de oficina",2110,"211 Materiales, útiles y equipos menores de oficina","Asignaciones destinadas a la adquisición de materiales, artículos diversos y equipos menores propios para el uso de las oficinas tales como: papelería, formas, libretas, carpetas y cualquier tipo de papel, vasos y servilletas desechables, limpia-tipos; útiles de escritorio como engrapadoras, perforadoras manuales, sacapuntas; artículos de dibujo, correspondencia y archivo; cestos de basura y otros productos similares. Incluye la adquisición de artículos de envoltura, sacos y valijas, entre otros."]
[90,null,null,null,2111,"Materiales y útiles de oficina"]
[91,null,null,null,2112,"Equipos menores de oficina"]
[92,null,null,2120,null,"Materiales y útiles de impresión y reproducción",2120,"212 Materiales y útiles de impresión y reproducción","Asignaciones destinadas a la adquisición de materiales utilizados en la impresión, reproducción y encuadernación, tales como: fijadores, tintas, pastas, logotipos y demás materiales y útiles para el mismo fin. Incluye rollos fotográficos."]
[93,null,null,null,2121,"Materiales y útiles de impresión y reproducción"]
[94,null,null,2130,null,"Material estadístico y geográfico",2130,"213 Material estadístico y geográfico","Asignaciones destinadas a la adquisición de publicaciones relacionadas con información estadística y geográfica. Se incluye la cartografía y publicaciones tales como: las relativas a indicadores económicos y socio-demográficos, cuentas nacionales, estudios geográficos y geodésicos, mapas, planos, fotografías aéreas y publicaciones relacionadas con información estadística y geográfica."]
[95,null,null,null,2131,"Material estadístico y geográfico"]
[96,null,null,2140,null,"Materiales, útiles y equipos menores de tecnologías de la información y comunicaciones",2140,"214 Materiales, útiles y equipos menores de tecnologías de la información y comunicaciones","Asignaciones destinadas a la adquisición de insumos y equipos menores utilizados en el procesamiento, grabación e impresión de datos, así como los materiales para la limpieza y protección de los equipos tales como: tóner, medios ópticos y magnéticos, apuntadores y protectores, entre otros."]
[97,null,null,null,2141,"Materiales y útiles de tecnologías de la información y comunicaciones"]
[98,null,null,null,2142,"Equipos menores de tecnologías de la información y comunicaciones"]
[99,null,null,2150,null,"Material impreso e información digital",2150,"215 Material impreso e información digital","Asignaciones destinadas a la adquisición de toda clase de libros, revistas, periódicos, publicaciones, diarios oficiales, gacetas, material audiovisual, cassettes, discos compactos distintos a la adquisición de bienes intangibles (software). Incluye la suscripción a revistas y publicaciones especializadas, folletos, catálogos, formatos y otros productos mediante cualquier técnica de impresión y sobre cualquier tipo de material. Incluye impresión sobre prendas de vestir, producción de formas continuas, impresión rápida, elaboración de placas, clichés y grabados. Excluye conceptos considerados en la partida 213 Material estadístico y geográfico."]
[100,null,null,null,2151,"Material impreso e información digital"]
[101,null,null,2160,null,"Material de limpieza",2160,"216 Material de limpieza","Asignaciones destinadas a la adquisición de materiales, artículos y enseres para el aseo, limpieza e higiene, tales como: escobas, jergas, detergentes, jabones y otros productos similares."]
[102,null,null,null,2161,"Material de limpieza"]
[103,null,null,2170,null,"Materiales y útiles de enseñanza",2170,"217 Materiales y útiles de enseñanza","Asignaciones destinadas a la adquisición de todo tipo de material didáctico así como materiales y suministros necesarios para las funciones educativas."]
[104,null,null,null,2171,"Materiales y útiles de enseñanza"]
[105,null,null,2180,null,"Materiales para el registro e identificación de bienes y personas",2180,"218 Materiales para el registro e identificación de bienes y personas","Asignaciones destinadas a la adquisición de materiales requeridos para el registro e identificación en trámites oficiales y servicios a la población, tales como: pasaportes, certificados especiales, formas valoradas, placas de tránsito, licencias de conducir, entre otras."]
[106,null,null,null,2181,"Materiales para el registro e identificación de bienes"]
[107,null,null,null,2182,"Materiales para el registro e identificación de personas"]
[108,null,2200,null,null,"Alimentos y utensilios",2200,"2200 ALIMENTOS Y UTENSILIOS","Asignaciones destinadas a la adquisición de productos alimenticios y utensilios necesarios para el servicio de alimentación en apoyo de las actividades de los servidores públicos y los requeridos en la prestación de servicios públicos en unidades de salud, educativas y de readaptación social, entre otras. Excluye los gastos por alimentación previstos en los conceptos 3700 Servicios de Traslado y Viáticos y 3800 Servicios Oficiales."]
[109,null,null,2210,null,"Productos alimenticios para personas",2210,"221 Productos alimenticios para personas","Asignaciones destinadas a la adquisición de todo tipo de productos alimenticios y bebidas manufacturados o no, independiente de la modalidad de compra o contratación, derivado de la ejecución de los programas institucionales tales como: salud, seguridad social, educativos, militares, culturales y recreativos, cautivos y reos en proceso de readaptación social, repatriados y extraditados, personal que realiza labores de campo o supervisión dentro del lugar de adscripción; derivado de programas que requieren permanencia de servidores públicos en instalaciones del ente público, así como en el desempeño de actividades extraordinarias en el cumplimiento de la función pública. Excluye Viáticos (partidas 375 y 376), gastos derivados del concepto 3800 Servicios Oficiales y 133 Horas Extraordinarias no justificadas."]
[110,null,null,null,2211,"Productos alimenticios para  los efectivos que participen en programas de seguridad pública"]
[111,null,null,null,2212,"Productos alimenticios para el personal en las instalaciones de las dependencias y entidades"]
[112,null,null,null,2213,"Productos alimenticios para la población en caso de desastres naturales"]
[113,null,null,2220,null,"Productos alimenticios para animales",2220,"222 Productos alimenticios para animales","Asignaciones destinadas a la adquisición de productos alimenticios para la manutención de animales propiedad o bajo el cuidado de los entes públicos, tales como: forrajes frescos y achicalados, alimentos preparados, entre otros, así como los demás gastos necesarios para la alimentación de los mismos."]
[114,null,null,null,2221,"Productos alimenticios para animales"]
[115,null,null,2230,null,"Utensilios para el servicio de alimentación",2230,"223 Utensilios para el servicio de alimentación","Asignaciones destinadas a la adquisición de todo tipo de utensilios necesarios para proporcionar este servicio, tales como: vajillas, cubiertos, baterías de cocina, licuadoras, tostadoras, cafeteras, básculas y demás electrodomésticos y bienes consumibles en operaciones a corto plazo."]
[116,null,null,null,2231,"Utensilios para el servicio de alimentación"]
[117,null,2300,null,null,"Materias primas y materiales de producción y comercialización",2300,"2300 MATERIAS PRIMAS Y MATERIALES DE PRODUCCION Y COMERCIALIZACION","Asignaciones destinadas a la adquisición de toda clase de materias primas en estado natural, transformadas o semi-transformadas de naturaleza vegetal, animal y mineral que se utilizan en la operación de los entes públicos, así como las destinadas a cubrir el costo de los materiales, suministros y mercancías diversas que los entes adquieren para su comercialización."]
[118,null,null,2310,null,"Productos alimenticios, agropecuarios y forestales adquiridos como materia prima",2310,"231 Productos alimenticios, agropecuarios y forestales adquiridos como materia prima","Asignaciones destinadas a la adquisición de productos alimenticios como materias primas en estado natural, transformadas o semi-transformadas, de naturaleza vegetal y animal que se utilizan en los procesos productivos, diferentes a las contenidas en las demás partidas de este Clasificador."]
[119,null,null,null,2311,"Productos alimenticios, agropecuarios y forestales"]
[120,null,null,null,2312,"Material agropecuario "]
[121,null,null,2320,null,"Insumos textiles adquiridos como materia prima",2320,"232 Insumos textiles adquiridos como materia prima","Asignaciones destinadas a la adquisición de insumos textiles como materias primas en estado natural, transformadas o semi-transformadas, que se utilizan en los procesos productivos, diferentes a las contenidas en las demás partidas de este Clasificador."]
[122,null,null,null,2321,"Insumos textiles"]
[123,null,null,2330,null,"Productos de papel, cartón e impresos adquiridos como materia prima",2330,"233 Productos de papel, cartón e impresos adquiridos como materia prima","Asignaciones destinadas a la adquisición de papel, cartón e impresos como materias primas en estado natural, transformadas o semi-transformadas, que se utilizan en los procesos productivos, diferentes a las contenidas en las demás partidas de este Clasificador."]
[124,null,null,null,2331,"Productos de papel, cartón e impresos"]
[125,null,null,2340,null,"Combustibles, lubricantes, aditivos, carbón y sus derivados adquiridos como materia prima",2340,"234 Combustibles, lubricantes, aditivos, carbón y sus derivados adquiridos como materia prima","Asignaciones destinadas a la adquisición de combustibles, lubricantes y aditivos como materias primas en estado natural, transformadas o semi-transformadas, que se utilizan en los procesos productivos, diferentes a las contenidas en las demás partidas del concepto 2600 Combustibles, lubricantes y aditivos este Clasificador."]
[126,null,null,null,2341,"Combustibles, lubricantes, aditivos, carbon y sus derivados"]
[127,null,null,2350,null,"Productos químicos, farmacéuticos y de laboratorio adquiridos como materia prima",2350,"235 Productos químicos, farmacéuticos y de laboratorio adquiridos como materia prima","Asignaciones destinadas a la adquisición de medicamentos farmacéuticos y botánicos, productos antisépticos de uso farmacéutico, sustancias para diagnóstico, complementos alimenticios, plasmas y otros derivados de la sangre y productos médicos veterinarios, entre otros, como materias primas en estado natural, transformadas o semi-transformadas, que se utilizan en los procesos productivos, diferentes a las contenidas en las demás partidas de este Clasificador."]
[128,null,null,null,2351,"Productos químicos, farmacéuticos y de laboratorio"]
[129,null,null,2360,null,"Productos metálicos y a base de minerales no metálicos adquiridos como materia prima",2360,"236 Productos metálicos y a base de minerales no metálicos adquiridos como materia prima","Asignaciones destinadas a la adquisición de productos metálicos y a base de minerales no metálicos como materias primas en estado natural, transformadas o semi-transformadas, que se utilizan en los procesos productivos, diferentes a las contenidas en las demás partidas de este Clasificador."]
[130,null,null,null,2361,"Productos metálicos y a base de minerales no metálicos"]
[131,null,null,2370,null,"Productos de cuero, piel, plástico y hule adquiridos como materia prima",2370,"237 Productos de cuero, piel, plástico y hule adquiridos como materia prima","Asignaciones destinadas a la adquisición de cuero, piel, plástico y hule como materias primas en estado natural, transformadas o semi-transformadas, que se utilizan en los procesos productivos, diferentes a las contenidas en las demás partidas de este Clasificador."]
[132,null,null,null,2371,"Productos de cuero, piel, plástico y hule"]
[133,null,null,2380,null,"Mercancías adquiridas para su comercialización",2380,"238 Mercancías adquiridas para su comercialización","Artículos o bienes no duraderos que adquiere la entidad para destinarlos a la comercialización de acuerdo con el giro normal de actividades del ente público."]
[134,null,null,null,2381,"Mercancías para su comercialización en tiendas del sector público"]
[135,null,null,null,2382,"Mercancías para su distribución a la población"]
[136,null,null,2390,null,"Otros productos adquiridos como materia prima",2390,"239 Otros productos adquiridos como materia prima","Asignaciones destinadas a la adquisición de otros productos no considerados en las partidas anteriores de este concepto, como materias primas en estado natural, transformadas o semi-transformadas, que se utilizan en los procesos productivos, diferentes a las contenidas en las demás partidas de este Clasificador."]
[137,null,null,null,2391,"Otros productos "]
[138,null,2400,null,null,"Materiales y artículos de construcción y de reparación",2400,"2400 MATERIALES Y ARTICULOS DE CONSTRUCCION Y DE REPARACION","Asignaciones destinadas a la adquisición de materiales y artículos utilizados en la construcción, reconstrucción, ampliación, adaptación, mejora, conservación, reparación y mantenimiento de bienes inmuebles."]
[139,null,null,2410,null,"Productos minerales no metálicos",2410,"241 Productos minerales no metálicos","Asignaciones destinadas a la adquisición de productos de arena, grava, mármol, piedras calizas, piedras de cantera, otras piedras dimensionadas, arcillas refractarias y no refractarias y cerámica como ladrillos, bloques, tejas, losetas, pisos, azulejos, mosaicos y otros similares para la construcción; cerámica utilizada en la agricultura; loza y porcelana para diversos usos como inodoros, lavamanos, mingitorios y otros similares."]
[140,null,null,null,2411,"Materiales de construcción minerales no metálicos"]
[141,null,null,2420,null,"Cemento y productos de concreto",2420,"242 Cemento y productos de concreto","Asignaciones destinadas a la adquisición de cemento blanco, gris y especial, pega azulejo y productos de concreto."]
[142,null,null,null,2421,"Materiales de construcción de concreto"]
[143,null,null,2430,null,"Cal, yeso y productos de yeso",2430,"243 Cal, yeso y productos de yeso","Asignaciones destinadas a la adquisición de tabla roca, plafones, paneles acústicos, columnas, molduras, estatuillas, figuras decorativas de yeso y otros productos arquitectónicos de yeso de carácter ornamental. Incluye dolomita calcinada. Cal viva, hidratada o apagada y cal para usos específicos a partir de piedra caliza triturada."]
[144,null,null,null,2431,"Materiales de construcción de cal y yeso"]
[145,null,null,2440,null,"Madera y productos de madera",2440,"244 Madera y productos de madera","Asignaciones destinadas a la adquisición de madera y sus derivados."]
[146,null,null,null,2441,"Materiales de construcción de madera"]
[147,null,null,2450,null,"Vidrio y productos de vidrio",2450,"245 Vidrio y productos de vidrio","Asignaciones destinadas a la adquisición de vidrio plano, templado, inastillable y otros vidrios laminados; espejos; envases y artículos de vidrio y fibra de vidrio."]
[148,null,null,null,2451,"Materiales de construcción de vidrio"]
[149,null,null,2460,null,"Material eléctrico y electrónico",2460,"246 Material eléctrico y electrónico","Asignaciones destinadas a la adquisición de todo tipo de material eléctrico y electrónico tales como: cables, interruptores, tubos fluorescentes, focos, aislantes, electrodos, transistores, alambres, lámparas, entre otros, que requieran las líneas de transmisión telegráfica, telefónica y de telecomunicaciones, sean aéreas, subterráneas o submarinas; igualmente para la adquisición de materiales necesarios en las instalaciones radiofónicas, radiotelegráficas, entre otras."]
[150,null,null,null,2461,"Material eléctrico y electrónico"]
[151,null,null,2470,null,"Artículos metálicos para la construcción",2470,"247 Artículos metálicos para la construcción","Asignaciones destinadas a cubrir los gastos por adquisición de productos para construcción hechos de hierro, acero, aluminio, cobre, zinc, bronce y otras aleaciones, tales como: lingotes, planchas, planchones, hojalata, perfiles, alambres, varillas, ventanas y puertas metálicas, clavos, tornillos y tuercas de todo tipo; mallas ciclónicas y cercas metálicas, etc."]
[152,null,null,null,2471,"Estructuras y manufacturas"]
[153,null,null,2480,null,"Materiales complementarios",2480,"248 Materiales complementarios","Asignaciones destinadas a la adquisición de materiales para el acondicionamiento de las obras públicas y bienes inmuebles, tales como: tapices, pisos, persianas y demás accesorios."]
[154,null,null,null,2481,"Materiales complementarios "]
[155,null,null,2490,null,"Otros materiales y artículos de construcción y reparación",2490,"249 Otros materiales y artículos de construcción y reparación","Asignaciones destinadas a cubrir la adquisición de otros materiales para construcción y reparación no considerados en las partidas anteriores tales como: Productos de fricción o abrasivos a partir de polvos minerales sintéticos o naturales para obtener productos como piedras amolares, esmeriles de rueda, abrasivos en polvo, lijas, entre otros; pinturas, recubrimientos, adhesivos y selladores, como barnices, lacas y esmaltes; adhesivos o pegamento, impermeabilizantes, masillas, resanadores, gomas-cemento y similares, thinner y removedores de pintura y barniz, entre otros."]
[156,null,null,null,2491,"Materiales diversos "]
[157,null,2500,null,null,"Productos químicos, farmacéuticos y de laboratorio",2500,"2500 PRODUCTOS QUIMICOS, FARMACEUTICOS Y DE LABORATORIO","Asignaciones destinadas a la adquisición de sustancias, productos químicos y farmacéuticos de aplicación humana o animal; así como toda clase de materiales y suministros médicos y de laboratorio."]
[158,null,null,2510,null,"Productos químicos básicos",2510,"251 Productos químicos básicos","Asignaciones destinadas a la adquisición de productos químicos básicos: petroquímicos como benceno, tolueno, xileno, etileno, propileno, estireno a partir del gas natural, del gas licuado del petróleo y de destilados y otras fracciones posteriores a la refinación del petróleo; reactivos, fluoruros, fosfatos, nitratos, óxidos, alquinos, marcadores genéticos, entre otros."]
[159,null,null,null,2511,"Sustancias químicas"]
[160,null,null,2520,null,"Fertilizantes, pesticidas y otros agroquímicos",2520,"252 Fertilizantes, pesticidas y otros agroquímicos","Asignaciones destinadas a la adquisición de fertilizantes nitrogenados, fosfatados, biológicos procesados o de otro tipo, mezclas, fungicidas, herbicidas, plaguicidas, raticidas, antigerminantes, reguladores del crecimiento de las plantas y nutrientes de suelos, entre otros. Incluye los abonos que se comercializan en estado natural."]
[161,null,null,null,2521,"Fertilizantes y abonos"]
[162,null,null,null,2522,"Plaguicidas y pesticidas"]
[163,null,null,2530,null,"Medicinas y productos farmacéuticos",2530,"253 Medicinas y productos farmacéuticos","Asignaciones destinadas a la adquisición de medicinas y productos farmacéuticos de aplicación humana o animal, tales como: vacunas, drogas, medicinas de patente, medicamentos, sueros, plasma, oxígeno, entre otros. Incluye productos fármaco-químicos como alcaloides, antibióticos, hormonas y otros compuestos y principios activos."]
[164,null,null,null,2531,"Medicinas y productos farmacéuticos"]
[165,null,null,2540,null,"Materiales, accesorios y suministros médicos",2540,"254 Materiales, accesorios y suministros médicos","Asignaciones destinadas a la adquisición de toda clase de materiales y suministros médicos que se requieran en hospitales, unidades sanitarias, consultorios, clínicas veterinarias, etc., tales como: jeringas, gasas, agujas, vendajes, material de sutura, espátulas, lentes, lancetas, hojas de bisturí y prótesis en general."]
[166,null,null,null,2541,"Materiales, accesorios y suministros médicos"]
[167,null,null,2550,null,"Materiales, accesorios y suministros de laboratorio",2550,"255 Materiales, accesorios y suministros de laboratorio","Asignaciones destinadas a la adquisición de toda clase de materiales y suministros, tales como: cilindros graduados, matraces, probetas, mecheros, tanques de revelado, materiales para radiografía, electrocardiografía, medicina nuclear y demás materiales y suministros utilizados en los laboratorios médicos, químicos, de investigación, fotográficos, cinematográficos, entre otros. Esta partida incluye animales para experimentación."]
[168,null,null,null,2551,"Materiales, accesorios y suministros de laboratorio"]
[169,null,null,2560,null,"Fibras sintéticas, hules, plásticos y derivados",2560,"256 Fibras sintéticas, hules, plásticos y derivados","Asignaciones destinadas a cubrir erogaciones por adquisición de productos a partir del hule o de resinas plásticas, perfiles, tubos y conexiones, productos laminados, placas espumas, envases y contenedores, entre otros productos. Incluye P.V.C."]
[170,null,null,null,2561,"Fibras sintéticas, hules, plásticos y derivados"]
[171,null,null,2590,null,"Otros productos químicos",2590,"259 Otros productos químicos","Asignaciones destinadas a la adquisición de productos químicos básicos inorgánicos tales como: ácidos, bases y sales inorgánicas, cloro, negro de humo y el enriquecimiento de materiales radiactivos. Así como productos químicos básicos orgánicos, tales como: ácidos, anhídridos, alcoholes de uso industrial, cetonas, aldehídos, ácidos grasos, aguarrás, colofonia, colorantes naturales no comestibles, materiales sintéticos para perfumes y cosméticos, edulcorantes sintéticos, entre otros."]
[172,null,2600,null,null,"Combustibles, lubricantes y aditivos",2600,"2600 COMBUSTIBLES, LUBRICANTES Y ADITIVOS","Asignaciones destinadas a la adquisición de combustibles, lubricantes y aditivos de todo tipo, necesarios para el funcionamiento de vehículos de transporte terrestres, aéreos, marítimos, lacustres y fluviales; así como de maquinaria y equipo."]
[173,null,null,2610,null,"Combustibles, lubricantes y aditivos",2610,"261 Combustibles, lubricantes y aditivos","Asignaciones destinadas a la adquisición de productos derivados del petróleo (como gasolina, diesel, leña, etc.), aceites y grasas lubricantes para el uso en equipo de transporte e industrial y regeneración de aceite usado. Incluye etanol y biogás, entre otros. Excluye el petróleo crudo y gas natural, así como los combustibles utilizados como materia prima."]
[174,null,null,null,2611,"Combustibles, lubricantes y aditivos para vehículos destinados a la ejecución de programas de seguridad pública "]
[175,null,null,null,2612,"Combustibles, lubricantes y aditivos para vehículos terrestres, aéreos, marítimos, lacustres y fluviales asignados a servidores públicos"]
[176,null,null,null,2613,"Combustibles, lubricantes y aditivos para maquinaria, equipo de producción y servicios administrativos"]
[177,null,null,2620,null,"Carbón y sus derivados",2620,"262 Carbón y sus derivados","Asignaciones destinadas a la adquisición de productos químicos derivados de la coquización del carbón y las briquetas de carbón. Excluye el carbón utilizado como materia prima."]
[178,null,null,null,2621,"Carbón y sus derivados"]
[179,null,2700,null,null,"Vestuario, blancos, prendas de protección y artículos deportivos",2700,"2700 VESTUARIO, BLANCOS, PRENDAS DE PROTECCION Y ARTICULOS DEPORTIVOS","Asignaciones destinadas a la adquisición de vestuario y sus accesorios, blancos, artículos deportivos; así como prendas de protección personal diferentes a las de seguridad."]
[180,null,null,2710,null,"Vestuario y uniformes",2710,"271 Vestuario y uniformes","Asignaciones destinadas a la adquisición de toda clase de prendas de vestir: de punto, ropa de tela, cuero y piel y a la fabricación de accesorios de vestir: camisas, pantalones, trajes, calzado; uniformes y sus accesorios: insignias, distintivos, emblemas, banderas, banderines, uniformes y ropa de trabajo, calzado."]
[181,null,null,null,2711,"Vestuario y uniformes"]
[182,null,null,2720,null,"Prendas de seguridad y protección personal",2720,"272 Prendas de seguridad y protección personal","Asignaciones destinadas a la adquisición de ropa y equipo de máxima seguridad, prendas especiales de protección personal, tales como: guantes, botas de hule y asbesto, de tela o materiales especiales, cascos, caretas, lentes, cinturones y demás prendas distintas de las prendas de protección para seguridad pública y nacional."]
[183,null,null,null,2721,"Prendas de seguridad"]
[184,null,null,null,2722,"Prendas de protección personal"]
[185,null,null,2730,null,"Artículos deportivos",2730,"273 Artículos deportivos","Asignaciones destinadas a la adquisición de todo tipo de artículos deportivos, tales como: balones, redes, trofeos, raquetas, guantes, entre otros, que los entes públicos realizan en cumplimiento de su función pública."]
[186,null,null,null,2731,"Artículos deportivos"]
[187,null,null,2740,null,"Productos textiles",2740,"274 Productos textiles","Asignaciones destinadas a la adquisición de fibras naturales como lino, seda, algodón, ixtle y henequén; hilados e hilos de fibras naturales o sintéticas; telas, acabados y recubrimientos; alfombras, tapetes, cortinas, costales, redes y otros productos textiles que no sean prendas de vestir."]
[188,null,null,null,2741,"Productos textiles"]
[189,null,null,2750,null,"Blancos y otros productos textiles, excepto prendas de vestir",2750,"275 Blancos y otros productos textiles, excepto prendas de vestir","Asignaciones destinadas a la adquisición todo tipo de blancos: batas, colchas, sábanas, fundas, almohadas, toallas, cobertores, colchones y colchonetas, entre otros."]
[190,null,null,null,2751,"Blancos y otros productos textiles, excepto prendas de vestir"]
[191,null,2800,null,null,"Materiales y suministros para seguridad",2800,"2800 MATERIALES Y SUMINISTROS PARA SEGURIDAD","Asignaciones destinadas a la adquisición de materiales, sustancias explosivas y prendas de protección personal necesarias en los programas de seguridad."]
[192,null,null,2810,null,"Sustancias y materiales explosivos",2810,"281 Sustancias y materiales explosivos","Asignaciones destinadas a la adquisición de sustancias explosivas y sus accesorios (fusibles de seguridad y detonantes) tales como: pólvora, dinamita, cordita, trinitrotolueno, amatol, tetril, fulminantes, entre otros."]
[193,null,null,null,2811,"Sustancias y materiales explosivos"]
[194,null,null,2820,null,"Materiales de seguridad pública",2820,"282 Materiales de seguridad pública","Asignaciones destinadas a la adquisición de toda clase de suministros propios de la industria militar y de seguridad pública tales como: municiones, espoletas, cargas, granadas, cartuchos, balas, entre otros."]
[195,null,null,null,2821,"Materiales de seguridad pública"]
[196,null,null,2830,null,"Prendas de protección para seguridad pública y nacional",2830,"283 Prendas de protección para seguridad pública y nacional","Asignaciones destinadas a la adquisición de toda clase de prendas de protección propias para el desempeño de las funciones de seguridad pública y nacional, tales como: escudos, protectores, macanas, cascos policiales y militares, chalecos blindados, máscaras y demás prendas para el mismo fin."]
[197,null,null,null,2831,"Prendas de protección para seguridad pública "]
[198,null,2900,null,null,"Herramientas, refacciones y accesorios menores",2900,"2900 HERRAMIENTAS, REFACCIONES Y ACCESORIOS MENORES","Asignaciones destinadas a la adquisición de toda clase de refacciones, accesorios, herramientas menores y demás bienes de consumo del mismo género, necesarios para la conservación de los bienes muebles e inmuebles."]
[199,null,null,2910,null,"Herramientas menores",2910,"291 Herramientas menores","Asignaciones destinadas a la adquisición de herramientas auxiliares de trabajo, utilizadas en carpintería, silvicultura, horticultura, ganadería, agricultura y otras industrias, tales como: desarmadores, martillos, llaves para tuercas, carretillas de mano, cuchillos, navajas, tijeras de mano, sierras de mano, alicates, hojas para seguetas, micrómetros, cintas métricas, pinzas, martillos, prensas, berbiquíes, garlopas, taladros, zapapicos, escaleras, micrófonos, detectores de metales manuales y demás bienes de consumo similares. Excluye las refacciones y accesorios señalados en este capítulo; así como herramientas y máquinas herramienta consideradas en el capítulo 5000 Bienes muebles, inmuebles e intangibles."]
[200,null,null,null,2911,"Herramientas menores"]
[201,null,null,2920,null,"Refacciones y accesorios menores de edificios",2920,"292 Refacciones y accesorios menores de edificios","Asignaciones destinadas a la adquisición de instrumental complementario y repuesto de edificios, tales como: candados, cerraduras, pasadores, chapas, llaves, manijas para puertas, herrajes y bisagras."]
[202,null,null,null,2921,"Refacciones y accesorios menores de edificios"]
[203,null,null,2930,null,"Refacciones y accesorios menores de mobiliario y equipo de administración, educacional y recreativo",2930,"293 Refacciones y accesorios menores de mobiliario y equipo de administración, educacional y recreativo","Asignaciones destinadas a la adquisición de refacciones y accesorios de escritorios, sillas, sillones, archiveros, máquinas de escribir, calculadoras, fotocopiadoras, entre otros. Tales como: bases de 5 puntas, rodajas (para sillas y muebles), estructuras de sillas, pistones, brazos asientos y respaldos, tornillos, soleras, regatones, estructuras de muebles, entre otros."]
[204,null,null,null,2931,"Refacciones y accesorios menores de mobiliario "]
[205,null,null,null,2932,"Refacciones y accesorios de equipo educacional y recreativo"]
[206,null,null,2940,null,"Refacciones y accesorios menores de equipo de cómputo y tecnologías de la información",2940,"294 Refacciones y accesorios menores de equipo de cómputo y tecnologías de la información","Asignaciones destinadas a la adquisición de componentes o dispositivos internos o externos que se integran al equipo de cómputo, con el objeto de conservar o recuperar su funcionalidad y que son de difícil control de inventarios, tales como: tarjetas electrónicas, unidades de discos internos, circuitos, bocinas, pantallas y teclados, entre otros."]
[207,null,null,null,2941,"Refacciones y accesorios menores de equipo de cómputo y tecnologías de la información"]
[208,null,null,2950,null,"Refacciones y accesorios menores de equipo e instrumental médico y de laboratorio",2950,"295 Refacciones y accesorios menores de equipo e instrumental médico y de laboratorio","Asignaciones destinadas a la adquisición de refacciones y accesorios para todo tipo de aparatos e instrumentos médicos y de laboratorio."]
[209,null,null,null,2951,"Refacciones y accesorios menores de quipo e instrumental médico y de laboratorio"]
[210,null,null,2960,null,"Refacciones y accesorios menores de equipo de transporte",2960,"296 Refacciones y accesorios menores de equipo de transporte","Asignaciones destinadas a la adquisición de autopartes de equipo de transporte tales como: llantas, suspensiones, sistemas de frenos, partes eléctricas, alternadores, distribuidores, partes de suspensión y dirección, marchas, embragues, retrovisores, limpiadores, volantes, tapetes, reflejantes, bocinas, auto estéreos, gatos hidráulicos o mecánicos."]
[211,null,null,null,2961,"Refacciones y accesorios menores de equipo de transporte"]
[212,null,null,2970,null,"Refacciones y accesorios menores de equipo de defensa y seguridad",2970,"297 Refacciones y accesorios menores de equipo de defensa y seguridad","Asignaciones destinadas a cubrir la adquisición de refacciones para todo tipo de equipos de defensa y seguridad referidos en la partida 551 Equipo de defensa y seguridad, entre otros."]
[213,null,null,null,2971,"Refacciones y accesorios menores de equipo de defensa y seguridad"]
[214,null,null,2980,null,"Refacciones y accesorios menores de maquinaria y otros equipos",2980,"298 Refacciones y accesorios menores de maquinaria y otros equipos","Asignaciones destinadas a la adquisición de piezas, partes, componentes, aditamentos, implementos y reemplazos de maquinaria pesada, agrícola y de construcción, entre otros. Excluye refacciones y accesorios mayores contemplados en el capítulo 5000 Bienes Muebles, Inmuebles e Intangibles."]
[215,null,null,null,2981,"Refacciones y accesorios menores de maquinaria y otros equipos"]
[216,null,null,2990,null,"Refacciones y accesorios menores otros bienes muebles",2990,"299 Refacciones y accesorios menores otros bienes muebles","Asignaciones destinadas a la adquisición de instrumental complementario y repuestos menores no considerados en las partidas anteriores."]
[217,null,null,null,2991,"Refacciones y accesorios menores otros bienes muebles"]
[218,3000,null,null,null,"SERVICIOS GENERALES",3000,"3000 SERVICIOS GENERALES","Asignaciones destinadas a cubrir el costo de todo tipo de servicios que se contraten con particulares o instituciones del propio sector público; así como los servicios oficiales requeridos para el desempeño de actividades vinculadas con la función pública."]
[219,null,3100,null,null,"Servicios básicos",3100,"3100 SERVICIOS BASICOS","Asignaciones destinadas a cubrir erogaciones por concepto de servicios básicos necesarios para el funcionamiento de los entes públicos. Comprende servicios tales como: postal, telegráfico, telefónico, energía eléctrica, agua, transmisión de datos, radiocomunicaciones y otros análogos."]
[220,null,null,3110,null,"Energía eléctrica",3110,"311 Energía eléctrica","Asignaciones destinadas a cubrir el importe de la contratación, instalación y consumo de energía eléctrica, necesarias para el funcionamiento de las instalaciones oficiales. Incluye alumbrado público."]
[221,null,null,null,3111,"Servicio de energía eléctrica"]
[222,null,null,null,3112,"Alumbrado público"]
[223,null,null,3120,null,"Gas",3120,"312 Gas","Asignaciones destinadas al suministro de gas al consumidor final por ductos, tanque estacionario o de cilindros."]
[224,null,null,null,3121,"Servicio de gas"]
[225,null,null,3130,null,"Agua",3130,"313 Agua","Asignaciones destinadas a cubrir el importe del consumo de agua potable y para riego, necesarios para el funcionamiento de las instalaciones oficiales."]
[226,null,null,null,3131,"Servicio de agua"]
[227,null,null,3140,null,"Telefonía tradicional",3140,"314 Telefonía tradicional","Asignaciones destinadas al pago de servicio telefónico convencional nacional e internacional, mediante redes alámbricas, incluido el servicio de fax, requerido en el desempeño de funciones oficiales."]
[228,null,null,null,3141,"Servicio telefonía tradicional"]
[229,null,null,3150,null,"Telefonía celular",3150,"315 Telefonía celular","Asignaciones destinadas al pago de servicios de telecomunicaciones inalámbricas o telefonía celular, requeridos para el desempeño de funciones oficiales."]
[230,null,null,null,3151,"Servicio telefonía celular"]
[231,null,null,null,3152,"Radiolocalización"]
[232,null,null,3160,null,"Servicios de telecomunicaciones y satélites",3160,"316 Servicios de telecomunicaciones y satélites","Asignaciones destinadas a cubrir el pago de servicios de la red de telecomunicaciones nacional e internacional, requeridos en el desempeño de funciones oficiales. Incluye la radiolocalización unidireccional o sistema de comunicación personal y selectiva de alerta, sin mensaje, o con un mensaje definido compuesto por caracteres numéricos o alfanuméricos. Incluye servicios de conducción de señales de voz, datos e imagen requeridos en el desempeño de funciones oficiales, tales como: servicios satelitales, red digital integrada y demás servicios no considerados en las redes telefónicas y de telecomunicaciones nacional e internacional."]
[233,null,null,null,3161,"Servicios de telecomunicaciones y satélites"]
[234,null,null,3170,null,"Servicios de acceso de Internet, redes y procesamiento de información",3170,"317 Servicios de acceso de Internet, redes y procesamiento de información","Asignaciones destinadas a cubrir el servicio de acceso a Internet y servicios de búsqueda en la red. Provisión de servicios electrónicos, como hospedaje y diseño de páginas web y correo. Incluye procesamiento electrónico de información, como captura y procesamiento de datos, preparación de reportes, impresión y edición de archivos, respaldo de información, lectura óptica; manejo y administración de otras aplicaciones en servidores dedicados o compartidos, como tiendas virtuales, servicios de reservaciones, entre otras. Incluye microfilmación."]
[235,null,null,null,3171,"Servicios de acceso de internet"]
[236,null,null,null,3172,"Servicios de redes"]
[237,null,null,null,3173,"Servicios de procesamiento de información"]
[238,null,null,3180,null,"Servicios postales y telegráficos",3180,"318 Servicios postales y telegráficos","Asignaciones destinadas al pago del servicio postal nacional e internacional, gubernamental y privado a través de los establecimientos de mensajería y paquetería y servicio telegráfico nacional e internacional, requeridos en el desempeño de funciones oficiales."]
[239,null,null,null,3181,"Servicio postal "]
[240,null,null,null,3182,"Servicio telegráfico "]
[241,null,null,3190,null,"Servicios integrales y otros servicios",3190,"319 Servicios integrales y otros servicios","Asignaciones destinadas a cubrir el pago de servicios integrales en materia de telecomunicaciones requeridos en el desempeño de funciones oficiales tales como: telefonía celular, radiocomunicación y radiolocalización, entre otros, cuando no sea posible su desagregación en las demás partidas de este concepto. Incluye servicios de telecomunicaciones especializadas no clasificadas en otra parte, como rastreo de satélites, telemetría de comunicaciones, operación de estaciones de radar, telecomunicaciones transoceánicas."]
[242,null,null,null,3191,"Servicios integrales"]
[243,null,null,null,3192,"Contratación de otros servicios "]
[244,null,3200,null,null,"Servicios de arrendamiento",3200,"3200 SERVICIOS DE ARRENDAMIENTO","Asignaciones destinadas a cubrir erogaciones por concepto de arrendamiento de: edificios, locales, terrenos, maquinaria y equipo, vehículos, intangibles y otros análogos."]
[245,null,null,3210,null,"Arrendamiento de terrenos",3210,"321 Arrendamiento de terrenos","Asignaciones destinadas a cubrir el alquiler de terrenos."]
[246,null,null,null,3211,"Arrendamiento de terrenos"]
[247,null,null,3220,null,"Arrendamiento de edificios",3220,"322 Arrendamiento de edificios","Asignaciones destinadas a cubrir el alquiler de toda clase de edificios e instalaciones como: viviendas y edificaciones no residenciales, salones para convenciones, oficinas y locales comerciales, teatros, estadios, auditorios, bodegas, entre otros."]
[248,null,null,null,3221,"Arrendamiento de edificios y locales"]
[249,null,null,3230,null,"Arrendamiento de mobiliario y equipo de administración, educacional y recreativo",3230,"323 Arrendamiento de mobiliario y equipo de administración, educacional y recreativo","Asignaciones destinadas a cubrir el alquiler de toda clase de mobiliario requerido en el cumplimiento de las funciones oficiales. Incluye bienes y equipos de tecnologías de la información, tales como: equipo de cómputo, impresoras y fotocopiadoras, entre otras."]
[250,null,null,null,3231,"Arrendamiento de mobiliario y equipo de administración"]
[251,null,null,null,3232,"Arrendamiento de mobiliario y equipo educativo y recreativo"]
[252,null,null,null,3233,"Arrendamiento de equipo y bienes informáticos "]
[253,null,null,3240,null,"Arrendamiento de equipo e instrumental médico y de laboratorio",3240,"324 Arrendamiento de equipo e instrumental médico y de laboratorio","Asignaciones destinadas a cubrir el alquiler de toda clase de equipo e instrumental médico y de laboratorio."]
[254,null,null,null,3241,"Arrendamiento de equipo e instrumental médico y de laboratorio"]
[255,null,null,3250,null,"Arrendamiento de equipo de transporte",3250,"325 Arrendamiento de equipo de transporte","Asignaciones destinadas a cubrir el alquiler de toda clase de equipo de transporte, ya sea terrestre, aeroespacial, marítimo, lacustre y fluvial."]
[256,null,null,null,3251,"Arrendamiento de vehículos terrestres, aéreos, marítimos, lacustres y fluviales para la ejecución de programas de seguridad pública y nacional"]
[257,null,null,null,3252,"Arrendamiento de vehículos terrestres, aéreos, marítimos, lacustres y fluviales para servicios administrativos"]
[258,null,null,3260,null,"Arrendamiento de maquinaria, otros equipos y herramientas",3260,"326 Arrendamiento de maquinaria, otros equipos y herramientas","Asignaciones destinadas a cubrir el alquiler de toda clase de maquinaria para la construcción, la minería, actividades forestales, entre otras. Ejemplo: cribadoras, demoledoras, excavadoras, mezcladoras, revolvedoras, perforadoras, barrenadoras, grúas para la construcción, equipo para la extracción de petróleo y gas, sierras para corte de árboles y transportadores de bienes silvícolas, entre otros."]
[259,null,null,null,3261,"Arrendamiento de maquinaria y equipo "]
[260,null,null,null,3262,"Arrendamiento de herramientas"]
[261,null,null,3270,null,"Arrendamiento de activos intangibles",3270,"327 Arrendamiento de activos intangibles","Asignaciones destinadas a cubrir el importe que corresponda por el uso de patentes y marcas, representaciones comerciales e industriales, regalías por derechos de autor, membresías, así como licencias de uso de programas de cómputo y su actualización."]
[262,null,null,null,3271,"Arrendamiento de activos intangibles"]
[263,null,null,3280,null,"Arrendamiento financiero",3280,"328 Arrendamiento financiero","Asignaciones destinadas a cubrir el importe que corresponda por los derechos sobre bienes en régimen de arrendamiento financiero."]
[264,null,null,null,3281,"Arrendamiento financiero"]
[265,null,null,3290,null,"Otros arrendamientos",3290,"329 Otros arrendamientos","Asignaciones destinadas a cubrir el alquiler de toda clase de elementos no contemplados en las partidas anteriores, sustancias y productos químicos, sillas, mesas, utensilios de cocina, mantelería, lonas, carpas y similares para ocasiones especiales. Instrumentos musicales. Equipo médico como muletas y tanques de oxígeno. Equipo y vehículos recreativos y deportivos requeridos en el cumplimiento de las funciones oficiales."]
[266,null,null,null,3291,"Otros Arrendamientos"]
[267,null,3300,null,null,"Servicios profesionales, científicos, técnicos y otros servicios",3300,"3300 SERVICIOS PROFESIONALES, CIENTIFICOS, TECNICOS Y OTROS SERVICIOS","Asignaciones destinadas a cubrir erogaciones por contratación de personas físicas y morales para la prestación de servicios profesionales independientes tales como informáticos, de asesoría, consultoría, capacitación, estudios e investigaciones, protección y seguridad; excluyen los estudios de pre-inversión previstos en el Capítulo 6000 Inversión Pública, así como los honorarios asimilables a salarios considerados en el capítulo 1000 Servicios Personales."]
[268,null,null,3310,null,"Servicios legales, de contabilidad, auditoría y relacionados",3310,"331 Servicios legales, de contabilidad, auditoría y relacionados","Asignaciones destinadas a cubrir servicios legales, notariales y servicios de apoyo para efectuar trámites legales; la contratación de servicios de contabilidad, auditoría y asesoría contable y fiscal y servicios técnicos de contabilidad como cálculo de impuestos, elaboración de nóminas, llenado de formatos fiscales y otros no clasificados en otra parte. Excluye: servicios de mecanografía, elaboración de programas computacionales de contabilidad."]
[269,null,null,null,3311,"Servicios legales"]
[270,null,null,null,3312,"Servicios de contabilidad"]
[271,null,null,null,3313,"Servicios de auditoría"]
[272,null,null,null,3314,"Otros servicios relacionados"]
[273,null,null,3320,null,"Servicios de diseño, arquitectura, ingeniería y actividades relacionadas",3320,"332 Servicios de diseño, arquitectura, ingeniería y actividades relacionadas","Asignaciones destinadas a cubrir servicios de arquitectura, arquitectura de paisaje, urbanismo, ingeniería civil, mecánica, electrónica, en proceso de producción y a actividades relacionadas como servicios de dibujo, inspección de edificios, levantamiento geofísico, elaboración de mapas, servicios prestados por laboratorios de pruebas. Creación y desarrollo de diseños para optimizar el uso, valor y apariencia de productos como maquinaria, muebles, automóviles, herramientas y gráfico. Excluye: diseño de sistemas de cómputo y confección de modelos de vestir para reproducción masiva."]
[274,null,null,null,3321,"Servicios de diseño, arquitectura, ingeniería y actividades relacionadas"]
[275,null,null,3330,null,"Servicios de consultoría administrativa, procesos, técnica y en tecnologías de la información",3330,"333 Servicios de consultoría administrativa, procesos, técnica y en tecnologías de la información","Asignaciones destinadas a cubrir los servicios en el campo de las tecnologías de información a través de actividades como planeación y diseño de sistemas de cómputo que integran hardware y software y tecnologías de comunicación, asesoría en la instalación de equipo y redes informáticas, administración de centros de cómputo y servicios de instalación de software, consultoría administrativa (administración general, financiera, organizacional, recursos humanos), científica y técnica (en biología, química, economía, sociología, estadística, geografía, matemáticas, física, agricultura, desarrollos turísticos, seguridad, comercio exterior, desarrollo industrial y otros no clasificados en otra parte). Incluye planeación, diseño y desarrollo de programas computacionales. Excluye: Servicios de investigación de mercados y encuestas de opinión pública, servicios de investigación y desarrollo científico, servicios de administración de negocios, consultoría en psicología, educación y servicios de empleo."]
[276,null,null,null,3331,"Servicios de consultoría administrativa"]
[277,null,null,null,3332,"Servicios de procesos, técnica y en tecnologías de la información"]
[278,null,null,3340,null,"Servicios de capacitación ",3340,"334 Servicios de capacitación","Asignaciones destinadas a cubrir el costo de los servicios profesionales que se contraten con personas físicas y morales por concepto de preparación e impartición de cursos de capacitación y/o actualización de los servidores públicos, en territorio nacional o internacional, en cumplimiento de los programas anuales de capacitación que establezcan los entes públicos. Excluye las erogaciones por capacitación correspondientes a las prestaciones comprendidas en el capítulo 1000 Servicios Personales."]
[279,null,null,null,3341,"Servicios de capacitación "]
[280,null,null,3350,null,"Servicios de investigación científica y desarrollo",3350,"335 Servicios de investigación científica y desarrollo","Asignaciones destinadas a cubrir la investigación y desarrollo en ciencias físicas, de la vida (biología, botánica, biotecnología, medicina, farmacéutica, agricultura), ingeniería, química, oceanografía, geología y matemáticas, ciencias sociales y humanidades (economía, sociología, derecho, educación, lenguaje y psicología)."]
[281,null,null,null,3351,"Servicios de investigación científica"]
[282,null,null,null,3352,"Servicios de investigación de desarrollo"]
[283,null,null,null,3353,"Servicios estadísticos y geográficos"]
[284,null,null,3360,null,"Servicios de apoyo administrativo, traducción, fotocopiado e impresión",3360,"336 Servicios de apoyo administrativo, fotocopiado e impresión","Asignaciones destinadas a cubrir el costo de la contratación de servicios de fotocopiado y preparación de documentos; digitalización de documentos oficiales, fax, engargolado, enmicado, encuadernación, corte de papel, recepción de correspondencia y otros afines. Incluye servicios de apoyo secretarial, servicios de estenografía en los tribunales, transcripción simultánea de diálogos para la televisión, reuniones y conferencias; servicios comerciales no previstos en las demás partidas anteriores. Incluye servicios de impresión de documentos oficiales necesarios tales como: pasaportes, certificados especiales, títulos de crédito, formas fiscales y formas valoradas, y demás documentos para la identificación, trámites oficiales y servicios a la población; servicios de impresión y elaboración de material informativo, tales como: padrones de beneficiarios, reglas de operación, programas sectoriales, regionales, especiales; informes de labores, manuales de organización, de procedimientos y de servicios al público; decretos, convenios, acuerdos, instructivos, proyectos editoriales (libros, revistas y gacetas periódicas), folletos, trípticos, dípticos, carteles, mantas, rótulos, y demás servicios de impresión y elaboración de material informativo. Incluye gastos como: avisos, precisiones, convocatorias, edictos, bases, licitaciones, diario oficial, concursos y aclaraciones, y demás información en medios masivos. Excluye las inserciones derivadas de campañas publicitarias y de comunicación social, las cuales se deberán registrar en las partidas correspondientes al concepto 3600 Servicios de Comunicación Social y Publicidad."]
[285,null,null,null,3361,"Impresiones de documentos oficiales para la prestación de servicios públicos, identificación, formatos administrativos y fiscales, formas valoradas, certificados y títulos"]
[286,null,null,3370,null,"Servicios de protección y seguridad",3370,"337 Servicios de protección y seguridad","Asignaciones destinadas a la realización de programas, investigaciones, acciones y actividades en materia de seguridad pública y nacional, en cumplimiento de funciones y actividades oficiales, cuya realización implique riesgo, urgencia y confidencialidad extrema. Incluye los recursos para la contratación temporal de personas y la adquisición de materiales y servicios necesarios para tales efectos. En ningún caso se podrán sufragar con cargo a esta partida, erogaciones previstas en otros capítulos, conceptos y partidas de este clasificador cuando corresponda a programas, investigaciones, acciones y actividades diferentes de los especiales sujetos a esta partida."]
[287,null,null,null,3371,"Servicios de protección y seguridad"]
[288,null,null,3380,null,"Servicios de vigilancia",3380,"338 Servicios de vigilancia","Asignaciones destinadas a cubrir las erogaciones por servicios de monitoreo de personas, objetos o procesos tanto de inmuebles de los entes públicos como de lugares de dominio público prestados por instituciones de seguridad."]
[289,null,null,null,3381,"Servicios de vigilancia "]
[290,null,null,3390,null,"Servicios profesionales, científicos y técnicos integrales",3390,"339 Servicios profesionales, científicos y técnicos integrales","Servicios profesionales de investigación de mercados, de fotografía, todo tipo de traducciones escritas o verbales, veterinarios, de valuación de metales, piedras preciosas, obras de arte y antigüedades, y otros servicios profesionales, científicos y técnicos no clasificados en otra parte."]
[291,null,null,null,3391,"Servicios profesionales, científicos y técnicos integrales"]
[292,null,3400,null,null,"Servicios financieros, bancarios y comerciales",3400,"3400 SERVICIOS FINANCIEROS, BANCARIOS Y COMERCIALES","Asignaciones destinadas a cubrir el costo de servicios tales como: fletes y maniobras; almacenaje, embalaje y envase; así como servicios bancarios y financieros; seguros patrimoniales; comisiones por ventas."]
[293,null,null,3410,null,"Servicios financieros y bancarios",3410,"341 Servicios financieros y bancarios","Asignaciones destinadas a cubrir el pago de servicios financieros y bancarios, tales como: el pago de comisiones, intereses por adeudos de los entes públicos, descuentos e intereses devengados con motivo de la colocación de empréstitos, certificados u otras obligaciones a cargo de la Tesorería, de acuerdo con tratados, contratos, convenios o leyes. Incluye los gastos por la realización de avalúo de bienes muebles e inmuebles o por justipreciación."]
[294,null,null,null,3411,"Servicios financieros y bancarios"]
[295,null,null,null,3412,"Diferencias por variaciones en el tipo de cambio"]
[296,null,null,3420,null,"Servicios de cobranza, investigación crediticia y similar",3420,"342 Servicios de cobranza, investigación crediticia y similar","Asignaciones destinadas a cubrir los gastos por servicios de cobranza, investigación crediticia y recopilación de información sobre solvencia financiera de personas o negocios."]
[297,null,null,null,3421,"Servicios de cobranza, investigación crediticia y similar"]
[298,null,null,3430,null,"Servicios de recaudación, traslado y custodia de valores",3430,"343 Servicios de recaudación, traslado y custodia de valores","Asignaciones destinadas a cubrir el pago de servicios financieros por guarda, custodia, traslado de valores y otros gastos inherentes a la recaudación."]
[299,null,null,null,3431,"Servicios de recaudación, traslado y custodia de valores"]
[300,null,null,3440,null,"Seguros de responsabilidad patrimonial y fianzas",3440,"344 Seguros de responsabilidad patrimonial y fianzas","Asignaciones destinadas a cubrir las primas con cargo al presupuesto autorizado de los entes públicos, por concepto de la contratación del seguro de responsabilidad patrimonial del Estado, que permita con la suma asegurada cubrir el monto equivalente a las indemnizaciones y que corresponderán a la reparación integral del daño y, en su caso, por el daño personal y moral, que se ocasionen como consecuencia de la actividad administrativa irregular del Estado. Excluye el monto de las erogaciones que resulten por insuficiencia de la suma asegurada contra el costo de la indemnización y, en su caso, los deducibles correspondientes. Estas erogaciones deberán cubrirse con cargo a la partida: Otros gastos por responsabilidades, de este Clasificador."]
[301,null,null,null,3441,"Seguros de responsabilidad patrimonial y fianzas"]
[302,null,null,3450,null,"Seguro de bienes patrimoniales",3450,"345 Seguro de bienes patrimoniales","Asignaciones destinadas a cubrir las primas por concepto de seguros contra robos, incendios, y demás riesgos o contingencias a que pueden estar sujetos los materiales, bienes muebles e inmuebles y todo tipo de valores registrados en los activos. Excluye el pago de deducibles previstos en el concepto: Servicios de instalación, reparación, mantenimiento y conservación, así como los seguros de vida del personal civil y militar o de gastos médicos, previstos en el capítulo 1000 Servicios Personales."]
[303,null,null,null,3451,"Seguro de bienes patrimoniales"]
[304,null,null,3460,null,"Almacenaje, envase y embalaje",3460,"346 Almacenaje, envase y embalaje","Asignaciones destinadas a cubrir el costo de los servicios de almacenamiento, embalaje, desembalaje, envase y desenvase de toda clase de objetos, artículos, materiales, mobiliario, entre otros."]
[305,null,null,null,3461,"Almacenaje, envase y embalaje"]
[306,null,null,3470,null,"Fletes y maniobras",3470,"347 Fletes y maniobras","Asignaciones destinadas a cubrir el costo de traslado, maniobras, embarque y desembarque de toda clase de objetos, artículos, materiales, mobiliario, entre otros, que no requieren de equipo especializado (camiones de redilas, tipo caja, con contenedor, plataforma para carga general), como de aquellos productos que por sus características (líquidos, gases) requieren ser transportados en camiones con equipo especializado (equipo de refrigeración, equipo para transportar materiales y residuos peligrosos, plataformas para carga especializada y mudanzas)."]
[307,null,null,null,3471,"Fletes y maniobras"]
[308,null,null,3480,null,"Comisiones por ventas",3480,"348 Comisiones por ventas","Asignaciones destinadas a cubrir el pago de comisiones a personas físicas, ya sean: profesionistas, técnico, expertos o peritos, así como a las personas morales, con las cuáles se tenga celebrado contrato respectivo, por los servicios de venta prestados a los entes públicos."]
[309,null,null,null,3481,"Comisiones por ventas"]
[310,null,null,3490,null,"Servicios financieros, bancarios y comerciales integrales",3490,"349 Servicios financieros, bancarios y comerciales integrales","Otros servicios financieros, bancarios y comerciales no previstos en las demás partidas anteriores de este concepto. Incluye casetas telefónicas sin operar las redes alámbricas, recepción de llamadas telefónicas y promoción por teléfono de bienes y servicios, de recepción de llamadas telefónicas en nombre de los clientes. Excluye: cálculo de impuestos y preparación de formatos para la declaración de impuestos, al procesamiento de datos, a la operación de redes de telefonía tradicional, venta de productos por teléfono y a los servicios de correo electrónico."]
[311,null,null,null,3491,"Servicios financieros, bancarios y comerciales integrales"]
[312,null,3500,null,null,"Servicios de instalación, reparación, mantenimiento y conservación",3500,"3500 SERVICIOS DE INSTALACION, REPARACION, MANTENIMIENTO Y CONSERVACION","Asignaciones destinadas a cubrir erogaciones no capitalizables por contratación de servicios para la instalación, mantenimiento, reparación y conservación de toda clase de bienes muebles e inmuebles. Incluye los deducibles de seguros, así como los servicios de lavandería, limpieza, jardinería, higiene y fumigación. Excluye los gastos por concepto de mantenimiento y rehabilitación de la obra pública."]
[313,null,null,3510,null,"Conservación y mantenimiento menor de inmuebles",3510,"351 Conservación y mantenimiento menor de inmuebles","Asignaciones destinadas a cubrir los gastos por servicios de conservación y mantenimiento menor de edificios, locales, terrenos, predios, áreas verdes y caminos de acceso, propiedad de la Nación o al servicio de los entes públicos, cuando se efectúen por cuenta de terceros, incluido el pago de deducibles de seguros."]
[314,null,null,null,3511,"Conservación y mantenimiento de inmuebles"]
[315,null,null,null,3512,"Adaptación de inmuebles "]
[316,null,null,3520,null,"Instalación, reparación y mantenimiento de mobiliario y equipo de administración, educacional y recreativo",3520,"352 Instalación, reparación y mantenimiento de mobiliario y equipo de administración, educacional y recreativo","Asignaciones destinadas a cubrir los gastos por servicios de instalación, reparación y mantenimiento de toda clase de mobiliario y equipo de administración, tales como: escritorios, sillas, sillones, archiveros, máquinas de escribir, calculadoras, fotocopiadoras, entre otros. Incluye el pago de deducibles de seguros."]
[317,null,null,null,3521,"Instalación, reparación y mantenimiento  de mobiliario y equipo de administración"]
[318,null,null,null,3522,"Instalación, reparación y mantenimiento  de mobiliario y equipo educativo y recreativo"]
[319,null,null,3530,null,"Instalación, reparación y mantenimiento de equipo de cómputo y tecnología de la información",3530,"353 Instalación, reparación y mantenimiento de equipo de cómputo y tecnologías de la información","Asignaciones destinadas a cubrir los gastos por servicios que se contraten con terceros para la instalación, reparación y mantenimiento de equipos de cómputo y tecnologías de la información, tales como: computadoras, impresoras, dispositivos de seguridad, reguladores, fuentes de potencia ininterrumpida, entre otros. Incluye el pago de deducibles de seguros."]
[320,null,null,null,3531,"Instalación, reparación y mantenimiento de bienes informáticos"]
[321,null,null,3540,null,"Instalación, reparación y mantenimiento de equipo e instrumental médico y de laboratorio",3540,"354 Instalación, reparación y mantenimiento de equipo e instrumental médico y de laboratorio","Asignaciones destinadas a cubrir los gastos por servicios de instalación, reparación y mantenimiento de equipo e instrumental médico y de laboratorio."]
[322,null,null,null,3541,"Instalación, reparación y mantenimiento de equipo e instrumental médico y de laboratorio"]
[323,null,null,3550,null,"Reparación y mantenimiento de equipo de transporte",3550,"355 Reparación y mantenimiento de equipo de transporte","Asignaciones destinadas a cubrir los gastos por servicios de reparación y mantenimiento del equipo de transporte terrestre, aeroespacial, marítimo, lacustre y fluvial e instalación de equipos en los mismos, propiedad o al servicio de los entes públicos."]
[324,null,null,null,3551,"Mantenimiento y conservación de vehículos terrestres, aéreos, marítimos, lacustres y fluviales"]
[325,null,null,3560,null,"Reparación y mantenimiento de equipo de defensa y seguridad",3560,"356 Reparación y mantenimiento de equipo de defensa y seguridad","Asignaciones destinadas a cubrir los gastos por servicios de reparación y mantenimiento del equipo de defensa y seguridad."]
[326,null,null,null,3561,"Reparación y mantenimiento de equipo de defensa y seguridad"]
[327,null,null,3570,null,"Instalación, reparación y mantenimiento de maquinaria, otros equipos y herramienta",3570,"357 Instalación, reparación y mantenimiento de maquinaria, otros equipos y herramienta","Asignaciones destinadas a cubrir los gastos por servicios de instalación, reparación y mantenimiento de la maquinaria, otros equipos y herramienta, propiedad o al servicio de los entes públicos tales como: tractores, palas mecánicas, dragas, fertilizadoras, vehículos, embarcaciones, aeronaves, equipo especializado instalado en los inmuebles, entre otros, cuando se efectúen por cuenta de terceros. Incluye el mantenimiento de plantas e instalaciones productivas y el pago de deducibles de seguros."]
[328,null,null,null,3571,"Instalación, reparación y mantenimiento de maquinaria, otros equipos y herramienta"]
[329,null,null,3580,null,"Servicios de limpieza y manejo de desechos",3580,"358 Servicios de limpieza y manejo de desechos","Asignaciones destinadas a cubrir los gastos por servicios de lavandería, limpieza, desinfección, higiene en los bienes muebles e inmuebles propiedad o al cuidado de los entes públicos. Servicios de manejo de desechos y remediación, como recolección y manejo de desechos, operación de sitios para enterrar desechos (confinamiento), la recuperación y clasificación de materiales reciclables y rehabilitación de limpieza de zonas contaminadas."]
[330,null,null,null,3581,"Servicios de limpieza y manejo de desechos"]
[331,null,null,3590,null,"Servicios de jardinería y fumigación",3590,"359 Servicios de jardinería y fumigación","Asignaciones destinadas a cubrir los gastos por control y exterminación de plagas, instalación y mantenimiento de áreas verdes como la plantación, fertilización y poda de árboles, plantas y hierbas."]
[332,null,null,null,3591,"Servicios de jardinería y fumigación"]
[333,null,3600,null,null,"Servicios de comunicación social y publicidad",3600,"3600 SERVICIOS DE COMUNICACION SOCIAL Y PUBLICIDAD","Asignaciones destinadas a cubrir los gastos de realización y difusión de mensajes y campañas para informar a la población sobre los programas, servicios públicos y el quehacer gubernamental en general; así como la publicidad comercial de los productos y servicios que generan ingresos para los entes públicos. Incluye la contratación de servicios de impresión y publicación de información; así como al montaje de espectáculos culturales y celebraciones que demanden los entes públicos."]
[334,null,null,3610,null,"Difusión por radio, televisión y otros medios de mensajes sobre programas y actividades gubernamentales",3610,"361  Difusión por radio, televisión y otros medios de mensajes sobre programas y actividades gubernamentales","Asignaciones destinadas a cubrir el costo de difusión del quehacer gubernamental y de los bienes y servicios públicos que prestan los entes públicos, la publicación y difusión masiva de las mismas a un público objetivo determinado a través de televisión abierta y restringida, radio, cine, prensa, encartes, espectaculares, mobiliario urbano, tarjetas telefónicas, medios electrónicos e impresos internacionales, folletos, trípticos, dípticos, carteles, mantas, rótulos, producto integrado y otros medios complementarios; estudios para medir la pertinencia y efectividad de las campañas, así como los gastos derivados de la contratación de personas físicas y/o morales que presten servicios afines para la elaboración, difusión y evaluación de dichas campañas."]
[335,null,null,null,3611,"Difusión e información de mensajes y actividades gubernamentales "]
[336,null,null,null,3612,"Impresión y elaboración de publicaciones oficiales y de información en general para difusión"]
[337,null,null,null,3613,"Espectáculos culturales "]
[338,null,null,null,3614,"Inserciones y publicaciones propias de la operación de las dependencias y entidades que no formen parte de las campañas"]
[339,null,null,3620,null,"Difusión por radio, televisión y otros medios de mensajes comerciales para promover la venta de bienes o servicios",3620,"362  Difusión por radio, televisión y otros medios de mensajes comerciales para promover la venta de bienes o servicios","Asignaciones destinadas a cubrir el costo de la publicidad derivada de la comercialización de los productos o servicios de los entes públicos que generan un ingreso para el Estado. Incluye el diseño y conceptualización de campañas publicitarias; preproducción, producción, postproducción y copiado; publicación y difusión masiva de las mismas a un público objetivo determinado a través de televisión abierta y restringida, radio, cine, prensa, encartes, espectaculares, mobiliario urbano, tarjetas telefónicas, Internet, medios electrónicos e impresos internacionales, folletos, trípticos, dípticos, carteles, mantas, rótulos, producto integrado, puntos de venta, artículos promocionales, servicios integrales de promoción y otros medios complementarios, estudios para medir la pertinencia y efectividad de campañas; así como los gastos derivados de la contratación de personas físicas y/o morales que presenten servicios afines para la elaboración, difusión y evaluación de dichas campañas publicitarias. Excluye los gastos de difusión de mensajes que no comercializan productos o servicios."]
[340,null,null,null,3621,"Promoción para la venta de bienes o servicios"]
[341,null,null,3630,null,"Servicios de creatividad, preproducción y producción de publicidad, excepto Internet",3630,"363 Servicios de creatividad, preproducción y producción de publicidad, excepto internet","Asignaciones destinadas a cubrir los gastos por diseño y conceptualización de campañas de comunicación, preproducción, producción y copiado."]
[342,null,null,null,3631,"Servicios de creatividad, preproducción y producción de publicidad, excepto Internet"]
[343,null,null,3640,null,"Servicios de revelado de fotografías",3640,"364 Servicios de revelado de fotografías","Asignaciones destinadas a cubrir gastos por concepto de revelado o impresión de fotografías."]
[344,null,null,null,3641,"Servicios de revelado de fotografías"]
[345,null,null,3650,null,"Servicios de la industria fílmica, del sonido y del video",3650,"365 Servicios de la industria fílmica, del sonido y del video","Asignaciones destinadas a cubrir el costo por postproducción (doblaje, titulaje, subtitulaje, efectos visuales, animación, edición, conversión de formato, copiado de videos, entre otros) y otros servicios para la industria fílmica y del video (crestomatía y servicios prestados por laboratorios fílmicos)."]
[346,null,null,null,3651,"Servicios de la industria fílmica, del sonido y del video"]
[347,null,null,3660,null,"Servicio de creación y difusión de contenido exclusivamente a través de Internet",3660,"366 Servicio de creación y difusión de contenido exclusivamente a través de internet","Asignaciones destinadas a cubrir el gasto por creación, difusión y transmisión de contenido de interés general o específico a través de internet exclusivamente."]
[348,null,null,null,3661,"Servicio de creación y difusión de contenido exclusivamente a través de Internet"]
[349,null,null,3690,null,"Otros servicios de información",3690,"369 Otros servicios de información","Asignaciones destinadas a cubrir el costo de la contratación de servicios profesionales con personas físicas o morales, por concepto de monitoreo de información en medios masivos de comunicación, de las actividades de los entes públicos, que no se encuentren comprendidas en las demás partidas de este Capítulo."]
[350,null,null,null,3691,"Otros servicios de información"]
[351,null,3700,null,null,"Servicios de traslado y viáticos",3700,"3700 SERVICIOS DE TRASLADO Y VIATICOS","Asignaciones destinadas a cubrir los servicios de traslado, instalación y viáticos del personal, cuando por el desempeño de sus labores propias o comisiones de trabajo, requieran trasladarse a lugares distintos al de su adscripción."]
[352,null,null,3710,null,"Pasajes aéreos",3710,"371 Pasajes aéreos","Asignaciones destinadas a cubrir los gastos por concepto de traslado de personal por vía aérea en cumplimiento de sus funciones públicas. Incluye gastos por traslado de presos, reparto y entrega de mensajería. Excluye los pasajes por concepto de becas y arrendamiento de equipo de transporte."]
[353,null,null,null,3711,"Pasajes aéreos nacionales para servidores públicos en el desempeño de comisiones y funciones oficiales"]
[354,null,null,null,3712,"Pasajes aéreos internacionales para servidores públicos en el desempeño de comisiones y funciones oficiales"]
[355,null,null,3720,null,"Pasajes terrestres",3720,"372 Pasajes terrestres","Asignaciones destinadas a cubrir los gastos por concepto de traslado de personal por vía terrestre urbana y suburbana, interurbana y rural, taxis y ferroviario, en cumplimiento de sus funciones públicas. Incluye gastos por traslado de presos reparto y entrega de mensajería. Excluye pasajes por concepto de becas y arrendamiento de equipo de transporte."]
[356,null,null,null,3721,"Pasajes terrestres nacionales para servidores públicos en el desempeño de comisiones y funciones oficiales"]
[357,null,null,null,3722,"Pasajes terrestres internacionales para servidores públicos en el desempeño de comisiones y funciones oficiales"]
[358,null,null,3730,null,"Pasajes marítimos, lacustres y fluviales",3730,"373 Pasajes marítimos, lacustres y fluviales","Asignaciones destinadas a cubrir los gastos por concepto de traslado de personal por vía marítima, lacustre y fluvial en cumplimiento de sus funciones públicas. Incluye gastos por traslado de presos reparto y entrega de mensajería. Excluye los pasajes por concepto de becas y arrendamiento de equipo de transporte."]
[359,null,null,null,3731,"Pasajes marítimos, lacustres y fluviales nacionales para servidores públicos en el desempeño de comisiones y funciones oficiales"]
[360,null,null,null,3732,"Pasajes marítimos, lacustres y fluviales internacionales para servidores públicos en el desempeño de comisiones y funciones oficiales"]
[361,null,null,3740,null,"Autotransporte",3740,"374 Autotransporte","Asignaciones destinadas al autotransporte tanto de mercancías que no requieren de equipo especializado y que normalmente se transportan en camiones de caja o en contenedores, como de aquellos productos que por sus características (líquidos, gases, etc.) requieren ser transportados en camiones con equipo especializado."]
[362,null,null,null,3741,"Transporte en vehículos especializados"]
[363,null,null,3750,null,"Viáticos en el país",3750,"375 Viáticos en el país","Asignaciones destinadas a cubrir los gastos por concepto de alimentación, hospedaje y arrendamiento de vehículos en el desempeño de comisiones temporales dentro del país, derivado de la realización de labores en campo o de supervisión e inspección, en lugares distintos a los de su adscripción. Esta partida aplica las cuotas diferenciales que señalen los tabuladores respectivos. Excluye los gastos de pasajes."]
[364,null,null,null,3751,"Viáticos nacionales para servidores públicos en el desempeño de funciones oficiales"]
[365,null,null,3760,null,"Viáticos en el extranjero",3760,"376 Viáticos en el extranjero","Asignaciones destinadas a cubrir los gastos por concepto de alimentación, hospedaje y arrendamiento de vehículos en el desempeño de comisiones temporales fuera del país, derivado de la realización de labores en campo o de supervisión e inspección, en lugares distintos a los de su adscripción. Esta partida aplica las cuotas diferenciales que señalen los tabuladores respectivos. Excluye los gastos de pasajes."]
[366,null,null,null,3761,"Viáticos en el extranjero para servidores públicos en el desempeño de comisiones y funciones oficiales"]
[367,null,null,3770,null,"Gastos de instalación y traslado de menaje",3770,"377 Gastos de instalación y traslado de menaje","Asignaciones destinadas a cubrir los gastos que ocasione la instalación del personal civil o militar, diplomático y consular al servicio de los entes públicos, cuando en el desempeño de funciones oficiales dentro o fuera del país, se requiera su permanencia fuera de su residencia en forma transitoria o permanente. Incluye, en su caso, el traslado de menaje de casa. Excluye los pagos de viáticos y pasajes."]
[368,null,null,null,3771,"Gastos de instalación y traslado de menaje"]
[369,null,null,3780,null,"Servicios integrales de traslado y viáticos",3780,"378 Servicios integrales de traslado y viáticos","Asignaciones destinadas a cubrir las erogaciones que realicen los entes públicos por la contratación con personas físicas y morales de servicios diversos cuya desagregación no es realizable en forma específica para cada una de las partidas de gasto de este concepto, por tratarse de una combinación de servicios relacionados cuya prestación se estipula en forma integral y que en términos del costo total resulta en condiciones menos onerosas para los entes públicos."]
[370,null,null,null,3781,"Servicios integrales de traslado y viáticos"]
[371,null,null,3790,null,"Otros servicios de traslado y hospedaje",3790,"379 Otros servicios de traslado y hospedaje","Asignaciones destinadas a cubrir el pago de servicios básicos distintos de los señalados en las partidas de este concepto, tales como pensiones de estacionamiento, entre otros, requeridos en el desempeño de funciones oficiales."]
[372,null,null,null,3791,"Otros servicios de traslado y hospedaje"]
[373,null,3800,null,null,"Servicios oficiales",3800,"3800 SERVICIOS OFICIALES","Asignaciones destinadas a cubrir los servicios relacionados con la celebración de actos y ceremonias oficiales realizadas por los entes públicos; así como los gastos de representación y los necesarios para las oficinas establecidas en el exterior."]
[374,null,null,3810,null,"Gastos de ceremonial",3810,"381 Gastos de ceremonial","Asignaciones destinadas a cubrir los servicios integrales que se contraten con motivo de organización y ejecución de recepciones de los titulares de los entes públicos al personal del Cuerpo Diplomático acreditado y personalidades nacionales o extranjeras residentes o de visita en el territorio nacional, así como para cubrir dichos gastos en eventos que se realicen en el extranjero; siempre y cuando que por tratarse de servicios integrales no puedan desagregarse en otras partidas de los capítulos 2000 Materiales y Suministros y 3000 Servicios Generales. Incluye bienes y servicios tales como: organización y ejecución de recepciones, adornos, escenografía, entre otros."]
[375,null,null,null,3811,"Gastos de ceremonial del H. Ayuntamiento "]
[376,null,null,null,3812,"Gastos de ceremonial de los titulares de las dependencias y entidades"]
[377,null,null,3820,null,"Gastos de orden social y cultural",3820,"382 Gastos de orden social y cultural","Asignaciones destinadas a cubrir los servicios integrales que se contraten con motivo de la celebración de actos conmemorativos, de orden social y cultural; siempre y cuando que por tratarse de servicios integrales no puedan desagregarse en otras partidas de los capítulos 2000 Materiales y Suministros y 3000 Servicios Generales. Incluye la realización de ceremonias patrióticas y oficiales, desfiles, la adquisición de ofrendas florales y luctuosas, conciertos, entre otros."]
[378,null,null,null,3821,"Gastos de orden social y cultural"]
[379,null,null,3830,null,"Congresos y convenciones",3830,"383 Congresos y convenciones","Asignaciones destinadas a cubrir el costo del servicio integral que se contrate para la celebración de congresos, convenciones, seminarios, simposios y cualquier otro tipo de foro análogo o de características similares, que se organicen en cumplimiento de lo previsto en los programas de los entes públicos, o con motivo de las atribuciones que les corresponden; siempre y cuando que por tratarse de servicios integrales no puedan desagregarse en otras partidas de los capítulos 2000 Materiales y Suministros y 3000 Servicios Generales. Incluye los gastos estrictamente indispensables que se ocasionen con motivo de la participación en dichos eventos de servidores públicos federales o locales, ponentes y conferencistas, entre otros."]
[380,null,null,null,3831,"Congresos y convenciones"]
[381,null,null,3840,null,"Exposiciones",3840,"384 Exposiciones","Asignaciones destinadas a cubrir el costo del servicio integral que se contrate con personas físicas y morales para la instalación y sostenimiento de exposiciones y cualquier otro tipo de muestra análoga o de características similares, que se organicen en cumplimiento de lo previsto en los programas de los entes públicos, o con motivo de las atribuciones que les corresponden, siempre y cuando no puedan desagregarse en otras partidas de los capítulos 2000 Materiales y Suministros y 3000 Servicios Generales. Incluye el pago de indemnizaciones por los daños que sufran los bienes expuestos."]
[382,null,null,null,3841,"Exposiciones"]
[383,null,null,3850,null,"Gastos de representación",3850,"385 Gastos de representación","Asignaciones destinadas a cubrir gastos autorizados a los servidores públicos de mandos medios y superiores por concepto de atención a actividades institucionales originadas por el desempeño de las funciones encomendadas para la consecución de los objetivos de los entes públicos a los que estén adscritos."]
[384,null,null,null,3851,"Gastos inherentes a la investidura del H Ayuntamiento "]
[385,null,null,null,3852,"Gastos de las oficinas de servidores públicos superiores y mandos medios "]
[386,null,null,null,3853,"Gastos de representación "]
[387,null,null,null,3854,"Gastos de seguridad pública "]
[388,null,3900,null,null,"Otros servicios generales",3900,"3900 OTROS SERVICIOS GENERALES","Asignaciones destinadas a cubrir los servicios que correspondan a este capítulo, no previstos expresamente en las partidas antes descritas."]
[389,null,null,3910,null,"Servicios funerarios y de cementerios",3910,"391 Servicios funerarios y de cementerios","Asignaciones destinadas a cubrir servicios y pagos de defunción como traslado de cuerpos, velación, apoyo para trámites legales, cremación y embalsamamiento y ataúdes, a los familiares de servidores públicos, civiles y militares al servicio de los entes públicos, así como de pensionistas directos, cuyo pago es con cargo al Erario, a excepción de los miembros del servicio exterior que perezcan fuera del país. Asimismo, con cargo a esta partida se cubrirán apoyos a los militares en activo o retirados para gastos de sepelio en caso de fallecimiento de sus dependientes económicos. Incluye los gastos por concepto de honores póstumos a quienes por sus méritos o servicios se considere conveniente tributar; gastos de inhumación de los alumnos internos en las escuelas de la federación y, en los casos de que los cuerpos no sean reclamados, de los militares que fallezcan en prisión cumpliendo sentencia condenatoria."]
[390,null,null,null,3911,"Servicios funerarios y de cementerios"]
[391,null,null,3920,null,"Impuestos y derechos",3920,"392 Impuestos y derechos","Asignaciones destinadas a cubrir los impuestos y/o derechos que cause la venta de productos y servicios al extranjero, gastos de escrituración, legalización de exhortos notariales, de registro público de la propiedad, tenencias y canje de placas de vehículos oficiales, diligencias judiciales; derechos y gastos de navegación, de aterrizaje y despegue de aeronaves, de verificación, certificación, y demás impuestos y derechos conforme a las disposiciones aplicables. Excluye impuestos y derechos de importación."]
[392,null,null,null,3921,"Otros impuestos y derechos"]
[393,null,null,null,3922,"Impuestos y derechos de exportación"]
[394,null,null,3930,null,"Impuestos y derechos de importación",3930,"393 Impuestos y derechos de importación","Asignaciones destinadas a cubrir los impuestos y/o derechos que cause la adquisición de toda clase de bienes o servicios en el extranjero"]
[395,null,null,null,3931,"Impuestos y derechos de importación "]
[396,null,null,3940,null,"Sentencias y resoluciones judiciales",3940,"394 Sentencias y resoluciones judiciales","Asignaciones destinadas a cubrir el pago de obligaciones o indemnizaciones derivadas de resoluciones emitidas por autoridad competente."]
[397,null,null,null,3941,"Sentencias y resoluciones judiciales"]
[398,null,null,3950,null,"Penas, multas, accesorios y actualizaciones",3950,"395 Penas, multas, accesorios y actualizaciones","Asignaciones destinadas a cubrir las erogaciones derivadas del pago extemporáneo de pasivos fiscales, adeudos u obligaciones de pago, como multas, actualizaciones, intereses y demás accesorios por dichos pagos. Incluye los gastos financieros por pago extemporáneo de estimaciones y de ajuste de costos de obra pública, así como los gastos no recuperables derivados de la terminación anticipada de contratos de adquisiciones u obras públicas. Excluye causas imputables a servidores públicos."]
[399,null,null,null,3951,"Penas, multas, accesorios y actualizaciones"]
[400,null,null,3960,null,"Otros servicios generales",3960,"396 Otros gastos por responsabilidades","Asignaciones destinadas a cubrir las erogaciones de los entes públicos que deriven del robo o extravío de recursos públicos que no sean recuperables e impliquen afectar su presupuesto disponible. Incluye erogaciones de los entes públicos que se deriven de la responsabilidad civil, montos diferenciales de las indemnizaciones que no cubran las sumas aseguradas, los importes deducibles del seguro de responsabilidad patrimonial del Estado así como aquellas erogaciones distintas de las consideradas en las demás partidas de este concepto, que impliquen afectar el presupuesto disponible del ente público. Excluye las recuperaciones de recursos que se realicen por los diversos medios establecidos por las disposiciones aplicables, como es el Fondo de Garantía para Reintegros al Erario en el caso de los entes públicos."]
[401,null,null,null,3961,"Otros gastos por responsabilidades "]
[402,null,null,3990,null,"Otros servicios generales",3990,"399 Otros servicios generales","Asignaciones destinadas a cubrir otros servicios no contemplados en las partidas anteriores y por realización de actividades propias de la función pública, entre otros. Incluye también con motivo de las actividades de coordinación del Ejecutivo Federal con el Presidente Electo, durante la segunda mitad del año en que termine el periodo presidencial, para el desarrollo de los trabajos cuya aplicación tendrá repercusiones para la nueva administración, como la participación en la elaboración de la iniciativa de la Ley de Ingresos y el proyecto de Presupuesto de Egresos de la Federación, así como otras actividades durante la etapa de transición."]
[401,null,null,null,3981,"Impuesto sobre nóminas"]
[403,4000,null,null,null,"TRANSFERENCIAS, ASIGNACIONES, SUBSIDIOS Y OTRAS AYUDAS",4000,"4000 TRANSFERENCIAS, ASIGNACIONES, SUBSIDIOS Y OTRAS AYUDAS","Asignaciones destinadas en forma directa o indirecta a los sectores público, privado y externo, organismos y empresas paraestatales y apoyos como parte de su política económica y social, de acuerdo con las estrategias y prioridades de desarrollo para el sostenimiento y desempeño de sus actividades."]
[404,null,4100,null,null,"Transferencias internas y asignaciones al sector público",4100,"4100 TRANSFERENCIAS INTERNAS Y ASIGNACIONES AL SECTOR PUBLICO","Asignaciones destinadas, en su caso, a los entes públicos contenidos en el Presupuesto de Egresos con el objeto de sufragar gastos inherentes a sus atribuciones."]
[405,null,null,4110,null,"Asignaciones presupuestarias al Poder Ejecutivo",4110,"411 Asignaciones presupuestarias al Poder Ejecutivo","Asignaciones presupuestarias destinadas al Poder Ejecutivo, con el objeto de financiar gastos inherentes a sus atribuciones."]
[406,null,null,4120,null,"Asignaciones presupuestarias al Poder Legislativo",4120,"412 Asignaciones presupuestarias al Poder Legislativo","Asignaciones presupuestarias destinadas al Poder Legislativo, con el objeto de financiar gastos inherentes a sus atribuciones."]
[407,null,null,4130,null,"Asignaciones presupuestarias al Poder Judicial",4130,"413 Asignaciones presupuestarias al Poder Judicial","Asignaciones presupuestarias destinadas al Poder Judicial, con el objeto de financiar gastos inherentes a sus atribuciones."]
[408,null,null,4140,null,"Asignaciones presupuestarias a Organos Autónomos",4140,"414 Asignaciones presupuestarias a Organos Autónomos","Asignaciones presupuestarias destinadas a Organos Autónomos, con el objeto de financiar gastos inherentes a sus atribuciones."]
[409,null,null,4150,null,"Transferencias internas otorgadas a entidades paraestatales no empresariales y no financieras",4150,"415 Transferencias internas otorgadas a entidades paraestatales no empresariales y no financieras","Asignaciones internas, que no implican las contraprestaciones de bienes o servicios, destinadas a entidades paraestatales no empresariales y no financieras, con el objeto de financiar gastos inherentes a sus funciones. Estas entidades cuentan con personalidad jurídica propia y en general se les asignó la responsabilidad de proveer bienes y servicios a la comunidad en su conjunto o a los hogares individualmente en términos no de mercado; financian sus actividades principalmente mediante impuestos y/o transferencias que reciben de otros sectores gubernamentales; distribuyen sus productos gratuitamente o a precios económicamente no significativos con relación a sus costos de producción."]
[410,null,null,null,4151,"Transferencias para servicios personales"]
[411,null,null,null,4152,"Transferencias para materiales y suministros"]
[412,null,null,null,4153,"Transferencias para servicios básicos"]
[413,null,null,null,4154,"Transferencias, asignaciones, subsidios y otras ayudas"]
[414,null,null,null,4155,"Transferencias para bienes muebles, inmuebles e intangibles"]
[415,null,null,null,4156,"Transferncias para inversión pública"]
[416,null,null,null,4157,"Transferencias para inversiones financieras y otras provisiones"]
[417,null,null,null,4158,"Transferencias para participaciones y aportaciones"]
[418,null,null,null,4159,"Transferencias para deuda pública"]
[419,null,null,4160,null,"Transferencias internas otorgadas a entidades paraestatales empresariales y no financieras",4160,"416 Transferencias internas otorgadas a entidades paraestatales empresariales y no financieras","Asignaciones internas, que no implican la contraprestación de bienes o servicios, destinada a entidades paraestatales empresariales y no financieras, con el objeto de financiar parte de los gastos inherentes a sus funciones. Estas entidades producen bienes y servicios para el mercado a precios económicamente significativos con relación a sus costos de producción."]
[420,null,null,4170,null,"Transferencias internas otorgadas a fideicomisos públicos empresariales y no financieros",4170,"417 Transferencias internas otorgadas a fideicomisos públicos empresariales y no financieros","Asignaciones internas, que no implican la contraprestación de bienes o servicios, destinada a fideicomisos públicos empresariales y no financieros, con el objeto de financiar parte de los gastos inherentes a sus funciones. Estos fideicomisos producen bienes y servicios para el mercado a precios económicamente significativos con relación a sus costos de producción."]
[421,null,null,4180,null,"Transferencias internas otorgadas a instituciones paraestatales públicas financieras",4180,"418 Transferencias internas otorgadas a instituciones paraestatales públicas financieras","Asignaciones internas, que no implican la contraprestación de bienes o servicios, destinada a instituciones públicas financieras, para financiar parte de los gastos inherentes a sus funciones. Estas entidades realizan labores de intermediación financiera o actividades financieras auxiliares relacionadas con la misma. Comprende las instituciones públicas monetarias y las instituciones financieras no monetarias."]
[422,null,null,4190,null,"Transferencias internas otorgadas a fideicomisos públicos financieros",4190,"419 Transferencias internas otorgadas a fideicomisos públicos financieros","Asignaciones internas, que no implican la contraprestación de bienes o servicios, destinada a fideicomisos públicos financieros, con el objeto de financiar gastos inherentes a sus funciones. Estos fideicomisos realizan labores de intermediación financiera o actividades financieras auxiliares relacionadas con la misma."]
[423,null,4200,null,null,"Transferencias al resto del sector público",4200,"4200 TRANSFERENCIAS AL RESTO DEL SECTOR PUBLICO","Asignaciones destinadas, en su caso, a entes públicos, otorgados por otros, con el objeto de sufragar gastos inherentes a sus atribuciones."]
[424,null,null,4210,null,"Transferencias otorgadas a entidades paraestatales no empresariales y no financieras",4210,"421 Transferencias otorgadas a organismos entidades paraestatales no empresariales y no financieras","Asignaciones a entidades, que no presuponen la contraprestación de bienes o servicios, destinada a entidades paraestatales no empresariales y no financieras de control presupuestario indirecto, con el objeto de financiar gastos inherentes a sus funciones. Estas entidades cuentan con personalidad jurídica propia y en general se les asignó la responsabilidad de proveer bienes y servicios a la comunidad en su conjunto o a los hogares individualmente en términos no de mercado; financian sus actividades principalmente mediante impuestos y/o transferencias que reciben de otros sectores gubernamentales; distribuyen sus productos gratuitamente o a precios económicamente no significativos con relación a sus costos de producción."]
[425,null,null,4220,null,"Transferencias otorgadas para entidades paraestatales empresariales y no financieras",4220,"422 Transferencias otorgadas para entidades paraestatales empresariales y no financieras","Asignaciones internas, que no suponen la contraprestación de bienes o servicios, destinada a entidades paraestatales empresariales y no financieras de control presupuestario indirecto, con el objeto de financiar parte de los gastos inherentes a sus funciones. Estas entidades producen bienes y servicios para el mercado a precios económicamente significativos con relación a sus costos de producción."]
[426,null,null,4230,null,"Transferencias otorgadas para instituciones paraestatales públicas financieras",4230,"423 Transferencias otorgadas para instituciones paraestatales públicas financieras","Asignaciones internas que no suponen la contraprestación de bienes o servicios, destinada a instituciones públicas financieras de control presupuestario indirecto, para financiar parte de los gastos inherentes a sus funciones. Estas entidades realizan labores de intermediación financiera o actividades financieras auxiliares relacionadas con la misma. Comprende las instituciones públicas monetarias y las instituciones financieras no monetarias."]
[427,null,null,null,4231,"Transferencias para servicios personales"]
[428,null,null,null,4232,"Transferencias para materiales y suministros"]
[429,null,null,null,4233,"Transferencias para servicios básicos"]
[430,null,null,null,4234,"Transferencias, asignaciones, subsidios y otras ayudas"]
[431,null,null,null,4235,"Transferencias para bienes muebles, inmuebles e intangibles"]
[432,null,null,null,4236,"Transferncias para inversión pública"]
[433,null,null,null,4237,"Transferencias para inversiones financieras y otras provisiones"]
[434,null,null,null,4238,"Transferencias para participaciones y aportaciones"]
[435,null,null,null,4239,"Transferencias para deuda pública"]
[436,null,null,4240,null,"Transferencias otorgadas a entidades federativas y municipios",4240,"424 Transferencias otorgadas a entidades federativas y municipios","Asignaciones que no suponen la contraprestación de bienes o servicios, destinados a favor de los estados, municipios y Distrito Federal, con la finalidad de apoyarlos en sus funciones y que no corresponden a conceptos incluidos en el Capítulo 8000 Participaciones y Aportaciones."]
[437,null,null,4250,null,"Transferencias a fideicomisos de entidades federativas y municipios",4250,"425 Transferencias a fideicomisos de entidades federativas y municipios","Asignaciones que no suponen la contraprestación de bienes o servicios, que se otorgan a fideicomisos de entidades federativas y municipios para que ejecuten acciones que se les han encomendado."]
[438,null,4300,null,null,"Subsidios y subvenciones",4300,"4300 SUBSIDIOS Y SUBVENCIONES","Asignaciones que se otorgan para el desarrollo de actividades prioritarias de interés general a través de los entes públicos a los diferentes sectores de la sociedad, con el propósito de: apoyar sus operaciones; mantener los niveles en los precios; apoyar el consumo, la distribución y comercialización de los bienes; motivar la inversión; cubrir impactos financieros; promover la innovación tecnológica; así como para el fomento de las actividades agropecuarias, industriales o de servicios."]
[439,null,null,4310,null,"Subsidios a la producción",4310,"431 Subsidios a la producción","Asignaciones destinadas a promover y fomentar la producción y transformación de bienes y servicios."]
[440,null,null,null,4311,"Subsidios a la producción"]
[441,null,null,4320,null,"Subsidios a la distribución",4320,"432 Subsidios a la distribución","Asignaciones destinadas a las empresas para promover la comercialización y distribución de los bienes y servicios básicos."]
[442,null,null,null,4321,"Subsidios a la distribución"]
[443,null,null,4330,null,"Subsidios a la inversión",4330,"433 Subsidios a la inversión","Asignaciones destinadas a las empresas para mantener y promover la inversión de los sectores social y privado en actividades económicas estratégicas."]
[444,null,null,null,4331,"Subsidios para inversión"]
[445,null,null,4340,null,"Subsidios a la prestación de servicios públicos",4340,"434 Subsidios a la prestación de servicios públicos","Asignaciones destinadas a las empresas para promover la prestación de servicios públicos."]
[446,null,null,null,4341,"Subsidios a la prestación de servicios públicos"]
[447,null,null,null,4342,"Subsidios a fideicomisos privados y estatales "]
[448,null,null,4350,null,"Subsidios para cubrir diferenciales de tasas de interés",4350,"435 Subsidios para cubrir diferenciales de tasas de interés","Asignaciones destinadas a las instituciones financieras para cubrir los diferenciales generados en las operaciones financieras realizadas para el desarrollo y fomento de actividades prioritarias; mediante la aplicación de tasas preferenciales en los créditos otorgados, cuando el fondeo se realiza a tasas de mercado."]
[449,null,null,null,4351,"Subsidios para cubrir diferenciales de tasas de interés"]
[450,null,null,4360,null,"Subsidios a la vivienda",4360,"436 Subsidios a la vivienda","Asignaciones destinadas a otorgar subsidios a través de sociedades hipotecarias, fondos y fideicomisos, para la construcción y adquisición de vivienda, preferentemente a tasas de interés social."]
[451,null,null,null,4361,"Subsidios para la adquisición de vivienda de interés social "]
[452,null,null,4370,null,"Subvenciones al consumo",4370,"437 Subvenciones al consumo","Asignaciones destinadas a las empresas para mantener un menor nivel en los precios de bienes y servicios de consumo básico que distribuyen los sectores económicos."]
[453,null,null,null,4371,"Subsidios al consumo"]
[454,null,4400,null,null,"Ayudas sociales",4400,"4400 AYUDAS SOCIALES","Asignaciones que los entes públicos otorgan a personas, instituciones y diversos sectores de la población para propósitos sociales."]
[455,null,null,4410,null,"Ayudas sociales a personas",4410,"441 Ayudas sociales a personas","Asignaciones destinadas al auxilio o ayudas especiales que no revisten carácter permanente, que los entes públicos otorgan a personas u hogares para propósitos sociales."]
[456,null,null,null,4411,"Gastos relacionados con actividades culturales, deportivas y de ayuda extraordinaria"]
[457,null,null,null,4412,"Funerales y pagas de defunción "]
[458,null,null,null,4413,"Premios, recompensas, pensiones de gracia y pensión recreativa estudiantil"]
[459,null,null,null,4414,"Premios, estímulos, recompensas y seguros a deportistas "]
[460,null,null,4420,null,"Becas y otras ayudas para programas de capacitación",4420,"442 Becas y otras ayudas para programas de capacitación","Asignaciones destinadas a becas y otras ayudas para programas de formación o capacitación acordadas con personas."]
[461,null,null,null,4421,"Becas"]
[462,null,null,4430,null,"Ayudas sociales a instituciones de enseñanza",4430,"443 Ayudas sociales a instituciones de enseñanza","Asignaciones destinadas para la atención de gastos corrientes de establecimientos de enseñanza."]
[463,null,null,null,4431,"Ayudas sociales a instituciones de enseñanza"]
[464,null,null,4440,null,"Ayudas sociales a actividades científicas o académicas",4440,"444 Ayudas sociales a actividades científicas o académicas","Asignaciones destinadas al desarrollo de actividades científicas o académicas. Incluye las erogaciones corrientes de los investigadores."]
[465,null,null,null,4441,"Ayudas sociales a actividades científicas o académicas"]
[466,null,null,4450,null,"Ayudas sociales a instituciones sin fines de lucro",4450,"445 Ayudas sociales a instituciones sin fines de lucro","Asignaciones destinadas al auxilio y estímulo de acciones realizadas por instituciones sin fines de lucro que contribuyan a la consecución de los objetivos del ente público otorgante."]
[467,null,null,null,4451,"Donativos a instituciones sin fines de lucro"]
[468,null,null,4460,null,"Ayudas sociales a cooperativas",4460,"446 Ayudas sociales a cooperativas","Asignaciones destinadas a promover el cooperativismo."]
[469,null,null,null,4461,"Ayudas sociales a cooperativas"]
[470,null,null,4470,null,"Ayudas sociales a entidades de interés público",4470,"447 Ayudas sociales a entidades de interés público","Asignaciones destinadas a cubrir erogaciones que realizan los institutos electorales a los partidos políticos."]
[471,null,null,null,4471,"Ayudas sociales a entidades de interés público"]
[472,null,null,4480,null,"Ayudas por desastres naturales y otros siniestros",4480,"448 Ayudas por desastres naturales y otros siniestros","Asignaciones destinadas a atender a la población por contingencias y desastres naturales, así como las actividades relacionadas con su prevención, operación y supervisión."]
[473,null,null,null,4481,"Ayudas por desastres naturales y otros siniestros"]
[474,null,4500,null,null,"Pensiones y jubilaciones",4500,"4500 PENSIONES Y JUBILACIONES","Asignaciones para el pago a pensionistas y jubilados o a sus familiares, que cubre el Gobierno Federal, Estatal y Municipal, o bien el Instituto de Seguridad Social correspondiente, conforme al régimen legal establecido, así como los pagos adicionales derivados de compromisos contractuales a personal retirado."]
[475,null,null,4510,null,"Pensiones",4510,"451 Pensiones","Asignaciones para el pago a pensionistas o a sus familiares, que cubre el Gobierno Federal, Estatal y Municipal, o bien el Instituto de Seguridad Social correspondiente, conforme al régimen legal establecido, así como los pagos adicionales derivados de compromisos contractuales a personal retirado."]
[476,null,null,null,4511,"Pensiones"]
[477,null,null,4520,null,"Jubilaciones",4520,"452 Jubilaciones","Asignaciones para el pago a jubilados, que cubre el Gobierno Federal, Estatal y Municipal, o bien el Instituto de Seguridad Social correspondiente, conforme al régimen legal establecido, así como los pagos adicionales derivados de compromisos contractuales a personal retirado."]
[478,null,null,null,4521,"Jubilaciones"]
[479,null,4600,null,null,"Transferencias a fideicomisos, mandatos y otros análogos",4600,"4600 TRANSFERENCIAS A FIDEICOMISOS, MANDATOS Y OTROS ANALOGOS","Asignaciones que se otorgan a fideicomisos, mandatos y otros análogos para que por cuenta de los entes públicos ejecuten acciones que éstos les han encomendado."]
[480,null,null,4610,null,"Transferencias a fideicomisos del Poder Ejecutivo",4610,"461 Transferencias a fideicomisos del Poder Ejecutivo","Asignaciones que no suponen la contraprestación de bienes o servicios que se otorgan a fideicomisos del Poder Ejecutivo no incluidos en el Presupuesto de Egresos para que por cuenta de los entes públicos ejecuten acciones que éstos les han encomendado."]
[481,null,null,4620,null,"Transferencias a fideicomisos del Poder Legislativo",4620,"462 Transferencias a fideicomisos del Poder Legislativo","Asignaciones que no suponen la contraprestación de bienes o servicios que se otorgan a fideicomisos del Poder Legislativo no incluidos en el Presupuesto de Egresos para que por cuenta de los entes públicos ejecuten acciones que éstos les han encomendado."]
[482,null,null,4630,null,"Transferencias a fideicomisos del Poder Judicial",4630,"463 Transferencias a fideicomisos del Poder Judicial","Asignaciones que no suponen la contraprestación de bienes o servicios que se otorgan a Fideicomisos del Poder Judicial no incluidos en el Presupuesto de Egresos para que por cuenta de los entes públicos ejecuten acciones que éstos les han encomendado."]
[483,null,null,4640,null,"Transferencias a fideicomisos públicos de entidades paraestatales no empresariales y no financieras",4640,"464 Transferencias a fideicomisos públicos de entidades paraestatales no empresariales y no financieras","Asignaciones internas, que no suponen la contraprestación de bienes o servicios, destinada a fideicomisos no empresariales y no financieros, con el objeto de financiar gastos inherentes a sus funciones. Estas entidades cuentan con personalidad jurídica propia y en general se les asignó la responsabilidad de proveer bienes y servicios a la comunidad en su conjunto o a los hogares individualmente en términos no de mercado."]
[484,null,null,null,4641,"Transferencias a fideicomisos públicos de entidades paraestatales no empresariales y no financieras"]
[485,null,null,4650,null,"Transferencias a fideicomisos públicos de entidades paraestatales empresariales y no financieras",4650,"465 Transferencias a fideicomisos públicos de entidades paraestatales empresariales y no financieras","Asignaciones internas, que no suponen la contraprestación de bienes o servicios, destinada a fideicomisos empresariales y no financieros, con el objeto de financiar parte de los gastos inherentes a sus funciones."]
[486,null,null,4660,null,"Transferencias a fideicomisos de instituciones públicas financieras",4660,"466 Transferencias a fideicomisos de instituciones públicas financieras","Asignaciones internas, que no suponen la contraprestación de bienes o servicios, destinada a fideicomisos públicos financieros, para financiar parte de los gastos inherentes a sus funciones. Estas entidades realizan labores de intermediación financiera o actividades financieras auxiliares relacionadas con la misma."]
[487,null,4900,null,null,"Transferencias al exterior",4900,"4900 TRANSFERENCIAS AL EXTERIOR","Asignaciones que se otorgan para cubrir cuotas y aportaciones a instituciones y órganos internacionales. Derivadas de acuerdos, convenios o tratados celebrados por los entes públicos."]
[488,null,null,4910,null,"Transferencias para gobiernos extranjeros",4910,"491 Transferencias para gobiernos extranjeros","Asignaciones que no suponen la contraprestación de bienes o servicio, se otorgan para cubrir cuotas y aportaciones a gobiernos extranjeros, derivadas de acuerdos, convenios o tratados celebrados por los entes públicos."]
[489,null,null,4920,null,"Transferencias para organismos internacionales",4920,"492 Transferencias para organismos internacionales","Asignaciones que no suponen la contraprestación de bienes o servicio, se otorgan para cubrir cuotas y aportaciones a organismos internacionales, derivadas de acuerdos, convenios o tratados celebrados por los entes públicos."]
[490,null,null,4930,null,"Transferencias para el sector privado externo",4930,"493 Transferencias para el sector privado externo","Asignaciones que no suponen la contraprestación de bienes o servicio, se otorgan para cubrir cuotas y aportaciones al sector privado externo, derivadas de acuerdos, convenios o tratados celebrados por los entes públicos."]
[491,5000,null,null,null,"BIENES MUEBLES, INMUEBLES E INTANGIBLES",5000,"5000 BIENES MUEBLES, INMUEBLES E INTANGIBLES","Agrupa las asignaciones destinadas a la adquisición de toda clase de bienes muebles e inmuebles requeridos en el desempeño de las actividades de los entes públicos. Incluye los pagos por adjudicación, expropiación e indemnización de bienes muebles e inmuebles a favor del Gobierno."]
[492,null,5100,null,null,"Mobiliario y equipo de administración",5100,"5100 MOBILIARIO Y EQUIPO DE ADMINISTRACION","Asignaciones destinadas a la adquisición de toda clase de mobiliario y equipo de administración; bienes informáticos y equipo de cómputo; a bienes artísticos, obras de arte, objetos valiosos y otros elementos coleccionables. Así como también las refacciones y accesorios mayores correspondientes a este concepto. Incluye los pagos por adjudicación, expropiación e indemnización de bienes muebles a favor del Gobierno."]
[493,null,null,5110,null,"Muebles de oficina y estantería",5110,"511 Muebles de oficina y estantería","Asignaciones destinadas a la adquisición de bienes muebles y sistemas modulares que requieran los entes públicos para el desempeño de sus funciones, tales como: estantes, ficheros, percheros, escritorios, sillas, sillones, anaqueles, archiveros, libreros, mesas, pupitres, caballetes, restiradores, entre otros."]
[494,null,null,null,5111,"Muebles de oficina y estantería"]
[495,null,null,5120,null,"Muebles, excepto de oficina y estantería",5120,"512 Muebles, excepto de oficina y estantería","Asignaciones destinadas a todo tipo de muebles ensamblados, tapizados, sofás-cama, sillones reclinables, muebles de mimbre, ratán y bejuco y materiales similares, cocinas y sus partes. Excepto muebles de oficina y estantería."]
[496,null,null,null,5121,"Muebles, excepto de oficina y estantería"]
[497,null,null,5130,null,"Bienes artísticos, culturales y científicos",5130,"513 Bienes artísticos, culturales y científicos","Asignaciones destinadas a cubrir adquisición de obras y colecciones de carácter histórico y cultural de manera permanente de bienes artísticos y culturales como colecciones de pinturas, esculturas, cuadros, etc."]
[498,null,null,null,5131,"Libros, revistas y otros elementos coleccionables"]
[499,null,null,null,5132,"Bienes muebles inalienables e imprescriptibles"]
[500,null,null,null,5133,"Otros bienes artísticos, culturales y científicos"]
[501,null,null,5140,null,"Objetos de valor",5140,"514 Objetos de valor","Asignaciones destinadas a cubrir la adquisición de bienes producidos de considerable valor que se adquieren y se mantienen como depósitos de valor y no se usan primordialmente para fines de producción o consumo, comprenden: piedras y metales preciosos como diamantes, el oro no monetario, el platino y la plata, que no se pretende utilizar como insumos intermedios en procesos de producción."]
[502,null,null,null,5141,"Objetos valiosos"]
[503,null,null,5150,null,"Equipo de cómputo y de tecnologías de la información",5150,"515 Equipo de cómputo y de tecnología de la información","Asignaciones destinadas a la adquisición de equipos y aparatos de uso informático, para el procesamiento electrónico de datos y para el uso de redes, así como sus refacciones y accesorios mayores, tales como: servidores, computadoras, lectoras, terminales, monitores, procesadores, tableros de control, equipos de conectividad, unidades de almacenamiento, impresoras, lectores ópticos y magnéticos, monitores y componentes electrónicos como tarjetas simples o cargadas; circuitos, modem para computadora, fax y teléfono y arneses, entre otras."]
[504,null,null,null,5151,"Computadoras y equipo periférico"]
[505,null,null,null,5152,"Medios magnéticos y ópticos"]
[506,null,null,5190,null,"Otros mobiliarios y equipos de administración",5190,"519 Otros mobiliarios y equipos de administración","Asignaciones destinadas a la adquisición de equipos propios para el desarrollo de las actividades administrativas, productivas y demás instalaciones de los entes públicos, tales como: máquinas de escribir, sumar, calcular y registrar; equipo de fotocopiadoras, aspiradoras, enceradoras, grabadoras, radios, televisores, microfilmadoras, circuito cerrado de T.V., equipos de detección de fuego, alarma y voceo, lavadoras, hornos de microondas y demás bienes considerados en los activos fijos de los entes públicos. Incluye los utensilios para el servicio de alimentación, cuya adquisición incremente los activos fijos de las mismas."]
[507,null,null,null,5191,"Otros mobiliarios y equipos de administración"]
[508,null,null,null,5192,"Mobiliario y equipo para comercio y servicios"]
[509,null,5200,null,null,"Mobiliario y equipo educacional y recreativo",5200,"5200 MOBILIARIO Y EQUIPO EDUCACIONAL Y RECREATIVO","Asignaciones destinadas a la adquisición de equipos educacionales y recreativos, tales como: equipos y aparatos audiovisuales, aparatos de gimnasia, proyectores, cámaras fotográficas, entre otros. Incluye refacciones y accesorios mayores correspondientes a este concepto."]
[510,null,null,5210,null,"Equipos y aparatos audiovisuales",5210,"521 Equipos y aparatos audiovisuales","Asignaciones destinadas a la adquisición de equipos, tales como: proyectores, micrófonos, grabadores, televisores, entre otros."]
[511,null,null,null,5211,"Equipo de audio y de video"]
[512,null,null,5220,null,"Aparatos deportivos",5220,"522 Aparatos deportivos","Asignaciones destinadas a la adquisición de aparatos, tales como: aparatos y equipos de gimnasia y prácticas deportivas, entro otros."]
[513,null,null,null,5221,"Aparatos deportivos"]
[514,null,null,5230,null,"Cámaras fotográficas y de video",5230,"523 Cámaras fotográficas y de video","Asignaciones destinadas a la adquisición de cámaras fotográficas, equipos y accesorios fotográficos y aparatos de proyección y de video, entre otros."]
[515,null,null,null,5231,"Camaras fotograficas y de video"]
[516,null,null,5290,null,"Otro mobiliario y equipo educacional y recreativo",5290,"529 Otro mobiliario y equipo educacional y recreativo","Asignaciones destinadas a la adquisición de mobiliario y equipo educacional y recreativo, tales como: muebles especializados para uso escolar, aparatos para parques infantiles, mesas especiales de juegos, instrumentos musicales y otros equipos destinados a la educación y recreación."]
[517,null,null,null,5291,"Otro mobiliario y equipo educacional y recreativo"]
[518,null,5300,null,null,"Equipo e instrumental médico y de laboratorio",5300,"5300 EQUIPO E INSTRUMENTAL MEDICO Y DE LABORATORIO","Asignaciones destinadas a la adquisición de equipo e instrumental médico y de laboratorio requerido para proporcionar los servicios médicos, hospitalarios y demás actividades de salud e investigación científica y técnica. Incluye refacciones y accesorios mayores correspondientes a esta partida."]
[519,null,null,5310,null,"Equipo médico y de laboratorio",5310,"531 Equipo médico y de laboratorio","Asignaciones destinadas a la adquisición de equipos, refacciones y accesorios mayores, utilizados en hospitales, unidades sanitarias, consultorios, servicios veterinarios y en los laboratorios auxiliares de las ciencias médicas y de investigación científica, tales como: rayos X, ultrasonido, equipos de diálisis e inhalo-terapia, máquinas esterilizadoras, sillas dentales, mesas operatorias, incubadoras, microscopios y toda clase de aparatos necesarios para equipar salas de rehabilitación, de emergencia, de hospitalización y de operación médica y equipo de rescate y salvamento."]
[520,null,null,null,5311,"Equipo para uso médico, dental y para laboratorio"]
[521,null,null,5320,null,"Instrumental médico y de laboratorio",5320,"532 Instrumental médico y de laboratorio","Asignaciones destinadas a la adquisición de instrumentos, refacciones y accesorios mayores utilizados en la ciencia médica, en general todo tipo de instrumentos médicos necesarios para operaciones quirúrgicas, dentales y oftalmológicas, entre otros. Incluye el instrumental utilizado en los laboratorios de investigación científica e instrumental de medición."]
[522,null,null,null,5321,"Instrumentos médicos"]
[523,null,null,null,5322,"Instrumentos de laboratorio"]
[524,null,5400,null,null,"Vehículos y equipo de transporte",5400,"5400 VEHICULOS Y EQUIPO DE TRANSPORTE","Asignaciones destinadas a la adquisición de toda clase de equipo de transporte terrestre, ferroviario, aéreo, aeroespacial, marítimo, lacustre, fluvial y auxiliar de transporte. Incluye refacciones y accesorios mayores correspondientes a este concepto."]
[525,null,null,5410,null,"Automóviles y camiones",5410,"541 Automóviles y camiones","Asignaciones destinadas a la adquisición de automóviles, camionetas de carga ligera, furgonetas, minivans, autobuses y microbuses de pasajeros, camiones de carga, de volteo , revolvedores y tracto-camiones, entre otros."]
[526,null,null,null,5411,"Automóviles y camiones"]
[527,null,null,5420,null,"Carrocerías y remolques",5420,"542 Carrocerías y remolques","Asignaciones destinadas a la adquisición de carrocerías ensambladas sobre chasises producidos en otro establecimiento, remolques y semi-remolques para usos diversos, campers, casetas y toldos para camionetas, carros dormitorios, remolques para automóviles y camionetas; adaptación de vehículos para usos especiales, mecanismos de levantamiento de camiones de volteo, compuertas de camiones de carga y la quinta rueda."]
[528,null,null,null,5421,"Carrocerías y remolques"]
[529,null,null,5430,null,"Equipo aeroespacial",5430,null,"Asignaciones destinadas a la adquisición de aviones y demás objetos que vuelan, incluso motores, excluye navegación y medición."]
[530,null,null,null,5431,"Equipo aeroespacial",null,"543 Equipo aeroespacial"]
[531,null,null,5440,null,"Equipo ferroviario",5440,"544 Equipo ferroviario","Asignaciones destinadas a la adquisición de equipo para el transporte ferroviario, tales como: locomotoras, vagones de pasajeros y de carga, transporte urbano en vías (metro y tren ligero), vehículos ferroviarios para mantenimiento. Excluye equipo de señalización férrea."]
[532,null,null,null,5441,"Equipo ferroviario"]
[533,null,null,5450,null,"Embarcaciones",5450,"545 Embarcaciones","Asignaciones destinadas a la adquisición de buques, yates, submarinos, embarcaciones de recreo y deportes, canoas y en general, embarcaciones, con o sin motor, diseñadas para la navegación marítima, costera, fluvial y lacustre, plataformas no diseñadas para la navegación pero que son de uso marítimo, tales como: dragas, buques faro, plataformas flotantes para la perforación de pozos petroleros. Incluye material para construcción de embarcaciones. Excluye motores fuera de borda, de sistema eléctrico y electrónico, de balsas de hule, de plástico no rígido."]
[534,null,null,null,5451,"Embarcaciones"]
[535,null,null,5490,null,"Otros equipos de transporte",5490,"549 Otros equipos de transporte","Asignaciones destinadas a la adquisición de otros equipos de transporte no clasificados en las partidas anteriores, tales como: bicicletas, motocicletas, entre otros."]
[536,null,null,null,5491,"Otro equipo de transporte"]
[537,null,5500,null,null,"Equipo de defensa y seguridad",5500,"5500 EQUIPO DE DEFENSA Y SEGURIDAD","Asignaciones destinadas a la adquisición de maquinaria y equipo necesario para el desarrollo de las funciones de seguridad pública. Incluye refacciones y accesorios mayores correspondientes a este concepto."]
[538,null,null,5510,null,"Equipo de defensa y seguridad",5510,"551 Equipo de defensa y seguridad","Asignaciones destinadas a la adquisición de equipo y maquinaria para las funciones de defensa y seguridad pública y demás bienes muebles instrumentales de inversión, requeridos durante la ejecución de programas, investigaciones, acciones y actividades en materia de seguridad pública y nacional, cuya realización implique riesgo, urgencia y confidencialidad extrema, en cumplimiento de funciones y actividades oficiales, tales como: tanques, lanzacohetes, cañones, fusiles, pistolas, metralletas, morteros, lanza llamas, espadas, bayonetas, cargadores, cureñas, entre otros."]
[539,null,null,null,5511,"Equipo de defensa y de seguridad"]
[540,null,5600,null,null,"Maquinaria, otros equipos y herramientas",5600,"5600 MAQUINARIA, OTROS EQUIPOS Y HERRAMIENTAS","Asignaciones destinadas a la adquisición de toda clase de maquinaria y equipo no comprendidas en los conceptos anteriores tales como: los de uso agropecuario, industrial, construcción, aeroespacial, de comunicaciones y telecomunicaciones y demás maquinaria y equipo eléctrico y electrónico. Incluye la adquisición de herramientas y máquinas-herramientas. Adicionalmente comprende las refacciones y accesorios mayores correspondientes a este concepto."]
[541,null,null,5610,null,"Maquinaria y equipo agropecuario",5610,"561 Maquinaria y equipo agropecuario","Asignaciones destinadas a la adquisición de todo tipo de maquinaria y equipo, refacciones y accesorios mayores utilizados en actividades agropecuarias, tales como: tractores agrícolas, cosechadoras, segadoras, incubadoras, trilladoras, fertilizadoras, desgranadoras, equipo de riego, fumigadoras, roturadoras, sembradoras, cultivadoras, espolveadoras, aspersores e implementos agrícolas, entre otros. Incluye maquinaria y equipo pecuario, tales como: ordeñadoras, equipo para la preparación de alimentos para el ganado, para la avicultura y para la cría de animales."]
[542,null,null,null,5611,"Maquinaria y equipo agropecuario"]
[543,null,null,5620,null,"Maquinaria y equipo industrial",5620,"562 Maquinaria y equipo industrial","Asignaciones destinadas a la adquisición de todo tipo de maquinaria y equipo industrial, así como sus refacciones y accesorios mayores, tales como: molinos industriales, calderas, hornos eléctricos, motores, bombas industriales, despulpadoras, pasteurizadoras, envasadoras, entre otros. Incluye la adquisición de toda clase de maquinaria y equipo de perforación y exploración de suelos."]
[544,null,null,null,5621,"Maquinaria y equipo industrial"]
[545,null,null,5630,null,"Maquinaria y equipo de construcción",5630,"563 Maquinaria y equipo de construcción","Asignaciones destinadas a la adquisición de maquinaria y equipo, refacciones y accesorios mayores utilizados en la construcción, tales como: quebradoras, revolvedoras, palas mecánicas, tractores oruga, moto-conformadoras, aplanadoras, excavadoras, grúas, dragas, máquinas para movimiento de tierra, bulldozers, mezcladoras de concreto, entre otros."]
[546,null,null,null,5631,"Maquinaria y equipo de construcccion"]
[547,null,null,5640,null,"Sistemas de aire acondicionado, calefacción y de refrigeración industrial y comercial",5640,"564 Sistemas de aire acondicionado, calefacción y de refrigeración industrial y comercial","Asignaciones destinadas a la adquisición de sistemas de aire acondicionado, calefacción de ambiente, ventilación y de refrigeración comercial e industrial. Incluye: estufas para calefacción, las torres de enfriamiento, sistemas de purificación de aire ambiental y compresores para refrigeración y aire acondicionado. Excluye los calentadores industriales de agua, calentadores de agua domésticos, radiadores eléctricos, ventiladores domésticos y sistemas de aire acondicionado para equipo de transporte."]
[548,null,null,null,5641,"Sistemas de aire acondicionado, calefacción y de refrigeración industrial y comercial"]
[549,null,null,5650,null,"Equipo de comunicación y telecomunicación",5650,"565 Equipo de comunicación y telecomunicación","Asignaciones destinadas a la adquisición de equipos y aparatos de comunicaciones y telecomunicaciones, refacciones y accesorios mayores, tales como: comunicación satelital, microondas, transmisores, receptores; equipos de telex, radar, sonar, radionavegación y video; amplificadores, equipos telefónicos, telegráficos, fax y demás equipos y aparatos para el mismo fin."]
[550,null,null,null,5651,"Equipo de comunicación y telecomunicacion"]
[551,null,null,5660,null,"Equipos de generación eléctrica, aparatos y accesorios eléctricos",5660,"566 Equipos de generación eléctrica, aparatos y accesorios eléctricos","Asignaciones destinadas a la adquisición de equipo de generación eléctrica, aparatos y accesorios electrónicos, tales como: generadoras de energía, plantas, moto-generadoras de energía eléctrica, transformadores, reguladores, equipo electrónico, equipo electrónico nuclear, tableros de transferencias, entre otros. Excluye los bienes señalados en la partida 515 Equipo de cómputo y de tecnología de la información."]
[552,null,null,null,5661,"Accesorios de iluminación"]
[553,null,null,null,5662,"Aparatos eléctricos de uso doméstico"]
[554,null,null,null,5663,"Equipo de generación y distribución de energía eléctrica"]
[555,null,null,5670,null,"Herramientas y máquinas‐herramienta",5670,"567 Herramientas y máquinas-herramienta","Asignaciones destinadas a la adquisición de herramientas eléctricas, neumáticas, máquinas-herramienta, refacciones y accesorios mayores, tales como: rectificadoras, cepilladoras, mortajadoras, pulidoras, lijadoras, sierras, taladros, martillos eléctricos, ensambladoras, fresadoras, encuadernadoras y demás herramientas consideradas en los activos fijos de los entes públicos."]
[556,null,null,null,5671,"Herramientas y maquinas -herramienta"]
[557,null,null,5690,null,"Otros equipos",5690,"569 Otros equipos","Asignaciones destinadas a cubrir el costo de los bienes muebles o maquinaria y equipos especializados adquiridos por los entes públicos, no incluidos o especificados en los conceptos y partidas del presente capítulo, tales como: equipo científico e investigación, equipo contra incendio y maquinaria para protección al ambiente, entre otros."]
[558,null,null,null,5691,"Otros equipos "]
[559,null,5700,null,null,"Activos biológicos",5700,"5700 ACTIVOS BIOLOGICOS","Asignaciones destinadas a la adquisición de toda clase de especies animales y otros seres vivos, tanto para su utilización en el trabajo como para su fomento, exhibición y reproducción."]
[560,null,null,5710,null,"Bovinos",5710,"571 Bovinos","Asignaciones destinadas a la adquisición de ganado bovino en todas sus fases: producción de carne, cría y explotación de ganado bovino para reemplazos de ganado bovino lechero."]
[561,null,null,null,5711,"Bovinos"]
[562,null,null,5720,null,"Porcinos",5720,"572 Porcinos","Asignaciones destinadas a la adquisición de cerdos en todas sus fases en granjas, patios y azoteas."]
[563,null,null,null,5721,"Porcinos"]
[564,null,null,5730,null,"Aves",5730,"573 Aves","Asignaciones destinadas a la adquisición de aves para carne, aves para producción de huevo fértil y para plato, gallinas productoras de huevo fértil y para plato; pollos en la fase de engorda para carne; guajolotes o pavos para carne y producción de huevo; y otras aves productoras de carne y huevo como: patos, gansos, codornices, faisanes, palomas, avestruces, emúes y otras."]
[565,null,null,null,5731,"Aves"]
[566,null,null,5740,null,"Ovinos y caprinos",5740,"574 Ovinos y caprinos","Asignaciones destinadas a la adquisición de ovinos y caprinos."]
[567,null,null,null,5741,"Ovinos y caprinos"]
[568,null,null,5750,null,"Peces y acuicultura",5750,"575 Peces y acuicultura","Asignaciones destinadas a la adquisición de peces y acuicultura, tales como: animales acuáticos en ambientes controlados (peces, moluscos, crustáceos, camarones y reptiles). Excluye acuicultura vegetal."]
[569,null,null,null,5751,"Peces y acuicultura"]
[570,null,null,5760,null,"Equinos",5760,"576 Equinos","Asignaciones destinadas a la adquisición de equinos, tales como: caballos, mulas, burros y otros. Excluye servicio de pensión para equinos."]
[571,null,null,null,5761,"Equinos"]
[572,null,null,5770,null,"Especies menores y de zoológico",5770,"577 Especies menores y de zoológico","Asignaciones destinadas a la adquisición de especies menores y de zoológico, tales como: abejas, colmenas, conejos, chinchillas, zorros, perros, gatos, gallos de pelea, aves de ornato, cisnes, pavos reales, flamencos, gusanos de seda, llamas, venados, animales de laboratorio, entre otros."]
[573,null,null,null,5771,"Especies menores y de zoológico"]
[574,null,null,5780,null,"Árboles y plantas",5780,"578 Arboles y plantas","Asignaciones destinadas a la adquisición de árboles y plantas que se utilizan repetida o continuamente durante más de un año para producir otros bienes."]
[575,null,null,null,5781,"Arboles y plantas"]
[576,null,null,5790,null,"Otros activos biológicos",5790,"579 Otros activos biológicos","Asignaciones destinadas a la adquisición de otros activos biológicos, tales como: semen como material reproductivo y todos los que sean capaces de experimentar transformaciones biológicas para convertirlos en otros activos biológicos."]
[577,null,null,null,5791,"Otros activos biologicos"]
[578,null,5800,null,null,"Bienes inmuebles",5800,"5800 BIENES INMUEBLES","Asignaciones destinadas a la adquisición de todo tipo de bienes inmuebles, así como los gastos derivados de actos de su adquisición, adjudicación, expropiación e indemnización, incluye las asignaciones destinadas a los Proyectos de Prestación de Servicios relativos cuando se realicen por causas de interés público."]
[579,null,null,5810,null,"Terrenos",5810,"581 Terrenos","Asignaciones destinadas a la adquisición de tierras, terrenos y predios urbanos baldíos, campos con o sin mejoras necesarios para los usos propios de los entes públicos."]
[580,null,null,null,5811,"Terrenos"]
[581,null,null,5820,null,"Viviendas",5820,"582 Viviendas","Asignaciones destinadas a la adquisición de viviendas que son edificadas principalmente como residencias requeridos por los entes públicos para sus actividades. Incluye: garajes y otras estructuras asociadas requeridas."]
[582,null,null,null,5821,"Viviendas"]
[583,null,null,5830,null,"Edificios no residenciales",5830,"583 Edificios no residenciales","Asignaciones destinadas a la adquisición de edificios, tales como: oficinas, escuelas, hospitales, edificios industriales, comerciales y para la recreación pública, almacenes, hoteles y restaurantes que requieren los entes públicos para desarrollar sus actividades. Excluye viviendas."]
[584,null,null,null,5831,"Edificios e instalaciones"]
[585,null,null,5890,null,"Otros bienes inmuebles",5890,"589 Otros bienes inmuebles","Asignaciones destinadas a cubrir el costo de los bienes inmuebles adquiridos por los entes públicos no incluidos o especificados en los conceptos y partidas del presente capítulo."]
[586,null,null,null,5891,"Infraestructura"]
[587,null,5900,null,null,"Activos intangibles",5900,"5900 ACTIVOS INTANGIBLES","Asignaciones para la adquisición de derechos por el uso de activos de propiedad industrial, comercial, intelectual y otros, como por ejemplo: software, licencias, patentes, marcas, derechos, concesiones y franquicias."]
[588,null,null,5910,null,"Software",5910,"591 Software","Asignaciones destinadas en la adquisición de paquetes y programas de informática, para ser aplicados en los sistemas administrativos y operativos computarizados de los entes públicos, su descripción y los materiales de apoyo de los sistemas y las aplicaciones informáticas que se espera utilizar."]
[589,null,null,null,5911,"Software"]
[590,null,null,5920,null,"Patentes",5920,"592 Patentes","Asignaciones destinadas a la protección para los inventos, ya sea mediante una norma legal o un fallo judicial. Los ejemplos de inventos susceptibles de protección incluyen las constituciones de materiales, procesos, mecanismos, circuitos y aparatos eléctricos y electrónicos, fórmulas farmacéuticas y nuevas variedades de seres vivientes producidos en forma artificial, entre otros."]
[591,null,null,null,5921,"Patentes"]
[592,null,null,5930,null,"Marcas",5930,"593 Marcas","Asignaciones destinadas a cubrir los gastos generados por el uso de nombres comerciales, símbolos o emblemas que identifiquen un producto o conjunto de productos, que otorgan derechos de exclusividad para su uso o explotación, por parte de los entes públicos."]
[593,null,null,null,5931,"Marcas"]
[594,null,null,5940,null,"Derechos",5940,"594 Derechos","Asignaciones destinadas para atender los gastos generados por el uso de obras técnicas, culturales, de arte o musicales, u otras pertenecientes a personas jurídicas o naturales, nacionales o extranjeras."]
[595,null,null,null,5941,"Derechos"]
[596,null,null,5950,null,"Concesiones",5950,"595 Concesiones","Asignaciones destinadas a cubrir la adquisición del derecho de explotación por un lapso de tiempo determinado de bienes y servicios por parte de una empresa a otra."]
[597,null,null,null,5951,"Concesiones"]
[598,null,null,5960,null,"Franquicias",5960,"596 Franquicias","Asignaciones destinadas a la adquisición de franquicias que constituye un tipo de relación contractual entre dos personas jurídicas: franquiciante y el franquiciatario. Mediante el contrato de franquicia, el franquiciante cede al franquiciatario la licencia de una marca así como los métodos y el saber hacer lo necesario (know-how) de su negocio a cambio de una cuota periódica)."]
[599,null,null,null,5961,"Franquicias"]
[600,null,null,5970,null,"Licencias informaticas e intelectuales",5970,"597 Licencias informáticas e intelectuales","Asignaciones destinadas a la adquisición de permisos informáticos e intelectuales."]
[601,null,null,null,5971,"Licencias informaticas e intelectuales"]
[602,null,null,5980,null,"Licencias industriales, comerciales y otras",5980,"598 Licencias industriales, comerciales y otras","Asignaciones destinadas a la adquisición de permisos para realizar negocios en general o un negocio o profesión en particular."]
[603,null,null,null,5981,"Licencias industriales, comerciales y otras"]
[604,null,null,5990,null,"Otros activos intangibles",5990,"599 Otros activos intangibles","Asignaciones destinadas atenderá cubrir los gastos generados por concepto de otros activos intangibles, no incluidos en partidas específicas anteriores."]
[605,null,null,null,5991,"Otros activos intangibles"]
[606,6000,null,null,null,"INVERSION PUBLICA",6000,"6000 INVERSION PUBLICA","Asignaciones destinadas a obras por contrato y proyectos productivos y acciones de fomento. Incluye los gastos en estudios de pre-inversión y preparación del proyecto."]
[607,null,6100,null,null,"Obra pública en bienes de dominio público",6100,"6100 OBRA PUBLICA EN BIENES DE DOMINIO PUBLICO","Asignaciones destinadas para construcciones en bienes de dominio público de acuerdo con lo establecido en el art. 7 de la Ley General de Bienes Nacionales y otras leyes aplicables. Incluye los gastos en estudios de pre-inversión y preparación del proyecto."]
[608,null,null,6110,null,"Edificación habitacional",6110,"611 Edificación habitacional","Asignaciones destinadas a obras para vivienda, ya sean unifamiliares o multifamiliares. Incluye construcción nueva, ampliación, remodelación, mantenimiento o reparación integral de las construcciones, así como los gastos en estudios de pre-inversión y preparación del proyecto."]
[609,null,null,null,6111,"Edificación habitacional"]
[610,null,null,6120,null,"Edificación no habitacional",6120,"612 Edificación no habitacional","Asignaciones destinadas para la construcción de edificios no residenciales para fines industriales, comerciales, institucionales y de servicios. Incluye construcción nueva, ampliación, remodelación, mantenimiento o reparación integral de las construcciones, así como, los gastos en estudios de pre-inversión y preparación del proyecto."]
[611,null,null,null,6121,"Edificación no habitacional"]
[612,null,null,6130,null,"Construcción de obras para el abastecimiento de agua, petróleo, gas, electricidad y telecomunicaciones",6130,"613 Construcción de obras para el abastecimiento de agua, petróleo, gas, electricidad y telecomunicaciones","Asignaciones destinadas a la construcción de obras para el abastecimiento de agua, petróleo y gas y a la construcción de obras para la generación y construcción de energía eléctrica y para las telecomunicaciones. Incluye los gastos en estudios de pre-inversión y preparación del proyecto."]
[613,null,null,null,6131,"Construcción de obras para el abastecimiento de agua, petróleo, gas, electricidad y telecomunicaciones\ntelecomunicaciones"]
[614,null,null,6140,null,"División de terrenos y construcción de obras de urbanización",6140,"614 División de terrenos y construcción de obras de urbanización","Asignaciones destinadas a la división de terrenos y construcción de obras de urbanización en lotes, construcción de obras integrales para la dotación de servicios, tales como: guarniciones, banquetas, redes de energía, agua potable y alcantarillado. Incluye construcción nueva, ampliación, remodelación, mantenimiento o reparación integral de las construcciones y los gastos en estudios de pre inversión y preparación del proyecto."]
[615,null,null,null,6141,"División de terrenos y construcción de obras de urbanización"]
[616,null,null,6150,null,"Construcción de vías de comunicación",6150,"615 Construcción de vías de comunicación","Asignaciones destinadas a la construcción de carreteras, autopistas, terracerías, puentes, pasos a desnivel y aeropistas. Incluye construcción nueva, ampliación, remodelación, mantenimiento o reparación integral de las construcciones y los gastos en estudios de pre inversión y preparación del proyecto."]
[617,null,null,null,6151,"Construcción de vías de comunicación"]
[618,null,null,6160,null,"Otras construcciones de ingeniería civil u obra pesada",6160,"616 Otras construcciones de ingeniería civil u obra pesada","Asignaciones destinadas a la construcción de presas y represas, obras marítimas, fluviales y subacuáticas, obras para el transporte eléctrico y ferroviario y otras construcciones de ingeniería civil u obra pesada no clasificada en otra parte. Incluye los gastos en estudios de pre inversión y preparación del proyecto."]
[619,null,null,null,6161,"Otras construcciones de ingeniería civil u obra pesada"]
[620,null,null,6170,null,"Instalaciones y equipamiento en construcciones",6170,"617 Instalaciones y equipamiento en construcciones","Asignaciones destinadas a la realización de instalaciones eléctricas, hidrosanitarias, de gas, aire acondicionado, calefacción, instalaciones electromecánicas y otras instalaciones de construcciones, Incluye los gastos en estudios de pre-inversión y preparación del proyecto."]
[621,null,null,null,6171,"Instalaciones y equipamiento en construcciones"]
[622,null,null,6190,null,"Trabajos de acabados en edificaciones y otros trabajos especializados",6190,"619 Trabajos de acabados en edificaciones y otros trabajos especializados","Asignaciones destinadas a la preparación de terrenos para la construcción, excavación, demolición de edificios y estructuras; alquiler de maquinaria y equipo para la construcción con operador, colocación de muros falsos, trabajos de enyesado, pintura y otros cubrimientos de paredes, colocación de pisos y azulejos, instalación de productos de carpintería, cancelería de aluminio e impermeabilización Incluye los gastos en estudios de pre inversión y preparación del proyecto."]
[623,null,null,null,6191,"Trabajos de acabados en edificaciones y otros trabajos especializados"]
[624,null,6200,null,null,"Obra pública en bienes propios",6200,"6200 OBRA PUBLICA EN BIENES PROPIOS","Asignaciones para construcciones en bienes inmuebles propiedad de los entes públicos. Incluye los gastos en estudios de pre inversión y preparación del proyecto."]
[625,null,null,6210,null,"Edificación habitacional",6210,"621 Edificación habitacional","Asignaciones destinadas a obras para vivienda, ya sean unifamiliares o multifamiliares. Incluye construcción nueva, ampliación, remodelación, mantenimiento o reparación integral de las construcciones, así como los gastos en estudios de pre-inversión y preparación del proyecto."]
[626,null,null,null,6211,"Edificación habitacional"]
[627,null,null,6220,null,"Edificación no habitacional",6220,"622 Edificación no habitacional","Asignaciones destinadas para la construcción de edificios no residenciales para fines industriales, comerciales, institucionales y de servicios. Incluye construcción nueva, ampliación, remodelación, mantenimiento o reparación integral de las construcciones, así como, los gastos en estudios de pre-inversión y preparación del proyecto."]
[628,null,null,null,6221,"Edificación no habitacional"]
[629,null,null,6230,null,"Construcción de obras para el abastecimiento de agua, petróleo, gas, electricidad y telecomunicaciones",6230,"623 Construcción de obras para el abastecimiento de agua, petróleo, gas, electricidad y telecomunicaciones","Asignaciones destinadas a la construcción de obras para el abastecimiento de agua, petróleo y gas y a la construcción de obras para la generación y construcción de energía eléctrica y para las telecomunicaciones. Incluye los gastos en estudios de pre-inversión y preparación del proyecto."]
[630,null,null,null,6231,"Construcción de obras para el abastecimiento de agua, petróleo, gas, electricidad y telecomunicaciones\ntelecomunicaciones"]
[631,null,null,6240,null,"División de terrenos y construcción de obras de urbanización",6240,"624 División de terrenos y construcción de obras de urbanización","Asignaciones destinadas a la división de terrenos y construcción de obras de urbanización en lotes, construcción de obras integrales para la dotación de servicios, tales como: guarniciones, banquetas, redes de energía, agua potable y alcantarillado. Incluye construcción nueva, ampliación, remodelación, mantenimiento o reparación integral de las construcciones y los gastos en estudios de pre inversión y preparación del proyecto."]
[632,null,null,null,6241,"División de terrenos y construcción de obras de urbanización"]
[633,null,null,6250,null,"Construcción de vías de comunicación",6250,"625 Construcción de vías de comunicación","Asignaciones destinadas a la construcción de carreteras, autopistas, terracerías, puentes, pasos a desnivel y aeropistas. Incluye construcción nueva, ampliación, remodelación, mantenimiento o reparación integral de las construcciones y los gastos en estudios de pre inversión y preparación del proyecto."]
[634,null,null,null,6251,"Construcción de vías de comunicación"]
[635,null,null,6260,null,"Otras construcciones de ingeniería civil u obra pesada",6260,"626 Otras construcciones de ingeniería civil u obra pesada","Asignaciones destinadas a la construcción de presas y represas, obras marítimas, fluviales y subacuáticas, obras para el transporte eléctrico y ferroviario y otras construcciones de ingeniería civil u obra pesada no clasificada en otra parte. Incluye los gastos en estudios de pre inversión y preparación del proyecto."]
[636,null,null,null,6261,"Otras construcciones de ingeniería civil u obra pesada"]
[637,null,null,6270,null,"Instalaciones y equipamiento en construcciones",6270,"627 Instalaciones y equipamiento en construcciones","Asignaciones destinadas a la realización de instalaciones eléctricas, hidro-sanitarias, de gas, aire acondicionado, calefacción, instalaciones electromecánicas y otras instalaciones de construcciones. Incluye los gastos en estudios de pre-inversión y preparación del proyecto."]
[638,null,null,null,6271,"Instalaciones y equipamiento en construcciones"]
[639,null,null,6290,null,"Trabajos de acabados en edificaciones y otros trabajos especializados",6290,"629 Trabajos de acabados en edificaciones y otros trabajos especializados","Asignaciones destinadas a la preparación de terrenos para la construcción, excavación, demolición de edificios y estructuras; alquiler de maquinaria y equipo para la construcción con operador, colocación de muros falsos, trabajos de enyesado, pintura y otros cubrimientos de paredes, colocación de pisos y azulejos, instalación de productos de carpintería, cancelería de aluminio e impermeabilización. Incluye los gastos en estudios de pre inversión y preparación del proyecto."]
[640,null,null,null,6291,"Trabajos de acabados en edificaciones y otros trabajos especializados"]
[641,null,6300,null,null,"Proyectos productivos y acciones de fomento",6300,"6300 PROYECTOS PRODUCTIVOS Y ACCIONES DE FOMENTO","Erogaciones realizadas por los entes públicos con la finalidad de ejecutar proyectos de desarrollo productivo, económico y social y otros. Incluye el costo de la preparación de proyectos."]
[642,null,null,6310,null,"Estudios, formulación y evaluación de proyectos productivos no incluidos en conceptos anteriores de este capítulo",6310,"631 Estudios, formulación y evaluación de proyectos productivos no incluidos en conceptos anteriores de este capítulo","Asignaciones destinadas a los estudios, formulación y evaluación de proyectos productivos no incluidos en conceptos anteriores de este capítulo (PPS), denominados, esquemas de inversión donde participan los sectores público y privado, desde las concesiones que se otorgan a particulares, hasta los proyectos de infraestructura productiva de largo plazo, en los sectores de energía eléctrica, de carretera y de agua potable, entre otros."]
[643,null,null,null,6311,"Estudios e investigaciones"]
[644,null,null,null,6312,"Proyectos productivos y acciones de fomento"]
[645,null,null,6320,null,"Ejecución de proyectos productivos no incluidos en conceptos anteriores de este capítulo",6320,"632 Ejecución de proyectos productivos no incluidos en conceptos anteriores de este capítulo","Asignaciones destinadas a la Ejecución de Proyectos Productivos no incluidos en conceptos anteriores de este capítulo PPS, denominados, esquemas de inversión donde participan los sectores público y privado, desde las concesiones que se otorgan a particulares hasta los proyectos de infraestructura productiva de largo plazo, en los sectores de energía eléctrica, de carretera y de agua potable, entre otros."]
[646,7000,null,null,null,"INVERSIONES FINANCIERAS Y OTRAS PROVISIONES",7000,"7000 INVERSIONES FINANCIERAS Y OTRAS PROVISIONES","Erogaciones que realiza la administración pública en la adquisición de acciones, bonos y otros títulos y valores; así como en préstamos otorgados a diversos agentes económicos. Se incluyen las aportaciones de capital a las entidades públicas; así como las erogaciones contingentes e imprevistas para el cumplimiento de obligaciones del Gobierno."]
[647,null,7100,null,null,"Inversiones para el fomento de actividades productivas",7100,"7100 INVERSIONES PARA EL FOMENTO DE ACTIVIDADES PRODUCTIVAS","Asignaciones destinadas al otorgamiento de créditos en forma directa o mediante fondos y fideicomisos a favor de los sectores social y privado, o de los municipios, para el financiamiento de acciones para el impulso de actividades productivas de acuerdo con las políticas, normas y disposiciones aplicables."]
[648,null,null,7110,null,"Créditos otorgados por entidades federativas y municipios al sector social y privado para el fomento de actividades productivas",7110,"711 Créditos otorgados por entidades federativas y municipios al sector social y privado para el fomento de actividades productivas.","Asignaciones destinadas a otorgar créditos directos al sector social y privado, para la adquisición de toda clase de bienes muebles e inmuebles, así como para la construcción y reconstrucción de obras e instalaciones, cuando se apliquen en actividades productivas."]
[649,null,null,null,7111,"Créditos otorgados por entidades federativas y municipios al sector social y privado para el fomento de actividades productivas"]
[650,null,null,7120,null,"Créditos otorgados por las entidades federativas a municipios para el fomento de actividades productivas",7120,"712 Créditos otorgados por entidades federativas a municipios para el fomento de actividades productivas","Asignaciones destinadas a otorgar créditos directos a municipios, para la adquisición de toda clase de bienes muebles e inmuebles, así como para la construcción y reconstrucción de obras e instalaciones, cuando se apliquen en actividades productivas."]
[651,null,null,null,7121,"Créditos otorgados por las entidades federativas a municipios para el fomento de actividades productivas"]
[652,null,7200,null,null,"Acciones y participaciones de capital",7200,"7200 ACCIONES Y PARTICIPACIONES DE CAPITAL","Asignaciones para aportar capital directo o mediante la adquisición de acciones u otros valores representativos de capital a entidades paraestatales y empresas privadas; así como a organismos nacionales e internacionales."]
[653,null,null,7210,null,"Acciones y participaciones de capital en entidades paraestatales no empresariales y no financieras con fines de política ec.",7210,"721 Acciones y participaciones de capital en entidades paraestatales no empresariales y no financieras con fines de política económica.","Asignaciones para la adquisición de acciones y participaciones de capital en organismos descentralizados, que se traducen en una inversión financiera para el organismo que los otorga y en un aumento del patrimonio para el que los recibe. Estas asignaciones tienen por propósito fomentar o desarrollar industrias o servicios públicos a cargo de las entidades paraestatales no empresariales y no financieras, así como asistirlos cuando requieran ayuda por situaciones económicas o fiscales adversas para los mismos."]
[654,null,null,null,7211,"Acciones y participaciones de capital en entidades paraestatales no empresariales y no financieras con fines de política económica"]
[655,null,null,7220,null,"Acciones y participaciones de capital en entidades paraestatales empresariales y no financieras con fines de política ec.",7220,"722 Acciones y participaciones de capital en entidades paraestatales empresariales y no financieras con fines de política económica","Asignaciones para la adquisición de acciones y participaciones de capital en empresas públicas no financieras, que se traducen en una inversión financiera para el organismo que los otorga y en un aumento del patrimonio para el que los recibe. Estas asignaciones tienen por propósito fomentar o desarrollar industrias o servicios públicos a cargo de las entidades paraestatales empresariales y no financieras, así como asistirlos cuando requieran ayuda por situaciones económicas o fiscales adversas para los mismos."]
[656,null,null,null,7221,"Acciones y participaciones de capital en entidades paraestatales empresariales y no financieras con fines de política económica"]
[657,null,null,7230,null,"Acciones y participaciones de capital en instituciones paraestatales públicas financieras con fines de política económica",7230,"723 Acciones y participaciones de capital en instituciones paraestatales públicas financieras con fines de política económica","Asignaciones para la adquisición de acciones y participaciones de capital en instituciones financieras, que se traducen en una inversión financiera para el organismo que los otorga y en un aumento del patrimonio para el que los recibe. Estas asignaciones tienen por propósito fomentar o desarrollar industrias o servicios públicos a cargo de las instituciones paraestatales públicas financieras, así como asistirlos cuando requieran ayuda por situaciones económicas o fiscales adversas para los mismos."]
[658,null,null,null,7231,"Acciones y participaciones de capital en instituciones paraestatales públicas financieras con fines de política económica"]
[659,null,null,7240,null,"Acciones y participaciones de capital en el sector privado con fines de política económica",7240,"724 Acciones y participaciones de capital en el sector privado con fines de política económica","Asignaciones para la adquisición de acciones y participaciones de capital en el sector privado, que se traducen en una inversión financiera para el organismo que los otorga y en un aumento del patrimonio para el que los recibe. Estas asignaciones tienen por propósito fomentar o desarrollar industrias o servicios públicos a cargo de las entidades del sector privado, así como asistirlos cuando requieran ayuda por situaciones económicas adversas para los mismos."]
[660,null,null,null,7241,"Acciones y participaciones de capital en el sector privado con fines de política económica"]
[661,null,null,7250,null,"Acciones y participaciones de capital en organismos internacionales con fines de política económica",7250,"725 Acciones y participaciones de capital en organismos internacionales con fines de política económica","Asignaciones para la adquisición de acciones y participaciones de capital en organismos internacionales. Estas asignaciones tienen por propósito fomentar o desarrollar industrias o servicios públicos a cargo de los organismos internacionales, así como asistirlos cuando requieran ayuda por situaciones económicas adversas para los mismos."]
[662,null,null,null,7251,"Acciones y participaciones de capital en organismos internacionales con fines de política económica"]
[663,null,null,7260,null,"Acciones y participaciones de capital en el sector externo con fines de política económica",7260,"726 Acciones y participaciones de capital en el sector externo con fines de política económica","Asignaciones para la adquisición de acciones y participaciones de capital en el sector externo, diferente de organismos internacionales, que se traducen en una inversión financiera para el organismo que los otorga y en un aumento del patrimonio para quien los recibe. Estas asignaciones tienen por propósito fomentar o desarrollar industrias o servicios públicos a cargo de las entidades del sector Externo, así como asistirlos cuando requieran ayuda por situaciones económicas adversas para los mismos."]
[664,null,null,null,7261,"Acciones y participaciones de capital en el sector externo con fines de política económica"]
[665,null,null,7270,null,"Acciones y participaciones de capital en el sector público con fines de gestión de liquidez",7270,"727 Acciones y participaciones de capital en el sector público con fines de gestión de la liquidez","Asignaciones para la adquisición de acciones y participaciones de capital en entidades del sector público, que se traducen en una inversión financiera para el organismo que los otorga y en un aumento del patrimonio para el que los recibe realizadas con fines de administración de la liquidez."]
[666,null,null,null,7271,"Acciones y participaciones de capital en el sector público con fines de gestión de liquidez"]
[667,null,null,7280,null,"Acciones y participaciones de capital en el sector privado con fines de gestión de liquidez",7280,"728 Acciones y participaciones de capital en el sector privado con fines de gestión de la liquidez","Asignaciones para la adquisición de acciones y participaciones de capital en entidades del sector privado, que se traducen en una inversión financiera para el organismo que los otorga y en un aumento del patrimonio para el que los recibe realizadas con fines de administración de la liquidez."]
[668,null,null,null,7281,"Acciones y participaciones de capital en el sector privado con fines de gestión de liquidez"]
[669,null,null,7290,null,"Acciones y participaciones de capital en el sector externo con fines de gestión de liquidez",7290,"729 Acciones y participaciones de capital en el sector externo con fines de gestión de la liquidez","Asignaciones para la adquisición de acciones y participaciones de capital en entidades del sector externo, que se traducen en una inversión financiera para el organismo que los otorga y en un aumento del patrimonio para el que los recibe realizadas con fines de administración de la liquidez."]
[670,null,null,null,7291,"Acciones y participaciones de capital en el sector externo con fines de gestión de liquidez"]
[671,null,7300,null,null,"Compra de títulos y valores",7300,"7300 COMPRA DE TITULOS Y VALORES","Asignaciones destinadas a financiar la adquisición de títulos y valores representativos de deuda. Excluye los depósitos temporales efectuados en el mercado de valores o de capitales por la intermediación de instituciones financieras."]
[672,null,null,7310,null,"Bonos",7310,"731 Bonos","Asignaciones destinadas en forma directa a la adquisición de títulos o bonos emitidos por instituciones públicas federales, estatales y municipales; sociedades anónimas o corporaciones privadas, tanto nacionales como extranjeras, autorizadas para emitirlos, con fines de administración de la liquidez"]
[673,null,null,null,7311,"Adquisición de bonos"]
[674,null,null,null,7312,"Adquisición de acciones"]
[675,null,null,null,7313,"Fideicomisos para adquisición de títulos de crédito"]
[676,null,null,7320,null,"Valores representativos de deuda adquiridos con fines de política económica",7320,"732 Valores representativos de deuda adquiridos con fines de política económica","Asignaciones destinadas en forma directa a la adquisición de valores, como son los CETES, UDIBONOS, BONDES D, entre otros, emitidos por instituciones públicas federales, estatales y municipales; sociedades anónimas o corporaciones privadas, tanto nacionales como extranjeras, autorizadas para emitirlos, siempre que dichas inversiones superen el ejercicio presupuestal, adquiridos con fines de política económica"]
[677,null,null,null,7321,"Valores representativos de deuda adquiridos con fines de política económica"]
[678,null,null,7330,null,"Valores representativos de deuda adquiridos con fines de gestión de liquidez",7330,"733 Valores representativos de deuda adquiridos con fines de gestión de liquidez","Asignaciones destinadas en forma directa a la adquisición de valores, como son los CETES, UDIBONOS, BONDES D, entre otros, emitidos por instituciones públicas federales, estatales y municipales; sociedades anónimas o corporaciones privadas, tanto nacionales como extranjeras, autorizadas para emitirlos, siempre que dichas inversiones superen el ejercicio presupuestal, adquiridos con fines de administración de la liquidez."]
[679,null,null,null,7331,"Valores representativos de deuda adquiridos con fines de gestión de liquidez"]
[680,null,null,7340,null,"Obligaciones negociables adquiridas con fines de política económica",7340,"734 Obligaciones negociables adquiridas con fines de política económica","Asignaciones destinadas para la adquisición de obligaciones de renta fija, mismas que tienen un cronograma de pagos predefinido, emitidas por instituciones públicas federales, estatales y municipales; sociedades anónimas o corporaciones privadas, tanto nacionales como extranjeras, autorizadas para emitirlos."]
[681,null,null,null,7341,"Obligaciones negociables adquiridas con fines de politica economica"]
[682,null,null,7350,null,"Obligaciones negociables adquiridas con fines de gestión de liquidez",7350,"735 Obligaciones negociables adquiridas con fines de gestión de liquidez","Asignaciones destinadas para la adquisición de obligaciones de renta fija, mismas que tienen un cronograma de pagos predefinido, emitidas por instituciones públicas federales, estatales y municipales; sociedades anónimas o corporaciones privadas, tanto nacionales como extranjeras, autorizadas para emitirlos."]
[683,null,null,null,7351,"Obligaciones negociables adquiridas con fines de gestion de liquidez"]
[684,null,null,7390,null,"Otros valores",7390,"739 Otros valores","Asignaciones destinadas en forma directa a la adquisición de cualquier otro tipo de valores crediticios no comprendidos en las partidas precedentes de este concepto, emitidos por instituciones públicas federales, estatales y municipales; sociedades anónimas o corporaciones privadas, tanto nacionales como extranjeras, autorizadas para emitirlos."]
[685,null,null,null,7391,"Otros valores"]
[686,null,7400,null,null,"Concesión de préstamos",7400,"7400 CONCESION DE PRESTAMOS","Asignaciones destinadas a la concesión de préstamos a entes públicos y al sector privado."]
[687,null,null,7410,null,"Concesión de préstamos a entidades paraestatales no empresariales y no financieras con fines de política económica",7410,"741 Concesión de préstamos a entidades paraestatales no empresariales y no financieras con fines de política económica","Asignaciones destinadas para la concesión de préstamos a entidades paraestatales no empresariales y no financieras con fines de política económica."]
[688,null,null,null,7411,"Concesión de préstamos a entidades paraestatales con fines de política económica"]
[689,null,null,7420,null,"Concesión de préstamos a entidades paraestatales empresariales y no financieras con fines de política económica",7420,"742 Concesión de préstamos a entidades paraestatales empresariales y no financieras con fines de política económica","Asignaciones destinadas a la concesión de préstamos a entidades paraestatales empresariales y no financieras con fines de política económica."]
[690,null,null,null,7421,"Concesión de préstamos a entidades paraestatales con fines de política económica"]
[691,null,null,7430,null,"Concesión de préstamos a instituciones paraestatales públicas financieras con fines de política económica",7430,"743 Concesión de préstamos a instituciones paraestatales públicas financieras con fines de política económica","Asignaciones destinadas a la concesión de préstamos a instituciones paraestatales públicas financieras con fines de política económica."]
[692,null,null,null,7431,"Concesión de préstamos a instituciones paraestatales públicas financieras con fines de política económica"]
[693,null,null,7440,null,"Concesión de préstamos a entidades federativas y municipios con fines de política económica",7440,"744 Concesión de préstamos a entidades federativas y municipios con fines de política económica","Asignaciones destinadas a la concesión de préstamos a entidades federativas y municipios con fines de política económica."]
[694,null,null,7450,null,"Concesión de préstamos al sector privado con fines de política económica",7450,"745 Concesión de préstamos al sector privado con fines de política económica","Asignaciones destinadas a la concesión de préstamos al sector privado, tales como: préstamos al personal, a sindicatos y demás erogaciones recuperables, con fines de política económica."]
[695,null,null,7460,null,"Concesión de préstamos al sector externo con fines de política económica",7460,"746 Concesión de préstamos al sector externo con fines de política económica","Asignaciones destinadas a la concesión de préstamos al sector externo con fines de política económica."]
[696,null,null,7470,null,"Concesión de préstamos al sector público con fines de gestión de liquidez",7470,"747 Concesión de préstamos al sector público con fines de gestión de liquidez","Asignaciones destinadas para la concesión de préstamos entre entes públicos con fines de gestión de liquidez."]
[697,null,null,7480,null,"Concesión de préstamos al sector privado con fines de gestión de liquidez",7480,"748 Concesión de préstamos al sector privado con fines de gestión de liquidez","Asignaciones destinadas para la concesión de préstamos al sector privado con fines de gestión de liquidez."]
[698,null,null,7490,null,"Concesión de préstamos al sector externo con fines de gestión de liquidez",7490,"749 Concesión de préstamos al sector externo con fines de gestión de liquidez","Asignaciones destinadas para la concesión de préstamos al sector externo con fines de gestión de liquidez."]
[699,null,7500,null,null,"Inversiones en fideicomisos, mandatos y otros análogos",7500,"7500 INVERSIONES EN FIDEICOMISOS, MANDATOS Y OTROS ANALOGOS","Asignación a fideicomisos, mandatos y otros análogos para constituir o incrementar su patrimonio."]
[700,null,null,7510,null,"Inversiones en fideicomisos del Poder Ejecutivo",7510,"751 Inversiones en fideicomisos del Poder Ejecutivo","Asignaciones destinadas para construir o incrementar los fideicomisos del Poder Ejecutivo, con fines de política económica."]
[701,null,null,7520,null,"Inversiones en fideicomisos del Poder Legislativo",7520,"752 Inversiones en fideicomisos del Poder Legislativo","Asignaciones destinadas para construir o incrementar los fideicomisos del Poder Legislativo, con fines de política económica."]
[702,null,null,7530,null,"Inversiones en fideicomisos del Poder Judicial",7530,"753 Inversiones en fideicomisos del Poder Judicial","Asignaciones destinadas para construir o incrementar los fideicomisos del Poder Judicial, con fines de política económica."]
[703,null,null,7540,null,"Inversiones en fideicomisos públicos no empresariales y no financieros",7540,"754 Inversiones en fideicomisos públicos no empresariales y no financieros","Asignaciones destinadas para construir o incrementar los fideicomisos públicos no empresariales y no financieros, con fines de política económica."]
[704,null,null,null,7541,"Inversiones en fideicomisos públicos no empresariales y no financieros"]
[705,null,null,7550,null,"Inversiones en fideicomisos públicos empresariales y no financieros",7550,"755 Inversiones en fideicomisos públicos empresariales y no financieros","Asignaciones destinadas para construir o incrementar los fideicomisos públicos empresariales y no financieros, con fines de política económica."]
[706,null,null,7560,null,"Inversiones en fideicomisos públicos financieros",7560,"756 Inversiones en fideicomisos públicos financieros","Asignaciones destinadas para construir o incrementar a fideicomisos públicos financieros, con fines de política económica."]
[707,null,null,7570,null,"Inversiones en fideicomisos de entidades federativas",7570,"757 Inversiones en fideicomisos de entidades federativas","Asignaciones a fideicomisos a favor de entidades federativas, con fines de política económica."]
[708,null,null,7580,null,"Inversiones en fideicomisos de municipios",7580,"758 Inversiones en fideicomisos de municipios","Asignaciones a fideicomisos de municipios con fines de política económica."]
[709,null,null,null,7581,"Inversiones de fideicomisos de municipios"]
[710,null,null,7590,null,"Fideicomisos de empresas privadas y particulares",7590,"759 Fideicomisos de empresas privadas y particulares","Asignaciones a fideicomisos de empresas privadas y particulares con fines de política económica."]
[711,null,7600,null,null,"Otras inversiones financieras",7600,"7600 OTRAS INVERSIONES FINANCIERAS","Asignaciones destinadas a inversiones financieras no comprendidas en conceptos anteriores, tales como: la inversión en capital de trabajo en instituciones que se ocupan de actividades comerciales como son las tiendas y farmacias del ISSSTE e instituciones similares."]
[712,null,null,7610,null,"Depósitos a largo plazo en moneda nacional",7610,"761 Depósitos a largo plazo en moneda nacional","Asignaciones destinadas a colocaciones a largo plazo en moneda nacional."]
[713,null,null,null,7611,"Depositos a largo plazo en moneda nacional"]
[714,null,null,7620,null,"Depósitos a largo plazo en moneda extranjera",7620,"762 Depósitos a largo plazo en moneda extranjera","Asignaciones destinadas a colocaciones financieras a largo plazo en moneda extranjera."]
[715,null,null,null,7621,"Depositos a largo plazo en moneda extranjera"]
[716,null,7900,null,null,"Provisiones para contingencias y otras erogaciones especiales",7900,"7900 PROVISIONES PARA CONTINGENCIAS Y OTRAS EROGACIONES ESPECIALES","Provisiones presupuestarias para hacer frente a las erogaciones que se deriven de contingencias o fenómenos climáticos, meteorológicos o económicos, con el fin de prevenir o resarcir daños a la población o a la infraestructura pública; así como las derivadas de las responsabilidades de los entes públicos."]
[717,null,null,7910,null,"Contingencias por fenómenos naturales",7910,"791 Contingencias por fenómenos naturales","Provisiones presupuestales destinadas a enfrentar las erogaciones que se deriven de fenómenos naturales, con el fin de prevenir o resarcir daños a la población o a la infraestructura pública; así como las derivadas de las responsabilidades de los entes públicos. Dichas provisiones se considerarán como transitorias en tanto se distribuye su monto entre las partidas específicas necesarias para los programas."]
[718,null,null,7920,null,"Contingencias socioeconómicas",7920,"792 Contingencias socioeconómicas","Provisiones presupuestarias destinadas a enfrentar las erogaciones que se deriven de contingencias socioeconómicas, con el fin de prevenir o resarcir daños a la población o a la infraestructura pública; así como las derivadas de las responsabilidades de los entes públicos. Dichas provisiones se considerarán como transitorias en tanto se distribuye su monto entre las partidas específicas necesarias para los programas."]
[719,null,null,7990,null,"Otras erogaciones especiales",7990,"799 Otras erogaciones especiales","Provisiones presupuestarias para otras erogaciones especiales, éstas se considerará como transitoria en tanto se distribuye su monto entre las partidas específicas necesarias para los programas, por lo que su asignación se afectará una vez ubicada en las partidas correspondientes, según la naturaleza de las erogaciones y previa aprobación, de acuerdo con lineamientos específicos."]
[720,null,null,null,7991,"Erogaciones complementarias "]
[721,null,null,null,7992,"Seguro de responsabilidad patrimonial del Estado "]
[722,null,null,null,7993,"Gastos derivados del proceso de transición  "]
[723,8000,null,null,null,"PARTICIPACIONES Y APORTACIONES",8000,"8000 PARTICIPACIONES Y APORTACIONES","Asignaciones destinadas a cubrir las participaciones y aportaciones para las entidades federativas y los municipios. Incluye las asignaciones destinadas a la ejecución de programas federales a través de las entidades federativas, mediante la reasignación de responsabilidades y recursos presupuestarios, en los términos de los convenios que celebre el Gobierno Federal con éstas."]
[724,null,8100,null,null,"Participaciones",8100,"8100 PARTICIPACIONES","Recursos que corresponden a los estados y municipios que se derivan del Sistema Nacional de Coordinación Fiscal, de conformidad a lo establecido por los capítulos I, II, III y IV de la Ley de Coordinación Fiscal, así como las que correspondan a sistemas estatales de coordinación fiscal determinados por las leyes correspondientes."]
[725,null,null,8110,null,"Fondo general de participaciones",8110,"811 Fondo general de participaciones","Asignaciones de recursos previstos en el Presupuesto de Egresos por concepto de las estimaciones de participaciones en los ingresos federales que conforme a la Ley de Coordinación Fiscal correspondan a las haciendas públicas de los estados, municipios y Distrito Federal."]
[726,null,null,8120,null,"Fondo de fomento municipal",8120,"812 Fondo de fomento municipal","Asignaciones que prevén estimaciones por el porcentaje del importe total que se distribuye entre las entidades federativas y de la parte correspondiente en materia de derechos."]
[727,null,null,8130,null,"Participaciones de las entidades federativas a los municipios",8130,"813 Participaciones de las entidades federativas a los municipios","Recursos de los estados a los municipios que se derivan del Sistema Nacional de Coordinación Fiscal, así como las que correspondan a sistemas estatales de coordinación fiscal determinados por las leyes correspondientes."]
[728,null,null,8140,null,"Otros conceptos participables de la Federación a entidades federativas",8140,"814 Otros conceptos participables de la Federación a entidades federativas","Asignaciones destinadas a compensar los montos correspondientes en los fondos previstos en las demás partidas, que conforme a la fórmula establecida se estima deben recibir las entidades federativas por concepto de recaudación federal participable. Incluye las asignaciones cuya participación total en los fondos general de participaciones y de fomento municipal no alcance el crecimiento esperado en la recaudación federal participable; las asignaciones a las entidades federativas que resulten afectadas por el cambio en la fórmula de participaciones y aquéllas destinadas a cubrir el porcentaje de las participaciones derivado de la recaudación del impuesto especial de producción y servicios."]
[729,null,null,8150,null,"Otros conceptos participables de la Federación a municipios",8150,"815 Otros conceptos participables de la Federación a municipios","Asignaciones destinadas a compensar los montos correspondientes en los fondos previstos en las demás partidas que, conforme a la fórmula establecida, se estima deben recibir los municipios por concepto de recaudación federal participable. Incluye las asignaciones cuya participación total en los fondos general de participaciones y de fomento municipal no alcance el crecimiento esperado en la recaudación federal participable; las asignaciones a los municipios que resulten afectadas por el cambio en la fórmula de participaciones y aquéllas destinadas a cubrir el porcentaje de las participaciones derivado de la recaudación del impuesto especial de producción y servicios."]
[730,null,null,8160,null,"Convenios de colaboración administrativa",8160,"816 Convenios de colaboración administrativa","Asignaciones destinadas a cubrir los incentivos derivados de convenios de colaboración administrativa que se celebren con otros órdenes de gobierno."]
[731,null,8300,null,null,"Aportaciones",8300,"8300 APORTACIONES","Recursos que corresponden a las entidades federativas y municipios que se derivan del Sistema Nacional de Coordinación Fiscal, de conformidad a lo establecido por el capítulo V de la Ley de Coordinación Fiscal."]
[732,null,null,8310,null,"Aportaciones de la Federación a las entidades federativas",8310,"831 Aportaciones de la Federación a las entidades federativas","Asignaciones destinadas a cubrir las aportaciones federales para educación básica y normal, servicios de salud, infraestructura social, fortalecimiento municipal, otorgamiento de las aportaciones múltiples, educación tecnológica y de adultos, seguridad pública y, en su caso, otras a las que se refiere la Ley de Coordinación Fiscal a favor de los estados y Distrito Federal."]
[733,null,null,8320,null,"Aportaciones de la Federación a municipios",8320,"832 Aportaciones de la Federación a municipios","Asignaciones destinadas a cubrir las aportaciones federales para educación básica y normal, servicios de salud, infraestructura social, fortalecimiento municipal, otorgamiento de las aportaciones múltiples, educación tecnológica y de adultos, seguridad pública y, en su caso, otras a las que se refiere la Ley de Coordinación Fiscal a favor de los municipios."]
[734,null,null,8330,null,"Aportaciones de las entidades federativas a los municipios",8330,"833 Aportaciones de las entidades federativas a los municipios","Asignaciones destinadas a cubrir las aportaciones estatales para educación básica y normal, servicios de salud, infraestructura social, fortalecimiento municipal, otorgamiento de las aportaciones múltiples, educación tecnológica y de adultos, seguridad pública y, en su caso, otras a las que se refiere la Ley de Coordinación Fiscal a favor de los Municipios."]
[735,null,null,8340,null,"Aportaciones previstas en leyes y decretos al sistema de protección social",8340,"834 Aportaciones previstas en leyes y decretos al sistema de protección social","Asignaciones destinadas a cubrir las aportaciones anuales para cada familia beneficiaria del Sistema de Protección Social en Salud, conforme al porcentaje y, en su caso, las actualizaciones que se determinen conforme a la Ley General de Salud."]
[736,null,null,8350,null,"Aportaciones previstas en leyes y decretos compensatorias a entidades federativas y municipios",8350,"835 Aportaciones previstas en leyes y decretos compensatorias a entidades federativas y municipios","Recursos destinados a compensar la disminución en ingresos participables a las entidades federativas y municipios."]
[737,null,8500,null,null,"Convenios",8500,"8500 CONVENIOS","Recursos asignados a un ente público y reasignado por éste a otro a través de convenios para su ejecución."]
[738,null,null,8510,null,"Convenios de reasignación",8510,"851 Convenios de reasignación","Asignaciones destinadas a los convenios que celebran los entes públicos con el propósito de reasignar la ejecución de funciones, programas o proyectos federales y, en su caso, recursos humanos o materiales."]
[739,null,null,null,8511,"Convenios de reasignación"]
[740,null,null,8520,null,"Convenios de descentralización",8520,"852 Convenios de descentralización","Asignaciones destinadas a los convenios que celebran los entes públicos con el propósito de descentralizar la ejecución de funciones, programas o proyectos federales y, en su caso, recursos humanos o materiales."]
[741,null,null,null,8521,"Convenios de descentralización"]
[742,null,null,8530,null,"Otros convenios",8530,"853 Otros Convenios","Asignaciones destinadas a otros convenios no especificados en las partidas anteriores que celebran los entes públicos."]
[743,null,null,null,8531,"Otros convenios"]
[744,9000,null,null,null,"DEUDA PUBLICA",9000,"9000 DEUDA PUBLICA","Asignaciones destinadas a cubrir obligaciones por concepto de deuda pública interna y externa derivada de la contratación de empréstitos; incluye la amortización, los intereses, gastos y comisiones de la deuda pública, así como las erogaciones relacionadas con la emisión y/o contratación de deuda. Asimismo, incluye los adeudos de ejercicios fiscales anteriores (ADEFAS)."]
[745,null,9100,null,null,"Amortización de la deuda pública",9100,"9100 AMORTIZACION DE LA DEUDA PUBLICA","Asignaciones destinadas a cubrir el pago del principal derivado de los diversos créditos o financiamientos contratados a plazo con instituciones nacionales y extranjeras, privadas y mixtas de crédito y con otros acreedores, que sean pagaderos en el interior y exterior del país en moneda de curso legal."]
[746,null,null,9110,null,"Amortización de la deuda interna con instituciones de crédito",9110,"911 Amortización de la deuda interna con instituciones de crédito","Asignaciones destinadas a cubrir el pago del principal derivado de los créditos contraídos en moneda nacional con instituciones de crédito establecidas en el territorio nacional."]
[747,null,null,null,9111,"Amortización de la deuda interna con instituciones de crédito"]
[748,null,null,null,9112,"Amortización de la deuda interna con instituciones de crédito con Gobierno del Estado"]
[749,null,null,9120,null,"Amortización de la deuda interna por emisión de títulos y valores",9120,"912 Amortización de la deuda interna por emisión de títulos y valores","Asignaciones para el pago del principal derivado de la colocación de valores por los entes públicos en territorio nacional."]
[750,null,null,null,9121,"Amortización de la deuda interna por emisión de títulos y valores"]
[751,null,null,9130,null,"Amortización de arrendamientos financieros nacionales",9130,"913 Amortización de arrendamientos financieros nacionales","Asignaciones para la amortización de financiamientos contraídos con arrendadoras nacionales o en el que su pago esté convenido en moneda nacional."]
[752,null,null,null,9131,"Amortización de arrendamientos financieros nacionales"]
[753,null,null,9140,null,"Amortización de la deuda externa con instituciones de crédito",9140,"914 Amortización de la deuda externa con instituciones de crédito","Asignaciones destinadas a cubrir el pago del principal, derivado de los créditos contraídos en moneda extranjera con bancos establecidos fuera del territorio nacional."]
[754,null,null,9150,null,"Amortización de deuda externa con organismos financieros internacionales",9150,"915 Amortización de deuda externa con organismos financieros internacionales","Asignaciones destinadas a cubrir el pago del principal de los financiamientos contratados con el Banco Internacional de Reconstrucción y Fomento, el Banco Interamericano de Desarrollo y otras instituciones análogas."]
[755,null,null,9160,null,"Amortización de la deuda bilateral",9160,"916 Amortización de la deuda bilateral","Asignaciones para el pago del principal derivado de los financiamientos otorgados por gobiernos extranjeros a través de sus instituciones de crédito."]
[756,null,null,9170,null,"Amortización de la deuda externa por emisión de títulos y valores",9170,"917 Amortización de la deuda externa por emisión de títulos y valores","Asignaciones para el pago del principal derivado de la colocación de títulos y valores mexicanos en los mercados extranjeros."]
[757,null,null,9180,null,"Amortización de arrendamientos financieros internacionales",9180,"918 Amortización de arrendamientos financieros internacionales","Asignaciones para la amortización de financiamientos contraídos con arrendadoras extranjeras en el que su pago esté convenido en moneda extranjera."]
[758,null,9200,null,null,"Intereses de la deuda pública",9200,"9200 INTERESES DE LA DEUDA PUBLICA","Asignaciones destinadas a cubrir el pago de intereses derivados de los diversos créditos o financiamientos contratados a plazo con instituciones nacionales y extranjeras, privadas y mixtas de crédito y con otros acreedores, que sean pagaderos en el interior y exterior del país en moneda de curso legal."]
[759,null,null,9210,null,"Intereses de la deuda interna con instituciones de crédito",9210,"921 Intereses de la deuda interna con instituciones de crédito","Asignaciones destinadas al pago de intereses derivados de los créditos contratados con instituciones de crédito nacionales"]
[760,null,null,null,9211,"Intereses de la deuda interna con instituciones de crédito"]
[761,null,null,null,9212,"Intereses de la deuda con Gobierno del Estado"]
[762,null,null,9220,null,"Intereses derivados de la colocación de títulos y valores",9220,"922 Intereses derivados de la colocación de títulos y valores","Asignaciones destinadas al pago de intereses por la colocación de títulos y valores gubernamentales colocados en territorio nacional."]
[763,null,null,null,9221,"Intereses derivados de la colocación de títulos y valores"]
[764,null,null,9230,null,"Intereses por arrendamientos financieros nacionales",9230,"923 Intereses por arrendamientos financieros nacionales","Asignaciones destinadas al pago de intereses derivado de la contratación de arrendamientos financieros nacionales."]
[765,null,null,null,9231,"Intereses por arrendamientos financieros "]
[766,null,null,9240,null,"Intereses de la deuda externa con instituciones de crédito",9240,"924 Intereses de la deuda externa con instituciones de crédito","Asignaciones destinadas al pago de intereses derivados de créditos contratados con la banca comercial externa."]
[767,null,null,9250,null,"Intereses de la deuda con organismos financieros Internacionales",9250,"925 Intereses de la deuda con organismos financieros Internacionales","Asignaciones destinadas al pago de intereses por la contratación de financiamientos con el Banco Internacional de Reconstrucción y Fomento, el Banco Interamericano de Desarrollo y otras instituciones análogas."]
[768,null,null,9260,null,"Intereses de la deuda bilateral",9260,"926 Intereses de la deuda bilateral","Asignaciones destinadas al pago de intereses por la contratación de financiamientos otorgados por gobiernos extranjeros, a través de sus instituciones de crédito."]
[769,null,null,9270,null,"Intereses derivados de la colocación de títulos y valores en el exterior",9270,"927 Intereses derivados de la colocación de títulos y valores en el exterior","Asignaciones destinadas al pago de intereses por la colocación de títulos y valores mexicanos en los mercados extranjeros."]
[770,null,null,9280,null,"Intereses por arrendamientos financieros internacionales",9280,"928 Intereses por arrendamientos financieros internacionales","Asignaciones destinadas al pago de intereses por concepto de arrendamientos financieros contratados con arrendadoras extranjeras en el que su pago esté establecido en moneda extranjera."]
[771,null,9300,null,null,"Comisiones de la deuda pública",9300,"9300 COMISIONES DE LA DEUDA PUBLICA","Asignaciones destinadas a cubrir las comisiones derivadas de los diversos créditos o financiamientos autorizados o ratificados por el Congreso de la Unión, pagaderos en el interior y exterior del país, tanto en moneda nacional como extranjera."]
[772,null,null,9310,null,"Comisiones de la deuda pública interna",9310,"931 Comisiones de la deuda pública interna","Asignaciones destinadas al pago de obligaciones derivadas del servicio de la deuda contratada en territorio nacional."]
[773,null,null,null,9311,"Comisiones de la deuda publica interna"]
[774,null,null,null,9312,"Comisiones de la deuda publica interna con Gobierno del Estado"]
[775,null,null,9320,null,"Comisiones de la deuda pública externa",9320,"932 Comisiones de la deuda pública externa","Asignaciones destinadas al pago de obligaciones derivadas del servicio de la deuda contratada fuera del territorio nacional."]
[776,null,9400,null,null,"Gastos de la deuda pública",9400,"9400 GASTOS DE LA DEUDA PUBLICA","Asignaciones destinadas a cubrir los gastos derivados de los diversos créditos o financiamientos autorizados o ratificados por el Congreso de la Unión, pagaderos en el interior y exterior del país, tanto en moneda nacional como extranjera."]
[777,null,null,9410,null,"Gastos de la deuda pública interna",9410,"941 Gastos de la deuda pública interna","Asignaciones destinadas al pago de gastos de la deuda pública interna, como son: diversos gastos que se cubren a los bancos agentes conforme a los convenios y/o contratos de crédito suscritos, gastos asociados a la difusión de la deuda, gastos por inscripción de los valores en las instancias respectivas; así como cualquier otra erogación derivada de la contratación, manejo y servicio de la deuda pública interna que por su naturaleza no corresponda a amortizaciones, intereses, comisiones o coberturas."]
[778,null,null,null,9411,"Gastos de la deuda publica interna"]
[779,null,null,null,9412,"Gastos de la deuda publica interna con Gobierno del Estado"]
[780,null,null,9420,null,"Gastos de la deuda pública externa",9420,"942 Gastos de la deuda pública externa","Asignaciones destinadas al pago de gastos de la deuda pública externa, como son: diversos gastos que se cubren a los bancos agentes conforme a los convenios y/o contratos de crédito suscritos, gastos asociados a la difusión de la deuda, gastos por inscripción de los valores en las instancias respectivas; así como cualquier otra erogación derivada de la contratación, manejo y servicio de la deuda pública externa que por su naturaleza no corresponda a amortizaciones, intereses, comisiones o coberturas."]
[781,null,9500,null,null,"Costo por coberturas",9500,"9500 COSTO POR COBERTURAS","Asignaciones destinadas a cubrir los importes generados por las variaciones en el tipo de cambio o en las tasas de interés en el cumplimiento de las obligaciones de deuda interna o externa; así como la contratación de instrumentos financieros denominados como futuros o derivados."]
[782,null,null,9510,null,"Costos por cobertura de la deuda pública interna",9510,"951 Costos por cobertura de la deuda pública interna","Asignaciones destinadas al pago de los importes derivados por las variaciones en las tasas de interés, programas de coberturas petroleras, agropecuarias y otras coberturas mediante instrumentos financieros derivados; así como las erogaciones que, en su caso, resulten de la cancelación anticipada de los propios contratos de cobertura de la deuda pública interna."]
[783,null,null,null,9511,"Costos por cobertura de la deuda pública interna"]
[784,null,null,null,9512,"Costos por cobertura de la deuda pública interna con Gobierno del Estado"]
[785,null,null,9520,null,"Costos por cobertura de la deuda pública externa",9520,"952 Costos por cobertura de la deuda pública externa","Asignaciones destinadas al pago de los importes derivados por las variaciones en las tasas de interés, en el tipo de cambio de las divisas, programa de coberturas petroleras, agropecuarias otras coberturas mediante instrumentos financieros derivados; así como las erogaciones que, en su caso, resulten de la cancelación anticipada de los propios contratos de cobertura de la deuda pública externa."]
[786,null,9600,null,null,"Apoyos financieros",9600,"9600 APOYOS FINANCIEROS","Asignaciones destinadas al apoyo de los ahorradores y deudores de la banca y del saneamiento del sistema financiero nacional."]
[787,null,null,9610,null,"Apoyos a intermediarios financieros",9610,"961 Apoyos a intermediarios financieros","Asignaciones para cubrir compromisos derivados de programas de apoyo y saneamiento del sistema financiero nacional."]
[788,null,null,9620,null,"Apoyos a ahorradores y deudores del Sistema Financiero Nacional",9620,"962 Apoyos a ahorradores y deudores del Sistema Financiero Nacional","Asignaciones, destinadas a cubrir compromisos por la aplicación de programas de apoyo a ahorradores y deudores."]
[789,null,9900,null,null,"Adeudos de ejercicios fiscales anteriores (ADEFAS)",9900,"9900 ADEUDOS DE EJERCICIOS FISCALES ANTERIORES (ADEFAS)","Asignaciones destinadas a cubrir las erogaciones devengadas y pendientes de liquidar al cierre del ejercicio fiscal anterior, derivadas de la contratación de bienes y servicios requeridos en el desempeño de las funciones de los entes públicos, para las cuales existió asignación presupuestal con saldo disponible al cierre del ejercicio fiscal en que se devengaron."]
[790,null,null,9910,null,"ADEFAS",9910,"991 ADEFAS","Asignaciones destinadas a cubrir las erogaciones devengadas y pendientes de liquidar al cierre del ejercicio fiscal anterior, derivadas de la contratación de bienes y servicios requeridos en el desempeño de las funciones de los entes públicos, para las cuales existió asignación presupuestal con saldo disponible al cierre del ejercicio fiscal en que se devengaron."]
[791,null,null,null,9911,"Adefas"]